Workbook

Sheet Cover
C6: COVIDTracer Advanced
C10: A Planning Tool to Illustrate the Resources Needed and Potential Impact of Contact Tracing and Monitoring of COVID-19 cases
C13: v1.0a *DRAFT VERSION - STILL UNDER DEVELOPMENT*
C16: Authors (alphabetical order):
C17: Bishwa B. Adhikari | I17: Gloria J. Kang
C18: Aziza Arifkhanova | I18: Martin I. Meltzer
C19: Fatima Coronado | I19: Gabrielle Miller
C20: Leah S. Fischer | I20: Gabriel Rainisch
C21: Bradford Greening Jr. | I21: Ketra Rice
C22: Seonghye Jeon | I22: Michael L. Washington
C23: Emily B. Kahn
C25: Health Economics and Modeling Unit: hemu@cdc.gov
D27: Centers for Disease Control and Prevention
C28: Atlanta, Georgia
B29: Updated: | C29: 2020-11-16 | J29: Note: For COVIDTracer to work correctly, users must meet ALL of the following criteria: 1) Enable macros by clicking the "Enable Content" button when opening file. 2) Use Microsoft Office Excel 2013 or later in a Windows environment 3) Do not use browser or mobile version of Office - open file in Desktop app.

Sheet A. Outbreak Details
BE5: Yes | BF5: Daily case counts are rapidly increasing
BE6: No | BF6: Daily case counts are slowly increasing
BF7: Daily case counts have plateaued
BF8: Daily case counts are slowly decreasing
B9: Step 1: | C9: Enter the population of your jurisdiction | BF9: Daily case counts are rapidly decreasing
C10: Total Population | F10: 100000 | G10: persons | BF10: Manually enter % effectiveness
B12: Step 2: | C12: Enter information about case counts in your jurisdiction
C13: Today's Date | F13: 2020-10-09
C14: Total cases to date | F14: 1900 | G14: cases
C15: Cases in the last 14 days | F15: 590 | G15: cases
C16: Note: These data inputs will only create curves for the purpose of calculating resources needs. They are not intended as, nor should be intepreted as, forecasts of future cases
B18: Step3: | C18: Enter estimates about the effectiveness of community interventions implemented through the present date
C19: Are community interventions currently in place? | F19: Yes
C20: Will community interventions begin before initiating contact tracing? | F20: Yes
C21: Date community interventions will begin in jurisdiction | F21: 2020-10-10 | G21: =IF(F19="Yes", $F$13, IF(F20="No", 'B. Impact of contact tracing'!$F$12, F21)) -> 2020-10-09
C22: Pattern of change in daily case counts over the last 14 days | F22: Daily case counts are slowly increasing | G22: 0 | H22: =IF(F22=BF10, G22, IF(F22=BF5, 'Initial Case Distribution'!H70, IF(F22=BF6, 'Initial Case Distribution'!H71, IF(F22=BF7, 'Initial Case Distribution'!H72, IF(F22=BF8, 'Initial Case Distribution'!H73, 'Initial Case Distribution'!H74))))) -> 0.52
B24: Step 4: | C24: (OPTIONAL/ADVANCED) Epidemiologic Parameters
C25: ^It is recommended that the default parameters be used, however, if the user understands the implications for results, changes can be made below.
E26: Allows the user to modify the parameters that inform the modeled estimates of future cases.

Sheet Data (hidden)
A1: Duration: | B1: 1 | C1: 6 | D1: 0.15
A2: Attack rate: | B2: 1 | C2: 8 | D2: 0.25
C3: 12 | D3: 0.35

Sheet B. Impact of contact tracing
BC5: Low Estimate: Initial R0 | BF5: Manual
BC6: High Estimate: Initial R0 | BF6: Days past Peak | BH6: Modified Infectivity Distributions
BC7: Low Estimate: Initial R0 | BI7: Base | BJ7: S1 | BK7: S2 | BL7: S3
B8: Step 1: | C8: Enter the date on which contact tracing interventions will begin | BF8: Symptoms | BH8: 1 | BI8: ='D. Epi Parameters'!D14 -> 0 | BJ8: =IF($BH8<F$17, $BI8, 0) -> 0 | BK8: =IF($BH8<G$17, $BI8, 0) -> 0 | BL8: 0
C9: Choose entry method | F9: Manual | BF9: Contact ID | BH9: 2 | BI9: ='D. Epi Parameters'!D15 -> 0 | BJ9: =IF($BH9<F$17, $BI9, 0) -> 0 | BK9: =IF($BH9<G$17, $BI9, 0) -> 0 | BL9: =IF($BH9<H$17, $BI9, 0) -> 0
C10: Days past epidemic peak | G10: 10 | K10: Timing of Case Isolation | BH10: 3 | BI10: ='D. Epi Parameters'!D16 -> 0 | BJ10: 0 | BK10: 0 | BL10: 0
C11: Date contact tracing begins (no ramp-up) | F11: 2020-10-24 | G11: Hit refresh - I schange | K11: Day | L11: Strategy 1 | M11: Strategy 2 | N11: Strategy 3 | BF11: Yes | BH11: 4 | BI11: ='D. Epi Parameters'!D17 -> 0.1677720969 | BJ11: 0.1677720969 | BK11: 0.1677720969 | BL11: 0
C12: Date chosen | F12: =IF($F$9=$BF$5, $F$11, $G$11) -> 2020-10-24 | G12: =IF($F$9=$BF$6,_xlfn.CONCAT("(Peak + ",$G$10," days)"), "") ->  | K12: 1 | L12: =BJ8 -> 0 | M12: =BK8 -> 0 | N12: =BL8 -> 0 | BF12: No | BH12: 5 | BI12: ='D. Epi Parameters'!D18 -> 0.1802607219 | BJ12: 0.1802607219 | BK12: 0.1802607219 | BL12: 0
K13: 2 | L13: 0 | M13: 0 | N13: 0 | BH13: 6 | BI13: ='D. Epi Parameters'!D19 -> 0.1707119341 | BJ13: 0.1707119341 | BK13: 0 | BL13: 0
B14: Step 2: | C14: Set up the scenarios for contact tracing strategies | K14: 3 | L14: 0 | M14: 0 | N14: 0 | BH14: 7 | BI14: ='D. Epi Parameters'!D20 -> 0.1451776603 | BJ14: 0 | BK14: 0 | BL14: 0
K15: 4 | L15: 0.1677720969 | M15: 0.1677720969 | N15: 0 | BH15: 8 | BI15: ='D. Epi Parameters'!D21 -> 0.112677035 | BJ15: 0 | BK15: 0 | BL15: 0
F16: Strategy 1 | G16: Strategy 2 | H16: Strategy 3 | K16: 5 | L16: 0.1802607219 | M16: 0.1802607219 | N16: 0 | BH16: 9 | BI16: ='D. Epi Parameters'!D22 -> 0.08101811276 | BJ16: 0 | BK16: 0 | BL16: 0
C17: Number of days after infection that case is isolated | F17: 7 | G17: 6 | H17: 4 | K17: 6 | L17: 0.1707119341 | M17: 0 | N17: 0 | BH17: 10 | BI17: ='D. Epi Parameters'!D23 -> 0.05481117246 | BJ17: 0 | BK17: 0 | BL17: 0
C18: % of all cases successfully isolated and contacts traced and monitored | F18: 0.5 | G18: 0.45 | H18: 0.4 | K18: 7 | L18: 0 | M18: 0 | N18: 0 | BH18: 11 | BI18: ='D. Epi Parameters'!D24 -> 0.03553690464 | BJ18: 0 | BK18: 0 | BL18: 0
C19: Strategy Trigger | F19: Symptoms | G19: Symptoms | H19: Contact ID | K19: 8 | L19: 0 | M19: 0 | N19: 0 | BH19: 12 | BI19: ='D. Epi Parameters'!D25 -> 0.02262657797 | BJ19: 0 | BK19: 0 | BL19: 0
C20: Contacts are identified and listed? | F20: No | G20: Yes | H20: Yes | K20: 9 | L20: 0 | M20: 0 | N20: 0 | BH20: 13 | BI20: ='D. Epi Parameters'!D26 -> 0.01462363492 | BJ20: 0 | BK20: 0 | BL20: 0
C21: Contacts follow-up occurs? | F21: No | G21: No | H21: Yes | K21: 10 | L21: 0 | M21: 0 | N21: 0 | P21: Legend | BH21: 14 | BI21: ='D. Epi Parameters'!D27 -> 0.01478414908 | BJ21: 0 | BK21: 0 | BL21: 0
C22: *Successfully traced = the strategy worked as assumed and transmission to the next generation was prevented | K22: 11 | L22: 0 | M22: 0 | N22: 0 | O22: Infected, not yet infectious
K23: 12 | L23: 0 | M23: 0 | N23: 0 | O23: Infectious, pre-symptomatic
B24: Step 3: | C24: Account for additional effects of continued community interventions (e.g., facemask use, social distancing measures, school/business closures etc.) | K24: 13 | L24: 0 | M24: 0 | N24: 0 | O24: Infectious & symptomatic
K25: 14 | L25: 0 | M25: 0 | N25: 0 | O25: Recovering, no longer infectious
F26: Strategy 1 | G26: Strategy 2 | H26: Strategy 3
C27: Will community-level interventions continue? | F27: Yes | G27: Yes | H27: Yes
C28: Estimated % reduction in transmission due to continued community interventions | F28: 0.29 | G28: 0.29 | H28: 0.29
C29: Combined % reduction in transmission from contact tracing + continued community interventions, if applicable | F29: =IF(F27=$BF$12, 'Calc - Likely, S1'!$B$39, MIN(1, SUM(F28, 'Calc - Likely, S1'!$B$39))) -> 0.5718765741 | G29: =IF(G27=$BF$12, 'Calc - Likely, S2'!$B$39, MIN(1, SUM(G28, 'Calc - Likely, S2'!$B$39))) -> 0.5997811389 | H29: =IF(H27=$BF$12, 'Calc - Likely, S3'!$B$39, MIN(1, SUM(H28, 'Calc - Likely, S3'!$B$39))) -> 0.75
C30: NOTE: Users are encouraged to consult the most recent literature available on the subject of estimated impact of community level interventions, as well as any relevant data that are available from their jurisdictions. An example of a website that posts updates of such information is: https://www.cdc.gov/library/covid19/scienceupdates.html?Sort=Date%3A%3Adesc.
B46: *These figures show the reduction in cases that may occur compared to the base case if contact tracing were initiated on the chosen date, given all of the provided assumptions. The red dotted line shows when contact tracing strategies were initiated.

Sheet C. Tracing Resources
BA5: 1
BA6: 2
B8: Step 1: | C8: Enter the estimated number of contacts per case | D8: Lower | E8: Upper
C9: Contacts per case | D9: 5 | E9: 20 | F9: contacts per case
C10: False Alerts per case | D10: 0 | E10: 0 | F10: alerts per case
C11: Number of days contacts are monitored | D11: 14 | E11: 14 | F11: days
B13: Step 2: | C13: Enter the daily work hours and overhead hours | D13: Lower | E13: Upper
C14: Daily shift length (hours) | D14: 8 | E14: 12 | F14: hours per day
C15: Overhead hours (e.g., prep time, supervisory time, support staff) | D15: 0.05 | E15: 0.05 | F15: of total hours needed
B17: Step 3: | C17: Enter the estimated time needed to interview and monitor cases and contacts
D18: Staff Group | E18: Lower | F18: Upper
C19: Initial case interviews | D19: 1 | E19: 1 | F19: 2 | G19: hours per case
C20: Initial case interviews (false case alerts) | D20: 1 | E20: 2 | F20: 4 | G20: hours per alert
C21: Initial contact interviews | D21: 1 | E21: 0.5 | F21: 1 | G21: hours per contact
C22: Case/contact monitoring & follow-up | D22: 2 | E22: 0.25 | F22: 1 | G22: hours per day
C23: †For each case, there are a number of associated contacts (see Step 1). The time entered here represents the daily hours per case/contact required to monitor both the cases and associated contacts. If the number of assumed contacts-per-case are notably changed (in Step 1), users are advised to concurrently alter the monitoring time.

Sheet D. Epi Parameters
BA5: New Daily Cases
BA6: Cumulative Cases | BG6: Disease Stage Text | BP6: Day | BQ6: % | BR6: Cumulative
BG7: =K17 -> 3 | BH7: =H17 -> Infected, not yet infectious | BI7: 1 | BJ7: =IFERROR(INDEX($BH$7:$BH$10, MATCH(BI7, $BG$7:$BG$10, 0)), "") ->  | BP7: =C14 -> 1 | BQ7: =D14 -> 0 | BR7: =BQ7 -> 0
BA8: Chart Titles | BB8: Y-Limits | BC8: X-Limits | BG8: =BG7+K18 -> 5 | BH8: =H18 -> Infectious, pre-symptomatic | BI8: 2 | BP8: 2 | BQ8: 0 | BR8: =BQ8+BR7 -> 0
B9: Step 1: | C9: Enter information about how quickly the disease spreads without mitigation | BA9: =_xlfn.CONCAT(BA5, "(R0 = ", TEXT($F$10, "0.00"), ")") -> New Daily Cases (R0 = 2.50) | BB9: 0 | BC9: ='A. Outbreak Details'!F13-10 -> 2020-09-29 | BG9: =BG8+K19 -> 14 | BH9: Infectious & symptomatic | BI9: 3 | BJ9: =IFERROR(INDEX($BH$7:$BH$10, MATCH(BI9, $BG$7:$BG$10, 0)), "") -> Infected, not yet infectious | BP9: 3 | BQ9: 0 | BR9: =BQ9+BR8 -> 0
C10: New Infections per Case (R0) | F10: 2.5 | G10: infections | BA10: =_xlfn.CONCAT(BA6, "(R0 = ", TEXT($F$10, "0.00"), ")") -> Cumulative Cases (R0 = 2.50) | BB10: ='A. Outbreak Details'!F10*0.9 -> 90000 | BC10: =BC9+385 -> 2021-10-19 | BG10: =BG9+K20 -> 14 | BH10: Recovering, no longer infectious | BI10: 4 | BJ10: =IFERROR(INDEX($BH$7:$BH$10, MATCH(BI10, $BG$7:$BG$10, 0)), "") ->  | BP10: 4 | BQ10: 0.1677720969 | BR10: 0.1677720969
BI11: 5 | BJ11: Infectious, pre-symptomatic | BP11: 5 | BQ11: 0.1802607219 | BR11: 0.3480328188
B12: Step 2: | C12: Enter information about how the disease transmission occurs over the duration of illness (without mitigation) | BI12: 6 | BP12: 6 | BQ12: 0.1707119341 | BR12: 0.5187447529
C13: Day | BI13: 7 | BP13: 7 | BQ13: 0.1451776603 | BR13: 0.6639224132
C14: 1 | D14: 0 | E14: =BJ7 ->  | BI14: 8 | BP14: 8 | BQ14: 0.112677035 | BR14: 0.7765994482
C15: 2 | D15: 0 | E15: =BJ8 ->  | BI15: 9 | BP15: 9 | BQ15: 0.08101811276 | BR15: 0.8576175609
C16: 3 | D16: 0 | E16: Infected, not yet infectious | H16: Disease Stage (with Color Legend) | BI16: 10 | BP16: 10 | BQ16: 0.05481117246 | BR16: 0.9124287334
C17: 4 | D17: 0.1677720969 | H17: Infected, not yet infectious | K17: 3 | L17: days | BI17: 11 | BP17: 11 | BQ17: 0.03553690464 | BR17: 0.947965638
C18: 5 | D18: 0.1802607219 | E18: Infectious, pre-symptomatic | H18: Infectious, pre-symptomatic | K18: 2 | L18: days | BI18: 12 | BP18: 12 | BQ18: 0.02262657797 | BR18: 0.970592216
C19: 6 | D19: 0.1707119341 | H19: Infectious & symptomatic | K19: 9 | L19: days | BI19: 13 | BP19: 13 | BQ19: 0.01462363492 | BR19: 0.9852158509
C20: 7 | D20: 0.1451776603 | H20: Recovering, no longer infectious | K20: =14-SUM($K$17:$K$19) -> 0 | L20: days | BI20: 14 | BJ20: Infectious & symptomatic | BP20: 14 | BQ20: 0.01478414908 | BR20: =BQ20+BR19 -> 1
C21: 8 | D21: 0.112677035 | H21: Total Duration of Infection/Illness | K21: =SUM(K17:K20) -> 14 | L21: days | CA21: Step 3: | CB21: Enter information about how deadly the illness is
C22: 9 | D22: 0.08101811276 | CB22: Estimated Case Fatality Rate | CE22: 0.0109
C23: 10 | D23: 0.05481117246 | CB23: % Increase in Case Fatality Rate if Hospitals Overloaded | CE23: 0.0102
C24: 11 | D24: 0.03553690464
C25: 12 | D25: 0.02262657797
C26: 13 | D26: 0.01462363492
C27: 14 | D27: 0.01478414908 | E27: Infectious & symptomatic
D28: =SUM(D14:D27) -> 1 | E28: (Must equal 100%)
B30: Step 3: | C30: Enter information about asymptomatic cases
C31: % of cases that are asymptomatic | F31: 0.4 | G31: of cases
C32: Infectiousness of Asymptomatic Cases (Relative to Symptomatic Cases) | F32: 0.75 | N32: *These figures show the cases that may occur if current social distancing interventions were to continue unchanged into the future (Base case for the model).
C48: *Default infectivity profile based on He et al 2020 and Ferreti et al 2020.

Sheet E.1. Hospitalization Inputs
BA5: Outbreak start
BA6: Model start | BB6: Model end | BD6: Percentages
BA7: Custom date | BB7: Custom date | BD7: Case Numbers | BJ7: =IFERROR(INDEX($BH$7:$BH$10, MATCH(BI7, $BG$7:$BG$10, 0)), "") -> 
B9: Step 1: | C9: Enter information about the time horizon | BA9: Start Date | BB9: End Date | BD9: % of All Cases Admitted for Hospital Care | BE9: % of Admitted Cases Requiring ICU Care | BF9: % of ICU Cases That Will Require Mechanical Ventilation
C10: Choose a starting date | F10: Custom date | G10: 2020-07-31 | BA10: =IF(F12="N/A", 'Case Counts'!U4, F12) -> 2020-07-31 | BB10: =G12 -> 2021-02-06 | BD10: # of Cases Admitted for Hospital Care | BE10: # of Admitted Cases Requiring ICU Care | BF10: # of ICU Cases That Will Require Mechanical Ventilation
C11: Choose an ending date | F11: Custom date | G11: 2021-02-06
C12: Chosen date range (start, end) | F12: =IF($F$10=$BA$7, G10, 'Case Counts'!$U$4) -> 2020-07-31 | G12: =IF($F$11=$BB$7, G11, 'Case Counts'!$U$369) -> 2021-02-06 | BA12: Age Groups
BA13: ='F. Impact of Interventions'!BA7 -> 0 to 17
C14: Total Cases in Chosen Date Range | BA14: ='F. Impact of Interventions'!BA8 -> 18 to 64
C15: Base Case | D15: Strategy 1 | E15: Strategy 2 | F15: Strategy 3 | BA15: ='F. Impact of Interventions'!BA9 -> 65+
C16: =SUMIFS('Case Counts'!V4:V369,'Case Counts'!$U$4:$U$369,">="&$BA$10,'Case Counts'!$U$4:$U$369,"<="&$BB$10) -> 21015.08098 | D16: =SUMIFS('Case Counts'!W4:W369,'Case Counts'!$U$4:$U$369,">="&$BA$10,'Case Counts'!$U$4:$U$369,"<="&$BB$10) -> 10349.31534 | E16: =SUMIFS('Case Counts'!X4:X369,'Case Counts'!$U$4:$U$369,">="&$BA$10,'Case Counts'!$U$4:$U$369,"<="&$BB$10) -> 6941.452929 | F16: =SUMIFS('Case Counts'!Y4:Y369,'Case Counts'!$U$4:$U$369,">="&$BA$10,'Case Counts'!$U$4:$U$369,"<="&$BB$10) -> 2030.140855
B18: Step 2: | C18: Enter information about the risk of hospitalization by age group
C19: I wish to enter data based on | F19: Percentages | G19: (% sign not shown in data table; enter 45% as 45)
C21: Hospitalized Cases
C22: Age (year) | D22: =IF($F$19=$BD$6, BD9, BD10) -> % of All Cases Admitted for Hospital Care | E22: =IF($F$19=$BD$6, BE9, BE10) -> % of Admitted Cases Requiring ICU Care | F22: =IF($F$19=$BD$6, BF9, BF10) -> % of ICU Cases That Will Require Mechanical Ventilation
C23: =$BA$13 -> 0 to 17 | D23: 0.205 | E23: 33.2 | F23: 17.39130435
C24: =$BA$14 -> 18 to 64 | D24: 2.165335893 | E24: 29.9 | F24: 16.23602661
C25: =$BA$15 -> 65+ | D25: 4.118695937 | E25: 35 | F25: 21.1
B27: Step 3: | C27: Enter information about the percentage of all cases in your jurisdiction that belong to each age group
C28: Cases by Age Group
C29: Age (year) | D29: % of Total Cases
C30: =$BA$13 -> 0 to 17 | D30: 0.15
C31: =$BA$14 -> 18 to 64 | D31: 0.55
C32: =$BA$15 -> 65+ | D32: 0.3
D33: =SUM(D30:D32) -> 1 | E33: (must equal 100%)

Sheet E.2. Costing Inputs
BA6: Ward Types
BA7: Hospitalized, non-ICU | BJ7: =IFERROR(INDEX($BH$7:$BH$10, MATCH(BI7, $BG$7:$BG$10, 0)), "") -> 
BA8: ICU (No Ventilator)
B9: Step 1: | C9: Enter information about the proportion of patients covered by Medicaid | BA9: ICU + Ventilator
C10: % of Hospitalized Patients Covered by Medicaid
C11: Age (year) | D11: % Medicaid | E11: % Other Insurance* | F11: Total
C12: ='F. Impact of Interventions'!$BA$7 -> 0 to 17 | D12: 0.18 | E12: =1-D12 -> 0.82 | F12: =SUM(D12:E12) -> 1
C13: ='F. Impact of Interventions'!$BA$8 -> 18 to 64 | D13: 0.18 | E13: =1-D13 -> 0.82 | F13: =SUM(D13:E13) -> 1
C14: ='F. Impact of Interventions'!$BA$9 -> 65+ | D14: 0.18 | E14: 0.82 | F14: 1
B17: Step 2: | C17: Enter information about treatment charges per day & median length of stay (LOS) for hospitalized patients covered by OTHER INSURANCE*.
C18: Direct Medical Charges (Hospitalized Cases using Other Insurance*)
C19: Age (year) | D19: Per case ($)/day | G19: Median Length of Stay (days)
D20: =$BA$7 -> Hospitalized, non-ICU | E20: =$BA$8 -> ICU (No Ventilator) | F20: =$BA$9 -> ICU + Ventilator | G20: =$D$20 -> Hospitalized, non-ICU | H20: =$E$20 -> ICU (No Ventilator) | I20: =$F$20 -> ICU + Ventilator
C21: ='F. Impact of Interventions'!$BA$7 -> 0 to 17 | D21: 2340.35 | E21: 3374.66 | F21: 5685.9 | G21: 2 | H21: 5 | I21: 13
C22: ='F. Impact of Interventions'!$BA$8 -> 18 to 64 | D22: 2117.4 | E22: 2080.47 | F22: 3669.9 | G22: 4 | H22: 5 | I22: 14
C23: ='F. Impact of Interventions'!$BA$9 -> 65+ | D23: 2061.42 | E23: 2078.49 | F23: 3596.81 | G23: 5 | H23: 6 | I23: 12
C24: *Note: Other insurance includes private insurance and Medicare
B26: Step 3: | C26: Enter information about treatment charges per day & median length of stay (LOS) for hospitalized patients covered by MEDICAID.
C27: Direct Medical Charges (Hospitalized Cases using Medicaid)
C28: Age (year) | D28: Per case ($)/day | G28: Median Length of Stay (days)
D29: =$BA$7 -> Hospitalized, non-ICU | E29: =$BA$8 -> ICU (No Ventilator) | F29: =$BA$9 -> ICU + Ventilator | G29: =$D$20 -> Hospitalized, non-ICU | H29: =$E$20 -> ICU (No Ventilator) | I29: =$F$20 -> ICU + Ventilator
C30: ='F. Impact of Interventions'!$BA$7 -> 0 to 17 | D30: 2317.91 | E30: 3199.21 | F30: 4494.69 | G30: 2 | H30: 4 | I30: 10
C31: ='F. Impact of Interventions'!$BA$8 -> 18 to 64 | D31: 2294.66 | E31: 2231.616 | F31: 3919.1 | G31: 3 | H31: 5 | I31: 14
C32: ='F. Impact of Interventions'!$BA$9 -> 65+ | D32: 2489.28 | E32: 2179.42 | F32: 3912.36 | G32: 5 | H32: 7 | I32: 13
C33: Source: Premier Healthcare Database (hospitalization charges and LOS); Note: charges are higher than costs for both "Other insurance" and Medicaid.
B35: Step 4: | C35: Enter Cost to Charge ratio
C36: Cost to Charge Ratio
C37: Other Insurance* | D37: 1
C38: Medicaid | D38: 1
C39: Source: Centers for Medicare and Medicaid Services
C40: *Note: Cost to charge ratios for private insurance are difficult to find, and vary across insurers and plans. This estimate of 80% is an assumed value and users may wish to alter this number.

Sheet F. Impact of Interventions
BA6: Age groups
BA7: =IF($F$10=Population!$A$58, E14, C14) -> 0 to 17 | BJ7: =IFERROR(INDEX($BH$7:$BH$10, MATCH(BI7, $BG$7:$BG$10, 0)), "") -> 
BA8: =IF($F$10=Population!$A$58, E15, C15) -> 18 to 64
B9: Step 1: | C9: Enter information about the age stratification in your jurisdiction or use one of the presets provided in the dropdown menu: | BA9: =IF($F$10=Population!$A$58, E16, C16) -> 65+
C10: Choose your jurisdiction | F10: United States
C12: Demographics
C13: Age (year) | D13: % Population | E13: Age (year) | F13: Enter % Population | G13: Pop (N)
C14: 0 to 17 | D14: =IFERROR(INDEX(Population!$B$5:$D$57,MATCH($F$10,Population!$A$5:$A$57,0),1), "") -> 0.2332213422 | E14: 5-10 | F14: 0.15 | G14: =IF($F$10=Population!$A$58, F14, D14) * 'A. Outbreak Details'!$F$10 -> 23322.13422
C15: 18 to 64 | D15: =IFERROR(INDEX(Population!$B$5:$D$57,MATCH($F$10,Population!$A$5:$A$57,0),2), "") -> 0.6035962655 | E15: 11-13 | F15: 0.67 | G15: =IF($F$10=Population!$A$58, F15, D15) * 'A. Outbreak Details'!$F$10 -> 60359.62655
C16: 65+ | D16: =IFERROR(INDEX(Population!$B$5:$D$57,MATCH($F$10,Population!$A$5:$A$57,0),3), "") -> 0.1631823923 | E16: 14-18 | F16: 0.18 | G16: =IF($F$10=Population!$A$58, F16, D16) * 'A. Outbreak Details'!$F$10 -> 16318.23923
D17: =SUM(D14:D16) -> 1 | F17: =SUM(F14:F16) -> 1 | G17: =SUM(G14:G16) -> 100000
B19: Step 2: | C19: For a single community intervention, enter the estimated impact and adherence for each age group:
C20: Age-Stratified Impact of a Single Community Intervention
C21: Age (years) | D21: % Reduction in Transmission | E21: % Adherence | F21: Net Reduction (%)
C22: =BA7 -> 0 to 17 | D22: 0.6 | E22: 0.2 | F22: =D22*E22 -> 0.12
C23: =BA8 -> 18 to 64 | D23: 0.6 | E23: 0.4 | F23: =D23*E23 -> 0.24
C24: =BA9 -> 65+ | D24: 0.6 | E24: 0.8 | F24: 0.48
C26: Aggregate Reduction in Transmission (Single Community Intervention) | E26: =SUMPRODUCT(F14:F16, F22:F24) -> 0.2652
B29: Step 3: | C29: Enter the aggregate reduction in transmission for each community intervention of interest
C30: Aggregate Impact of Community Interventions
C31: Intervention Name | E31: Aggregate Reduction in Transmission (from green box above)
C32: Masking in public spaces | E32: 0.2652 | G32: add in text box to explain how to use this
C33: Ban on large gatherings | E33: 0.02
C34: <type intervention name> | E34: 0
C35: <type intervention name> | E35: 0
C36: <type intervention name> | E36: 0
C38: Age-Weighted (Average) Reduction in Transmission | E38: =SUM(E32:F36) -> 0.2852 | G38: This assumes the impact of each intervention is independent from the others listed.
G39: User should enter this number on Tab B under the intended strategy.

Sheet RESULTS
B5: Results: Potential impact of Contact Tracing on COVID-19 cases and resources needed | BA5: Chart Text
BA6: Maximum daily staff needed by strategy | BD6: Staffing Needs by Group
BA7: Maximum staff needed per day
B8: Result 1: Potential Impact of Contact Tracing Strategies on Future Epidemic Trajectory | BA8: New cases per day by strategy
BA9: Cumulative cases by strategy
BA10: Contact Tracing Starts | BB10: =TEXT($S$13, "[$-en-US]d-mmm-yyyy;@") -> 24-Oct-2020
BA11: Chart Titles
N12: Table 1: Outbreak duration and total cases by type of intervention | BA12: =IFERROR(_xlfn.CONCAT(BA6, "(", $BA$10, " ", $BB$10, ")"), CONCATENATE(BA6, "(", $BA$10, " ", $BB$10, ")")) -> Maximum daily staff needed by strategy (Contact Tracing Starts 24-Oct-2020)
R13: contact tracing start date: | S13: ='B. Impact of contact tracing'!$F$12 -> 2020-10-24 | BA13: =IFERROR(_xlfn.CONCAT(BA8, "(", $BA$10, " ", $BB$10, ")"), CONCATENATE(BA8, "(", $BA$10, " ", $BB$10, ")")) -> New cases per day by strategy (Contact Tracing Starts 24-Oct-2020)
P14: Type of contact tracing | BA14: =IFERROR(_xlfn.CONCAT(BA9, "(", $BA$10, " ", $BB$10, ")"), CONCATENATE(BA9, "(", $BA$10, " ", $BB$10, ")")) -> Cumulative cases by strategy (Contact Tracing Starts 24-Oct-2020)
P15: Base Case | Q15: ='B. Impact of contact tracing'!F16 -> Strategy 1 | R15: ='B. Impact of contact tracing'!G16 -> Strategy 2 | S15: ='B. Impact of contact tracing'!H16 -> Strategy 3 | BA15: Y-axis labels | BB15: X-axis labels
N16: Duration (days) | P16: =IF('Case Counts'!V369>=1,"> 365",SUM(COUNTIF('Case Counts'!V5:V369,">=1"))) -> 322 | Q16: =IF('Case Counts'!W369>=1,"> 365",SUM(COUNTIF('Case Counts'!W5:W369,">=1"))) -> > 365 | R16: =IF('Case Counts'!X369>=1,"> 365",SUM(COUNTIF('Case Counts'!X5:X369,">=1"))) -> 326 | S16: =IF('Case Counts'!Y369>=1,"> 365",SUM(COUNTIF('Case Counts'!Y5:Y369,">=1"))) -> 72 | BA16: Cases | BB16: Days
N17: Date of Peak | P17: =INDEX('Case Counts'!$U$4:$U$369, MATCH('Calc - Base'!S5, 'Case Counts'!$T$4:$T$369, 0)) -> 2021-01-05 | Q17: =INDEX('Case Counts'!$U$4:$U$369, MATCH('Calc - Likely, S1'!S5, 'Case Counts'!$T$4:$T$369, 0)) -> 2020-11-27 | R17: =INDEX('Case Counts'!$U$4:$U$369, MATCH('Calc - Likely, S2'!S5, 'Case Counts'!$T$4:$T$369, 0)) -> 2020-10-23 | S17: =INDEX('Case Counts'!$U$4:$U$369, MATCH('Calc - Likely, S3'!S5, 'Case Counts'!$T$4:$T$369, 0)) -> 2020-10-23 | BA17: Staff
N18: Cases on Peak Day | P18: ='Calc - Base'!S4 -> 233.2961771 | Q18: ='Calc - Likely, S1'!S4 -> 95.12106577 | R18: ='Calc - Likely, S2'!S4 -> 90.54870782 | S18: ='Calc - Likely, S3'!S4 -> 90.54870782
N19: Total number of cases | P19: =MAX('Case Counts'!Z59:Z424) -> 30092.35531 | Q19: =MAX('Case Counts'!AA52:AA417) -> 14928.06622 | R19: =MAX('Case Counts'!AB52:AB417) -> 8689.197317 | S19: =MAX('Case Counts'!AC52:AC417) -> 2030.572978
BB24: Lower | BC24: Upper
B25: Result 2: Estimated Staffing Needs | BA25: =J30 -> Strategy 1 | BB25: =J32 -> 8.323093255 | BC25: =K32 -> 24.96927976
BA26: =L30 -> Strategy 2 | BB26: =L32 -> 25.45711206 | BC26: =M32 -> 240.0241994
I27: Table 2: Contact tracing resource needs | BA27: =N30 -> Strategy 3 | BB27: =N32 -> 38.53043725 | BC27: =O32 -> 283.1772129
N28: contact tracing start date: | O28: ='B. Impact of contact tracing'!$F$12 -> 2020-10-24
J29: Type of contact tracing | BB29: Lower | BC29: Upper
J30: =Q15 -> Strategy 1 | L30: =R15 -> Strategy 2 | N30: =S15 -> Strategy 3 | BA30: =J30 -> Strategy 1 | BB30: =J35 -> 14465.61459 | BC30: =K35 -> 28931.22918
J31: Lower | K31: Upper | L31: Lower | M31: Upper | N31: Lower | O31: Upper | BA31: =L30 -> Strategy 2 | BB31: =L35 -> 27701.80787 | BC31: =M35 -> 174125.6495
I32: Max daily staff needs | J32: =MAX('Staff Needed'!V5:V370) -> 8.323093255 | K32: =MAX('Staff Needed'!W5:W370) -> 24.96927976 | L32: =MAX('Staff Needed'!X5:X370) -> 25.45711206 | M32: =MAX('Staff Needed'!Y5:Y370) -> 240.0241994 | N32: =MAX('Staff Needed'!Z5:Z370) -> 38.53043725 | O32: =MAX('Staff Needed'!AA5:AA370) -> 283.1772129 | BA32: =N30 -> Strategy 3 | BB32: =N35 -> 8451.854618 | BC32: =O35 -> 41193.39201
I33: Group 1 | J33: =MAX('Staff Needed'!AB5:AB370) -> 8.323093255 | K33: =MAX('Staff Needed'!AC5:AC370) -> 24.96927976 | L33: =MAX('Staff Needed'!AD5:AD370) -> 25.45711206 | M33: =MAX('Staff Needed'!AE5:AE370) -> 240.0241994 | N33: =MAX('Staff Needed'!AF5:AF370) -> 15.80771408 | O33: =MAX('Staff Needed'!AG5:AG370) -> 149.0441614
I34: Group 2 | J34: =MAX('Staff Needed'!AH5:AH370) -> 0 | K34: =MAX('Staff Needed'!AI5:AI370) -> 0 | L34: =MAX('Staff Needed'!AJ5:AJ370) -> 0 | M34: =MAX('Staff Needed'!AK5:AK370) -> 0 | N34: =MAX('Staff Needed'!AL5:AL370) -> 23.73880443 | O34: =MAX('Staff Needed'!AM5:AM370) -> 142.4328266 | BB34: Strategy 1 | BD34: Strategy 2 | BF34: Strategy 3
I35: Total hours needed | J35: =SUM('Person Hours'!V5:V370) -> 14465.61459 | K35: =SUM('Person Hours'!W5:W370) -> 28931.22918 | L35: =SUM('Person Hours'!X5:X370) -> 27701.80787 | M35: =SUM('Person Hours'!Y5:Y370) -> 174125.6495 | N35: =SUM('Person Hours'!Z5:Z370) -> 8451.854618 | O35: =SUM('Person Hours'!AA5:AA370) -> 41193.39201 | BB35: Lower | BC35: Upper | BD35: Lower | BE35: Upper | BF35: Lower | BG35: Upper
I36: =I33 -> Group 1 | J36: =SUM('Person Hours'!AB5:AB370) -> 14465.61459 | K36: =SUM('Person Hours'!AC5:AC370) -> 28931.22918 | L36: =SUM('Person Hours'!AD5:AD370) -> 27701.80787 | M36: =SUM('Person Hours'!AE5:AE370) -> 174125.6495 | N36: =SUM('Person Hours'!AF5:AF370) -> 3231.363424 | O36: =SUM('Person Hours'!AG5:AG370) -> 20311.42724 | BA36: Group 1 | BB36: =J36/SUM(J36:J37) -> 1 | BC36: 1 | BD36: 1 | BE36: 1 | BF36: 0.3823259592 | BG36: 0.49307489
I37: =I34 -> Group 2 | J37: =SUM('Person Hours'!AH5:AH370) -> 0 | K37: =SUM('Person Hours'!AI5:AI370) -> 0 | L37: =SUM('Person Hours'!AJ5:AJ370) -> 0 | M37: =SUM('Person Hours'!AK5:AK370) -> 0 | N37: =SUM('Person Hours'!AL5:AL370) -> 5220.491194 | O37: =SUM('Person Hours'!AM5:AM370) -> 20881.96478 | BA37: Group 2 | BB37: =J37/SUM(J36:J37) -> 0 | BC37: 0 | BD37: 0 | BE37: 0 | BF37: 0.6176740408 | BG37: 0.50692511

Sheet RESULTS_Costs
B5: Results: Estimated Hospitalizations Averted
AB8: 1 | AC8: Total Cases by age group | AL8: Age Groups | AN8: Ward Types | AR8: Hospitalization Risk entered in: | AS8: ='E.1. Hospitalization Inputs'!F19 -> Percentages
AB9: 2 | AC9: Total Hospitalizations (+ Hospitalizations Averted) by age group and severity | AL9: ='F. Impact of Interventions'!BA7 -> 0 to 17 | AN9: ='E.2. Costing Inputs'!BA7 -> Hospitalized, non-ICU
AB10: 3 | AC10: Total Direct Medical Costs (+ Averted) by age group and severity | AL10: ='F. Impact of Interventions'!BA8 -> 18 to 64 | AN10: ='E.2. Costing Inputs'!BA8 -> ICU (No Ventilator)
AB11: 4 | AC11: Total Medicaid Expenditures by age group | AL11: ='F. Impact of Interventions'!BA9 -> 65+ | AN11: ='E.2. Costing Inputs'!BA9 -> ICU + Ventilator
AG12: *Data are summarized over user-defined time horizon entered on Tab E.1. Hospitalization Inputs
AC13: Total Cases (by Age Group)* | AI13: Total Hospitalized Cases (All Ward Types, by Age Group)* | AO13: Total Cases Admitted to ICU (Vent + no Vent, by Age Group)*
AC14: Age | AD14: Base Case | AE14: Strategy 1 | AF14: Strategy 2 | AG14: Strategy 3 | AI14: Age | AJ14: Base Case | AK14: Strategy 1 | AL14: Strategy 2 | AM14: Strategy 3 | AO14: Age | AP14: Base Case | AQ14: Strategy 1 | AR14: Strategy 2 | AS14: Strategy 3
AC15: =$AL$9 -> 0 to 17 | AD15: ='E.1. Hospitalization Inputs'!C$16*'E.1. Hospitalization Inputs'!$D30 -> 3152.262147 | AE15: ='E.1. Hospitalization Inputs'!D$16*'E.1. Hospitalization Inputs'!$D30 -> 1552.397302 | AF15: ='E.1. Hospitalization Inputs'!E$16*'E.1. Hospitalization Inputs'!$D30 -> 1041.217939 | AG15: ='E.1. Hospitalization Inputs'!F$16*'E.1. Hospitalization Inputs'!$D30 -> 304.5211282 | AI15: =$AL$9 -> 0 to 17 | AJ15: =IF($AS$8='E.1. Hospitalization Inputs'!$BD$6, AD15*'E.1. Hospitalization Inputs'!$D23/100, FALSE) -> 6.462137402 | AK15: =IF($AS$8='E.1. Hospitalization Inputs'!$BD$6, AE15*'E.1. Hospitalization Inputs'!$D23/100, FALSE) -> 3.182414468 | AL15: =IF($AS$8='E.1. Hospitalization Inputs'!$BD$6, AF15*'E.1. Hospitalization Inputs'!$D23/100, FALSE) -> 2.134496776 | AM15: =IF($AS$8='E.1. Hospitalization Inputs'!$BD$6, AG15*'E.1. Hospitalization Inputs'!$D23/100, FALSE) -> 0.6242683128 | AO15: =$AL$9 -> 0 to 17 | AP15: =IF($AS$8='E.1. Hospitalization Inputs'!$BD$6, AJ15*'E.1. Hospitalization Inputs'!$E23/100, FALSE) -> 2.145429618 | AQ15: =IF($AS$8='E.1. Hospitalization Inputs'!$BD$6, AK15*'E.1. Hospitalization Inputs'!$E23/100, FALSE) -> 1.056561604 | AR15: =IF($AS$8='E.1. Hospitalization Inputs'!$BD$6, AL15*'E.1. Hospitalization Inputs'!$E23/100, FALSE) -> 0.7086529295 | AS15: =IF($AS$8='E.1. Hospitalization Inputs'!$BD$6, AM15*'E.1. Hospitalization Inputs'!$E23/100, FALSE) -> 0.2072570799
AC16: =$AL$10 -> 18 to 64 | AD16: ='E.1. Hospitalization Inputs'!C$16*'E.1. Hospitalization Inputs'!$D31 -> 11558.29454 | AE16: ='E.1. Hospitalization Inputs'!D$16*'E.1. Hospitalization Inputs'!$D31 -> 5692.123439 | AF16: ='E.1. Hospitalization Inputs'!E$16*'E.1. Hospitalization Inputs'!$D31 -> 3817.799111 | AG16: ='E.1. Hospitalization Inputs'!F$16*'E.1. Hospitalization Inputs'!$D31 -> 1116.57747 | AI16: =$AL$10 -> 18 to 64 | AJ16: =IF($AS$8='E.1. Hospitalization Inputs'!$BD$6, AD16*'E.1. Hospitalization Inputs'!$D24/100, FALSE) -> 250.2759003 | AK16: =IF($AS$8='E.1. Hospitalization Inputs'!$BD$6, AE16*'E.1. Hospitalization Inputs'!$D24/100, FALSE) -> 123.2535919 | AL16: =IF($AS$8='E.1. Hospitalization Inputs'!$BD$6, AF16*'E.1. Hospitalization Inputs'!$D24/100, FALSE) -> 82.66817445 | AM16: =IF($AS$8='E.1. Hospitalization Inputs'!$BD$6, AG16*'E.1. Hospitalization Inputs'!$D24/100, FALSE) -> 24.17765273 | AO16: =$AL$10 -> 18 to 64 | AP16: =IF($AS$8='E.1. Hospitalization Inputs'!$BD$6, AJ16*'E.1. Hospitalization Inputs'!$E24/100, FALSE) -> 74.83249417 | AQ16: =IF($AS$8='E.1. Hospitalization Inputs'!$BD$6, AK16*'E.1. Hospitalization Inputs'!$E24/100, FALSE) -> 36.85282397 | AR16: =IF($AS$8='E.1. Hospitalization Inputs'!$BD$6, AL16*'E.1. Hospitalization Inputs'!$E24/100, FALSE) -> 24.71778416 | AS16: =IF($AS$8='E.1. Hospitalization Inputs'!$BD$6, AM16*'E.1. Hospitalization Inputs'!$E24/100, FALSE) -> 7.229118166
AC17: =$AL$11 -> 65+ | AD17: ='E.1. Hospitalization Inputs'!C$16*'E.1. Hospitalization Inputs'!$D32 -> 6304.524295 | AE17: ='E.1. Hospitalization Inputs'!D$16*'E.1. Hospitalization Inputs'!$D32 -> 3104.794603 | AF17: ='E.1. Hospitalization Inputs'!E$16*'E.1. Hospitalization Inputs'!$D32 -> 2082.435879 | AG17: ='E.1. Hospitalization Inputs'!F$16*'E.1. Hospitalization Inputs'!$D32 -> 609.0422564 | AI17: =$AL$11 -> 65+ | AJ17: =IF($AS$8='E.1. Hospitalization Inputs'!$BD$6, AD17*'E.1. Hospitalization Inputs'!$D25/100, FALSE) -> 259.664186 | AK17: =IF($AS$8='E.1. Hospitalization Inputs'!$BD$6, AE17*'E.1. Hospitalization Inputs'!$D25/100, FALSE) -> 127.8770492 | AL17: =IF($AS$8='E.1. Hospitalization Inputs'!$BD$6, AF17*'E.1. Hospitalization Inputs'!$D25/100, FALSE) -> 85.76920192 | AM17: =IF($AS$8='E.1. Hospitalization Inputs'!$BD$6, AG17*'E.1. Hospitalization Inputs'!$D25/100, FALSE) -> 25.08459867 | AO17: =$AL$11 -> 65+ | AP17: =IF($AS$8='E.1. Hospitalization Inputs'!$BD$6, AJ17*'E.1. Hospitalization Inputs'!$E25/100, FALSE) -> 90.8824651 | AQ17: =IF($AS$8='E.1. Hospitalization Inputs'!$BD$6, AK17*'E.1. Hospitalization Inputs'!$E25/100, FALSE) -> 44.75696721 | AR17: =IF($AS$8='E.1. Hospitalization Inputs'!$BD$6, AL17*'E.1. Hospitalization Inputs'!$E25/100, FALSE) -> 30.01922067 | AS17: =IF($AS$8='E.1. Hospitalization Inputs'!$BD$6, AM17*'E.1. Hospitalization Inputs'!$E25/100, FALSE) -> 8.779609535
AC18: Total | AD18: =SUM(AD15:AD17) -> 21015.08098 | AE18: =SUM(AE15:AE17) -> 10349.31534 | AF18: 6941.452929 | AG18: 2030.140855 | AI18: Total | AJ18: =SUM(AJ15:AJ17) -> 516.4022236 | AK18: =SUM(AK15:AK17) -> 254.3130555 | AL18: 170.5718731 | AM18: 49.88651971 | AO18: Total | AP18: =SUM(AP15:AP17) -> 167.8603889 | AQ18: =SUM(AQ15:AQ17) -> 82.66635279 | AR18: 55.44565776 | AS18: 16.21598478
AQ20: Hospitalizations Averted Relative to Base Case (by Age Group and Ward Type)*
AC21: Total Hospitalizations (by Age Group and Ward Type)*
AD22: Base Case | AG22: Strategy 1 | AJ22: Strategy 2 | AM22: Strategy 3 | AR22: Strategy 1 | AU22: Strategy 2 | AX22: Strategy 3
AC23: Age | AD23: =$AN$9 -> Hospitalized, non-ICU | AE23: =$AN$10 -> ICU (No Ventilator) | AF23: =$AN$11 -> ICU + Ventilator | AG23: =$AN$9 -> Hospitalized, non-ICU | AH23: =$AN$10 -> ICU (No Ventilator) | AI23: =$AN$11 -> ICU + Ventilator | AJ23: =$AN$9 -> Hospitalized, non-ICU | AK23: =$AN$10 -> ICU (No Ventilator) | AL23: =$AN$11 -> ICU + Ventilator | AM23: =$AN$9 -> Hospitalized, non-ICU | AN23: =$AN$10 -> ICU (No Ventilator) | AO23: =$AN$11 -> ICU + Ventilator | AQ23: Age | AR23: =$AN$9 -> Hospitalized, non-ICU | AS23: =$AN$10 -> ICU (No Ventilator) | AT23: =$AN$11 -> ICU + Ventilator | AU23: =$AN$9 -> Hospitalized, non-ICU | AV23: =$AN$10 -> ICU (No Ventilator) | AW23: =$AN$11 -> ICU + Ventilator | AX23: =$AN$9 -> Hospitalized, non-ICU | AY23: =$AN$10 -> ICU (No Ventilator) | AZ23: =$AN$11 -> ICU + Ventilator
AC24: =$AL$9 -> 0 to 17 | AD24: =AJ15-AP15 -> 4.316707785 | AE24: =AP15-AF24 -> 1.772311423 | AF24: =IF($AS$8='E.1. Hospitalization Inputs'!$BD$6, $AP15*'E.1. Hospitalization Inputs'!$F23/100, FALSE) -> 0.3731181944 | AG24: =AK15-AQ15 -> 2.125852865 | AH24: =AQ15-AI24 -> 0.8728117594 | AI24: =IF($AS$8='E.1. Hospitalization Inputs'!$BD$6, $AQ15*'E.1. Hospitalization Inputs'!$F23/100, FALSE) -> 0.1837498441 | AJ24: =AL15-AR15 -> 1.425843846 | AK24: =AR15-AL24 -> 0.5854089417 | AL24: =IF($AS$8='E.1. Hospitalization Inputs'!$BD$6, $AR15*'E.1. Hospitalization Inputs'!$F23/100, FALSE) -> 0.1232439877 | AM24: =AM15-AS15 -> 0.417011233 | AN24: =AS15-AO24 -> 0.1712123703 | AO24: =IF($AS$8='E.1. Hospitalization Inputs'!$BD$6, $AS15*'E.1. Hospitalization Inputs'!$F23/100, FALSE) -> 0.03604470954 | AQ24: =$AL$9 -> 0 to 17 | AR24: =AD24-AG24 -> 2.19085492 | AS24: =AE24-AH24 -> 0.8994996638 | AT24: 0.1893683503 | AU24: =AD24-AJ24 -> 2.890863939 | AV24: =AE24-AK24 -> 1.186902481 | AW24: 0.2498742066 | AX24: =AD24-AM24 -> 3.899696552 | AY24: =AE24-AN24 -> 1.601099053 | AZ24: 0.3370734848
AC25: =$AL$10 -> 18 to 64 | AD25: =AJ16-AP16 -> 175.4434061 | AE25: =AP16-AF25 -> 62.68267051 | AF25: =IF($AS$8='E.1. Hospitalization Inputs'!$BD$6, $AP16*'E.1. Hospitalization Inputs'!$F24/100, FALSE) -> 12.14982367 | AG25: =AK16-AQ16 -> 86.40076791 | AH25: =AQ16-AI25 -> 30.86938967 | AI25: =IF($AS$8='E.1. Hospitalization Inputs'!$BD$6, $AQ16*'E.1. Hospitalization Inputs'!$F24/100, FALSE) -> 5.983434306 | AJ25: =AL16-AR16 -> 57.95039029 | AK25: =AR16-AL25 -> 20.70459815 | AL25: =IF($AS$8='E.1. Hospitalization Inputs'!$BD$6, $AR16*'E.1. Hospitalization Inputs'!$F24/100, FALSE) -> 4.013186013 | AM25: =AM16-AS16 -> 16.94853456 | AN25: =AS16-AO25 -> 6.055396617 | AO25: =IF($AS$8='E.1. Hospitalization Inputs'!$BD$6, $AS16*'E.1. Hospitalization Inputs'!$F24/100, FALSE) -> 1.173721549 | AQ25: =$AL$10 -> 18 to 64 | AR25: =AD25-AG25 -> 89.04263817 | AS25: 31.81328084 | AT25: 6.16638936 | AU25: =AD25-AJ25 -> 117.4930158 | AV25: 41.97807236 | AW25: 8.136637653 | AX25: =AD25-AM25 -> 158.4948715 | AY25: 56.62727389 | AZ25: 10.97610212
AC26: =$AL$11 -> 65+ | AD26: 168.7817209 | AE26: 71.70626496 | AF26: =IF($AS$8='E.1. Hospitalization Inputs'!$BD$6, $AP17*'E.1. Hospitalization Inputs'!$F25/100, FALSE) -> 19.17620014 | AG26: 83.12008197 | AH26: 35.31324713 | AI26: =IF($AS$8='E.1. Hospitalization Inputs'!$BD$6, $AQ17*'E.1. Hospitalization Inputs'!$F25/100, FALSE) -> 9.443720082 | AJ26: 55.74998125 | AK26: 23.68516511 | AL26: =IF($AS$8='E.1. Hospitalization Inputs'!$BD$6, $AR17*'E.1. Hospitalization Inputs'!$F25/100, FALSE) -> 6.334055562 | AM26: 16.30498914 | AN26: 6.927111923 | AO26: =IF($AS$8='E.1. Hospitalization Inputs'!$BD$6, $AS17*'E.1. Hospitalization Inputs'!$F25/100, FALSE) -> 1.852497612 | AQ26: =$AL$11 -> 65+ | AR26: 85.66163892 | AS26: 36.39301783 | AT26: 9.732480053 | AU26: 113.0317396 | AV26: 48.02109985 | AW26: 12.84214457 | AX26: 152.4767318 | AY26: 64.77915304 | AZ26: 17.32370252
AC27: Total | AD27: =SUM(AD24:AD26) -> 348.5418348 | AE27: =SUM(AE24:AE26) -> 136.1612469 | AF27: 31.699142 | AG27: 171.6467027 | AH27: 67.05544856 | AI27: 15.61090423 | AJ27: 115.1262154 | AK27: 44.9751722 | AL27: 10.47048556 | AM27: 33.67053493 | AN27: 13.15372091 | AO27: 3.06226387 | AQ27: Total | AR27: =SUM(AR24:AR26) -> 176.895132 | AS27: 69.10579833 | AT27: 16.08823776 | AU27: 233.4156194 | AV27: 91.18607469 | AW27: 21.22865643 | AX27: 314.8712998 | AY27: 123.007526 | AZ27: 28.63687813
AD28: =SUM(AD27:AF27) -> 516.4022236 | AG28: =SUM(AG27:AI27) -> 254.3130555 | AJ28: =SUM(AJ27:AL27) -> 170.5718731 | AM28: =SUM(AM27:AO27) -> 49.88651971
B34: =AG12 -> *Data are summarized over user-defined time horizon entered on Tab E.1. Hospitalization Inputs
B36: Total Hospitalizations Averted
C37: Strategy 1 | G37: Strategy 2 | K37: Strategy 3
B38: Age (year) | C38: Non-ICU | D38: ICU | E38: ICU + Ventilator | F38: Total | G38: Non-ICU | H38: ICU | I38: ICU + Ventilator | J38: Total | K38: Non-ICU | L38: ICU | M38: ICU + Ventilator | N38: Total
B39: =AL9 -> 0 to 17 | C39: =AR24 -> 2.19085492 | D39: 0.8994996638 | E39: 0.1893683503 | F39: =SUM(C39:E39) -> 3.279722934 | G39: =AU24 -> 2.890863939 | H39: 1.186902481 | I39: 0.2498742066 | J39: =SUM(G39:I39) -> 4.327640627 | K39: =AX24 -> 3.899696552 | L39: 1.601099053 | M39: 0.3370734848 | N39: =SUM(K39:M39) -> 5.837869089
B40: =AL10 -> 18 to 64 | C40: 89.04263817 | D40: 31.81328084 | E40: 6.16638936 | F40: =SUM(C40:E40) -> 127.0223084 | G40: 117.4930158 | H40: 41.97807236 | I40: 8.136637653 | J40: =SUM(G40:I40) -> 167.6077258 | K40: 158.4948715 | L40: 56.62727389 | M40: 10.97610212 | N40: =SUM(K40:M40) -> 226.0982475
B41: 65+ | C41: 85.66163892 | D41: 36.39301783 | E41: 9.732480053 | F41: 131.7871368 | G41: 113.0317396 | H41: 48.02109985 | I41: 12.84214457 | J41: 173.8949841 | K41: 152.4767318 | L41: 64.77915304 | M41: 17.32370252 | N41: 234.5795873
B42: Total | C42: =SUM(C39:C41) -> 176.895132 | D42: =SUM(D39:D41) -> 69.10579833 | E42: 16.08823776 | F42: 262.0891681 | G42: =SUM(G39:G41) -> 233.4156194 | H42: =SUM(H39:H41) -> 91.18607469 | I42: 21.22865643 | J42: 345.8303505 | K42: =SUM(K39:K41) -> 314.8712998 | L42: =SUM(L39:L41) -> 123.007526 | M42: 28.63687813 | N42: 466.5157039

Sheet RESULTS_Costs_2
B5: Results: Estimated Direct Medical Costs* Averted | BA5: Chart Text
BA6: Maximum daily staff needed by strategy | BD6: Staffing Needs by Group
BA7: Maximum staff needed per day
AB8: 1 | AC8: Total Cases by age group | AL8: Age Groups | AN8: Ward Types | AR8: Hospitalization Risk entered in: | AS8: ='E.1. Hospitalization Inputs'!F19 -> Percentages
AB9: 2 | AC9: Total Hospitalizations (+ Hospitalizations Averted) by age group and severity | AL9: ='F. Impact of Interventions'!BA7 -> 0 to 17 | AN9: ='E.2. Costing Inputs'!BA7 -> Hospitalized, non-ICU
AB10: 3 | AC10: Total Direct Medical Costs (+ Averted) by age group and severity | AL10: ='F. Impact of Interventions'!BA8 -> 18 to 64 | AN10: ='E.2. Costing Inputs'!BA8 -> ICU (No Ventilator)
AB11: 4 | AC11: Total Medicaid Expenditures by age group | AL11: ='F. Impact of Interventions'!BA9 -> 65+ | AN11: ='E.2. Costing Inputs'!BA9 -> ICU + Ventilator
AK13: *Data is summarized over user-defined time horizon from Tab E. Costing Inputs
AQ20: Hospitalizations Averted Relative to Base Case (by Age Group and Ward Type)*
AC21: Total Hospitalizations (by Age Group and Ward Type)*
AD22: Base Case | AG22: Strategy 1 | AJ22: Strategy 2 | AM22: Strategy 3 | AR22: Strategy 1 | AU22: Strategy 2 | AX22: Strategy 3
AC23: Age | AD23: =$AN$9 -> Hospitalized, non-ICU | AE23: =$AN$10 -> ICU (No Ventilator) | AF23: =$AN$11 -> ICU + Ventilator | AG23: =$AN$9 -> Hospitalized, non-ICU | AH23: =$AN$10 -> ICU (No Ventilator) | AI23: =$AN$11 -> ICU + Ventilator | AJ23: =$AN$9 -> Hospitalized, non-ICU | AK23: =$AN$10 -> ICU (No Ventilator) | AL23: =$AN$11 -> ICU + Ventilator | AM23: =$AN$9 -> Hospitalized, non-ICU | AN23: =$AN$10 -> ICU (No Ventilator) | AO23: =$AN$11 -> ICU + Ventilator | AQ23: Age | AR23: =$AN$9 -> Hospitalized, non-ICU | AS23: =$AN$10 -> ICU (No Ventilator) | AT23: =$AN$11 -> ICU + Ventilator | AU23: =$AN$9 -> Hospitalized, non-ICU | AV23: =$AN$10 -> ICU (No Ventilator) | AW23: =$AN$11 -> ICU + Ventilator | AX23: =$AN$9 -> Hospitalized, non-ICU | AY23: =$AN$10 -> ICU (No Ventilator) | AZ23: =$AN$11 -> ICU + Ventilator
AC24: =$AL$9 -> 0 to 17 | AD24: =RESULTS_Costs!AD24 -> 4.316707785 | AE24: =RESULTS_Costs!AE24 -> 1.772311423 | AF24: =RESULTS_Costs!AF24 -> 0.3731181944 | AG24: =RESULTS_Costs!AG24 -> 2.125852865 | AH24: =RESULTS_Costs!AH24 -> 0.8728117594 | AI24: =RESULTS_Costs!AI24 -> 0.1837498441 | AJ24: =RESULTS_Costs!AJ24 -> 1.425843846 | AK24: =RESULTS_Costs!AK24 -> 0.5854089417 | AL24: =RESULTS_Costs!AL24 -> 0.1232439877 | AM24: =RESULTS_Costs!AM24 -> 0.417011233 | AN24: =RESULTS_Costs!AN24 -> 0.1712123703 | AO24: =RESULTS_Costs!AO24 -> 0.03604470954 | AQ24: =$AL$9 -> 0 to 17 | AR24: =AD24-AG24 -> 2.19085492 | AS24: =AE24-AH24 -> 0.8994996638 | AT24: 0.1893683503 | AU24: =AD24-AJ24 -> 2.890863939 | AV24: =AE24-AK24 -> 1.186902481 | AW24: 0.2498742066 | AX24: =AD24-AM24 -> 3.899696552 | AY24: =AE24-AN24 -> 1.601099053 | AZ24: 0.3370734848
AC25: =$AL$10 -> 18 to 64 | AD25: =RESULTS_Costs!AD25 -> 175.4434061 | AE25: =RESULTS_Costs!AE25 -> 62.68267051 | AF25: =RESULTS_Costs!AF25 -> 12.14982367 | AG25: =RESULTS_Costs!AG25 -> 86.40076791 | AH25: =RESULTS_Costs!AH25 -> 30.86938967 | AI25: =RESULTS_Costs!AI25 -> 5.983434306 | AJ25: =RESULTS_Costs!AJ25 -> 57.95039029 | AK25: =RESULTS_Costs!AK25 -> 20.70459815 | AL25: =RESULTS_Costs!AL25 -> 4.013186013 | AM25: =RESULTS_Costs!AM25 -> 16.94853456 | AN25: =RESULTS_Costs!AN25 -> 6.055396617 | AO25: =RESULTS_Costs!AO25 -> 1.173721549 | AQ25: =$AL$10 -> 18 to 64 | AR25: =AD25-AG25 -> 89.04263817 | AS25: =AE25-AH25 -> 31.81328084 | AT25: =AF25-AI25 -> 6.16638936 | AU25: =AD25-AJ25 -> 117.4930158 | AV25: =AE25-AK25 -> 41.97807236 | AW25: =AF25-AL25 -> 8.136637653 | AX25: =AD25-AM25 -> 158.4948715 | AY25: =AE25-AN25 -> 56.62727389 | AZ25: =AF25-AO25 -> 10.97610212
AC26: =$AL$11 -> 65+ | AD26: =RESULTS_Costs!AD26 -> 168.7817209 | AE26: =RESULTS_Costs!AE26 -> 71.70626496 | AF26: =RESULTS_Costs!AF26 -> 19.17620014 | AG26: =RESULTS_Costs!AG26 -> 83.12008197 | AH26: =RESULTS_Costs!AH26 -> 35.31324713 | AI26: =RESULTS_Costs!AI26 -> 9.443720082 | AJ26: =RESULTS_Costs!AJ26 -> 55.74998125 | AK26: =RESULTS_Costs!AK26 -> 23.68516511 | AL26: =RESULTS_Costs!AL26 -> 6.334055562 | AM26: =RESULTS_Costs!AM26 -> 16.30498914 | AN26: =RESULTS_Costs!AN26 -> 6.927111923 | AO26: =RESULTS_Costs!AO26 -> 1.852497612 | AQ26: =$AL$11 -> 65+ | AR26: 85.66163892 | AS26: 36.39301783 | AT26: 9.732480053 | AU26: 113.0317396 | AV26: 48.02109985 | AW26: 12.84214457 | AX26: 152.4767318 | AY26: 64.77915304 | AZ26: 17.32370252
AC27: Total | AD27: =SUM(AD24:AD26) -> 348.5418348 | AE27: =SUM(AE24:AE26) -> 136.1612469 | AF27: 31.699142 | AG27: 171.6467027 | AH27: 67.05544856 | AI27: 15.61090423 | AJ27: 115.1262154 | AK27: 44.9751722 | AL27: 10.47048556 | AM27: 33.67053493 | AN27: 13.15372091 | AO27: 3.06226387 | AQ27: Total | AR27: =SUM(AR24:AR26) -> 176.895132 | AS27: =SUM(AS24:AS26) -> 69.10579833 | AT27: =SUM(AT24:AT26) -> 16.08823776 | AU27: =SUM(AU24:AU26) -> 233.4156194 | AV27: =SUM(AV24:AV26) -> 91.18607469 | AW27: =SUM(AW24:AW26) -> 21.22865643 | AX27: =SUM(AX24:AX26) -> 314.8712998 | AY27: =SUM(AY24:AY26) -> 123.007526 | AZ27: =SUM(AZ24:AZ26) -> 28.63687813
AQ29: Direct Medical Costs Averted for Other Insurance Relative to Base Case (by Age Group and Ward Type)*
AC30: Estimated Direct Medical Costs Incurred to Other Insurance (by Age Group and Ward Type)*
AD31: Base Case | AG31: Strategy 1 | AJ31: Strategy 2 | AM31: Strategy 3 | AR31: Strategy 1 | AU31: Strategy 2 | AX31: Strategy 3
AC32: Age | AD32: =$AN$9 -> Hospitalized, non-ICU | AE32: =$AN$10 -> ICU (No Ventilator) | AF32: =$AN$11 -> ICU + Ventilator | AG32: =$AN$9 -> Hospitalized, non-ICU | AH32: =$AN$10 -> ICU (No Ventilator) | AI32: =$AN$11 -> ICU + Ventilator | AJ32: =$AN$9 -> Hospitalized, non-ICU | AK32: =$AN$10 -> ICU (No Ventilator) | AL32: =$AN$11 -> ICU + Ventilator | AM32: =$AN$9 -> Hospitalized, non-ICU | AN32: =$AN$10 -> ICU (No Ventilator) | AO32: =$AN$11 -> ICU + Ventilator | AQ32: Age | AR32: =$AN$9 -> Hospitalized, non-ICU | AS32: =$AN$10 -> ICU (No Ventilator) | AT32: =$AN$11 -> ICU + Ventilator | AU32: =$AN$9 -> Hospitalized, non-ICU | AV32: =$AN$10 -> ICU (No Ventilator) | AW32: =$AN$11 -> ICU + Ventilator | AX32: =$AN$9 -> Hospitalized, non-ICU | AY32: =$AN$10 -> ICU (No Ventilator) | AZ32: =$AN$11 -> ICU + Ventilator
AC33: =$AL$9 -> 0 to 17 | AD33: =AD24*'E.2. Costing Inputs'!$E12*'E.2. Costing Inputs'!D21*'E.2. Costing Inputs'!G21*'E.2. Costing Inputs'!$D$37 -> 16568.27558 | AE33: =AE24*'E.2. Costing Inputs'!$E12*'E.2. Costing Inputs'!E21*'E.2. Costing Inputs'!H21*'E.2. Costing Inputs'!$D$37 -> 24521.88872 | AF33: =AF24*'E.2. Costing Inputs'!$E12*'E.2. Costing Inputs'!F21*'E.2. Costing Inputs'!I21*'E.2. Costing Inputs'!$D$37 -> 22615.32582 | AG33: =AG24*'E.2. Costing Inputs'!$E12*'E.2. Costing Inputs'!D21*'E.2. Costing Inputs'!G21*'E.2. Costing Inputs'!$D$37 -> 8159.393194 | AH33: =AH24*'E.2. Costing Inputs'!$E12*'E.2. Costing Inputs'!E21*'E.2. Costing Inputs'!H21*'E.2. Costing Inputs'!$D$37 -> 12076.31602 | AI33: =AI24*'E.2. Costing Inputs'!$E12*'E.2. Costing Inputs'!F21*'E.2. Costing Inputs'!I21*'E.2. Costing Inputs'!$D$37 -> 11137.38932 | AJ33: =AJ24*'E.2. Costing Inputs'!$E12*'E.2. Costing Inputs'!D21*'E.2. Costing Inputs'!G21*'E.2. Costing Inputs'!$D$37 -> 5472.636778 | AK33: =AK24*'E.2. Costing Inputs'!$E12*'E.2. Costing Inputs'!E21*'E.2. Costing Inputs'!H21*'E.2. Costing Inputs'!$D$37 -> 8099.780171 | AL33: =AL24*'E.2. Costing Inputs'!$E12*'E.2. Costing Inputs'!F21*'E.2. Costing Inputs'!I21*'E.2. Costing Inputs'!$D$37 -> 7470.026872 | AM33: =AM24*'E.2. Costing Inputs'!$E12*'E.2. Costing Inputs'!D21*'E.2. Costing Inputs'!G21*'E.2. Costing Inputs'!$D$37 -> 1600.561672 | AN33: =AN24*'E.2. Costing Inputs'!$E12*'E.2. Costing Inputs'!E21*'E.2. Costing Inputs'!H21*'E.2. Costing Inputs'!$D$37 -> 2368.912504 | AO33: =AO24*'E.2. Costing Inputs'!$E12*'E.2. Costing Inputs'!F21*'E.2. Costing Inputs'!I21*'E.2. Costing Inputs'!$D$37 -> 2184.730905 | AQ33: =$AL$9 -> 0 to 17 | AR33: =AD33-AG33 -> 8408.882391 | AS33: =AE33-AH33 -> 12445.57269 | AT33: =AF33-AI33 -> 11477.9365 | AU33: =AD33-AJ33 -> 11095.63881 | AV33: =AE33-AK33 -> 16422.10855 | AW33: =AF33-AL33 -> 15145.29895 | AX33: =AD33-AM33 -> 14967.71391 | AY33: =AE33-AN33 -> 22152.97621 | AZ33: =AF33-AO33 -> 20430.59492
B34: =RESULTS_Costs!AG12 -> *Data are summarized over user-defined time horizon entered on Tab E.1. Hospitalization Inputs | AC34: =$AL$10 -> 18 to 64 | AD34: =AD25*'E.2. Costing Inputs'!$E13*'E.2. Costing Inputs'!D22*'E.2. Costing Inputs'!G22*'E.2. Costing Inputs'!$D$37 -> 1218467.087 | AE34: =AE25*'E.2. Costing Inputs'!$E13*'E.2. Costing Inputs'!E22*'E.2. Costing Inputs'!H22*'E.2. Costing Inputs'!$D$37 -> 534678.6036 | AF34: =AF25*'E.2. Costing Inputs'!$E13*'E.2. Costing Inputs'!F22*'E.2. Costing Inputs'!I22*'E.2. Costing Inputs'!$D$37 -> 511877.5628 | AG34: =AG25*'E.2. Costing Inputs'!$E13*'E.2. Costing Inputs'!D22*'E.2. Costing Inputs'!G22*'E.2. Costing Inputs'!$D$37 -> 600059.554 | AH34: =AH25*'E.2. Costing Inputs'!$E13*'E.2. Costing Inputs'!E22*'E.2. Costing Inputs'!H22*'E.2. Costing Inputs'!$D$37 -> 263313.6404 | AI34: =AI25*'E.2. Costing Inputs'!$E13*'E.2. Costing Inputs'!F22*'E.2. Costing Inputs'!I22*'E.2. Costing Inputs'!$D$37 -> 252084.7918 | AJ34: =AJ25*'E.2. Costing Inputs'!$E13*'E.2. Costing Inputs'!D22*'E.2. Costing Inputs'!G22*'E.2. Costing Inputs'!$D$37 -> 402469.633 | AK34: =AK25*'E.2. Costing Inputs'!$E13*'E.2. Costing Inputs'!E22*'E.2. Costing Inputs'!H22*'E.2. Costing Inputs'!$D$37 -> 176608.7108 | AL34: =AL25*'E.2. Costing Inputs'!$E13*'E.2. Costing Inputs'!F22*'E.2. Costing Inputs'!I22*'E.2. Costing Inputs'!$D$37 -> 169077.3407 | AM34: =AM25*'E.2. Costing Inputs'!$E13*'E.2. Costing Inputs'!D22*'E.2. Costing Inputs'!G22*'E.2. Costing Inputs'!$D$37 -> 117708.7928 | AN34: =AN25*'E.2. Costing Inputs'!$E13*'E.2. Costing Inputs'!E22*'E.2. Costing Inputs'!H22*'E.2. Costing Inputs'!$D$37 -> 51652.0911 | AO34: =AO25*'E.2. Costing Inputs'!$E13*'E.2. Costing Inputs'!F22*'E.2. Costing Inputs'!I22*'E.2. Costing Inputs'!$D$37 -> 49449.41938 | AQ34: =$AL$10 -> 18 to 64 | AR34: =AD34-AG34 -> 618407.5331 | AS34: 271364.9632 | AT34: 259792.7709 | AU34: =AD34-AJ34 -> 815997.4541 | AV34: 358069.8929 | AW34: 342800.2221 | AX34: =AD34-AM34 -> 1100758.294 | AY34: 483026.5125 | AZ34: 462428.1434
AC35: =$AL$11 -> 65+ | AD35: =AD26*'E.2. Costing Inputs'!$E14*'E.2. Costing Inputs'!D23*'E.2. Costing Inputs'!G23*'E.2. Costing Inputs'!$D$37 -> 1426513.062 | AE35: =AE26*'E.2. Costing Inputs'!$E14*'E.2. Costing Inputs'!E23*'E.2. Costing Inputs'!H23*'E.2. Costing Inputs'!$D$37 -> 733280.5129 | AF35: =AF26*'E.2. Costing Inputs'!$E14*'E.2. Costing Inputs'!F23*'E.2. Costing Inputs'!I23*'E.2. Costing Inputs'!$D$37 -> 678695.7803 | AG35: =AG26*'E.2. Costing Inputs'!$E14*'E.2. Costing Inputs'!D23*'E.2. Costing Inputs'!G23*'E.2. Costing Inputs'!$D$37 -> 702516.1374 | AH35: =AH26*'E.2. Costing Inputs'!$E14*'E.2. Costing Inputs'!E23*'E.2. Costing Inputs'!H23*'E.2. Costing Inputs'!$D$37 -> 361119.2967 | AI35: =AI26*'E.2. Costing Inputs'!$E14*'E.2. Costing Inputs'!F23*'E.2. Costing Inputs'!I23*'E.2. Costing Inputs'!$D$37 -> 334237.9056 | AJ35: =AJ26*'E.2. Costing Inputs'!$E14*'E.2. Costing Inputs'!D23*'E.2. Costing Inputs'!G23*'E.2. Costing Inputs'!$D$37 -> 471188.918 | AK35: =AK26*'E.2. Costing Inputs'!$E14*'E.2. Costing Inputs'!E23*'E.2. Costing Inputs'!H23*'E.2. Costing Inputs'!$D$37 -> 242208.5438 | AL35: =AL26*'E.2. Costing Inputs'!$E14*'E.2. Costing Inputs'!F23*'E.2. Costing Inputs'!I23*'E.2. Costing Inputs'!$D$37 -> 224178.7608 | AM35: =AM26*'E.2. Costing Inputs'!$E14*'E.2. Costing Inputs'!D23*'E.2. Costing Inputs'!G23*'E.2. Costing Inputs'!$D$37 -> 137806.8659 | AN35: =AN26*'E.2. Costing Inputs'!$E14*'E.2. Costing Inputs'!E23*'E.2. Costing Inputs'!H23*'E.2. Costing Inputs'!$D$37 -> 70837.82967 | AO35: =AO26*'E.2. Costing Inputs'!$E14*'E.2. Costing Inputs'!F23*'E.2. Costing Inputs'!I23*'E.2. Costing Inputs'!$D$37 -> 65564.72624 | AQ35: =$AL$11 -> 65+ | AR35: 723996.9244 | AS35: 372161.2162 | AT35: 344457.8747 | AU35: 955324.1438 | AV35: 491071.9691 | AW35: 454517.0196 | AX35: 1288706.196 | AY35: 662442.6832 | AZ35: 613131.0541
B36: Total Direct Medical Costs Averted Relative to Base Case | AC36: Total | AD36: =SUM(AD33:AD35) -> 2661548.425 | AE36: =SUM(AE33:AE35) -> 1292481.005 | AF36: =SUM(AF33:AF35) -> 1213188.669 | AG36: =SUM(AG33:AG35) -> 1310735.085 | AH36: =SUM(AH33:AH35) -> 636509.2531 | AI36: =SUM(AI33:AI35) -> 597460.0868 | AJ36: =SUM(AJ33:AJ35) -> 879131.1878 | AK36: =SUM(AK33:AK35) -> 426917.0348 | AL36: =SUM(AL33:AL35) -> 400726.1283 | AM36: =SUM(AM33:AM35) -> 257116.2204 | AN36: =SUM(AN33:AN35) -> 124858.8333 | AO36: =SUM(AO33:AO35) -> 117198.8765 | AQ36: Total | AR36: =SUM(AR33:AR35) -> 1350813.34 | AS36: =SUM(AS33:AS35) -> 655971.7522 | AT36: =SUM(AT33:AT35) -> 615728.5822 | AU36: =SUM(AU33:AU35) -> 1782417.237 | AV36: =SUM(AV33:AV35) -> 865563.9705 | AW36: =SUM(AW33:AW35) -> 812462.5406 | AX36: =SUM(AX33:AX35) -> 2404432.204 | AY36: =SUM(AY33:AY35) -> 1167622.172 | AZ36: =SUM(AZ33:AZ35) -> 1095989.792
C37: =RESULTS_Costs!$C$37 -> Strategy 1 | G37: =RESULTS_Costs!$G$37 -> Strategy 2 | K37: =RESULTS_Costs!$K$37 -> Strategy 3
B38: Age (year) | C38: =$AN$9 -> Hospitalized, non-ICU | D38: =$AN$10 -> ICU (No Ventilator) | E38: =$AN$11 -> ICU + Ventilator | F38: Total | G38: =$AN$9 -> Hospitalized, non-ICU | H38: =$AN$10 -> ICU (No Ventilator) | I38: =$AN$11 -> ICU + Ventilator | J38: Total | K38: =$AN$9 -> Hospitalized, non-ICU | L38: =$AN$10 -> ICU (No Ventilator) | M38: =$AN$11 -> ICU + Ventilator | N38: Total | AQ38: Direct Medical Costs Averted for Medicaid Relative to Base Case (by Age Group and Ward Type)*
B39: =$AL$9 -> 0 to 17 | C39: =AR51 -> 10237.03602 | D39: =AS51 -> 14517.50828 | E39: 13010.01015 | F39: =SUM(C39:E39) -> 37764.55446 | G39: =AU51 -> 13507.91328 | H39: =AV51 -> 19156.05675 | I39: 17166.89173 | J39: =SUM(G39:I39) -> 49830.86176 | K39: =AX51 -> 18221.80634 | L39: =AY51 -> 25840.99772 | M39: 23157.6684 | N39: =SUM(K39:M39) -> 67220.47246 | AC39: Estimated Direct Medical Costs Incurred to Medicaid (by Age Group and Ward Type)*
B40: =$AL$10 -> 18 to 64 | C40: =AR52 -> 728741.7264 | D40: =AS52 -> 335260.4871 | E40: =AT52 -> 320692.8462 | F40: =SUM(C40:E40) -> 1384695.06 | G40: =AU52 -> 961584.9769 | H40: =AV52 -> 442380.937 | I40: =AW52 -> 423158.7296 | J40: =SUM(G40:I40) -> 1827124.643 | K40: =AX52 -> 1297151.889 | L40: =AY52 -> 596759.8099 | M40: =AZ52 -> 570829.5768 | N40: =SUM(K40:M40) -> 2464741.276 | AD40: Base Case | AG40: Strategy 1 | AJ40: Strategy 2 | AM40: Strategy 3 | AR40: Strategy 1 | AU40: Strategy 2 | AX40: Strategy 3
B41: =$AL$11 -> 65+ | C41: 915909.1485 | D41: 472098.9616 | E41: 433557.9744 | F41: 1821566.084 | G41: 1208555.028 | H41: 622941.2323 | I41: 572085.8566 | J41: 2403582.117 | K41: 1630307.747 | L41: 840330.7202 | M41: 771728.2064 | N41: 3242366.673 | AC41: Age | AD41: =$AN$9 -> Hospitalized, non-ICU | AE41: =$AN$10 -> ICU (No Ventilator) | AF41: =$AN$11 -> ICU + Ventilator | AG41: =$AN$9 -> Hospitalized, non-ICU | AH41: =$AN$10 -> ICU (No Ventilator) | AI41: =$AN$11 -> ICU + Ventilator | AJ41: =$AN$9 -> Hospitalized, non-ICU | AK41: =$AN$10 -> ICU (No Ventilator) | AL41: =$AN$11 -> ICU + Ventilator | AM41: =$AN$9 -> Hospitalized, non-ICU | AN41: =$AN$10 -> ICU (No Ventilator) | AO41: =$AN$11 -> ICU + Ventilator | AQ41: Age | AR41: =$AN$9 -> Hospitalized, non-ICU | AS41: =$AN$10 -> ICU (No Ventilator) | AT41: =$AN$11 -> ICU + Ventilator | AU41: =$AN$9 -> Hospitalized, non-ICU | AV41: =$AN$10 -> ICU (No Ventilator) | AW41: =$AN$11 -> ICU + Ventilator | AX41: =$AN$9 -> Hospitalized, non-ICU | AY41: =$AN$10 -> ICU (No Ventilator) | AZ41: =$AN$11 -> ICU + Ventilator
C42: =SUM(C39:C41) -> 1654887.911 | D42: =SUM(D39:D41) -> 821876.957 | E42: =SUM(E39:E41) -> 767260.8308 | F42: 3244025.699 | G42: =SUM(G39:G41) -> 2183647.918 | H42: =SUM(H39:H41) -> 1084478.226 | I42: =SUM(I39:I41) -> 1012411.478 | J42: 4280537.622 | K42: =SUM(K39:K41) -> 2945681.442 | L42: =SUM(L39:L41) -> 1462931.528 | M42: =SUM(M39:M41) -> 1365715.452 | N42: 5774328.421 | AC42: =$AL$9 -> 0 to 17 | AD42: =AD24*'E.2. Costing Inputs'!$D12*'E.2. Costing Inputs'!D30*'E.2. Costing Inputs'!G30*'E.2. Costing Inputs'!$D$38 -> 3602.066451 | AE42: =AE24*'E.2. Costing Inputs'!$D12*'E.2. Costing Inputs'!E30*'E.2. Costing Inputs'!H30*'E.2. Costing Inputs'!$D$38 -> 4082.397428 | AF42: =AF24*'E.2. Costing Inputs'!$D12*'E.2. Costing Inputs'!F30*'E.2. Costing Inputs'!I30*'E.2. Costing Inputs'!$D$38 -> 3018.691111 | AG42: =AG24*'E.2. Costing Inputs'!$D12*'E.2. Costing Inputs'!D30*'E.2. Costing Inputs'!G30*'E.2. Costing Inputs'!$D$38 -> 1773.912821 | AH42: =AH24*'E.2. Costing Inputs'!$D12*'E.2. Costing Inputs'!E30*'E.2. Costing Inputs'!H30*'E.2. Costing Inputs'!$D$38 -> 2010.461838 | AI42: =AI24*'E.2. Costing Inputs'!$D12*'E.2. Costing Inputs'!F30*'E.2. Costing Inputs'!I30*'E.2. Costing Inputs'!$D$38 -> 1486.617456 | AJ42: =AJ24*'E.2. Costing Inputs'!$D12*'E.2. Costing Inputs'!D30*'E.2. Costing Inputs'!G30*'E.2. Costing Inputs'!$D$38 -> 1189.791975 | AK42: =AK24*'E.2. Costing Inputs'!$D12*'E.2. Costing Inputs'!E30*'E.2. Costing Inputs'!H30*'E.2. Costing Inputs'!$D$38 -> 1348.449221 | AL42: =AL24*'E.2. Costing Inputs'!$D12*'E.2. Costing Inputs'!F30*'E.2. Costing Inputs'!I30*'E.2. Costing Inputs'!$D$38 -> 997.0983346 | AM42: =AM24*'E.2. Costing Inputs'!$D12*'E.2. Costing Inputs'!D30*'E.2. Costing Inputs'!G30*'E.2. Costing Inputs'!$D$38 -> 347.9740225 | AN42: =AN24*'E.2. Costing Inputs'!$D12*'E.2. Costing Inputs'!E30*'E.2. Costing Inputs'!H30*'E.2. Costing Inputs'!$D$38 -> 394.3759156 | AO42: =AO24*'E.2. Costing Inputs'!$D12*'E.2. Costing Inputs'!F30*'E.2. Costing Inputs'!I30*'E.2. Costing Inputs'!$D$38 -> 291.6176319 | AQ42: =$AL$9 -> 0 to 17 | AR42: =AD42-AG42 -> 1828.15363 | AS42: =AE42-AH42 -> 2071.93559 | AT42: =AF42-AI42 -> 1532.073654 | AU42: =AD42-AJ42 -> 2412.274476 | AV42: =AE42-AK42 -> 2733.948207 | AW42: =AF42-AL42 -> 2021.592776 | AX42: =AD42-AM42 -> 3254.092428 | AY42: =AE42-AN42 -> 3688.021513 | AZ42: =AF42-AO42 -> 2727.073479
AC43: =$AL$10 -> 18 to 64 | AD43: =AD25*'E.2. Costing Inputs'!$D13*'E.2. Costing Inputs'!D31*'E.2. Costing Inputs'!G31*'E.2. Costing Inputs'!$D$38 -> 217394.8017 | AE43: =AE25*'E.2. Costing Inputs'!$D13*'E.2. Costing Inputs'!E31*'E.2. Costing Inputs'!H31*'E.2. Costing Inputs'!$D$38 -> 125895.2854 | AF43: =AF25*'E.2. Costing Inputs'!$D13*'E.2. Costing Inputs'!F31*'E.2. Costing Inputs'!I31*'E.2. Costing Inputs'!$D$38 -> 119993.2623 | AG43: =AG25*'E.2. Costing Inputs'!$D13*'E.2. Costing Inputs'!D31*'E.2. Costing Inputs'!G31*'E.2. Costing Inputs'!$D$38 -> 107060.6085 | AH43: =AH25*'E.2. Costing Inputs'!$D13*'E.2. Costing Inputs'!E31*'E.2. Costing Inputs'!H31*'E.2. Costing Inputs'!$D$38 -> 61999.7615 | AI43: =AI25*'E.2. Costing Inputs'!$D13*'E.2. Costing Inputs'!F31*'E.2. Costing Inputs'!I31*'E.2. Costing Inputs'!$D$38 -> 59093.18702 | AJ43: =AJ25*'E.2. Costing Inputs'!$D13*'E.2. Costing Inputs'!D31*'E.2. Costing Inputs'!G31*'E.2. Costing Inputs'!$D$38 -> 71807.27899 | AK43: =AK25*'E.2. Costing Inputs'!$D13*'E.2. Costing Inputs'!E31*'E.2. Costing Inputs'!H31*'E.2. Costing Inputs'!$D$38 -> 41584.24125 | AL43: =AL25*'E.2. Costing Inputs'!$D13*'E.2. Costing Inputs'!F31*'E.2. Costing Inputs'!I31*'E.2. Costing Inputs'!$D$38 -> 39634.75481 | AM43: =AM25*'E.2. Costing Inputs'!$D13*'E.2. Costing Inputs'!D31*'E.2. Costing Inputs'!G31*'E.2. Costing Inputs'!$D$38 -> 21001.20713 | AN43: =AN25*'E.2. Costing Inputs'!$D13*'E.2. Costing Inputs'!E31*'E.2. Costing Inputs'!H31*'E.2. Costing Inputs'!$D$38 -> 12161.98798 | AO43: =AO25*'E.2. Costing Inputs'!$D13*'E.2. Costing Inputs'!F31*'E.2. Costing Inputs'!I31*'E.2. Costing Inputs'!$D$38 -> 11591.82895 | AQ43: =$AL$10 -> 18 to 64 | AR43: =AD43-AG43 -> 110334.1933 | AS43: 63895.52389 | AT43: 60900.07528 | AU43: =AD43-AJ43 -> 145587.5227 | AV43: 84311.04414 | AW43: 80358.5075 | AX43: =AD43-AM43 -> 196393.5946 | AY43: 113733.2974 | AZ43: 108401.4334
B44: Total Medicaid Expenditures Averted Relative to Base Case | AC44: =$AL$11 -> 65+ | AD44: =AD26*'E.2. Costing Inputs'!$D14*'E.2. Costing Inputs'!D32*'E.2. Costing Inputs'!G32*'E.2. Costing Inputs'!$D$38 -> 378130.466 | AE44: =AE26*'E.2. Costing Inputs'!$D14*'E.2. Costing Inputs'!E32*'E.2. Costing Inputs'!H32*'E.2. Costing Inputs'!$D$38 -> 196910.3657 | AF44: =AF26*'E.2. Costing Inputs'!$D14*'E.2. Costing Inputs'!F32*'E.2. Costing Inputs'!I32*'E.2. Costing Inputs'!$D$38 -> 175556.6242 | AG44: =AG26*'E.2. Costing Inputs'!$D14*'E.2. Costing Inputs'!D32*'E.2. Costing Inputs'!G32*'E.2. Costing Inputs'!$D$38 -> 186218.2419 | AH44: =AH26*'E.2. Costing Inputs'!$D14*'E.2. Costing Inputs'!E32*'E.2. Costing Inputs'!H32*'E.2. Costing Inputs'!$D$38 -> 96972.6203 | AI44: =AI26*'E.2. Costing Inputs'!$D14*'E.2. Costing Inputs'!F32*'E.2. Costing Inputs'!I32*'E.2. Costing Inputs'!$D$38 -> 86456.52452 | AJ44: =AJ26*'E.2. Costing Inputs'!$D14*'E.2. Costing Inputs'!D32*'E.2. Costing Inputs'!G32*'E.2. Costing Inputs'!$D$38 -> 124899.582 | AK44: =AK26*'E.2. Costing Inputs'!$D14*'E.2. Costing Inputs'!E32*'E.2. Costing Inputs'!H32*'E.2. Costing Inputs'!$D$38 -> 65041.10241 | AL44: =AL26*'E.2. Costing Inputs'!$D14*'E.2. Costing Inputs'!F32*'E.2. Costing Inputs'!I32*'E.2. Costing Inputs'!$D$38 -> 57987.78715 | AM44: =AM26*'E.2. Costing Inputs'!$D14*'E.2. Costing Inputs'!D32*'E.2. Costing Inputs'!G32*'E.2. Costing Inputs'!$D$38 -> 36528.91502 | AN44: =AN26*'E.2. Costing Inputs'!$D14*'E.2. Costing Inputs'!E32*'E.2. Costing Inputs'!H32*'E.2. Costing Inputs'!$D$38 -> 19022.3287 | AO44: =AO26*'E.2. Costing Inputs'!$D14*'E.2. Costing Inputs'!F32*'E.2. Costing Inputs'!I32*'E.2. Costing Inputs'!$D$38 -> 16959.47188 | AQ44: =$AL$11 -> 65+ | AR44: 191912.2241 | AS44: 99937.74535 | AT44: 89100.09964 | AU44: 253230.884 | AV44: 131869.2632 | AW44: 117568.837 | AX44: 341601.5509 | AY44: 177888.037 | AZ44: 158597.1523
C45: =RESULTS_Costs!$C$37 -> Strategy 1 | G45: =RESULTS_Costs!$G$37 -> Strategy 2 | K45: =RESULTS_Costs!$K$37 -> Strategy 3 | AC45: Total | AD45: =SUM(AD42:AD44) -> 599127.3342 | AE45: =SUM(AE42:AE44) -> 326888.0485 | AF45: =SUM(AF42:AF44) -> 298568.5776 | AG45: =SUM(AG42:AG44) -> 295052.7632 | AH45: =SUM(AH42:AH44) -> 160982.8436 | AI45: =SUM(AI42:AI44) -> 147036.329 | AJ45: =SUM(AJ42:AJ44) -> 197896.653 | AK45: =SUM(AK42:AK44) -> 107973.7929 | AL45: =SUM(AL42:AL44) -> 98619.64029 | AM45: =SUM(AM42:AM44) -> 57878.09617 | AN45: =SUM(AN42:AN44) -> 31578.69259 | AO45: =SUM(AO42:AO44) -> 28842.91846 | AQ45: Total | AR45: =SUM(AR42:AR44) -> 304074.571 | AS45: =SUM(AS42:AS44) -> 165905.2048 | AT45: =SUM(AT42:AT44) -> 151532.2486 | AU45: =SUM(AU42:AU44) -> 401230.6812 | AV45: =SUM(AV42:AV44) -> 218914.2556 | AW45: =SUM(AW42:AW44) -> 199948.9373 | AX45: =SUM(AX42:AX44) -> 541249.238 | AY45: =SUM(AY42:AY44) -> 295309.3559 | AZ45: =SUM(AZ42:AZ44) -> 269725.6591
B46: Age (year) | C46: =$AN$9 -> Hospitalized, non-ICU | D46: =$AN$10 -> ICU (No Ventilator) | E46: =$AN$11 -> ICU + Ventilator | F46: Total | G46: =$AN$9 -> Hospitalized, non-ICU | H46: =$AN$10 -> ICU (No Ventilator) | I46: =$AN$11 -> ICU + Ventilator | J46: Total | K46: =$AN$9 -> Hospitalized, non-ICU | L46: =$AN$10 -> ICU (No Ventilator) | M46: =$AN$11 -> ICU + Ventilator | N46: Total
B47: =$AL$9 -> 0 to 17 | C47: =AR42 -> 1828.15363 | D47: 2071.93559 | E47: 1532.073654 | F47: =SUM(C47:E47) -> 5432.162874 | G47: =AU42 -> 2412.274476 | H47: 2733.948207 | I47: 2021.592776 | J47: =SUM(G47:I47) -> 7167.815459 | K47: =AX42 -> 3254.092428 | L47: 3688.021513 | M47: 2727.073479 | N47: =SUM(K47:M47) -> 9669.18742 | AQ47: Total Direct Medical Costs Averted Relative to Base Case (by Age Group and Ward Type)*
B48: =$AL$10 -> 18 to 64 | C48: 110334.1933 | D48: 63895.52389 | E48: 60900.07528 | F48: =SUM(C48:E48) -> 235129.7924 | G48: 145587.5227 | H48: 84311.04414 | I48: 80358.5075 | J48: =SUM(G48:I48) -> 310257.0744 | K48: 196393.5946 | L48: 113733.2974 | M48: 108401.4334 | N48: =SUM(K48:M48) -> 418528.3254 | AC48: Estimated Total Direct Medical Costs (by Age Group and Ward Type)*
B49: =$AL$11 -> 65+ | C49: 191912.2241 | D49: 99937.74535 | E49: 89100.09964 | F49: 380950.0691 | G49: 253230.884 | H49: 131869.2632 | I49: 117568.837 | J49: 502668.9842 | K49: 341601.5509 | L49: 177888.037 | M49: 158597.1523 | N49: 678086.7402 | AD49: Base Case | AG49: Strategy 1 | AJ49: Strategy 2 | AM49: Strategy 3 | AR49: Strategy 1 | AU49: Strategy 2 | AX49: Strategy 3
C50: =SUM(C47:C49) -> 304074.571 | D50: =SUM(D47:D49) -> 165905.2048 | E50: =SUM(E47:E49) -> 151532.2486 | F50: 621512.0244 | G50: =SUM(G47:G49) -> 401230.6812 | H50: =SUM(H47:H49) -> 218914.2556 | I50: =SUM(I47:I49) -> 199948.9373 | J50: 820093.8741 | K50: =SUM(K47:K49) -> 541249.238 | L50: =SUM(L47:L49) -> 295309.3559 | M50: =SUM(M47:M49) -> 269725.6591 | N50: 1106284.253 | AC50: Age | AD50: =$AN$9 -> Hospitalized, non-ICU | AE50: =$AN$10 -> ICU (No Ventilator) | AF50: =$AN$11 -> ICU + Ventilator | AG50: =$AN$9 -> Hospitalized, non-ICU | AH50: =$AN$10 -> ICU (No Ventilator) | AI50: =$AN$11 -> ICU + Ventilator | AJ50: =$AN$9 -> Hospitalized, non-ICU | AK50: =$AN$10 -> ICU (No Ventilator) | AL50: =$AN$11 -> ICU + Ventilator | AM50: =$AN$9 -> Hospitalized, non-ICU | AN50: =$AN$10 -> ICU (No Ventilator) | AO50: =$AN$11 -> ICU + Ventilator | AQ50: Age | AR50: =$AN$9 -> Hospitalized, non-ICU | AS50: =$AN$10 -> ICU (No Ventilator) | AT50: =$AN$11 -> ICU + Ventilator | AU50: =$AN$9 -> Hospitalized, non-ICU | AV50: =$AN$10 -> ICU (No Ventilator) | AW50: =$AN$11 -> ICU + Ventilator | AX50: =$AN$9 -> Hospitalized, non-ICU | AY50: =$AN$10 -> ICU (No Ventilator) | AZ50: =$AN$11 -> ICU + Ventilator
AC51: =$AL$9 -> 0 to 17 | AD51: =SUM(AD33,AD42) -> 20170.34204 | AE51: =SUM(AE33,AE42) -> 28604.28614 | AF51: 25634.01693 | AG51: 9933.306015 | AH51: 14086.77786 | AI51: 12624.00678 | AJ51: 6662.428753 | AK51: 9448.229392 | AL51: 8467.125206 | AM51: 1948.535695 | AN51: 2763.28842 | AO51: 2476.348537 | AQ51: =$AL$9 -> 0 to 17 | AR51: =AD51-AG51 -> 10237.03602 | AS51: =AE51-AH51 -> 14517.50828 | AT51: =AF51-AI51 -> 13010.01015 | AU51: =AD51-AJ51 -> 13507.91328 | AV51: =AE51-AK51 -> 19156.05675 | AW51: =AF51-AL51 -> 17166.89173 | AX51: =AD51-AM51 -> 18221.80634 | AY51: =AE51-AN51 -> 25840.99772 | AZ51: =AF51-AO51 -> 23157.6684
B52: *Note: Costs are calculated using this formula: Cost = Charges per day * LOS (days) * Cost to charge ratio | AC52: =$AL$10 -> 18 to 64 | AD52: =SUM(AD34,AD43) -> 1435861.889 | AE52: 660573.889 | AF52: 631870.8251 | AG52: 707120.1625 | AH52: 325313.4019 | AI52: 311177.9789 | AJ52: 474276.912 | AK52: 218192.952 | AL52: 208712.0955 | AM52: 138710 | AN52: 63814.07907 | AO52: 61041.24833 | AQ52: =$AL$10 -> 18 to 64 | AR52: =AD52-AG52 -> 728741.7264 | AS52: 335260.4871 | AT52: 320692.8462 | AU52: =AD52-AJ52 -> 961584.9769 | AV52: 442380.937 | AW52: 423158.7296 | AX52: =AD52-AM52 -> 1297151.889 | AY52: 596759.8099 | AZ52: 570829.5768
AC53: =$AL$11 -> 65+ | AD53: =SUM(AD35,AD44) -> 1804643.528 | AE53: 930190.8786 | AF53: 854252.4045 | AG53: 888734.3793 | AH53: 458091.917 | AI53: 420694.4301 | AJ53: 596088.5 | AK53: 307249.6463 | AL53: 282166.5479 | AM53: 174335.7809 | AN53: 89860.15837 | AO53: 82524.19812 | AQ53: =$AL$11 -> 65+ | AR53: 915909.1485 | AS53: 472098.9616 | AT53: 433557.9744 | AU53: 1208555.028 | AV53: 622941.2323 | AW53: 572085.8566 | AX53: 1630307.747 | AY53: 840330.7202 | AZ53: 771728.2064
AC54: Total | AD54: =SUM(AD51:AD53) -> 3260675.759 | AE54: =SUM(AE51:AE53) -> 1619369.054 | AF54: 1511757.247 | AG54: 1605787.848 | AH54: 797492.0967 | AI54: 744496.4157 | AJ54: 1077027.841 | AK54: 534890.8277 | AL54: 499345.7686 | AM54: 314994.3166 | AN54: 156437.5259 | AO54: 146041.795 | AQ54: Total | AR54: =SUM(AR51:AR53) -> 1654887.911 | AS54: 821876.957 | AT54: 767260.8308 | AU54: 2183647.918 | AV54: 1084478.226 | AW54: 1012411.478 | AX54: 2945681.442 | AY54: 1462931.528 | AZ54: 1365715.452
AC56: *Note: Other insurance includes private insurance and Medicare

Sheet SA_Case Counts
B5: "What-If" Sensitivity Analysis: Potential Impact of Contact Tracing on Future Case Counts | BA5: Chart Text | BF5: Scenario Options | BJ5: Chosen Scenario | BK5: =$E$9 -> Strategy 3 | BL5: =IF($BK$5 = $BF$6, 'B. Impact of contact tracing'!$F$19, IF($BK$5 = $BF$7, 'B. Impact of contact tracing'!$G$19, 'B. Impact of contact tracing'!$H$19)) -> Contact ID | BR5: R0 | BS5: Date CT Begins | BT5: Isolation Day | BU5: % Adherence | BW5: Modified Infectivity Distributions
BA6: Maximum daily staff needed by strategy | BF6: =TRIM('B. Impact of contact tracing'!F16) -> Strategy 1 | BL6: New Cases By Day | BN6: Cumulative Cases | BQ6: =BF6 -> Strategy 1 | BR6: ='D. Epi Parameters'!$F$10 -> 2.5 | BS6: ='B. Impact of contact tracing'!$F$12 -> 2020-10-24 | BT6: ='B. Impact of contact tracing'!F17 -> 7 | BU6: ='B. Impact of contact tracing'!F18 -> 0.5 | BX6: Base | BY6: What-If
BA7: Maximum staff needed per day | BF7: =TRIM('B. Impact of contact tracing'!G16) -> Strategy 2 | BL7: Chosen Scenario | BM7: What-If | BN7: Chosen Scenario | BO7: What-If | BQ7: =BF7 -> Strategy 2 | BR7: ='D. Epi Parameters'!$F$10 -> 2.5 | BS7: ='B. Impact of contact tracing'!$F$12 -> 2020-10-24 | BT7: ='B. Impact of contact tracing'!G17 -> 6 | BU7: ='B. Impact of contact tracing'!G18 -> 0.45 | BW7: 1 | BX7: ='D. Epi Parameters'!D14 -> 0 | BY7: =IF($BW7<$F$15, $BX7, 0) -> 0
BA8: New daily cases by strategy | BF8: =TRIM('B. Impact of contact tracing'!H16) -> Strategy 3 | BJ8: Day | BK8: Date | BQ8: =BF8 -> Strategy 3 | BR8: ='D. Epi Parameters'!$F$10 -> 2.5 | BS8: ='B. Impact of contact tracing'!$F$12 -> 2020-10-24 | BT8: ='B. Impact of contact tracing'!H17 -> 4 | BU8: ='B. Impact of contact tracing'!H18 -> 0.4 | BW8: 2 | BX8: ='D. Epi Parameters'!D15 -> 0 | BY8: 0
B9: Step 1: | C9: Choose A Contact Tracing Strategy | E9: Strategy 3 | I9: Your "what-if" scenario would change the estimated outbreak trajectory as follows: | P9: Staffing needs would change like this: | BA9: Cumulative cases by strategy | BJ9: 0 | BK9: =VLOOKUP(BJ9, 'Calc - Base'!$H$35:$I$400, 2) -> 2020-10-09 | BL9: =IF($BK$5 = $BF$6, 'Case Counts'!W4, IF($BK$5 = $BF$7, 'Case Counts'!X4, 'Case Counts'!Y4)) -> 53.90282204 | BM9: ='Calc - SA_Case Counts'!L35 -> 43.12225763 | BN9: =IF($BK$5 = $BF$6, 'Case Counts'!AA4, IF($BK$5 = $BF$7, 'Case Counts'!AB4, 'Case Counts'!AC4)) -> 53.90282204 | BO9: =BM9 -> 43.12225763 | BW9: 3 | BX9: ='D. Epi Parameters'!D16 -> 0 | BY9: 0
BA10: Contact Tracing Starts | BB10: =TEXT($S$13, "[$-en-US]d-mmm-yyyy;@") -> 0-Jan-1900 | BJ10: 1 | BK10: =VLOOKUP(BJ10, 'Calc - Base'!$H$35:$I$400, 2) -> 2020-10-10 | BL10: =IF($BK$5 = $BF$6, 'Case Counts'!W5, IF($BK$5 = $BF$7, 'Case Counts'!X5, 'Case Counts'!Y5)) -> 60.48431242 | BM10: ='Calc - SA_Case Counts'!L36 -> 48.39277033 | BN10: =IF($BK$5 = $BF$6, 'Case Counts'!AA5, IF($BK$5 = $BF$7, 'Case Counts'!AB5, 'Case Counts'!AC5)) -> 114.3871345 | BO10: =BO9+BM10 -> 91.51502796 | BW10: 4 | BX10: ='D. Epi Parameters'!D17 -> 0.1677720969 | BY10: 0.1677720969
B11: Step 2: | C11: Set your "What-If" Scenario | BA11: Chart Titles | BJ11: 2 | BK11: =VLOOKUP(BJ11, 'Calc - Base'!$H$35:$I$400, 2) -> 2020-10-11 | BL11: =IF($BK$5 = $BF$6, 'Case Counts'!W6, IF($BK$5 = $BF$7, 'Case Counts'!X6, 'Case Counts'!Y6)) -> 67.05402974 | BM11: ='Calc - SA_Case Counts'!L37 -> 53.65574536 | BN11: =IF($BK$5 = $BF$6, 'Case Counts'!AA6, IF($BK$5 = $BF$7, 'Case Counts'!AB6, 'Case Counts'!AC6)) -> 181.4411642 | BO11: =BO10+BM11 -> 145.1707733 | BQ11: Ranges | BW11: 5 | BX11: ='D. Epi Parameters'!D18 -> 0.1802607219 | BY11: 0.1802607219
E12: Original Scenario | F12: What-If | BA12: Maximum staff needed per day | BJ12: 3 | BK12: =VLOOKUP(BJ12, 'Calc - Base'!$H$35:$I$400, 2) -> 2020-10-12 | BL12: =IF($BK$5 = $BF$6, 'Case Counts'!W7, IF($BK$5 = $BF$7, 'Case Counts'!X7, 'Case Counts'!Y7)) -> 73.61065152 | BM12: ='Calc - SA_Case Counts'!L38 -> 58.91033434 | BN12: =IF($BK$5 = $BF$6, 'Case Counts'!AA7, IF($BK$5 = $BF$7, 'Case Counts'!AB7, 'Case Counts'!AC7)) -> 255.0518157 | BO12: 204.0811077 | BQ12: 0 | BR12: 0 | BW12: 6 | BX12: ='D. Epi Parameters'!D19 -> 0.1707119341 | BY12: 0
C13: R0 | E13: =IF($BK$5 = $BF$6, BR6, IF($BK$5 = $BF$7, BR7, BR8)) -> 2.5 | F13: 2 | BA13: New cases, daily | BJ13: 4 | BK13: =VLOOKUP(BJ13, 'Calc - Base'!$H$35:$I$400, 2) -> 2020-10-13 | BL13: =IF($BK$5 = $BF$6, 'Case Counts'!W8, IF($BK$5 = $BF$7, 'Case Counts'!X8, 'Case Counts'!Y8)) -> 74.16779963 | BM13: ='Calc - SA_Case Counts'!L39 -> 57.66535192 | BN13: =IF($BK$5 = $BF$6, 'Case Counts'!AA8, IF($BK$5 = $BF$7, 'Case Counts'!AB8, 'Case Counts'!AC8)) -> 329.2196153 | BO13: 261.7464596 | BQ13: =ROUNDUP(MAX(BL9:BM374), -2) -> 100 | BR13: =ROUNDUP(MAX(BN9:BO374), -2) -> 2100 | BW13: 7 | BX13: ='D. Epi Parameters'!D20 -> 0.1451776603 | BY13: 0
C14: Date Contact Tracing Begins | E14: =IF($BK$5 = $BF$6, BS6, IF($BK$5 = $BF$7, BS7, BS8)) -> 2020-10-24 | F14: 2020-10-30 | BA14: =IFERROR(_xlfn.CONCAT(BA9, "(", $BA$10, " ", $BB$10, ")"), CONCATENATE(BA9, "(", $BA$10, " ", $BB$10, ")")) -> Cumulative cases by strategy (Contact Tracing Starts 0-Jan-1900) | BJ14: 5 | BK14: =VLOOKUP(BJ14, 'Calc - Base'!$H$35:$I$400, 2) -> 2020-10-14 | BL14: =IF($BK$5 = $BF$6, 'Case Counts'!W9, IF($BK$5 = $BF$7, 'Case Counts'!X9, 'Case Counts'!Y9)) -> 74.46786777 | BM14: ='Calc - SA_Case Counts'!L40 -> 55.88477776 | BN14: =IF($BK$5 = $BF$6, 'Case Counts'!AA9, IF($BK$5 = $BF$7, 'Case Counts'!AB9, 'Case Counts'!AC9)) -> 403.6874831 | BO14: 317.6312373 | BQ14: Contact Tracing Begins | BW14: 8 | BX14: ='D. Epi Parameters'!D21 -> 0.112677035 | BY14: 0
C15: Days after infection that isolation starts | E15: =IF($BK$5 = $BF$6, BT6, IF($BK$5 = $BF$7, BT7, BT8)) -> 4 | F15: 6 | BA15: Y-axis labels | BB15: X-axis labels | BJ15: 6 | BK15: =VLOOKUP(BJ15, 'Calc - Base'!$H$35:$I$400, 2) -> 2020-10-15 | BL15: =IF($BK$5 = $BF$6, 'Case Counts'!W10, IF($BK$5 = $BF$7, 'Case Counts'!X10, 'Case Counts'!Y10)) -> 75.30836643 | BM15: ='Calc - SA_Case Counts'!L41 -> 54.41605481 | BN15: =IF($BK$5 = $BF$6, 'Case Counts'!AA10, IF($BK$5 = $BF$7, 'Case Counts'!AB10, 'Case Counts'!AC10)) -> 478.9958496 | BO15: 372.0472922 | BQ15: Date | BR15: Day | BW15: 9 | BX15: ='D. Epi Parameters'!D22 -> 0.08101811276 | BY15: 0
C16: % CT adherence | E16: =IF($BK$5 = $BF$6, BU6, IF($BK$5 = $BF$7, BU7, BU8)) -> 0.4 | F16: 0.85 | BA16: Cases | BB16: Days | BJ16: 7 | BK16: =VLOOKUP(BJ16, 'Calc - Base'!$H$35:$I$400, 2) -> 2020-10-16 | BL16: =IF($BK$5 = $BF$6, 'Case Counts'!W11, IF($BK$5 = $BF$7, 'Case Counts'!X11, 'Case Counts'!Y11)) -> 77.24307044 | BM16: ='Calc - SA_Case Counts'!L42 -> 53.87746393 | BN16: =IF($BK$5 = $BF$6, 'Case Counts'!AA11, IF($BK$5 = $BF$7, 'Case Counts'!AB11, 'Case Counts'!AC11)) -> 556.23892 | BO16: 425.9247561 | BP16: Base | BQ16: =E14 -> 2020-10-24 | BR16: =INDEX($BJ$9:$BJ$374, MATCH(BQ16, $BK$9:$BK$374, 0)) -> 15 | BW16: 10 | BX16: ='D. Epi Parameters'!D23 -> 0.05481117246 | BY16: 0
BA17: Staff | BJ17: 8 | BK17: =VLOOKUP(BJ17, 'Calc - Base'!$H$35:$I$400, 2) -> 2020-10-17 | BL17: =IF($BK$5 = $BF$6, 'Case Counts'!W12, IF($BK$5 = $BF$7, 'Case Counts'!X12, 'Case Counts'!Y12)) -> 79.30923059 | BM17: ='Calc - SA_Case Counts'!L43 -> 53.52163526 | BN17: =IF($BK$5 = $BF$6, 'Case Counts'!AA12, IF($BK$5 = $BF$7, 'Case Counts'!AB12, 'Case Counts'!AC12)) -> 635.5481506 | BO17: 479.4463913 | BP17: What-If | BQ17: =F14 -> 2020-10-30 | BR17: =INDEX($BJ$9:$BJ$374, MATCH(BQ17, $BK$9:$BK$374, 0)) -> 21 | BW17: 11 | BX17: ='D. Epi Parameters'!D24 -> 0.03553690464 | BY17: 0
BJ18: 9 | BK18: =VLOOKUP(BJ18, 'Calc - Base'!$H$35:$I$400, 2) -> 2020-10-18 | BL18: =IF($BK$5 = $BF$6, 'Case Counts'!W13, IF($BK$5 = $BF$7, 'Case Counts'!X13, 'Case Counts'!Y13)) -> 81.30221551 | BM18: ='Calc - SA_Case Counts'!L44 -> 53.16628343 | BN18: =IF($BK$5 = $BF$6, 'Case Counts'!AA13, IF($BK$5 = $BF$7, 'Case Counts'!AB13, 'Case Counts'!AC13)) -> 716.8503661 | BO18: 532.6126748 | BW18: 12 | BX18: ='D. Epi Parameters'!D25 -> 0.02262657797 | BY18: 0
BJ19: 10 | BK19: =VLOOKUP(BJ19, 'Calc - Base'!$H$35:$I$400, 2) -> 2020-10-19 | BL19: =IF($BK$5 = $BF$6, 'Case Counts'!W14, IF($BK$5 = $BF$7, 'Case Counts'!X14, 'Case Counts'!Y14)) -> 83.16292944 | BM19: ='Calc - SA_Case Counts'!L45 -> 52.71283678 | BN19: =IF($BK$5 = $BF$6, 'Case Counts'!AA14, IF($BK$5 = $BF$7, 'Case Counts'!AB14, 'Case Counts'!AC14)) -> 800.0132955 | BO19: 585.3255116 | BW19: 13 | BX19: ='D. Epi Parameters'!D26 -> 0.01462363492 | BY19: 0
BJ20: 11 | BK20: =VLOOKUP(BJ20, 'Calc - Base'!$H$35:$I$400, 2) -> 2020-10-20 | BL20: =IF($BK$5 = $BF$6, 'Case Counts'!W15, IF($BK$5 = $BF$7, 'Case Counts'!X15, 'Case Counts'!Y15)) -> 85.02119162 | BM20: ='Calc - SA_Case Counts'!L46 -> 52.21326676 | BN20: =IF($BK$5 = $BF$6, 'Case Counts'!AA15, IF($BK$5 = $BF$7, 'Case Counts'!AB15, 'Case Counts'!AC15)) -> 885.0344871 | BO20: 637.5387783 | BQ20: Lower | BR20: Upper | BW20: 14 | BX20: ='D. Epi Parameters'!D27 -> 0.01478414908 | BY20: 0
BJ21: 12 | BK21: =VLOOKUP(BJ21, 'Calc - Base'!$H$35:$I$400, 2) -> 2020-10-21 | BL21: =IF($BK$5 = $BF$6, 'Case Counts'!W16, IF($BK$5 = $BF$7, 'Case Counts'!X16, 'Case Counts'!Y16)) -> 86.90130175 | BM21: ='Calc - SA_Case Counts'!L47 -> 51.67649562 | BN21: =IF($BK$5 = $BF$6, 'Case Counts'!AA16, IF($BK$5 = $BF$7, 'Case Counts'!AB16, 'Case Counts'!AC16)) -> 971.9357889 | BO21: 689.2152739 | BP21: =BF6 -> Strategy 1 | BQ21: =MAX('Staff Needed'!V5:V370) -> 8.323093255 | BR21: =MAX('Staff Needed'!W5:W370) -> 24.96927976
BJ22: 13 | BK22: =VLOOKUP(BJ22, 'Calc - Base'!$H$35:$I$400, 2) -> 2020-10-22 | BL22: =IF($BK$5 = $BF$6, 'Case Counts'!W17, IF($BK$5 = $BF$7, 'Case Counts'!X17, 'Case Counts'!Y17)) -> 88.80591697 | BM22: ='Calc - SA_Case Counts'!L48 -> 51.11340103 | BN22: =IF($BK$5 = $BF$6, 'Case Counts'!AA17, IF($BK$5 = $BF$7, 'Case Counts'!AB17, 'Case Counts'!AC17)) -> 1060.741706 | BO22: 740.328675 | BP22: =BF7 -> Strategy 2 | BQ22: =MAX('Staff Needed'!X5:X370) -> 25.45711206 | BR22: =MAX('Staff Needed'!Y5:Y370) -> 240.0241994
BJ23: 14 | BK23: =VLOOKUP(BJ23, 'Calc - Base'!$H$35:$I$400, 2) -> 2020-10-23 | BL23: =IF($BK$5 = $BF$6, 'Case Counts'!W18, IF($BK$5 = $BF$7, 'Case Counts'!X18, 'Case Counts'!Y18)) -> 90.54870782 | BM23: ='Calc - SA_Case Counts'!L49 -> 50.33917524 | BN23: =IF($BK$5 = $BF$6, 'Case Counts'!AA18, IF($BK$5 = $BF$7, 'Case Counts'!AB18, 'Case Counts'!AC18)) -> 1151.290414 | BO23: 790.6678502 | BP23: =BF8 -> Strategy 3 | BQ23: =MAX('Staff Needed'!Z5:Z370) -> 38.53043725 | BR23: =MAX('Staff Needed'!AA5:AA370) -> 283.1772129
BJ24: 15 | BK24: =VLOOKUP(BJ24, 'Calc - Base'!$H$35:$I$400, 2) -> 2020-10-24 | BL24: =IF($BK$5 = $BF$6, 'Case Counts'!W19, IF($BK$5 = $BF$7, 'Case Counts'!X19, 'Case Counts'!Y19)) -> 48.2992092 | BM24: ='Calc - SA_Case Counts'!L50 -> 50.00896842 | BN24: =IF($BK$5 = $BF$6, 'Case Counts'!AA19, IF($BK$5 = $BF$7, 'Case Counts'!AB19, 'Case Counts'!AC19)) -> 1199.589623 | BO24: 840.6768186
BJ25: 16 | BK25: =VLOOKUP(BJ25, 'Calc - Base'!$H$35:$I$400, 2) -> 2020-10-25 | BL25: =IF($BK$5 = $BF$6, 'Case Counts'!W20, IF($BK$5 = $BF$7, 'Case Counts'!X20, 'Case Counts'!Y20)) -> 49.43146394 | BM25: ='Calc - SA_Case Counts'!L51 -> 49.60033038 | BN25: =IF($BK$5 = $BF$6, 'Case Counts'!AA20, IF($BK$5 = $BF$7, 'Case Counts'!AB20, 'Case Counts'!AC20)) -> 1249.021087 | BO25: 890.277149 | BQ25: Lower | BR25: Upper
BJ26: 17 | BK26: =VLOOKUP(BJ26, 'Calc - Base'!$H$35:$I$400, 2) -> 2020-10-26 | BL26: =IF($BK$5 = $BF$6, 'Case Counts'!W21, IF($BK$5 = $BF$7, 'Case Counts'!X21, 'Case Counts'!Y21)) -> 50.54760991 | BM26: ='Calc - SA_Case Counts'!L52 -> 49.13293819 | BN26: =IF($BK$5 = $BF$6, 'Case Counts'!AA21, IF($BK$5 = $BF$7, 'Case Counts'!AB21, 'Case Counts'!AC21)) -> 1299.568697 | BO26: 939.4100872 | BP26: =K30 -> Original Scenario | BQ26: =IF($BK$5 = $BF$6, BQ21, IF($BK$5=$BF$7, BQ22,BQ23)) -> 38.53043725 | BR26: =IF($BK$5 = $BF$6, BR21, IF($BK$5=$BF$7, BR22,BR23)) -> 283.1772129
BJ27: 18 | BK27: =VLOOKUP(BJ27, 'Calc - Base'!$H$35:$I$400, 2) -> 2020-10-27 | BL27: =IF($BK$5 = $BF$6, 'Case Counts'!W22, IF($BK$5 = $BF$7, 'Case Counts'!X22, 'Case Counts'!Y22)) -> 51.61702558 | BM27: ='Calc - SA_Case Counts'!L53 -> 48.55614578 | BN27: =IF($BK$5 = $BF$6, 'Case Counts'!AA22, IF($BK$5 = $BF$7, 'Case Counts'!AB22, 'Case Counts'!AC22)) -> 1351.185722 | BO27: 987.966233 | BP27: =L30 -> What-If | BQ27: =MAX('Calc - SA_Case Counts'!AT40:AT405) -> 22.3030098 | BR27: =MAX('Calc - SA_Case Counts'!AU40:AU405) -> 159.1581056
BJ28: 19 | BK28: =VLOOKUP(BJ28, 'Calc - Base'!$H$35:$I$400, 2) -> 2020-10-28 | BL28: =IF($BK$5 = $BF$6, 'Case Counts'!W23, IF($BK$5 = $BF$7, 'Case Counts'!X23, 'Case Counts'!Y23)) -> 48.21977757 | BM28: ='Calc - SA_Case Counts'!L54 -> 48.01525491 | BN28: =IF($BK$5 = $BF$6, 'Case Counts'!AA23, IF($BK$5 = $BF$7, 'Case Counts'!AB23, 'Case Counts'!AC23)) -> 1399.4055 | BO28: 1035.981488
BJ29: 20 | BK29: =VLOOKUP(BJ29, 'Calc - Base'!$H$35:$I$400, 2) -> 2020-10-29 | BL29: =IF($BK$5 = $BF$6, 'Case Counts'!W24, IF($BK$5 = $BF$7, 'Case Counts'!X24, 'Case Counts'!Y24)) -> 44.43091112 | BM29: ='Calc - SA_Case Counts'!L55 -> 47.50876116 | BN29: =IF($BK$5 = $BF$6, 'Case Counts'!AA24, IF($BK$5 = $BF$7, 'Case Counts'!AB24, 'Case Counts'!AC24)) -> 1443.836411 | BO29: 1083.490249 | BQ29: Base | BR29: What-If
K30: =E12 -> Original Scenario | L30: =F12 -> What-If | M30: Difference | BJ30: 21 | BK30: =VLOOKUP(BJ30, 'Calc - Base'!$H$35:$I$400, 2) -> 2020-10-30 | BL30: =IF($BK$5 = $BF$6, 'Case Counts'!W25, IF($BK$5 = $BF$7, 'Case Counts'!X25, 'Case Counts'!Y25)) -> 40.82859967 | BM30: ='Calc - SA_Case Counts'!L56 -> 24.13337795 | BN30: =IF($BK$5 = $BF$6, 'Case Counts'!AA25, IF($BK$5 = $BF$7, 'Case Counts'!AB25, 'Case Counts'!AC25)) -> 1484.665011 | BO30: 1107.623627 | BP30: Day of Peak | BQ30: =INDEX(BJ9:BJ374, MATCH($BQ$32, BL9:BL374, 0)) -> 14 | BR30: =INDEX(BJ9:BJ374, MATCH($BR$32, BM9:BM374, 0)) -> 3
I31: Duration (days) | K31: =IF($BL$374>=1,"> 365", SUM(COUNTIF($BL$9:$BL$374,">=1"))) -> 73 | L31: =IF($BM$374>=1,"> 365", SUM(COUNTIF($BM$9:$BM$374,">=1"))) -> 48 | M31: =IFERROR(L31-K31, "N/A") -> -25 | BJ31: 22 | BK31: =VLOOKUP(BJ31, 'Calc - Base'!$H$35:$I$400, 2) -> 2020-10-31 | BL31: =IF($BK$5 = $BF$6, 'Case Counts'!W26, IF($BK$5 = $BF$7, 'Case Counts'!X26, 'Case Counts'!Y26)) -> 37.82943135 | BM31: ='Calc - SA_Case Counts'!L57 -> 23.87850264 | BN31: =IF($BK$5 = $BF$6, 'Case Counts'!AA26, IF($BK$5 = $BF$7, 'Case Counts'!AB26, 'Case Counts'!AC26)) -> 1522.494442 | BO31: 1131.50213 | BP31: Date of Peak | BQ31: =INDEX(BK9:BK374, MATCH($BQ$32, BL9:BL374, 0)) -> 2020-10-23 | BR31: =INDEX(BK9:BK374, MATCH($BR$32, BM9:BM374, 0)) -> 2020-10-12
I32: Day of Peak | K32: =BQ31 -> 2020-10-23 | L32: =BR31 -> 2020-10-12 | M32: =IFERROR(L32-K32, "N/A") -> -11 | BJ32: 23 | BK32: =VLOOKUP(BJ32, 'Calc - Base'!$H$35:$I$400, 2) -> 2020-11-01 | BL32: =IF($BK$5 = $BF$6, 'Case Counts'!W27, IF($BK$5 = $BF$7, 'Case Counts'!X27, 'Case Counts'!Y27)) -> 35.17582356 | BM32: ='Calc - SA_Case Counts'!L58 -> 23.60994061 | BN32: =IF($BK$5 = $BF$6, 'Case Counts'!AA27, IF($BK$5 = $BF$7, 'Case Counts'!AB27, 'Case Counts'!AC27)) -> 1557.670266 | BO32: 1155.11207 | BP32: Cases @ Peak | BQ32: =MAX(BL9:BL374) -> 90.54870782 | BR32: =MAX(BM9:BM374) -> 58.91033434
I33: Cases @ Peak | K33: =BQ32 -> 90.54870782 | L33: =BR32 -> 58.91033434 | M33: -31.63837348 | BJ33: 24 | BK33: =VLOOKUP(BJ33, 'Calc - Base'!$H$35:$I$400, 2) -> 2020-11-02 | BL33: =IF($BK$5 = $BF$6, 'Case Counts'!W28, IF($BK$5 = $BF$7, 'Case Counts'!X28, 'Case Counts'!Y28)) -> 32.78661145 | BM33: ='Calc - SA_Case Counts'!L59 -> 23.35234824 | BN33: =IF($BK$5 = $BF$6, 'Case Counts'!AA28, IF($BK$5 = $BF$7, 'Case Counts'!AB28, 'Case Counts'!AC28)) -> 1590.456877 | BO33: 1178.464418
I34: Total number of cases | K34: =MAX(BN9:BN374) -> 2030.572978 | L34: =MAX(BO9:BO374) -> 1326.659293 | M34: =L34-K34 -> -703.9136855 | BJ34: 25 | BK34: =VLOOKUP(BJ34, 'Calc - Base'!$H$35:$I$400, 2) -> 2020-11-03 | BL34: =IF($BK$5 = $BF$6, 'Case Counts'!W29, IF($BK$5 = $BF$7, 'Case Counts'!X29, 'Case Counts'!Y29)) -> 30.57367261 | BM34: ='Calc - SA_Case Counts'!L60 -> 18.92992427 | BN34: =IF($BK$5 = $BF$6, 'Case Counts'!AA29, IF($BK$5 = $BF$7, 'Case Counts'!AB29, 'Case Counts'!AC29)) -> 1621.03055 | BO34: 1197.394343
BJ35: 26 | BK35: =VLOOKUP(BJ35, 'Calc - Base'!$H$35:$I$400, 2) -> 2020-11-04 | BL35: =IF($BK$5 = $BF$6, 'Case Counts'!W30, IF($BK$5 = $BF$7, 'Case Counts'!X30, 'Case Counts'!Y30)) -> 28.49819792 | BM35: ='Calc - SA_Case Counts'!L61 -> 14.24574718 | BN35: =IF($BK$5 = $BF$6, 'Case Counts'!AA30, IF($BK$5 = $BF$7, 'Case Counts'!AB30, 'Case Counts'!AC30)) -> 1649.528748 | BO35: 1211.64009
BJ36: 27 | BK36: =VLOOKUP(BJ36, 'Calc - Base'!$H$35:$I$400, 2) -> 2020-11-05 | BL36: =IF($BK$5 = $BF$6, 'Case Counts'!W31, IF($BK$5 = $BF$7, 'Case Counts'!X31, 'Case Counts'!Y31)) -> 26.53189388 | BM36: ='Calc - SA_Case Counts'!L62 -> 13.45386035 | BN36: =IF($BK$5 = $BF$6, 'Case Counts'!AA31, IF($BK$5 = $BF$7, 'Case Counts'!AB31, 'Case Counts'!AC31)) -> 1676.060641 | BO36: 1225.09395
BJ37: 28 | BK37: =VLOOKUP(BJ37, 'Calc - Base'!$H$35:$I$400, 2) -> 2020-11-06 | BL37: =IF($BK$5 = $BF$6, 'Case Counts'!W32, IF($BK$5 = $BF$7, 'Case Counts'!X32, 'Case Counts'!Y32)) -> 24.66573083 | BM37: ='Calc - SA_Case Counts'!L63 -> 12.76384124 | BN37: =IF($BK$5 = $BF$6, 'Case Counts'!AA32, IF($BK$5 = $BF$7, 'Case Counts'!AB32, 'Case Counts'!AC32)) -> 1700.726372 | BO37: 1237.857792
BJ38: 29 | BK38: =VLOOKUP(BJ38, 'Calc - Base'!$H$35:$I$400, 2) -> 2020-11-07 | BL38: =IF($BK$5 = $BF$6, 'Case Counts'!W33, IF($BK$5 = $BF$7, 'Case Counts'!X33, 'Case Counts'!Y33)) -> 22.77105349 | BM38: ='Calc - SA_Case Counts'!L64 -> 11.44468144 | BN38: =IF($BK$5 = $BF$6, 'Case Counts'!AA33, IF($BK$5 = $BF$7, 'Case Counts'!AB33, 'Case Counts'!AC33)) -> 1723.497426 | BO38: 1249.302473
BJ39: 30 | BK39: =VLOOKUP(BJ39, 'Calc - Base'!$H$35:$I$400, 2) -> 2020-11-08 | BL39: =IF($BK$5 = $BF$6, 'Case Counts'!W34, IF($BK$5 = $BF$7, 'Case Counts'!X34, 'Case Counts'!Y34)) -> 21.29523704 | BM39: ='Calc - SA_Case Counts'!L65 -> 9.385188623 | BN39: =IF($BK$5 = $BF$6, 'Case Counts'!AA34, IF($BK$5 = $BF$7, 'Case Counts'!AB34, 'Case Counts'!AC34)) -> 1744.792663 | BO39: 1258.687662
BJ40: 31 | BK40: =VLOOKUP(BJ40, 'Calc - Base'!$H$35:$I$400, 2) -> 2020-11-09 | BL40: =IF($BK$5 = $BF$6, 'Case Counts'!W35, IF($BK$5 = $BF$7, 'Case Counts'!X35, 'Case Counts'!Y35)) -> 19.8768442 | BM40: ='Calc - SA_Case Counts'!L66 -> 7.969391887 | BN40: =IF($BK$5 = $BF$6, 'Case Counts'!AA35, IF($BK$5 = $BF$7, 'Case Counts'!AB35, 'Case Counts'!AC35)) -> 1764.669507 | BO40: 1266.657053
BJ41: 32 | BK41: =VLOOKUP(BJ41, 'Calc - Base'!$H$35:$I$400, 2) -> 2020-11-10 | BL41: =IF($BK$5 = $BF$6, 'Case Counts'!W36, IF($BK$5 = $BF$7, 'Case Counts'!X36, 'Case Counts'!Y36)) -> 18.52446081 | BM41: ='Calc - SA_Case Counts'!L67 -> 7.302733267 | BN41: =IF($BK$5 = $BF$6, 'Case Counts'!AA36, IF($BK$5 = $BF$7, 'Case Counts'!AB36, 'Case Counts'!AC36)) -> 1783.193968 | BO41: 1273.959787
BJ42: 33 | BK42: =VLOOKUP(BJ42, 'Calc - Base'!$H$35:$I$400, 2) -> 2020-11-11 | BL42: =IF($BK$5 = $BF$6, 'Case Counts'!W37, IF($BK$5 = $BF$7, 'Case Counts'!X37, 'Case Counts'!Y37)) -> 17.21259156 | BM42: ='Calc - SA_Case Counts'!L68 -> 6.616891111 | BN42: =IF($BK$5 = $BF$6, 'Case Counts'!AA37, IF($BK$5 = $BF$7, 'Case Counts'!AB37, 'Case Counts'!AC37)) -> 1800.406559 | BO42: 1280.576678
BJ43: 34 | BK43: =VLOOKUP(BJ43, 'Calc - Base'!$H$35:$I$400, 2) -> 2020-11-12 | BL43: =IF($BK$5 = $BF$6, 'Case Counts'!W38, IF($BK$5 = $BF$7, 'Case Counts'!X38, 'Case Counts'!Y38)) -> 16.00087474 | BM43: ='Calc - SA_Case Counts'!L69 -> 5.739125979 | BN43: =IF($BK$5 = $BF$6, 'Case Counts'!AA38, IF($BK$5 = $BF$7, 'Case Counts'!AB38, 'Case Counts'!AC38)) -> 1816.407434 | BO43: 1286.315804
BJ44: 35 | BK44: =VLOOKUP(BJ44, 'Calc - Base'!$H$35:$I$400, 2) -> 2020-11-13 | BL44: =IF($BK$5 = $BF$6, 'Case Counts'!W39, IF($BK$5 = $BF$7, 'Case Counts'!X39, 'Case Counts'!Y39)) -> 14.88407473 | BM44: ='Calc - SA_Case Counts'!L70 -> 4.84960905 | BN44: =IF($BK$5 = $BF$6, 'Case Counts'!AA39, IF($BK$5 = $BF$7, 'Case Counts'!AB39, 'Case Counts'!AC39)) -> 1831.291509 | BO44: 1291.165413
BJ45: 36 | BK45: =VLOOKUP(BJ45, 'Calc - Base'!$H$35:$I$400, 2) -> 2020-11-14 | BL45: =IF($BK$5 = $BF$6, 'Case Counts'!W40, IF($BK$5 = $BF$7, 'Case Counts'!X40, 'Case Counts'!Y40)) -> 13.85364668 | BM45: ='Calc - SA_Case Counts'!L71 -> 4.26967495 | BN45: =IF($BK$5 = $BF$6, 'Case Counts'!AA40, IF($BK$5 = $BF$7, 'Case Counts'!AB40, 'Case Counts'!AC40)) -> 1845.145156 | BO45: 1295.435088
BJ46: 37 | BK46: =VLOOKUP(BJ46, 'Calc - Base'!$H$35:$I$400, 2) -> 2020-11-15 | BL46: =IF($BK$5 = $BF$6, 'Case Counts'!W41, IF($BK$5 = $BF$7, 'Case Counts'!X41, 'Case Counts'!Y41)) -> 12.89468646 | BM46: ='Calc - SA_Case Counts'!L72 -> 3.841002411 | BN46: =IF($BK$5 = $BF$6, 'Case Counts'!AA41, IF($BK$5 = $BF$7, 'Case Counts'!AB41, 'Case Counts'!AC41)) -> 1858.039842 | BO46: 1299.27609
BJ47: 38 | BK47: =VLOOKUP(BJ47, 'Calc - Base'!$H$35:$I$400, 2) -> 2020-11-16 | BL47: =IF($BK$5 = $BF$6, 'Case Counts'!W42, IF($BK$5 = $BF$7, 'Case Counts'!X42, 'Case Counts'!Y42)) -> 12.00082072 | BM47: ='Calc - SA_Case Counts'!L73 -> 3.400408695 | BN47: =IF($BK$5 = $BF$6, 'Case Counts'!AA42, IF($BK$5 = $BF$7, 'Case Counts'!AB42, 'Case Counts'!AC42)) -> 1870.040663 | BO47: 1302.676499
BJ48: 39 | BK48: =VLOOKUP(BJ48, 'Calc - Base'!$H$35:$I$400, 2) -> 2020-11-17 | BL48: =IF($BK$5 = $BF$6, 'Case Counts'!W43, IF($BK$5 = $BF$7, 'Case Counts'!X43, 'Case Counts'!Y43)) -> 11.16741998 | BM48: ='Calc - SA_Case Counts'!L74 -> 2.938051398 | BN48: =IF($BK$5 = $BF$6, 'Case Counts'!AA43, IF($BK$5 = $BF$7, 'Case Counts'!AB43, 'Case Counts'!AC43)) -> 1881.208083 | BO48: 1305.61455
BJ49: 40 | BK49: =VLOOKUP(BJ49, 'Calc - Base'!$H$35:$I$400, 2) -> 2020-11-18 | BL49: =IF($BK$5 = $BF$6, 'Case Counts'!W44, IF($BK$5 = $BF$7, 'Case Counts'!X44, 'Case Counts'!Y44)) -> 10.391151 | BM49: ='Calc - SA_Case Counts'!L75 -> 2.545035733 | BN49: =IF($BK$5 = $BF$6, 'Case Counts'!AA44, IF($BK$5 = $BF$7, 'Case Counts'!AB44, 'Case Counts'!AC44)) -> 1891.599234 | BO49: 1308.159586
BJ50: 41 | BK50: =VLOOKUP(BJ50, 'Calc - Base'!$H$35:$I$400, 2) -> 2020-11-19 | BL50: =IF($BK$5 = $BF$6, 'Case Counts'!W45, IF($BK$5 = $BF$7, 'Case Counts'!X45, 'Case Counts'!Y45)) -> 9.668464073 | BM50: ='Calc - SA_Case Counts'!L76 -> 2.253602002 | BN50: =IF($BK$5 = $BF$6, 'Case Counts'!AA45, IF($BK$5 = $BF$7, 'Case Counts'!AB45, 'Case Counts'!AC45)) -> 1901.267698 | BO50: 1310.413188
BJ51: 42 | BK51: =VLOOKUP(BJ51, 'Calc - Base'!$H$35:$I$400, 2) -> 2020-11-20 | BL51: =IF($BK$5 = $BF$6, 'Case Counts'!W46, IF($BK$5 = $BF$7, 'Case Counts'!X46, 'Case Counts'!Y46)) -> 8.995960603 | BM51: ='Calc - SA_Case Counts'!L77 -> 2.000599675 | BN51: =IF($BK$5 = $BF$6, 'Case Counts'!AA46, IF($BK$5 = $BF$7, 'Case Counts'!AB46, 'Case Counts'!AC46)) -> 1910.263658 | BO51: 1312.413788
BJ52: 43 | BK52: =VLOOKUP(BJ52, 'Calc - Base'!$H$35:$I$400, 2) -> 2020-11-21 | BL52: =IF($BK$5 = $BF$6, 'Case Counts'!W47, IF($BK$5 = $BF$7, 'Case Counts'!X47, 'Case Counts'!Y47)) -> 8.369939532 | BM52: ='Calc - SA_Case Counts'!L78 -> 1.753350336 | BN52: =IF($BK$5 = $BF$6, 'Case Counts'!AA47, IF($BK$5 = $BF$7, 'Case Counts'!AB47, 'Case Counts'!AC47)) -> 1918.633598 | BO52: 1314.167138
BJ53: 44 | BK53: =VLOOKUP(BJ53, 'Calc - Base'!$H$35:$I$400, 2) -> 2020-11-22 | BL53: =IF($BK$5 = $BF$6, 'Case Counts'!W48, IF($BK$5 = $BF$7, 'Case Counts'!X48, 'Case Counts'!Y48)) -> 7.789080446 | BM53: ='Calc - SA_Case Counts'!L79 -> 1.523939833 | BN53: =IF($BK$5 = $BF$6, 'Case Counts'!AA48, IF($BK$5 = $BF$7, 'Case Counts'!AB48, 'Case Counts'!AC48)) -> 1926.422678 | BO53: 1315.691078
BJ54: 45 | BK54: =VLOOKUP(BJ54, 'Calc - Base'!$H$35:$I$400, 2) -> 2020-11-23 | BL54: =IF($BK$5 = $BF$6, 'Case Counts'!W49, IF($BK$5 = $BF$7, 'Case Counts'!X49, 'Case Counts'!Y49)) -> 7.247799188 | BM54: ='Calc - SA_Case Counts'!L80 -> 1.33462627 | BN54: =IF($BK$5 = $BF$6, 'Case Counts'!AA49, IF($BK$5 = $BF$7, 'Case Counts'!AB49, 'Case Counts'!AC49)) -> 1933.670478 | BO54: 1317.025704
BJ55: 46 | BK55: =VLOOKUP(BJ55, 'Calc - Base'!$H$35:$I$400, 2) -> 2020-11-24 | BL55: =IF($BK$5 = $BF$6, 'Case Counts'!W50, IF($BK$5 = $BF$7, 'Case Counts'!X50, 'Case Counts'!Y50)) -> 6.743712891 | BM55: ='Calc - SA_Case Counts'!L81 -> 1.179129732 | BN55: =IF($BK$5 = $BF$6, 'Case Counts'!AA50, IF($BK$5 = $BF$7, 'Case Counts'!AB50, 'Case Counts'!AC50)) -> 1940.41419 | BO55: 1318.204834
BJ56: 47 | BK56: =VLOOKUP(BJ56, 'Calc - Base'!$H$35:$I$400, 2) -> 2020-11-25 | BL56: =IF($BK$5 = $BF$6, 'Case Counts'!W51, IF($BK$5 = $BF$7, 'Case Counts'!X51, 'Case Counts'!Y51)) -> 6.274334976 | BM56: ='Calc - SA_Case Counts'!L82 -> 1.038706676 | BN56: =IF($BK$5 = $BF$6, 'Case Counts'!AA51, IF($BK$5 = $BF$7, 'Case Counts'!AB51, 'Case Counts'!AC51)) -> 1946.688525 | BO56: 1319.243541
BJ57: 48 | BK57: =VLOOKUP(BJ57, 'Calc - Base'!$H$35:$I$400, 2) -> 2020-11-26 | BL57: =IF($BK$5 = $BF$6, 'Case Counts'!W52, IF($BK$5 = $BF$7, 'Case Counts'!X52, 'Case Counts'!Y52)) -> 5.837844587 | BM57: ='Calc - SA_Case Counts'!L83 -> 0.9085359052 | BN57: =IF($BK$5 = $BF$6, 'Case Counts'!AA52, IF($BK$5 = $BF$7, 'Case Counts'!AB52, 'Case Counts'!AC52)) -> 1952.52637 | BO57: 1320.152076
BJ58: 49 | BK58: =VLOOKUP(BJ58, 'Calc - Base'!$H$35:$I$400, 2) -> 2020-11-27 | BL58: =IF($BK$5 = $BF$6, 'Case Counts'!W53, IF($BK$5 = $BF$7, 'Case Counts'!X53, 'Case Counts'!Y53)) -> 5.43182941 | BM58: ='Calc - SA_Case Counts'!L84 -> 0.7940100743 | BN58: =IF($BK$5 = $BF$6, 'Case Counts'!AA53, IF($BK$5 = $BF$7, 'Case Counts'!AB53, 'Case Counts'!AC53)) -> 1957.958199 | BO58: 1320.946087
BJ59: 50 | BK59: =VLOOKUP(BJ59, 'Calc - Base'!$H$35:$I$400, 2) -> 2020-11-28 | BL59: =IF($BK$5 = $BF$6, 'Case Counts'!W54, IF($BK$5 = $BF$7, 'Case Counts'!X54, 'Case Counts'!Y54)) -> 5.054068313 | BM59: ='Calc - SA_Case Counts'!L85 -> 0.6977211896 | BN59: =IF($BK$5 = $BF$6, 'Case Counts'!AA54, IF($BK$5 = $BF$7, 'Case Counts'!AB54, 'Case Counts'!AC54)) -> 1963.012268 | BO59: 1321.643808
BJ60: 51 | BK60: =VLOOKUP(BJ60, 'Calc - Base'!$H$35:$I$400, 2) -> 2020-11-29 | BL60: =IF($BK$5 = $BF$6, 'Case Counts'!W55, IF($BK$5 = $BF$7, 'Case Counts'!X55, 'Case Counts'!Y55)) -> 4.702498204 | BM60: ='Calc - SA_Case Counts'!L86 -> 0.6145073436 | BN60: =IF($BK$5 = $BF$6, 'Case Counts'!AA55, IF($BK$5 = $BF$7, 'Case Counts'!AB55, 'Case Counts'!AC55)) -> 1967.714766 | BO60: 1322.258315
BJ61: 52 | BK61: =VLOOKUP(BJ61, 'Calc - Base'!$H$35:$I$400, 2) -> 2020-11-30 | BL61: =IF($BK$5 = $BF$6, 'Case Counts'!W56, IF($BK$5 = $BF$7, 'Case Counts'!X56, 'Case Counts'!Y56)) -> 4.375325411 | BM61: ='Calc - SA_Case Counts'!L87 -> 0.5395074738 | BN61: =IF($BK$5 = $BF$6, 'Case Counts'!AA56, IF($BK$5 = $BF$7, 'Case Counts'!AB56, 'Case Counts'!AC56)) -> 1972.090091 | BO61: 1322.797823
BJ62: 53 | BK62: =VLOOKUP(BJ62, 'Calc - Base'!$H$35:$I$400, 2) -> 2020-12-01 | BL62: =IF($BK$5 = $BF$6, 'Case Counts'!W57, IF($BK$5 = $BF$7, 'Case Counts'!X57, 'Case Counts'!Y57)) -> 4.070883113 | BM62: ='Calc - SA_Case Counts'!L88 -> 0.4723132686 | BN62: =IF($BK$5 = $BF$6, 'Case Counts'!AA57, IF($BK$5 = $BF$7, 'Case Counts'!AB57, 'Case Counts'!AC57)) -> 1976.160974 | BO62: 1323.270136
BJ63: 54 | BK63: =VLOOKUP(BJ63, 'Calc - Base'!$H$35:$I$400, 2) -> 2020-12-02 | BL63: =IF($BK$5 = $BF$6, 'Case Counts'!W58, IF($BK$5 = $BF$7, 'Case Counts'!X58, 'Case Counts'!Y58)) -> 3.787612879 | BM63: ='Calc - SA_Case Counts'!L89 -> 0.4140350318 | BN63: =IF($BK$5 = $BF$6, 'Case Counts'!AA58, IF($BK$5 = $BF$7, 'Case Counts'!AB58, 'Case Counts'!AC58)) -> 1979.948587 | BO63: 1323.684171
BJ64: 55 | BK64: =VLOOKUP(BJ64, 'Calc - Base'!$H$35:$I$400, 2) -> 2020-12-03 | BL64: =IF($BK$5 = $BF$6, 'Case Counts'!W59, IF($BK$5 = $BF$7, 'Case Counts'!X59, 'Case Counts'!Y59)) -> 3.524045834 | BM64: ='Calc - SA_Case Counts'!L90 -> 0.3639243264 | BN64: =IF($BK$5 = $BF$6, 'Case Counts'!AA59, IF($BK$5 = $BF$7, 'Case Counts'!AB59, 'Case Counts'!AC59)) -> 1983.472633 | BO64: 1324.048095
BJ65: 56 | BK65: =VLOOKUP(BJ65, 'Calc - Base'!$H$35:$I$400, 2) -> 2020-12-04 | BL65: =IF($BK$5 = $BF$6, 'Case Counts'!W60, IF($BK$5 = $BF$7, 'Case Counts'!X60, 'Case Counts'!Y60)) -> 3.278811718 | BM65: ='Calc - SA_Case Counts'!L91 -> 0.3198371514 | BN65: =IF($BK$5 = $BF$6, 'Case Counts'!AA60, IF($BK$5 = $BF$7, 'Case Counts'!AB60, 'Case Counts'!AC60)) -> 1986.751445 | BO65: 1324.367932
BJ66: 57 | BK66: =VLOOKUP(BJ66, 'Calc - Base'!$H$35:$I$400, 2) -> 2020-12-05 | BL66: =IF($BK$5 = $BF$6, 'Case Counts'!W61, IF($BK$5 = $BF$7, 'Case Counts'!X61, 'Case Counts'!Y61)) -> 3.050633432 | BM66: ='Calc - SA_Case Counts'!L92 -> 0.2805296146 | BN66: =IF($BK$5 = $BF$6, 'Case Counts'!AA61, IF($BK$5 = $BF$7, 'Case Counts'!AB61, 'Case Counts'!AC61)) -> 1989.802078 | BO66: 1324.648462
BJ67: 58 | BK67: =VLOOKUP(BJ67, 'Calc - Base'!$H$35:$I$400, 2) -> 2020-12-06 | BL67: =IF($BK$5 = $BF$6, 'Case Counts'!W62, IF($BK$5 = $BF$7, 'Case Counts'!X62, 'Case Counts'!Y62)) -> 2.838331666 | BM67: ='Calc - SA_Case Counts'!L93 -> 0.2458929545 | BN67: =IF($BK$5 = $BF$6, 'Case Counts'!AA62, IF($BK$5 = $BF$7, 'Case Counts'!AB62, 'Case Counts'!AC62)) -> 1992.64041 | BO67: 1324.894355
BJ68: 59 | BK68: =VLOOKUP(BJ68, 'Calc - Base'!$H$35:$I$400, 2) -> 2020-12-07 | BL68: =IF($BK$5 = $BF$6, 'Case Counts'!W63, IF($BK$5 = $BF$7, 'Case Counts'!X63, 'Case Counts'!Y63)) -> 2.640788526 | BM68: ='Calc - SA_Case Counts'!L94 -> 0.2158110836 | BN68: =IF($BK$5 = $BF$6, 'Case Counts'!AA63, IF($BK$5 = $BF$7, 'Case Counts'!AB63, 'Case Counts'!AC63)) -> 1995.281198 | BO68: 1325.110166
BJ69: 60 | BK69: =VLOOKUP(BJ69, 'Calc - Base'!$H$35:$I$400, 2) -> 2020-12-08 | BL69: =IF($BK$5 = $BF$6, 'Case Counts'!W64, IF($BK$5 = $BF$7, 'Case Counts'!X64, 'Case Counts'!Y64)) -> 2.456984586 | BM69: ='Calc - SA_Case Counts'!L95 -> 0.18958788 | BN69: =IF($BK$5 = $BF$6, 'Case Counts'!AA64, IF($BK$5 = $BF$7, 'Case Counts'!AB64, 'Case Counts'!AC64)) -> 1997.738183 | BO69: 1325.299754
BJ70: 61 | BK70: =VLOOKUP(BJ70, 'Calc - Base'!$H$35:$I$400, 2) -> 2020-12-09 | BL70: =IF($BK$5 = $BF$6, 'Case Counts'!W65, IF($BK$5 = $BF$7, 'Case Counts'!X65, 'Case Counts'!Y65)) -> 2.28596741 | BM70: ='Calc - SA_Case Counts'!L96 -> 0.1664433702 | BN70: =IF($BK$5 = $BF$6, 'Case Counts'!AA65, IF($BK$5 = $BF$7, 'Case Counts'!AB65, 'Case Counts'!AC65)) -> 2000.02415 | BO70: 1325.466197
BJ71: 62 | BK71: =VLOOKUP(BJ71, 'Calc - Base'!$H$35:$I$400, 2) -> 2020-12-10 | BL71: =IF($BK$5 = $BF$6, 'Case Counts'!W66, IF($BK$5 = $BF$7, 'Case Counts'!X66, 'Case Counts'!Y66)) -> 2.126851863 | BM71: ='Calc - SA_Case Counts'!L97 -> 0.1459895978 | BN71: =IF($BK$5 = $BF$6, 'Case Counts'!AA66, IF($BK$5 = $BF$7, 'Case Counts'!AB66, 'Case Counts'!AC66)) -> 2002.151002 | BO71: 1325.612187
BJ72: 63 | BK72: =VLOOKUP(BJ72, 'Calc - Base'!$H$35:$I$400, 2) -> 2020-12-11 | BL72: =IF($BK$5 = $BF$6, 'Case Counts'!W67, IF($BK$5 = $BF$7, 'Case Counts'!X67, 'Case Counts'!Y67)) -> 1.978807891 | BM72: ='Calc - SA_Case Counts'!L98 -> 0.1280681552 | BN72: =IF($BK$5 = $BF$6, 'Case Counts'!AA67, IF($BK$5 = $BF$7, 'Case Counts'!AB67, 'Case Counts'!AC67)) -> 2004.12981 | BO72: 1325.740255
BJ73: 64 | BK73: =VLOOKUP(BJ73, 'Calc - Base'!$H$35:$I$400, 2) -> 2020-12-12 | BL73: =IF($BK$5 = $BF$6, 'Case Counts'!W68, IF($BK$5 = $BF$7, 'Case Counts'!X68, 'Case Counts'!Y68)) -> 1.841064492 | BM73: ='Calc - SA_Case Counts'!L99 -> 0.1124315148 | BN73: =IF($BK$5 = $BF$6, 'Case Counts'!AA68, IF($BK$5 = $BF$7, 'Case Counts'!AB68, 'Case Counts'!AC68)) -> 2005.970875 | BO73: 1325.852687
BJ74: 65 | BK74: =VLOOKUP(BJ74, 'Calc - Base'!$H$35:$I$400, 2) -> 2020-12-13 | BL74: =IF($BK$5 = $BF$6, 'Case Counts'!W69, IF($BK$5 = $BF$7, 'Case Counts'!X69, 'Case Counts'!Y69)) -> 1.712904998 | BM74: ='Calc - SA_Case Counts'!L100 -> 0.09871879261 | BN74: =IF($BK$5 = $BF$6, 'Case Counts'!AA69, IF($BK$5 = $BF$7, 'Case Counts'!AB69, 'Case Counts'!AC69)) -> 2007.68378 | BO74: 1325.951405
BJ75: 66 | BK75: =VLOOKUP(BJ75, 'Calc - Base'!$H$35:$I$400, 2) -> 2020-12-14 | BL75: =IF($BK$5 = $BF$6, 'Case Counts'!W70, IF($BK$5 = $BF$7, 'Case Counts'!X70, 'Case Counts'!Y70)) -> 1.593663719 | BM75: ='Calc - SA_Case Counts'!L101 -> 0.08663420009 | BN75: =IF($BK$5 = $BF$6, 'Case Counts'!AA70, IF($BK$5 = $BF$7, 'Case Counts'!AB70, 'Case Counts'!AC70)) -> 2009.277443 | BO75: =BO74+BM75 -> 1326.03804
BJ76: 67 | BK76: =VLOOKUP(BJ76, 'Calc - Base'!$H$35:$I$400, 2) -> 2020-12-15 | BL76: =IF($BK$5 = $BF$6, 'Case Counts'!W71, IF($BK$5 = $BF$7, 'Case Counts'!X71, 'Case Counts'!Y71)) -> 1.482720815 | BM76: ='Calc - SA_Case Counts'!L102 -> 0.0760066878 | BN76: =IF($BK$5 = $BF$6, 'Case Counts'!AA71, IF($BK$5 = $BF$7, 'Case Counts'!AB71, 'Case Counts'!AC71)) -> 2010.760164 | BO76: 1326.114046
BJ77: 68 | BK77: =VLOOKUP(BJ77, 'Calc - Base'!$H$35:$I$400, 2) -> 2020-12-16 | BL77: =IF($BK$5 = $BF$6, 'Case Counts'!W72, IF($BK$5 = $BF$7, 'Case Counts'!X72, 'Case Counts'!Y72)) -> 1.379499204 | BM77: ='Calc - SA_Case Counts'!L103 -> 0.0667014928 | BN77: =IF($BK$5 = $BF$6, 'Case Counts'!AA72, IF($BK$5 = $BF$7, 'Case Counts'!AB72, 'Case Counts'!AC72)) -> 2012.139663 | BO77: 1326.180748
BJ78: 69 | BK78: =VLOOKUP(BJ78, 'Calc - Base'!$H$35:$I$400, 2) -> 2020-12-17 | BL78: =IF($BK$5 = $BF$6, 'Case Counts'!W73, IF($BK$5 = $BF$7, 'Case Counts'!X73, 'Case Counts'!Y73)) -> 1.28346168 | BM78: ='Calc - SA_Case Counts'!L104 -> 0.05855425522 | BN78: =IF($BK$5 = $BF$6, 'Case Counts'!AA73, IF($BK$5 = $BF$7, 'Case Counts'!AB73, 'Case Counts'!AC73)) -> 2013.423125 | BO78: 1326.239302
BJ79: 70 | BK79: =VLOOKUP(BJ79, 'Calc - Base'!$H$35:$I$400, 2) -> 2020-12-18 | BL79: =IF($BK$5 = $BF$6, 'Case Counts'!W74, IF($BK$5 = $BF$7, 'Case Counts'!X74, 'Case Counts'!Y74)) -> 1.194108417 | BM79: ='Calc - SA_Case Counts'!L105 -> 0.05139707354 | BN79: =IF($BK$5 = $BF$6, 'Case Counts'!AA74, IF($BK$5 = $BF$7, 'Case Counts'!AB74, 'Case Counts'!AC74)) -> 2014.617234 | BO79: 1326.290699
BJ80: 71 | BK80: =VLOOKUP(BJ80, 'Calc - Base'!$H$35:$I$400, 2) -> 2020-12-19 | BL80: =IF($BK$5 = $BF$6, 'Case Counts'!W75, IF($BK$5 = $BF$7, 'Case Counts'!X75, 'Case Counts'!Y75)) -> 1.110974373 | BM80: ='Calc - SA_Case Counts'!L106 -> 0.04510235898 | BN80: =IF($BK$5 = $BF$6, 'Case Counts'!AA75, IF($BK$5 = $BF$7, 'Case Counts'!AB75, 'Case Counts'!AC75)) -> 2015.728208 | BO80: 1326.335801
BJ81: 72 | BK81: =VLOOKUP(BJ81, 'Calc - Base'!$H$35:$I$400, 2) -> 2020-12-20 | BL81: =IF($BK$5 = $BF$6, 'Case Counts'!W76, IF($BK$5 = $BF$7, 'Case Counts'!X76, 'Case Counts'!Y76)) -> 1.033626898 | BM81: ='Calc - SA_Case Counts'!L107 -> 0.03957764905 | BN81: =IF($BK$5 = $BF$6, 'Case Counts'!AA76, IF($BK$5 = $BF$7, 'Case Counts'!AB76, 'Case Counts'!AC76)) -> 2016.761835 | BO81: 1326.375379
BJ82: 73 | BK82: =VLOOKUP(BJ82, 'Calc - Base'!$H$35:$I$400, 2) -> 2020-12-21 | BL82: =IF($BK$5 = $BF$6, 'Case Counts'!W77, IF($BK$5 = $BF$7, 'Case Counts'!X77, 'Case Counts'!Y77)) -> 0.9616633239 | BM82: ='Calc - SA_Case Counts'!L108 -> 0.03473655114 | BN82: =IF($BK$5 = $BF$6, 'Case Counts'!AA77, IF($BK$5 = $BF$7, 'Case Counts'!AB77, 'Case Counts'!AC77)) -> 2017.723498 | BO82: 1326.410116
BJ83: 74 | BK83: =VLOOKUP(BJ83, 'Calc - Base'!$H$35:$I$400, 2) -> 2020-12-22 | BL83: =IF($BK$5 = $BF$6, 'Case Counts'!W78, IF($BK$5 = $BF$7, 'Case Counts'!X78, 'Case Counts'!Y78)) -> 0.8947091033 | BM83: ='Calc - SA_Case Counts'!L109 -> 0.03049027471 | BN83: =IF($BK$5 = $BF$6, 'Case Counts'!AA78, IF($BK$5 = $BF$7, 'Case Counts'!AB78, 'Case Counts'!AC78)) -> 2018.618207 | BO83: 1326.440606
BJ84: 75 | BK84: =VLOOKUP(BJ84, 'Calc - Base'!$H$35:$I$400, 2) -> 2020-12-23 | BL84: =IF($BK$5 = $BF$6, 'Case Counts'!W79, IF($BK$5 = $BF$7, 'Case Counts'!X79, 'Case Counts'!Y79)) -> 0.8324156758 | BM84: ='Calc - SA_Case Counts'!L110 -> 0.02675990896 | BN84: =IF($BK$5 = $BF$6, 'Case Counts'!AA79, IF($BK$5 = $BF$7, 'Case Counts'!AB79, 'Case Counts'!AC79)) -> 2019.450623 | BO84: 1326.467366
BJ85: 76 | BK85: =VLOOKUP(BJ85, 'Calc - Base'!$H$35:$I$400, 2) -> 2020-12-24 | BL85: =IF($BK$5 = $BF$6, 'Case Counts'!W80, IF($BK$5 = $BF$7, 'Case Counts'!X80, 'Case Counts'!Y80)) -> 0.7744587124 | BM85: ='Calc - SA_Case Counts'!L111 -> 0.02348342608 | BN85: =IF($BK$5 = $BF$6, 'Case Counts'!AA80, IF($BK$5 = $BF$7, 'Case Counts'!AB80, 'Case Counts'!AC80)) -> 2020.225082 | BO85: 1326.490849
BJ86: 77 | BK86: =VLOOKUP(BJ86, 'Calc - Base'!$H$35:$I$400, 2) -> 2020-12-25 | BL86: =IF($BK$5 = $BF$6, 'Case Counts'!W81, IF($BK$5 = $BF$7, 'Case Counts'!X81, 'Case Counts'!Y81)) -> 0.7205363994 | BM86: ='Calc - SA_Case Counts'!L112 -> 0.02060916068 | BN86: =IF($BK$5 = $BF$6, 'Case Counts'!AA81, IF($BK$5 = $BF$7, 'Case Counts'!AB81, 'Case Counts'!AC81)) -> 2020.945618 | BO86: 1326.511458
BJ87: 78 | BK87: =VLOOKUP(BJ87, 'Calc - Base'!$H$35:$I$400, 2) -> 2020-12-26 | BL87: =IF($BK$5 = $BF$6, 'Case Counts'!W82, IF($BK$5 = $BF$7, 'Case Counts'!X82, 'Case Counts'!Y82)) -> 0.6703679401 | BM87: ='Calc - SA_Case Counts'!L113 -> 0.018088473 | BN87: =IF($BK$5 = $BF$6, 'Case Counts'!AA82, IF($BK$5 = $BF$7, 'Case Counts'!AB82, 'Case Counts'!AC82)) -> 2021.615986 | BO87: 1326.529547
BJ88: 79 | BK88: =VLOOKUP(BJ88, 'Calc - Base'!$H$35:$I$400, 2) -> 2020-12-27 | BL88: =IF($BK$5 = $BF$6, 'Case Counts'!W83, IF($BK$5 = $BF$7, 'Case Counts'!X83, 'Case Counts'!Y83)) -> 0.6236920793 | BM88: ='Calc - SA_Case Counts'!L114 -> 0.01587603238 | BN88: =IF($BK$5 = $BF$6, 'Case Counts'!AA83, IF($BK$5 = $BF$7, 'Case Counts'!AB83, 'Case Counts'!AC83)) -> 2022.239678 | BO88: 1326.545423
BJ89: 80 | BK89: =VLOOKUP(BJ89, 'Calc - Base'!$H$35:$I$400, 2) -> 2020-12-28 | BL89: =IF($BK$5 = $BF$6, 'Case Counts'!W84, IF($BK$5 = $BF$7, 'Case Counts'!X84, 'Case Counts'!Y84)) -> 0.5802657412 | BM89: ='Calc - SA_Case Counts'!L115 -> 0.01393315272 | BN89: =IF($BK$5 = $BF$6, 'Case Counts'!AA84, IF($BK$5 = $BF$7, 'Case Counts'!AB84, 'Case Counts'!AC84)) -> 2022.819944 | BO89: 1326.559356
BJ90: 81 | BK90: =VLOOKUP(BJ90, 'Calc - Base'!$H$35:$I$400, 2) -> 2020-12-29 | BL90: =IF($BK$5 = $BF$6, 'Case Counts'!W85, IF($BK$5 = $BF$7, 'Case Counts'!X85, 'Case Counts'!Y85)) -> 0.5398627518 | BM90: ='Calc - SA_Case Counts'!L116 -> 0.01222774722 | BN90: =IF($BK$5 = $BF$6, 'Case Counts'!AA85, IF($BK$5 = $BF$7, 'Case Counts'!AB85, 'Case Counts'!AC85)) -> 2023.359807 | BO90: 1326.571584
BJ91: 82 | BK91: =VLOOKUP(BJ91, 'Calc - Base'!$H$35:$I$400, 2) -> 2020-12-30 | BL91: =IF($BK$5 = $BF$6, 'Case Counts'!W86, IF($BK$5 = $BF$7, 'Case Counts'!X86, 'Case Counts'!Y86)) -> 0.5022726689 | BM91: ='Calc - SA_Case Counts'!L117 -> 0.01073159667 | BN91: =IF($BK$5 = $BF$6, 'Case Counts'!AA86, IF($BK$5 = $BF$7, 'Case Counts'!AB86, 'Case Counts'!AC86)) -> 2023.862079 | BO91: 1326.582315
BJ92: 83 | BK92: =VLOOKUP(BJ92, 'Calc - Base'!$H$35:$I$400, 2) -> 2020-12-31 | BL92: =IF($BK$5 = $BF$6, 'Case Counts'!W87, IF($BK$5 = $BF$7, 'Case Counts'!X87, 'Case Counts'!Y87)) -> 0.4672996914 | BM92: ='Calc - SA_Case Counts'!L118 -> 0.009418839236 | BN92: =IF($BK$5 = $BF$6, 'Case Counts'!AA87, IF($BK$5 = $BF$7, 'Case Counts'!AB87, 'Case Counts'!AC87)) -> 2024.329379 | BO92: 1326.591734
BJ93: 84 | BK93: =VLOOKUP(BJ93, 'Calc - Base'!$H$35:$I$400, 2) -> 2021-01-01 | BL93: =IF($BK$5 = $BF$6, 'Case Counts'!W88, IF($BK$5 = $BF$7, 'Case Counts'!X88, 'Case Counts'!Y88)) -> 0.4347616441 | BM93: ='Calc - SA_Case Counts'!L119 -> 0.008266469954 | BN93: =IF($BK$5 = $BF$6, 'Case Counts'!AA88, IF($BK$5 = $BF$7, 'Case Counts'!AB88, 'Case Counts'!AC88)) -> 2024.764141 | BO93: 1326.600001
BJ94: 85 | BK94: =VLOOKUP(BJ94, 'Calc - Base'!$H$35:$I$400, 2) -> 2021-01-02 | BL94: =IF($BK$5 = $BF$6, 'Case Counts'!W89, IF($BK$5 = $BF$7, 'Case Counts'!X89, 'Case Counts'!Y89)) -> 0.4044890289 | BM94: ='Calc - SA_Case Counts'!L120 -> 0.007254839035 | BN94: =IF($BK$5 = $BF$6, 'Case Counts'!AA89, IF($BK$5 = $BF$7, 'Case Counts'!AB89, 'Case Counts'!AC89)) -> 2025.16863 | BO94: 1326.607256
BJ95: 86 | BK95: =VLOOKUP(BJ95, 'Calc - Base'!$H$35:$I$400, 2) -> 2021-01-03 | BL95: =IF($BK$5 = $BF$6, 'Case Counts'!W90, IF($BK$5 = $BF$7, 'Case Counts'!X90, 'Case Counts'!Y90)) -> 0.3763241432 | BM95: ='Calc - SA_Case Counts'!L121 -> 0.006367045062 | BN95: =IF($BK$5 = $BF$6, 'Case Counts'!AA90, IF($BK$5 = $BF$7, 'Case Counts'!AB90, 'Case Counts'!AC90)) -> 2025.544954 | BO95: 1326.613623
BJ96: 87 | BK96: =VLOOKUP(BJ96, 'Calc - Base'!$H$35:$I$400, 2) -> 2021-01-04 | BL96: =IF($BK$5 = $BF$6, 'Case Counts'!W91, IF($BK$5 = $BF$7, 'Case Counts'!X91, 'Case Counts'!Y91)) -> 0.3501202584 | BM96: ='Calc - SA_Case Counts'!L122 -> 0.005588049034 | BN96: =IF($BK$5 = $BF$6, 'Case Counts'!AA91, IF($BK$5 = $BF$7, 'Case Counts'!AB91, 'Case Counts'!AC91)) -> 2025.895074 | BO96: 1326.619211
BJ97: 88 | BK97: =VLOOKUP(BJ97, 'Calc - Base'!$H$35:$I$400, 2) -> 2021-01-05 | BL97: =IF($BK$5 = $BF$6, 'Case Counts'!W92, IF($BK$5 = $BF$7, 'Case Counts'!X92, 'Case Counts'!Y92)) -> 0.3257408578 | BM97: ='Calc - SA_Case Counts'!L123 -> 0.004904389237 | BN97: =IF($BK$5 = $BF$6, 'Case Counts'!AA92, IF($BK$5 = $BF$7, 'Case Counts'!AB92, 'Case Counts'!AC92)) -> 2026.220815 | BO97: 1326.624115
BJ98: 89 | BK98: =VLOOKUP(BJ98, 'Calc - Base'!$H$35:$I$400, 2) -> 2021-01-06 | BL98: =IF($BK$5 = $BF$6, 'Case Counts'!W93, IF($BK$5 = $BF$7, 'Case Counts'!X93, 'Case Counts'!Y93)) -> 0.3030589254 | BM98: ='Calc - SA_Case Counts'!L124 -> 0.00430428862 | BN98: =IF($BK$5 = $BF$6, 'Case Counts'!AA93, IF($BK$5 = $BF$7, 'Case Counts'!AB93, 'Case Counts'!AC93)) -> 2026.523874 | BO98: 1326.628419
BJ99: 90 | BK99: =VLOOKUP(BJ99, 'Calc - Base'!$H$35:$I$400, 2) -> 2021-01-07 | BL99: =IF($BK$5 = $BF$6, 'Case Counts'!W94, IF($BK$5 = $BF$7, 'Case Counts'!X94, 'Case Counts'!Y94)) -> 0.2819562856 | BM99: ='Calc - SA_Case Counts'!L125 -> 0.003777574974 | BN99: =IF($BK$5 = $BF$6, 'Case Counts'!AA94, IF($BK$5 = $BF$7, 'Case Counts'!AB94, 'Case Counts'!AC94)) -> 2026.80583 | BO99: 1326.632197
BJ100: 91 | BK100: =VLOOKUP(BJ100, 'Calc - Base'!$H$35:$I$400, 2) -> 2021-01-08 | BL100: =IF($BK$5 = $BF$6, 'Case Counts'!W95, IF($BK$5 = $BF$7, 'Case Counts'!X95, 'Case Counts'!Y95)) -> 0.2623229879 | BM100: ='Calc - SA_Case Counts'!L126 -> 0.003315349597 | BN100: =IF($BK$5 = $BF$6, 'Case Counts'!AA95, IF($BK$5 = $BF$7, 'Case Counts'!AB95, 'Case Counts'!AC95)) -> 2027.068153 | BO100: 1326.635512
BJ101: 92 | BK101: =VLOOKUP(BJ101, 'Calc - Base'!$H$35:$I$400, 2) -> 2021-01-09 | BL101: =IF($BK$5 = $BF$6, 'Case Counts'!W96, IF($BK$5 = $BF$7, 'Case Counts'!X96, 'Case Counts'!Y96)) -> 0.244056735 | BM101: ='Calc - SA_Case Counts'!L127 -> 0.002909716865 | BN101: =IF($BK$5 = $BF$6, 'Case Counts'!AA96, IF($BK$5 = $BF$7, 'Case Counts'!AB96, 'Case Counts'!AC96)) -> 2027.31221 | BO101: 1326.638422
BJ102: 93 | BK102: =VLOOKUP(BJ102, 'Calc - Base'!$H$35:$I$400, 2) -> 2021-01-10 | BL102: =IF($BK$5 = $BF$6, 'Case Counts'!W97, IF($BK$5 = $BF$7, 'Case Counts'!X97, 'Case Counts'!Y97)) -> 0.2270623507 | BM102: ='Calc - SA_Case Counts'!L128 -> 0.00255370394 | BN102: =IF($BK$5 = $BF$6, 'Case Counts'!AA97, IF($BK$5 = $BF$7, 'Case Counts'!AB97, 'Case Counts'!AC97)) -> 2027.539272 | BO102: 1326.640976
BJ103: 94 | BK103: =VLOOKUP(BJ103, 'Calc - Base'!$H$35:$I$400, 2) -> 2021-01-11 | BL103: =IF($BK$5 = $BF$6, 'Case Counts'!W98, IF($BK$5 = $BF$7, 'Case Counts'!X98, 'Case Counts'!Y98)) -> 0.2112512834 | BM103: ='Calc - SA_Case Counts'!L129 -> 0.002241227399 | BN103: =IF($BK$5 = $BF$6, 'Case Counts'!AA98, IF($BK$5 = $BF$7, 'Case Counts'!AB98, 'Case Counts'!AC98)) -> 2027.750523 | BO103: 1326.643217
BJ104: 95 | BK104: =VLOOKUP(BJ104, 'Calc - Base'!$H$35:$I$400, 2) -> 2021-01-12 | BL104: =IF($BK$5 = $BF$6, 'Case Counts'!W99, IF($BK$5 = $BF$7, 'Case Counts'!X99, 'Case Counts'!Y99)) -> 0.1965411459 | BM104: ='Calc - SA_Case Counts'!L130 -> 0.001966984436 | BN104: =IF($BK$5 = $BF$6, 'Case Counts'!AA99, IF($BK$5 = $BF$7, 'Case Counts'!AB99, 'Case Counts'!AC99)) -> 2027.947065 | BO104: 1326.645184
BJ105: 96 | BK105: =VLOOKUP(BJ105, 'Calc - Base'!$H$35:$I$400, 2) -> 2021-01-13 | BL105: =IF($BK$5 = $BF$6, 'Case Counts'!W100, IF($BK$5 = $BF$7, 'Case Counts'!X100, 'Case Counts'!Y100)) -> 0.182855286 | BM105: ='Calc - SA_Case Counts'!L131 -> 0.00172631134 | BN105: =IF($BK$5 = $BF$6, 'Case Counts'!AA100, IF($BK$5 = $BF$7, 'Case Counts'!AB100, 'Case Counts'!AC100)) -> 2028.12992 | BO105: 1326.64691
BJ106: 97 | BK106: =VLOOKUP(BJ106, 'Calc - Base'!$H$35:$I$400, 2) -> 2021-01-14 | BL106: =IF($BK$5 = $BF$6, 'Case Counts'!W101, IF($BK$5 = $BF$7, 'Case Counts'!X101, 'Case Counts'!Y101)) -> 0.1701223878 | BM106: ='Calc - SA_Case Counts'!L132 -> 0.001515091052 | BN106: =IF($BK$5 = $BF$6, 'Case Counts'!AA101, IF($BK$5 = $BF$7, 'Case Counts'!AB101, 'Case Counts'!AC101)) -> 2028.300042 | BO106: 1326.648425
BJ107: 98 | BK107: =VLOOKUP(BJ107, 'Calc - Base'!$H$35:$I$400, 2) -> 2021-01-15 | BL107: =IF($BK$5 = $BF$6, 'Case Counts'!W102, IF($BK$5 = $BF$7, 'Case Counts'!X102, 'Case Counts'!Y102)) -> 0.1582761 | BM107: ='Calc - SA_Case Counts'!L133 -> 0.001329708472 | BN107: =IF($BK$5 = $BF$6, 'Case Counts'!AA102, IF($BK$5 = $BF$7, 'Case Counts'!AB102, 'Case Counts'!AC102)) -> 2028.458318 | BO107: 1326.649755
BJ108: 99 | BK108: =VLOOKUP(BJ108, 'Calc - Base'!$H$35:$I$400, 2) -> 2021-01-16 | BL108: =IF($BK$5 = $BF$6, 'Case Counts'!W103, IF($BK$5 = $BF$7, 'Case Counts'!X103, 'Case Counts'!Y103)) -> 0.1472546904 | BM108: ='Calc - SA_Case Counts'!L134 -> 0.001167004164 | BN108: =IF($BK$5 = $BF$6, 'Case Counts'!AA103, IF($BK$5 = $BF$7, 'Case Counts'!AB103, 'Case Counts'!AC103)) -> 2028.605573 | BO108: 1326.650922
BJ109: 100 | BK109: =VLOOKUP(BJ109, 'Calc - Base'!$H$35:$I$400, 2) -> 2021-01-17 | BL109: =IF($BK$5 = $BF$6, 'Case Counts'!W104, IF($BK$5 = $BF$7, 'Case Counts'!X104, 'Case Counts'!Y104)) -> 0.1370007248 | BM109: ='Calc - SA_Case Counts'!L135 -> 0.001024210435 | BN109: =IF($BK$5 = $BF$6, 'Case Counts'!AA104, IF($BK$5 = $BF$7, 'Case Counts'!AB104, 'Case Counts'!AC104)) -> 2028.742574 | BO109: 1326.651946
BJ110: 101 | BK110: =VLOOKUP(BJ110, 'Calc - Base'!$H$35:$I$400, 2) -> 2021-01-18 | BL110: =IF($BK$5 = $BF$6, 'Case Counts'!W105, IF($BK$5 = $BF$7, 'Case Counts'!X105, 'Case Counts'!Y105)) -> 0.1274607673 | BM110: ='Calc - SA_Case Counts'!L136 -> 0.0008988921273 | BN110: =IF($BK$5 = $BF$6, 'Case Counts'!AA105, IF($BK$5 = $BF$7, 'Case Counts'!AB105, 'Case Counts'!AC105)) -> 2028.870035 | BO110: 1326.652845
BJ111: 102 | BK111: =VLOOKUP(BJ111, 'Calc - Base'!$H$35:$I$400, 2) -> 2021-01-19 | BL111: =IF($BK$5 = $BF$6, 'Case Counts'!W106, IF($BK$5 = $BF$7, 'Case Counts'!X106, 'Case Counts'!Y106)) -> 0.1185851023 | BM111: ='Calc - SA_Case Counts'!L137 -> 0.0007889071663 | BN111: =IF($BK$5 = $BF$6, 'Case Counts'!AA106, IF($BK$5 = $BF$7, 'Case Counts'!AB106, 'Case Counts'!AC106)) -> 2028.98862 | BO111: 1326.653634
BJ112: 103 | BK112: =VLOOKUP(BJ112, 'Calc - Base'!$H$35:$I$400, 2) -> 2021-01-20 | BL112: =IF($BK$5 = $BF$6, 'Case Counts'!W107, IF($BK$5 = $BF$7, 'Case Counts'!X107, 'Case Counts'!Y107)) -> 0.1103274756 | BM112: ='Calc - SA_Case Counts'!L138 -> 0.0006923776025 | BN112: =IF($BK$5 = $BF$6, 'Case Counts'!AA107, IF($BK$5 = $BF$7, 'Case Counts'!AB107, 'Case Counts'!AC107)) -> 2029.098947 | BO112: 1326.654326
BJ113: 104 | BK113: =VLOOKUP(BJ113, 'Calc - Base'!$H$35:$I$400, 2) -> 2021-01-21 | BL113: =IF($BK$5 = $BF$6, 'Case Counts'!W108, IF($BK$5 = $BF$7, 'Case Counts'!X108, 'Case Counts'!Y108)) -> 0.1026448533 | BM113: ='Calc - SA_Case Counts'!L139 -> 0.0006076587185 | BN113: =IF($BK$5 = $BF$6, 'Case Counts'!AA108, IF($BK$5 = $BF$7, 'Case Counts'!AB108, 'Case Counts'!AC108)) -> 2029.201592 | BO113: 1326.654934
BJ114: 105 | BK114: =VLOOKUP(BJ114, 'Calc - Base'!$H$35:$I$400, 2) -> 2021-01-22 | BL114: =IF($BK$5 = $BF$6, 'Case Counts'!W109, IF($BK$5 = $BF$7, 'Case Counts'!X109, 'Case Counts'!Y109)) -> 0.09549719759 | BM114: ='Calc - SA_Case Counts'!L140 -> 0.0005333069358 | BN114: =IF($BK$5 = $BF$6, 'Case Counts'!AA109, IF($BK$5 = $BF$7, 'Case Counts'!AB109, 'Case Counts'!AC109)) -> 2029.297089 | BO114: 1326.655467
BJ115: 106 | BK115: =VLOOKUP(BJ115, 'Calc - Base'!$H$35:$I$400, 2) -> 2021-01-23 | BL115: =IF($BK$5 = $BF$6, 'Case Counts'!W110, IF($BK$5 = $BF$7, 'Case Counts'!X110, 'Case Counts'!Y110)) -> 0.08884725848 | BM115: ='Calc - SA_Case Counts'!L141 -> 0.0004680532808 | BN115: =IF($BK$5 = $BF$6, 'Case Counts'!AA110, IF($BK$5 = $BF$7, 'Case Counts'!AB110, 'Case Counts'!AC110)) -> 2029.385936 | BO115: 1326.655935
BJ116: 107 | BK116: =VLOOKUP(BJ116, 'Calc - Base'!$H$35:$I$400, 2) -> 2021-01-24 | BL116: =IF($BK$5 = $BF$6, 'Case Counts'!W111, IF($BK$5 = $BF$7, 'Case Counts'!X111, 'Case Counts'!Y111)) -> 0.0826603794 | BM116: ='Calc - SA_Case Counts'!L142 -> 0.0004107834818 | BN116: =IF($BK$5 = $BF$6, 'Case Counts'!AA111, IF($BK$5 = $BF$7, 'Case Counts'!AB111, 'Case Counts'!AC111)) -> 2029.468597 | BO116: 1326.656346
BJ117: 108 | BK117: =VLOOKUP(BJ117, 'Calc - Base'!$H$35:$I$400, 2) -> 2021-01-25 | BL117: =IF($BK$5 = $BF$6, 'Case Counts'!W112, IF($BK$5 = $BF$7, 'Case Counts'!X112, 'Case Counts'!Y112)) -> 0.07690431681 | BM117: ='Calc - SA_Case Counts'!L143 -> 0.0003605206043 | BN117: =IF($BK$5 = $BF$6, 'Case Counts'!AA112, IF($BK$5 = $BF$7, 'Case Counts'!AB112, 'Case Counts'!AC112)) -> 2029.545501 | BO117: 1326.656707
BJ118: 109 | BK118: =VLOOKUP(BJ118, 'Calc - Base'!$H$35:$I$400, 2) -> 2021-01-26 | BL118: =IF($BK$5 = $BF$6, 'Case Counts'!W113, IF($BK$5 = $BF$7, 'Case Counts'!X113, 'Case Counts'!Y113)) -> 0.07154907221 | BM118: ='Calc - SA_Case Counts'!L144 -> 0.0003164078867 | BN118: =IF($BK$5 = $BF$6, 'Case Counts'!AA113, IF($BK$5 = $BF$7, 'Case Counts'!AB113, 'Case Counts'!AC113)) -> 2029.61705 | BO118: 1326.657023
BJ119: 110 | BK119: =VLOOKUP(BJ119, 'Calc - Base'!$H$35:$I$400, 2) -> 2021-01-27 | BL119: =IF($BK$5 = $BF$6, 'Case Counts'!W114, IF($BK$5 = $BF$7, 'Case Counts'!X114, 'Case Counts'!Y114)) -> 0.06656673581 | BM119: ='Calc - SA_Case Counts'!L145 -> 0.0002776930188 | BN119: =IF($BK$5 = $BF$6, 'Case Counts'!AA114, IF($BK$5 = $BF$7, 'Case Counts'!AB114, 'Case Counts'!AC114)) -> 2029.683617 | BO119: 1326.657301
BJ120: 111 | BK120: =VLOOKUP(BJ120, 'Calc - Base'!$H$35:$I$400, 2) -> 2021-01-28 | BL120: =IF($BK$5 = $BF$6, 'Case Counts'!W115, IF($BK$5 = $BF$7, 'Case Counts'!X115, 'Case Counts'!Y115)) -> 0.06193134113 | BM120: ='Calc - SA_Case Counts'!L146 -> 0.000243715255 | BN120: =IF($BK$5 = $BF$6, 'Case Counts'!AA115, IF($BK$5 = $BF$7, 'Case Counts'!AB115, 'Case Counts'!AC115)) -> 2029.745548 | BO120: 1326.657544
BJ121: 112 | BK121: =VLOOKUP(BJ121, 'Calc - Base'!$H$35:$I$400, 2) -> 2021-01-29 | BL121: =IF($BK$5 = $BF$6, 'Case Counts'!W116, IF($BK$5 = $BF$7, 'Case Counts'!X116, 'Case Counts'!Y116)) -> 0.05761872971 | BM121: ='Calc - SA_Case Counts'!L147 -> 0.0002138947667 | BN121: =IF($BK$5 = $BF$6, 'Case Counts'!AA116, IF($BK$5 = $BF$7, 'Case Counts'!AB116, 'Case Counts'!AC116)) -> 2029.803167 | BO121: 1326.657758
BJ122: 113 | BK122: =VLOOKUP(BJ122, 'Calc - Base'!$H$35:$I$400, 2) -> 2021-01-30 | BL122: =IF($BK$5 = $BF$6, 'Case Counts'!W117, IF($BK$5 = $BF$7, 'Case Counts'!X117, 'Case Counts'!Y117)) -> 0.05360642523 | BM122: ='Calc - SA_Case Counts'!L148 -> 0.0001877229744 | BN122: =IF($BK$5 = $BF$6, 'Case Counts'!AA117, IF($BK$5 = $BF$7, 'Case Counts'!AB117, 'Case Counts'!AC117)) -> 2029.856773 | BO122: 1326.657946
BJ123: 114 | BK123: =VLOOKUP(BJ123, 'Calc - Base'!$H$35:$I$400, 2) -> 2021-01-31 | BL123: =IF($BK$5 = $BF$6, 'Case Counts'!W118, IF($BK$5 = $BF$7, 'Case Counts'!X118, 'Case Counts'!Y118)) -> 0.04987351637 | BM123: ='Calc - SA_Case Counts'!L149 -> 0.0001647535812 | BN123: =IF($BK$5 = $BF$6, 'Case Counts'!AA118, IF($BK$5 = $BF$7, 'Case Counts'!AB118, 'Case Counts'!AC118)) -> 2029.906647 | BO123: 1326.658111
BJ124: 115 | BK124: =VLOOKUP(BJ124, 'Calc - Base'!$H$35:$I$400, 2) -> 2021-02-01 | BL124: =IF($BK$5 = $BF$6, 'Case Counts'!W119, IF($BK$5 = $BF$7, 'Case Counts'!X119, 'Case Counts'!Y119)) -> 0.04640054791 | BM124: ='Calc - SA_Case Counts'!L150 -> 0.0001445947391 | BN124: =IF($BK$5 = $BF$6, 'Case Counts'!AA119, IF($BK$5 = $BF$7, 'Case Counts'!AB119, 'Case Counts'!AC119)) -> 2029.953047 | BO124: 1326.658255
BJ125: 116 | BK125: =VLOOKUP(BJ125, 'Calc - Base'!$H$35:$I$400, 2) -> 2021-02-02 | BL125: =IF($BK$5 = $BF$6, 'Case Counts'!W120, IF($BK$5 = $BF$7, 'Case Counts'!X120, 'Case Counts'!Y120)) -> 0.04316941926 | BM125: ='Calc - SA_Case Counts'!L151 -> 0.0001269024661 | BN125: =IF($BK$5 = $BF$6, 'Case Counts'!AA120, IF($BK$5 = $BF$7, 'Case Counts'!AB120, 'Case Counts'!AC120)) -> 2029.996217 | BO125: 1326.658382
BJ126: 117 | BK126: =VLOOKUP(BJ126, 'Calc - Base'!$H$35:$I$400, 2) -> 2021-02-03 | BL126: =IF($BK$5 = $BF$6, 'Case Counts'!W121, IF($BK$5 = $BF$7, 'Case Counts'!X121, 'Case Counts'!Y121)) -> 0.04016329024 | BM126: ='Calc - SA_Case Counts'!L152 -> 0.0001113749357 | BN126: =IF($BK$5 = $BF$6, 'Case Counts'!AA121, IF($BK$5 = $BF$7, 'Case Counts'!AB121, 'Case Counts'!AC121)) -> 2030.03638 | BO126: 1326.658494
BJ127: 118 | BK127: =VLOOKUP(BJ127, 'Calc - Base'!$H$35:$I$400, 2) -> 2021-02-04 | BL127: =IF($BK$5 = $BF$6, 'Case Counts'!W122, IF($BK$5 = $BF$7, 'Case Counts'!X122, 'Case Counts'!Y122)) -> 0.03736649324 | BM127: ='Calc - SA_Case Counts'!L153 -> 9.774731949e-05 | BN127: =IF($BK$5 = $BF$6, 'Case Counts'!AA122, IF($BK$5 = $BF$7, 'Case Counts'!AB122, 'Case Counts'!AC122)) -> 2030.073747 | BO127: 1326.658591
BJ128: 119 | BK128: =VLOOKUP(BJ128, 'Calc - Base'!$H$35:$I$400, 2) -> 2021-02-05 | BL128: =IF($BK$5 = $BF$6, 'Case Counts'!W123, IF($BK$5 = $BF$7, 'Case Counts'!X123, 'Case Counts'!Y123)) -> 0.03476445164 | BM128: ='Calc - SA_Case Counts'!L154 -> 8.57871749e-05 | BN128: =IF($BK$5 = $BF$6, 'Case Counts'!AA123, IF($BK$5 = $BF$7, 'Case Counts'!AB123, 'Case Counts'!AC123)) -> 2030.108511 | BO128: 1326.658677
BJ129: 120 | BK129: =VLOOKUP(BJ129, 'Calc - Base'!$H$35:$I$400, 2) -> 2021-02-06 | BL129: =IF($BK$5 = $BF$6, 'Case Counts'!W124, IF($BK$5 = $BF$7, 'Case Counts'!X124, 'Case Counts'!Y124)) -> 0.03234360378 | BM129: ='Calc - SA_Case Counts'!L155 -> 7.52904561e-05 | BN129: =IF($BK$5 = $BF$6, 'Case Counts'!AA124, IF($BK$5 = $BF$7, 'Case Counts'!AB124, 'Case Counts'!AC124)) -> 2030.140855 | BO129: 1326.658753
BJ130: 121 | BK130: =VLOOKUP(BJ130, 'Calc - Base'!$H$35:$I$400, 2) -> 2021-02-07 | BL130: =IF($BK$5 = $BF$6, 'Case Counts'!W125, IF($BK$5 = $BF$7, 'Case Counts'!X125, 'Case Counts'!Y125)) -> 0.03009133238 | BM130: ='Calc - SA_Case Counts'!L156 -> 6.607808056e-05 | BN130: =IF($BK$5 = $BF$6, 'Case Counts'!AA125, IF($BK$5 = $BF$7, 'Case Counts'!AB125, 'Case Counts'!AC125)) -> 2030.170946 | BO130: 1326.658819
BJ131: 122 | BK131: =VLOOKUP(BJ131, 'Calc - Base'!$H$35:$I$400, 2) -> 2021-02-08 | BL131: =IF($BK$5 = $BF$6, 'Case Counts'!W126, IF($BK$5 = $BF$7, 'Case Counts'!X126, 'Case Counts'!Y126)) -> 0.02799589871 | BM131: ='Calc - SA_Case Counts'!L157 -> 5.799290252e-05 | BN131: =IF($BK$5 = $BF$6, 'Case Counts'!AA126, IF($BK$5 = $BF$7, 'Case Counts'!AB126, 'Case Counts'!AC126)) -> 2030.198942 | BO131: 1326.658877
BJ132: 123 | BK132: =VLOOKUP(BJ132, 'Calc - Base'!$H$35:$I$400, 2) -> 2021-02-09 | BL132: =IF($BK$5 = $BF$6, 'Case Counts'!W127, IF($BK$5 = $BF$7, 'Case Counts'!X127, 'Case Counts'!Y127)) -> 0.02604638142 | BM132: ='Calc - SA_Case Counts'!L158 -> 5.089701382e-05 | BN132: =IF($BK$5 = $BF$6, 'Case Counts'!AA127, IF($BK$5 = $BF$7, 'Case Counts'!AB127, 'Case Counts'!AC127)) -> 2030.224988 | BO132: 1326.658928
BJ133: 124 | BK133: =VLOOKUP(BJ133, 'Calc - Base'!$H$35:$I$400, 2) -> 2021-02-10 | BL133: =IF($BK$5 = $BF$6, 'Case Counts'!W128, IF($BK$5 = $BF$7, 'Case Counts'!X128, 'Case Counts'!Y128)) -> 0.02423261968 | BM133: ='Calc - SA_Case Counts'!L159 -> 4.466936911e-05 | BN133: =IF($BK$5 = $BF$6, 'Case Counts'!AA128, IF($BK$5 = $BF$7, 'Case Counts'!AB128, 'Case Counts'!AC128)) -> 2030.249221 | BO133: 1326.658972
BJ134: 125 | BK134: =VLOOKUP(BJ134, 'Calc - Base'!$H$35:$I$400, 2) -> 2021-02-11 | BL134: =IF($BK$5 = $BF$6, 'Case Counts'!W129, IF($BK$5 = $BF$7, 'Case Counts'!X129, 'Case Counts'!Y129)) -> 0.02254516019 | BM134: ='Calc - SA_Case Counts'!L160 -> 3.920372488e-05 | BN134: =IF($BK$5 = $BF$6, 'Case Counts'!AA129, IF($BK$5 = $BF$7, 'Case Counts'!AB129, 'Case Counts'!AC129)) -> 2030.271766 | BO134: 1326.659011
BJ135: 126 | BK135: =VLOOKUP(BJ135, 'Calc - Base'!$H$35:$I$400, 2) -> 2021-02-12 | BL135: =IF($BK$5 = $BF$6, 'Case Counts'!W130, IF($BK$5 = $BF$7, 'Case Counts'!X130, 'Case Counts'!Y130)) -> 0.02097520789 | BM135: ='Calc - SA_Case Counts'!L161 -> 3.440684109e-05 | BN135: =IF($BK$5 = $BF$6, 'Case Counts'!AA130, IF($BK$5 = $BF$7, 'Case Counts'!AB130, 'Case Counts'!AC130)) -> 2030.292741 | BO135: 1326.659046
BJ136: 127 | BK136: =VLOOKUP(BJ136, 'Calc - Base'!$H$35:$I$400, 2) -> 2021-02-13 | BL136: =IF($BK$5 = $BF$6, 'Case Counts'!W131, IF($BK$5 = $BF$7, 'Case Counts'!X131, 'Case Counts'!Y131)) -> 0.01951458017 | BM136: ='Calc - SA_Case Counts'!L162 -> 3.019689272e-05 | BN136: =IF($BK$5 = $BF$6, 'Case Counts'!AA131, IF($BK$5 = $BF$7, 'Case Counts'!AB131, 'Case Counts'!AC131)) -> 2030.312256 | BO136: 1326.659076
BJ137: 128 | BK137: =VLOOKUP(BJ137, 'Calc - Base'!$H$35:$I$400, 2) -> 2021-02-14 | BL137: =IF($BK$5 = $BF$6, 'Case Counts'!W132, IF($BK$5 = $BF$7, 'Case Counts'!X132, 'Case Counts'!Y132)) -> 0.01815566422 | BM137: ='Calc - SA_Case Counts'!L163 -> 2.65020665e-05 | BN137: =IF($BK$5 = $BF$6, 'Case Counts'!AA132, IF($BK$5 = $BF$7, 'Case Counts'!AB132, 'Case Counts'!AC132)) -> 2030.330412 | BO137: 1326.659102
BJ138: 129 | BK138: =VLOOKUP(BJ138, 'Calc - Base'!$H$35:$I$400, 2) -> 2021-02-15 | BL138: =IF($BK$5 = $BF$6, 'Case Counts'!W133, IF($BK$5 = $BF$7, 'Case Counts'!X133, 'Case Counts'!Y133)) -> 0.01689137731 | BM138: ='Calc - SA_Case Counts'!L164 -> 2.325933232e-05 | BN138: =IF($BK$5 = $BF$6, 'Case Counts'!AA133, IF($BK$5 = $BF$7, 'Case Counts'!AB133, 'Case Counts'!AC133)) -> 2030.347303 | BO138: 1326.659126
BJ139: 130 | BK139: =VLOOKUP(BJ139, 'Calc - Base'!$H$35:$I$400, 2) -> 2021-02-16 | BL139: =IF($BK$5 = $BF$6, 'Case Counts'!W134, IF($BK$5 = $BF$7, 'Case Counts'!X134, 'Case Counts'!Y134)) -> 0.01571512994 | BM139: ='Calc - SA_Case Counts'!L165 -> 2.041337124e-05 | BN139: =IF($BK$5 = $BF$6, 'Case Counts'!AA134, IF($BK$5 = $BF$7, 'Case Counts'!AB134, 'Case Counts'!AC134)) -> 2030.363018 | BO139: =BO138+BM139 -> 1326.659146
BJ140: 131 | BK140: =VLOOKUP(BJ140, 'Calc - Base'!$H$35:$I$400, 2) -> 2021-02-17 | BL140: =IF($BK$5 = $BF$6, 'Case Counts'!W135, IF($BK$5 = $BF$7, 'Case Counts'!X135, 'Case Counts'!Y135)) -> 0.01462079144 | BM140: ='Calc - SA_Case Counts'!L166 -> 1.791563488e-05 | BN140: =IF($BK$5 = $BF$6, 'Case Counts'!AA135, IF($BK$5 = $BF$7, 'Case Counts'!AB135, 'Case Counts'!AC135)) -> 2030.377639 | BO140: 1326.659164
BJ141: 132 | BK141: =VLOOKUP(BJ141, 'Calc - Base'!$H$35:$I$400, 2) -> 2021-02-18 | BL141: =IF($BK$5 = $BF$6, 'Case Counts'!W136, IF($BK$5 = $BF$7, 'Case Counts'!X136, 'Case Counts'!Y136)) -> 0.01360265806 | BM141: ='Calc - SA_Case Counts'!L167 -> 1.572351631e-05 | BN141: =IF($BK$5 = $BF$6, 'Case Counts'!AA136, IF($BK$5 = $BF$7, 'Case Counts'!AB136, 'Case Counts'!AC136)) -> 2030.391242 | BO141: 1326.65918
BJ142: 133 | BK142: =VLOOKUP(BJ142, 'Calc - Base'!$H$35:$I$400, 2) -> 2021-02-19 | BL142: =IF($BK$5 = $BF$6, 'Case Counts'!W137, IF($BK$5 = $BF$7, 'Case Counts'!X137, 'Case Counts'!Y137)) -> 0.01265542323 | BM142: ='Calc - SA_Case Counts'!L168 -> 1.379962119e-05 | BN142: =IF($BK$5 = $BF$6, 'Case Counts'!AA137, IF($BK$5 = $BF$7, 'Case Counts'!AB137, 'Case Counts'!AC137)) -> 2030.403897 | BO142: 1326.659194
BJ143: 134 | BK143: =VLOOKUP(BJ143, 'Calc - Base'!$H$35:$I$400, 2) -> 2021-02-20 | BL143: =IF($BK$5 = $BF$6, 'Case Counts'!W138, IF($BK$5 = $BF$7, 'Case Counts'!X138, 'Case Counts'!Y138)) -> 0.01177414989 | BM143: ='Calc - SA_Case Counts'!L169 -> 1.211112977e-05 | BN143: =IF($BK$5 = $BF$6, 'Case Counts'!AA138, IF($BK$5 = $BF$7, 'Case Counts'!AB138, 'Case Counts'!AC138)) -> 2030.415671 | BO143: 1326.659206
BJ144: 135 | BK144: =VLOOKUP(BJ144, 'Calc - Base'!$H$35:$I$400, 2) -> 2021-02-21 | BL144: =IF($BK$5 = $BF$6, 'Case Counts'!W139, IF($BK$5 = $BF$7, 'Case Counts'!X139, 'Case Counts'!Y139)) -> 0.01095424478 | BM144: ='Calc - SA_Case Counts'!L170 -> 1.062923818e-05 | BN144: =IF($BK$5 = $BF$6, 'Case Counts'!AA139, IF($BK$5 = $BF$7, 'Case Counts'!AB139, 'Case Counts'!AC139)) -> 2030.426625 | BO144: 1326.659216
BJ145: 136 | BK145: =VLOOKUP(BJ145, 'Calc - Base'!$H$35:$I$400, 2) -> 2021-02-22 | BL145: =IF($BK$5 = $BF$6, 'Case Counts'!W140, IF($BK$5 = $BF$7, 'Case Counts'!X140, 'Case Counts'!Y140)) -> 0.01019143449 | BM145: ='Calc - SA_Case Counts'!L171 -> 9.328667498e-06 | BN145: =IF($BK$5 = $BF$6, 'Case Counts'!AA140, IF($BK$5 = $BF$7, 'Case Counts'!AB140, 'Case Counts'!AC140)) -> 2030.436817 | BO145: 1326.659226
BJ146: 137 | BK146: =VLOOKUP(BJ146, 'Calc - Base'!$H$35:$I$400, 2) -> 2021-02-23 | BL146: =IF($BK$5 = $BF$6, 'Case Counts'!W141, IF($BK$5 = $BF$7, 'Case Counts'!X141, 'Case Counts'!Y141)) -> 0.009481743195 | BM146: ='Calc - SA_Case Counts'!L172 -> 8.187231957e-06 | BN146: =IF($BK$5 = $BF$6, 'Case Counts'!AA141, IF($BK$5 = $BF$7, 'Case Counts'!AB141, 'Case Counts'!AC141)) -> 2030.446299 | BO146: 1326.659234
BJ147: 138 | BK147: =VLOOKUP(BJ147, 'Calc - Base'!$H$35:$I$400, 2) -> 2021-02-24 | BL147: =IF($BK$5 = $BF$6, 'Case Counts'!W142, IF($BK$5 = $BF$7, 'Case Counts'!X142, 'Case Counts'!Y142)) -> 0.008821471909 | BM147: ='Calc - SA_Case Counts'!L173 -> 7.185460113e-06 | BN147: =IF($BK$5 = $BF$6, 'Case Counts'!AA142, IF($BK$5 = $BF$7, 'Case Counts'!AB142, 'Case Counts'!AC142)) -> 2030.45512 | BO147: 1326.659241
BJ148: 139 | BK148: =VLOOKUP(BJ148, 'Calc - Base'!$H$35:$I$400, 2) -> 2021-02-25 | BL148: =IF($BK$5 = $BF$6, 'Case Counts'!W143, IF($BK$5 = $BF$7, 'Case Counts'!X143, 'Case Counts'!Y143)) -> 0.008207179239 | BM148: ='Calc - SA_Case Counts'!L174 -> 6.306262855e-06 | BN148: =IF($BK$5 = $BF$6, 'Case Counts'!AA143, IF($BK$5 = $BF$7, 'Case Counts'!AB143, 'Case Counts'!AC143)) -> 2030.463327 | BO148: 1326.659247
BJ149: 140 | BK149: =VLOOKUP(BJ149, 'Calc - Base'!$H$35:$I$400, 2) -> 2021-02-26 | BL149: =IF($BK$5 = $BF$6, 'Case Counts'!W144, IF($BK$5 = $BF$7, 'Case Counts'!X144, 'Case Counts'!Y144)) -> 0.007635663431 | BM149: ='Calc - SA_Case Counts'!L175 -> 5.534642182e-06 | BN149: =IF($BK$5 = $BF$6, 'Case Counts'!AA144, IF($BK$5 = $BF$7, 'Case Counts'!AB144, 'Case Counts'!AC144)) -> 2030.470963 | BO149: 1326.659253
BJ150: 141 | BK150: =VLOOKUP(BJ150, 'Calc - Base'!$H$35:$I$400, 2) -> 2021-02-27 | BL150: =IF($BK$5 = $BF$6, 'Case Counts'!W145, IF($BK$5 = $BF$7, 'Case Counts'!X145, 'Case Counts'!Y145)) -> 0.007103945686 | BM150: ='Calc - SA_Case Counts'!L176 -> 4.857435338e-06 | BN150: =IF($BK$5 = $BF$6, 'Case Counts'!AA145, IF($BK$5 = $BF$7, 'Case Counts'!AB145, 'Case Counts'!AC145)) -> 2030.478067 | BO150: 1326.659258
BJ151: 142 | BK151: =VLOOKUP(BJ151, 'Calc - Base'!$H$35:$I$400, 2) -> 2021-02-28 | BL151: =IF($BK$5 = $BF$6, 'Case Counts'!W146, IF($BK$5 = $BF$7, 'Case Counts'!X146, 'Case Counts'!Y146)) -> 0.006609254636 | BM151: ='Calc - SA_Case Counts'!L177 -> 4.263090102e-06 | BN151: =IF($BK$5 = $BF$6, 'Case Counts'!AA146, IF($BK$5 = $BF$7, 'Case Counts'!AB146, 'Case Counts'!AC146)) -> 2030.484676 | BO151: 1326.659262
BJ152: 143 | BK152: =VLOOKUP(BJ152, 'Calc - Base'!$H$35:$I$400, 2) -> 2021-03-01 | BL152: =IF($BK$5 = $BF$6, 'Case Counts'!W147, IF($BK$5 = $BF$7, 'Case Counts'!X147, 'Case Counts'!Y147)) -> 0.006149011896 | BM152: ='Calc - SA_Case Counts'!L178 -> 3.741467675e-06 | BN152: =IF($BK$5 = $BF$6, 'Case Counts'!AA147, IF($BK$5 = $BF$7, 'Case Counts'!AB147, 'Case Counts'!AC147)) -> 2030.490825 | BO152: 1326.659266
BJ153: 144 | BK153: =VLOOKUP(BJ153, 'Calc - Base'!$H$35:$I$400, 2) -> 2021-03-02 | BL153: =IF($BK$5 = $BF$6, 'Case Counts'!W148, IF($BK$5 = $BF$7, 'Case Counts'!X148, 'Case Counts'!Y148)) -> 0.005720818629 | BM153: ='Calc - SA_Case Counts'!L179 -> 3.283669813e-06 | BN153: =IF($BK$5 = $BF$6, 'Case Counts'!AA148, IF($BK$5 = $BF$7, 'Case Counts'!AB148, 'Case Counts'!AC148)) -> 2030.496546 | BO153: 1326.659269
BJ154: 145 | BK154: =VLOOKUP(BJ154, 'Calc - Base'!$H$35:$I$400, 2) -> 2021-03-03 | BL154: =IF($BK$5 = $BF$6, 'Case Counts'!W149, IF($BK$5 = $BF$7, 'Case Counts'!X149, 'Case Counts'!Y149)) -> 0.005322443042 | BM154: ='Calc - SA_Case Counts'!L180 -> 2.881887087e-06 | BN154: =IF($BK$5 = $BF$6, 'Case Counts'!AA149, IF($BK$5 = $BF$7, 'Case Counts'!AB149, 'Case Counts'!AC149)) -> 2030.501868 | BO154: 1326.659272
BJ155: 146 | BK155: =VLOOKUP(BJ155, 'Calc - Base'!$H$35:$I$400, 2) -> 2021-03-04 | BL155: =IF($BK$5 = $BF$6, 'Case Counts'!W150, IF($BK$5 = $BF$7, 'Case Counts'!X150, 'Case Counts'!Y150)) -> 0.004951808756 | BM155: ='Calc - SA_Case Counts'!L181 -> 2.529265632e-06 | BN155: =IF($BK$5 = $BF$6, 'Case Counts'!AA150, IF($BK$5 = $BF$7, 'Case Counts'!AB150, 'Case Counts'!AC150)) -> 2030.50682 | BO155: 1326.659274
BJ156: 147 | BK156: =VLOOKUP(BJ156, 'Calc - Base'!$H$35:$I$400, 2) -> 2021-03-05 | BL156: =IF($BK$5 = $BF$6, 'Case Counts'!W151, IF($BK$5 = $BF$7, 'Case Counts'!X151, 'Case Counts'!Y151)) -> 0.004606983979 | BM156: ='Calc - SA_Case Counts'!L182 -> 2.219790185e-06 | BN156: =IF($BK$5 = $BF$6, 'Case Counts'!AA151, IF($BK$5 = $BF$7, 'Case Counts'!AB151, 'Case Counts'!AC151)) -> 2030.511427 | BO156: 1326.659277
BJ157: 148 | BK157: =VLOOKUP(BJ157, 'Calc - Base'!$H$35:$I$400, 2) -> 2021-03-06 | BL157: =IF($BK$5 = $BF$6, 'Case Counts'!W152, IF($BK$5 = $BF$7, 'Case Counts'!X152, 'Case Counts'!Y152)) -> 0.004286171442 | BM157: ='Calc - SA_Case Counts'!L183 -> 1.948181481e-06 | BN157: =IF($BK$5 = $BF$6, 'Case Counts'!AA152, IF($BK$5 = $BF$7, 'Case Counts'!AB152, 'Case Counts'!AC152)) -> 2030.515713 | BO157: 1326.659279
BJ158: 149 | BK158: =VLOOKUP(BJ158, 'Calc - Base'!$H$35:$I$400, 2) -> 2021-03-07 | BL158: =IF($BK$5 = $BF$6, 'Case Counts'!W153, IF($BK$5 = $BF$7, 'Case Counts'!X153, 'Case Counts'!Y153)) -> 0.00398769903 | BM158: ='Calc - SA_Case Counts'!L184 -> 1.709806221e-06 | BN158: =IF($BK$5 = $BF$6, 'Case Counts'!AA153, IF($BK$5 = $BF$7, 'Case Counts'!AB153, 'Case Counts'!AC153)) -> 2030.519701 | BO158: 1326.65928
BJ159: 150 | BK159: =VLOOKUP(BJ159, 'Calc - Base'!$H$35:$I$400, 2) -> 2021-03-08 | BL159: =IF($BK$5 = $BF$6, 'Case Counts'!W154, IF($BK$5 = $BF$7, 'Case Counts'!X154, 'Case Counts'!Y154)) -> 0.003710011068 | BM159: ='Calc - SA_Case Counts'!L185 -> 1.500598039e-06 | BN159: =IF($BK$5 = $BF$6, 'Case Counts'!AA154, IF($BK$5 = $BF$7, 'Case Counts'!AB154, 'Case Counts'!AC154)) -> 2030.523411 | BO159: 1326.659282
BJ160: 151 | BK160: =VLOOKUP(BJ160, 'Calc - Base'!$H$35:$I$400, 2) -> 2021-03-09 | BL160: =IF($BK$5 = $BF$6, 'Case Counts'!W155, IF($BK$5 = $BF$7, 'Case Counts'!X155, 'Case Counts'!Y155)) -> 0.003451660209 | BM160: ='Calc - SA_Case Counts'!L186 -> 1.31698812e-06 | BN160: =IF($BK$5 = $BF$6, 'Case Counts'!AA155, IF($BK$5 = $BF$7, 'Case Counts'!AB155, 'Case Counts'!AC155)) -> 2030.526863 | BO160: 1326.659283
BJ161: 152 | BK161: =VLOOKUP(BJ161, 'Calc - Base'!$H$35:$I$400, 2) -> 2021-03-10 | BL161: =IF($BK$5 = $BF$6, 'Case Counts'!W156, IF($BK$5 = $BF$7, 'Case Counts'!X156, 'Case Counts'!Y156)) -> 0.003211299895 | BM161: ='Calc - SA_Case Counts'!L187 -> 1.155844314e-06 | BN161: =IF($BK$5 = $BF$6, 'Case Counts'!AA156, IF($BK$5 = $BF$7, 'Case Counts'!AB156, 'Case Counts'!AC156)) -> 2030.530074 | BO161: 1326.659284
BJ162: 153 | BK162: =VLOOKUP(BJ162, 'Calc - Base'!$H$35:$I$400, 2) -> 2021-03-11 | BL162: =IF($BK$5 = $BF$6, 'Case Counts'!W157, IF($BK$5 = $BF$7, 'Case Counts'!X157, 'Case Counts'!Y157)) -> 0.002987677337 | BM162: ='Calc - SA_Case Counts'!L188 -> 1.014417713e-06 | BN162: =IF($BK$5 = $BF$6, 'Case Counts'!AA157, IF($BK$5 = $BF$7, 'Case Counts'!AB157, 'Case Counts'!AC157)) -> 2030.533062 | BO162: 1326.659285
BJ163: 154 | BK163: =VLOOKUP(BJ163, 'Calc - Base'!$H$35:$I$400, 2) -> 2021-03-12 | BL163: =IF($BK$5 = $BF$6, 'Case Counts'!W158, IF($BK$5 = $BF$7, 'Case Counts'!X158, 'Case Counts'!Y158)) -> 0.002779626984 | BM163: ='Calc - SA_Case Counts'!L189 -> 8.90295762e-07 | BN163: =IF($BK$5 = $BF$6, 'Case Counts'!AA158, IF($BK$5 = $BF$7, 'Case Counts'!AB158, 'Case Counts'!AC158)) -> 2030.535841 | BO163: 1326.659286
BJ164: 155 | BK164: =VLOOKUP(BJ164, 'Calc - Base'!$H$35:$I$400, 2) -> 2021-03-13 | BL164: =IF($BK$5 = $BF$6, 'Case Counts'!W159, IF($BK$5 = $BF$7, 'Case Counts'!X159, 'Case Counts'!Y159)) -> 0.002586064449 | BM164: ='Calc - SA_Case Counts'!L190 -> 7.813611041e-07 | BN164: =IF($BK$5 = $BF$6, 'Case Counts'!AA159, IF($BK$5 = $BF$7, 'Case Counts'!AB159, 'Case Counts'!AC159)) -> 2030.538427 | BO164: 1326.659287
BJ165: 156 | BK165: =VLOOKUP(BJ165, 'Calc - Base'!$H$35:$I$400, 2) -> 2021-03-14 | BL165: =IF($BK$5 = $BF$6, 'Case Counts'!W160, IF($BK$5 = $BF$7, 'Case Counts'!X160, 'Case Counts'!Y160)) -> 0.002405980858 | BM165: ='Calc - SA_Case Counts'!L191 -> 6.857554556e-07 | BN165: =IF($BK$5 = $BF$6, 'Case Counts'!AA160, IF($BK$5 = $BF$7, 'Case Counts'!AB160, 'Case Counts'!AC160)) -> 2030.540833 | BO165: 1326.659288
BJ166: 157 | BK166: =VLOOKUP(BJ166, 'Calc - Base'!$H$35:$I$400, 2) -> 2021-03-15 | BL166: =IF($BK$5 = $BF$6, 'Case Counts'!W161, IF($BK$5 = $BF$7, 'Case Counts'!X161, 'Case Counts'!Y161)) -> 0.00223843759 | BM166: ='Calc - SA_Case Counts'!L192 -> 6.018479069e-07 | BN166: =IF($BK$5 = $BF$6, 'Case Counts'!AA161, IF($BK$5 = $BF$7, 'Case Counts'!AB161, 'Case Counts'!AC161)) -> 2030.543072 | BO166: 1326.659288
BJ167: 158 | BK167: =VLOOKUP(BJ167, 'Calc - Base'!$H$35:$I$400, 2) -> 2021-03-16 | BL167: =IF($BK$5 = $BF$6, 'Case Counts'!W162, IF($BK$5 = $BF$7, 'Case Counts'!X162, 'Case Counts'!Y162)) -> 0.002082561387 | BM167: ='Calc - SA_Case Counts'!L193 -> 5.282071031e-07 | BN167: =IF($BK$5 = $BF$6, 'Case Counts'!AA162, IF($BK$5 = $BF$7, 'Case Counts'!AB162, 'Case Counts'!AC162)) -> 2030.545154 | BO167: 1326.659289
BJ168: 159 | BK168: =VLOOKUP(BJ168, 'Calc - Base'!$H$35:$I$400, 2) -> 2021-03-17 | BL168: =IF($BK$5 = $BF$6, 'Case Counts'!W163, IF($BK$5 = $BF$7, 'Case Counts'!X163, 'Case Counts'!Y163)) -> 0.001937539801 | BM168: ='Calc - SA_Case Counts'!L194 -> 4.63576828e-07 | BN168: =IF($BK$5 = $BF$6, 'Case Counts'!AA163, IF($BK$5 = $BF$7, 'Case Counts'!AB163, 'Case Counts'!AC163)) -> 2030.547092 | BO168: 1326.659289
BJ169: 160 | BK169: =VLOOKUP(BJ169, 'Calc - Base'!$H$35:$I$400, 2) -> 2021-03-18 | BL169: =IF($BK$5 = $BF$6, 'Case Counts'!W164, IF($BK$5 = $BF$7, 'Case Counts'!X164, 'Case Counts'!Y164)) -> 0.001802616957 | BM169: ='Calc - SA_Case Counts'!L195 -> 4.068545734e-07 | BN169: =IF($BK$5 = $BF$6, 'Case Counts'!AA164, IF($BK$5 = $BF$7, 'Case Counts'!AB164, 'Case Counts'!AC164)) -> 2030.548894 | BO169: 1326.65929
BJ170: 161 | BK170: =VLOOKUP(BJ170, 'Calc - Base'!$H$35:$I$400, 2) -> 2021-03-19 | BL170: =IF($BK$5 = $BF$6, 'Case Counts'!W165, IF($BK$5 = $BF$7, 'Case Counts'!X165, 'Case Counts'!Y165)) -> 0.00167708962 | BM170: ='Calc - SA_Case Counts'!L196 -> 3.57072731e-07 | BN170: =IF($BK$5 = $BF$6, 'Case Counts'!AA165, IF($BK$5 = $BF$7, 'Case Counts'!AB165, 'Case Counts'!AC165)) -> 2030.550572 | BO170: 1326.65929
BJ171: 162 | BK171: =VLOOKUP(BJ171, 'Calc - Base'!$H$35:$I$400, 2) -> 2021-03-20 | BL171: =IF($BK$5 = $BF$6, 'Case Counts'!W166, IF($BK$5 = $BF$7, 'Case Counts'!X166, 'Case Counts'!Y166)) -> 0.001560303523 | BM171: ='Calc - SA_Case Counts'!L197 -> 3.133820867e-07 | BN171: =IF($BK$5 = $BF$6, 'Case Counts'!AA166, IF($BK$5 = $BF$7, 'Case Counts'!AB166, 'Case Counts'!AC166)) -> 2030.552132 | BO171: 1326.65929
BJ172: 163 | BK172: =VLOOKUP(BJ172, 'Calc - Base'!$H$35:$I$400, 2) -> 2021-03-21 | BL172: =IF($BK$5 = $BF$6, 'Case Counts'!W167, IF($BK$5 = $BF$7, 'Case Counts'!X167, 'Case Counts'!Y167)) -> 0.00145164996 | BM172: ='Calc - SA_Case Counts'!L198 -> 2.750373346e-07 | BN172: =IF($BK$5 = $BF$6, 'Case Counts'!AA167, IF($BK$5 = $BF$7, 'Case Counts'!AB167, 'Case Counts'!AC167)) -> 2030.553584 | BO172: 1326.659291
BJ173: 164 | BK173: =VLOOKUP(BJ173, 'Calc - Base'!$H$35:$I$400, 2) -> 2021-03-22 | BL173: =IF($BK$5 = $BF$6, 'Case Counts'!W168, IF($BK$5 = $BF$7, 'Case Counts'!X168, 'Case Counts'!Y168)) -> 0.001350562613 | BM173: ='Calc - SA_Case Counts'!L199 -> 2.413843632e-07 | BN173: =IF($BK$5 = $BF$6, 'Case Counts'!AA168, IF($BK$5 = $BF$7, 'Case Counts'!AB168, 'Case Counts'!AC168)) -> 2030.554934 | BO173: 1326.659291
BJ174: 165 | BK174: =VLOOKUP(BJ174, 'Calc - Base'!$H$35:$I$400, 2) -> 2021-03-23 | BL174: =IF($BK$5 = $BF$6, 'Case Counts'!W169, IF($BK$5 = $BF$7, 'Case Counts'!X169, 'Case Counts'!Y169)) -> 0.0012565146 | BM174: ='Calc - SA_Case Counts'!L200 -> 2.118490964e-07 | BN174: =IF($BK$5 = $BF$6, 'Case Counts'!AA169, IF($BK$5 = $BF$7, 'Case Counts'!AB169, 'Case Counts'!AC169)) -> 2030.556191 | BO174: 1326.659291
BJ175: 166 | BK175: =VLOOKUP(BJ175, 'Calc - Base'!$H$35:$I$400, 2) -> 2021-03-24 | BL175: =IF($BK$5 = $BF$6, 'Case Counts'!W170, IF($BK$5 = $BF$7, 'Case Counts'!X170, 'Case Counts'!Y170)) -> 0.001169015729 | BM175: ='Calc - SA_Case Counts'!L201 -> 1.859277008e-07 | BN175: =IF($BK$5 = $BF$6, 'Case Counts'!AA170, IF($BK$5 = $BF$7, 'Case Counts'!AB170, 'Case Counts'!AC170)) -> 2030.55736 | BO175: 1326.659291
BJ176: 167 | BK176: =VLOOKUP(BJ176, 'Calc - Base'!$H$35:$I$400, 2) -> 2021-03-25 | BL176: =IF($BK$5 = $BF$6, 'Case Counts'!W171, IF($BK$5 = $BF$7, 'Case Counts'!X171, 'Case Counts'!Y171)) -> 0.001087609943 | BM176: ='Calc - SA_Case Counts'!L202 -> 1.631779908e-07 | BN176: =IF($BK$5 = $BF$6, 'Case Counts'!AA171, IF($BK$5 = $BF$7, 'Case Counts'!AB171, 'Case Counts'!AC171)) -> 2030.558447 | BO176: 1326.659291
BJ177: 168 | BK177: =VLOOKUP(BJ177, 'Calc - Base'!$H$35:$I$400, 2) -> 2021-03-26 | BL177: =IF($BK$5 = $BF$6, 'Case Counts'!W172, IF($BK$5 = $BF$7, 'Case Counts'!X172, 'Case Counts'!Y172)) -> 0.001011872944 | BM177: ='Calc - SA_Case Counts'!L203 -> 1.43211886e-07 | BN177: =IF($BK$5 = $BF$6, 'Case Counts'!AA172, IF($BK$5 = $BF$7, 'Case Counts'!AB172, 'Case Counts'!AC172)) -> 2030.559459 | BO177: 1326.659292
BJ178: 169 | BK178: =VLOOKUP(BJ178, 'Calc - Base'!$H$35:$I$400, 2) -> 2021-03-27 | BL178: =IF($BK$5 = $BF$6, 'Case Counts'!W173, IF($BK$5 = $BF$7, 'Case Counts'!X173, 'Case Counts'!Y173)) -> 0.0009414099794 | BM178: ='Calc - SA_Case Counts'!L204 -> 1.256887904e-07 | BN178: =IF($BK$5 = $BF$6, 'Case Counts'!AA173, IF($BK$5 = $BF$7, 'Case Counts'!AB173, 'Case Counts'!AC173)) -> 2030.5604 | BO178: 1326.659292
BJ179: 170 | BK179: =VLOOKUP(BJ179, 'Calc - Base'!$H$35:$I$400, 2) -> 2021-03-28 | BL179: =IF($BK$5 = $BF$6, 'Case Counts'!W174, IF($BK$5 = $BF$7, 'Case Counts'!X174, 'Case Counts'!Y174)) -> 0.0008758537852 | BM179: ='Calc - SA_Case Counts'!L205 -> 1.103097828e-07 | BN179: =IF($BK$5 = $BF$6, 'Case Counts'!AA174, IF($BK$5 = $BF$7, 'Case Counts'!AB174, 'Case Counts'!AC174)) -> 2030.561276 | BO179: 1326.659292
BJ180: 171 | BK180: =VLOOKUP(BJ180, 'Calc - Base'!$H$35:$I$400, 2) -> 2021-03-29 | BL180: =IF($BK$5 = $BF$6, 'Case Counts'!W175, IF($BK$5 = $BF$7, 'Case Counts'!X175, 'Case Counts'!Y175)) -> 0.0008148626731 | BM180: ='Calc - SA_Case Counts'!L206 -> 9.681251723e-08 | BN180: =IF($BK$5 = $BF$6, 'Case Counts'!AA175, IF($BK$5 = $BF$7, 'Case Counts'!AB175, 'Case Counts'!AC175)) -> 2030.562091 | BO180: 1326.659292
BJ181: 172 | BK181: =VLOOKUP(BJ181, 'Calc - Base'!$H$35:$I$400, 2) -> 2021-03-30 | BL181: =IF($BK$5 = $BF$6, 'Case Counts'!W176, IF($BK$5 = $BF$7, 'Case Counts'!X176, 'Case Counts'!Y176)) -> 0.0007581187484 | BM181: ='Calc - SA_Case Counts'!L207 -> 8.496674773e-08 | BN181: =IF($BK$5 = $BF$6, 'Case Counts'!AA176, IF($BK$5 = $BF$7, 'Case Counts'!AB176, 'Case Counts'!AC176)) -> 2030.562849 | BO181: 1326.659292
BJ182: 173 | BK182: =VLOOKUP(BJ182, 'Calc - Base'!$H$35:$I$400, 2) -> 2021-03-31 | BL182: =IF($BK$5 = $BF$6, 'Case Counts'!W177, IF($BK$5 = $BF$7, 'Case Counts'!X177, 'Case Counts'!Y177)) -> 0.0007053262534 | BM182: ='Calc - SA_Case Counts'!L208 -> 7.457040087e-08 | BN182: =IF($BK$5 = $BF$6, 'Case Counts'!AA177, IF($BK$5 = $BF$7, 'Case Counts'!AB177, 'Case Counts'!AC177)) -> 2030.563555 | BO182: 1326.659292
BJ183: 174 | BK183: =VLOOKUP(BJ183, 'Calc - Base'!$H$35:$I$400, 2) -> 2021-04-01 | BL183: =IF($BK$5 = $BF$6, 'Case Counts'!W178, IF($BK$5 = $BF$7, 'Case Counts'!X178, 'Case Counts'!Y178)) -> 0.0006562100256 | BM183: ='Calc - SA_Case Counts'!L209 -> 6.544612846e-08 | BN183: =IF($BK$5 = $BF$6, 'Case Counts'!AA178, IF($BK$5 = $BF$7, 'Case Counts'!AB178, 'Case Counts'!AC178)) -> 2030.564211 | BO183: 1326.659292
BJ184: 175 | BK184: =VLOOKUP(BJ184, 'Calc - Base'!$H$35:$I$400, 2) -> 2021-04-02 | BL184: =IF($BK$5 = $BF$6, 'Case Counts'!W179, IF($BK$5 = $BF$7, 'Case Counts'!X179, 'Case Counts'!Y179)) -> 0.000610514064 | BM184: ='Calc - SA_Case Counts'!L210 -> 5.743828223e-08 | BN184: =IF($BK$5 = $BF$6, 'Case Counts'!AA179, IF($BK$5 = $BF$7, 'Case Counts'!AB179, 'Case Counts'!AC179)) -> 2030.564821 | BO184: 1326.659292
BJ185: 176 | BK185: =VLOOKUP(BJ185, 'Calc - Base'!$H$35:$I$400, 2) -> 2021-04-03 | BL185: =IF($BK$5 = $BF$6, 'Case Counts'!W180, IF($BK$5 = $BF$7, 'Case Counts'!X180, 'Case Counts'!Y180)) -> 0.0005680001944 | BM185: ='Calc - SA_Case Counts'!L211 -> 5.041025867e-08 | BN185: =IF($BK$5 = $BF$6, 'Case Counts'!AA180, IF($BK$5 = $BF$7, 'Case Counts'!AB180, 'Case Counts'!AC180)) -> 2030.565389 | BO185: 1326.659292
BJ186: 177 | BK186: =VLOOKUP(BJ186, 'Calc - Base'!$H$35:$I$400, 2) -> 2021-04-04 | BL186: =IF($BK$5 = $BF$6, 'Case Counts'!W181, IF($BK$5 = $BF$7, 'Case Counts'!X181, 'Case Counts'!Y181)) -> 0.0005284468281 | BM186: ='Calc - SA_Case Counts'!L212 -> 4.424216883e-08 | BN186: =IF($BK$5 = $BF$6, 'Case Counts'!AA181, IF($BK$5 = $BF$7, 'Case Counts'!AB181, 'Case Counts'!AC181)) -> 2030.565918 | BO186: 1326.659292
BJ187: 178 | BK187: =VLOOKUP(BJ187, 'Calc - Base'!$H$35:$I$400, 2) -> 2021-04-05 | BL187: =IF($BK$5 = $BF$6, 'Case Counts'!W182, IF($BK$5 = $BF$7, 'Case Counts'!X182, 'Case Counts'!Y182)) -> 0.0004916478071 | BM187: ='Calc - SA_Case Counts'!L213 -> 3.882879307e-08 | BN187: =IF($BK$5 = $BF$6, 'Case Counts'!AA182, IF($BK$5 = $BF$7, 'Case Counts'!AB182, 'Case Counts'!AC182)) -> 2030.566409 | BO187: 1326.659292
BJ188: 179 | BK188: =VLOOKUP(BJ188, 'Calc - Base'!$H$35:$I$400, 2) -> 2021-04-06 | BL188: =IF($BK$5 = $BF$6, 'Case Counts'!W183, IF($BK$5 = $BF$7, 'Case Counts'!X183, 'Case Counts'!Y183)) -> 0.0004574113292 | BM188: ='Calc - SA_Case Counts'!L214 -> 3.407778622e-08 | BN188: =IF($BK$5 = $BF$6, 'Case Counts'!AA183, IF($BK$5 = $BF$7, 'Case Counts'!AB183, 'Case Counts'!AC183)) -> 2030.566867 | BO188: 1326.659292
BJ189: 180 | BK189: =VLOOKUP(BJ189, 'Calc - Base'!$H$35:$I$400, 2) -> 2021-04-07 | BL189: =IF($BK$5 = $BF$6, 'Case Counts'!W184, IF($BK$5 = $BF$7, 'Case Counts'!X184, 'Case Counts'!Y184)) -> 0.0004255589488 | BM189: ='Calc - SA_Case Counts'!L215 -> 2.990810226e-08 | BN189: =IF($BK$5 = $BF$6, 'Case Counts'!AA184, IF($BK$5 = $BF$7, 'Case Counts'!AB184, 'Case Counts'!AC184)) -> 2030.567292 | BO189: 1326.659292
BJ190: 181 | BK190: =VLOOKUP(BJ190, 'Calc - Base'!$H$35:$I$400, 2) -> 2021-04-08 | BL190: =IF($BK$5 = $BF$6, 'Case Counts'!W185, IF($BK$5 = $BF$7, 'Case Counts'!X185, 'Case Counts'!Y185)) -> 0.0003959246466 | BM190: ='Calc - SA_Case Counts'!L216 -> 2.624861177e-08 | BN190: =IF($BK$5 = $BF$6, 'Case Counts'!AA185, IF($BK$5 = $BF$7, 'Case Counts'!AB185, 'Case Counts'!AC185)) -> 2030.567688 | BO190: 1326.659292
BJ191: 182 | BK191: =VLOOKUP(BJ191, 'Calc - Base'!$H$35:$I$400, 2) -> 2021-04-09 | BL191: =IF($BK$5 = $BF$6, 'Case Counts'!W186, IF($BK$5 = $BF$7, 'Case Counts'!X186, 'Case Counts'!Y186)) -> 0.000368353964 | BM191: ='Calc - SA_Case Counts'!L217 -> 2.30368886e-08 | BN191: =IF($BK$5 = $BF$6, 'Case Counts'!AA186, IF($BK$5 = $BF$7, 'Case Counts'!AB186, 'Case Counts'!AC186)) -> 2030.568057 | BO191: 1326.659292
BJ192: 183 | BK192: =VLOOKUP(BJ192, 'Calc - Base'!$H$35:$I$400, 2) -> 2021-04-10 | BL192: =IF($BK$5 = $BF$6, 'Case Counts'!W187, IF($BK$5 = $BF$7, 'Case Counts'!X187, 'Case Counts'!Y187)) -> 0.0003427031984 | BM192: ='Calc - SA_Case Counts'!L218 -> 2.021814491e-08 | BN192: =IF($BK$5 = $BF$6, 'Case Counts'!AA187, IF($BK$5 = $BF$7, 'Case Counts'!AB187, 'Case Counts'!AC187)) -> 2030.568399 | BO192: 1326.659292
BJ193: 184 | BK193: =VLOOKUP(BJ193, 'Calc - Base'!$H$35:$I$400, 2) -> 2021-04-11 | BL193: =IF($BK$5 = $BF$6, 'Case Counts'!W188, IF($BK$5 = $BF$7, 'Case Counts'!X188, 'Case Counts'!Y188)) -> 0.0003188386542 | BM193: ='Calc - SA_Case Counts'!L219 -> 1.774429658e-08 | BN193: =IF($BK$5 = $BF$6, 'Case Counts'!AA188, IF($BK$5 = $BF$7, 'Case Counts'!AB188, 'Case Counts'!AC188)) -> 2030.568718 | BO193: 1326.659292
BJ194: 185 | BK194: =VLOOKUP(BJ194, 'Calc - Base'!$H$35:$I$400, 2) -> 2021-04-12 | BL194: =IF($BK$5 = $BF$6, 'Case Counts'!W189, IF($BK$5 = $BF$7, 'Case Counts'!X189, 'Case Counts'!Y189)) -> 0.0002966359459 | BM194: ='Calc - SA_Case Counts'!L220 -> 1.557314296e-08 | BN194: =IF($BK$5 = $BF$6, 'Case Counts'!AA189, IF($BK$5 = $BF$7, 'Case Counts'!AB189, 'Case Counts'!AC189)) -> 2030.569015 | BO194: 1326.659292
BJ195: 186 | BK195: =VLOOKUP(BJ195, 'Calc - Base'!$H$35:$I$400, 2) -> 2021-04-13 | BL195: =IF($BK$5 = $BF$6, 'Case Counts'!W190, IF($BK$5 = $BF$7, 'Case Counts'!X190, 'Case Counts'!Y190)) -> 0.0002759793493 | BM195: ='Calc - SA_Case Counts'!L221 -> 1.366764699e-08 | BN195: =IF($BK$5 = $BF$6, 'Case Counts'!AA190, IF($BK$5 = $BF$7, 'Case Counts'!AB190, 'Case Counts'!AC190)) -> 2030.569291 | BO195: 1326.659292
BJ196: 187 | BK196: =VLOOKUP(BJ196, 'Calc - Base'!$H$35:$I$400, 2) -> 2021-04-14 | BL196: =IF($BK$5 = $BF$6, 'Case Counts'!W191, IF($BK$5 = $BF$7, 'Case Counts'!X191, 'Case Counts'!Y191)) -> 0.0002567611994 | BM196: ='Calc - SA_Case Counts'!L222 -> 1.199530336e-08 | BN196: =IF($BK$5 = $BF$6, 'Case Counts'!AA191, IF($BK$5 = $BF$7, 'Case Counts'!AB191, 'Case Counts'!AC191)) -> 2030.569548 | BO196: 1326.659292
BJ197: 188 | BK197: =VLOOKUP(BJ197, 'Calc - Base'!$H$35:$I$400, 2) -> 2021-04-15 | BL197: =IF($BK$5 = $BF$6, 'Case Counts'!W192, IF($BK$5 = $BF$7, 'Case Counts'!X192, 'Case Counts'!Y192)) -> 0.0002388813281 | BM197: ='Calc - SA_Case Counts'!L223 -> 1.052758408e-08 | BN197: =IF($BK$5 = $BF$6, 'Case Counts'!AA192, IF($BK$5 = $BF$7, 'Case Counts'!AB192, 'Case Counts'!AC192)) -> 2030.569787 | BO197: 1326.659293
BJ198: 189 | BK198: =VLOOKUP(BJ198, 'Calc - Base'!$H$35:$I$400, 2) -> 2021-04-16 | BL198: =IF($BK$5 = $BF$6, 'Case Counts'!W193, IF($BK$5 = $BF$7, 'Case Counts'!X193, 'Case Counts'!Y193)) -> 0.0002222465428 | BM198: ='Calc - SA_Case Counts'!L224 -> 9.239451739e-09 | BN198: =IF($BK$5 = $BF$6, 'Case Counts'!AA193, IF($BK$5 = $BF$7, 'Case Counts'!AB193, 'Case Counts'!AC193)) -> 2030.570009 | BO198: 1326.659293
BJ199: 190 | BK199: =VLOOKUP(BJ199, 'Calc - Base'!$H$35:$I$400, 2) -> 2021-04-17 | BL199: =IF($BK$5 = $BF$6, 'Case Counts'!W194, IF($BK$5 = $BF$7, 'Case Counts'!X194, 'Case Counts'!Y194)) -> 0.0002067701406 | BM199: ='Calc - SA_Case Counts'!L225 -> 8.108932477e-09 | BN199: =IF($BK$5 = $BF$6, 'Case Counts'!AA194, IF($BK$5 = $BF$7, 'Case Counts'!AB194, 'Case Counts'!AC194)) -> 2030.570216 | BO199: 1326.659293
BJ200: 191 | BK200: =VLOOKUP(BJ200, 'Calc - Base'!$H$35:$I$400, 2) -> 2021-04-18 | BL200: =IF($BK$5 = $BF$6, 'Case Counts'!W195, IF($BK$5 = $BF$7, 'Case Counts'!X195, 'Case Counts'!Y195)) -> 0.0001923714559 | BM200: ='Calc - SA_Case Counts'!L226 -> 7.116741098e-09 | BN200: =IF($BK$5 = $BF$6, 'Case Counts'!AA195, IF($BK$5 = $BF$7, 'Case Counts'!AB195, 'Case Counts'!AC195)) -> 2030.570408 | BO200: 1326.659293
BJ201: 192 | BK201: =VLOOKUP(BJ201, 'Calc - Base'!$H$35:$I$400, 2) -> 2021-04-19 | BL201: =IF($BK$5 = $BF$6, 'Case Counts'!W196, IF($BK$5 = $BF$7, 'Case Counts'!X196, 'Case Counts'!Y196)) -> 0.0001789754408 | BM201: ='Calc - SA_Case Counts'!L227 -> 6.245952103e-09 | BN201: =IF($BK$5 = $BF$6, 'Case Counts'!AA196, IF($BK$5 = $BF$7, 'Case Counts'!AB196, 'Case Counts'!AC196)) -> 2030.570587 | BO201: 1326.659293
BJ202: 193 | BK202: =VLOOKUP(BJ202, 'Calc - Base'!$H$35:$I$400, 2) -> 2021-04-20 | BL202: =IF($BK$5 = $BF$6, 'Case Counts'!W197, IF($BK$5 = $BF$7, 'Case Counts'!X197, 'Case Counts'!Y197)) -> 0.000166512273 | BM202: ='Calc - SA_Case Counts'!L228 -> 5.481710959e-09 | BN202: =IF($BK$5 = $BF$6, 'Case Counts'!AA197, IF($BK$5 = $BF$7, 'Case Counts'!AB197, 'Case Counts'!AC197)) -> 2030.570753 | BO202: 1326.659293
BJ203: 194 | BK203: =VLOOKUP(BJ203, 'Calc - Base'!$H$35:$I$400, 2) -> 2021-04-21 | BL203: =IF($BK$5 = $BF$6, 'Case Counts'!W198, IF($BK$5 = $BF$7, 'Case Counts'!X198, 'Case Counts'!Y198)) -> 0.0001549169928 | BM203: ='Calc - SA_Case Counts'!L229 -> 4.810980703e-09 | BN203: =IF($BK$5 = $BF$6, 'Case Counts'!AA198, IF($BK$5 = $BF$7, 'Case Counts'!AB198, 'Case Counts'!AC198)) -> 2030.570908 | BO203: =BO202+BM203 -> 1326.659293
BJ204: 195 | BK204: =VLOOKUP(BJ204, 'Calc - Base'!$H$35:$I$400, 2) -> 2021-04-22 | BL204: =IF($BK$5 = $BF$6, 'Case Counts'!W199, IF($BK$5 = $BF$7, 'Case Counts'!X199, 'Case Counts'!Y199)) -> 0.0001441291636 | BM204: ='Calc - SA_Case Counts'!L230 -> 4.222319545e-09 | BN204: =IF($BK$5 = $BF$6, 'Case Counts'!AA199, IF($BK$5 = $BF$7, 'Case Counts'!AB199, 'Case Counts'!AC199)) -> 2030.571052 | BO204: 1326.659293
... 170 more rows

Sheet SA_Resources
B5: "What-If" Sensitivity Analysis: Staffing Needs | BA5: Chart Text | BF5: Scenario Options | BJ5: Chosen Scenario | BK5: =$E$9 -> Strategy 2 | BL5: =IF($BK$5 = $BF$6, 'B. Impact of contact tracing'!$F$19, IF($BK$5 = $BF$7, 'B. Impact of contact tracing'!$G$19, 'B. Impact of contact tracing'!$H$19)) -> Symptoms | BT5: Group 1 | BX5: Group 2
BA6: Maximum staff needed on a single day | BF6: ='B. Impact of contact tracing'!F16 -> Strategy 1 | BL6: =E11 -> Original Scenario | BN6: =G11 -> "What-If" Scenario | BT6: =$BL$6 -> Original Scenario | BV6: =$BN$6 -> "What-If" Scenario | BX6: =$BL$6 -> Original Scenario | BZ6: =$BN$6 -> "What-If" Scenario
BF7: ='B. Impact of contact tracing'!G16 -> Strategy 2 | BL7: Lower | BM7: Upper | BN7: Lower | BO7: Upper | BT7: Lower | BU7: Upper | BV7: Lower | BW7: Upper | BX7: Lower | BY7: Upper | BZ7: Lower | CA7: Upper
BA8: Chart Titles | BF8: ='B. Impact of contact tracing'!H16 -> Strategy 3 | BJ8: Day | BK8: Date
B9: Step 1: | C9: Choose A Contact Tracing Strategy | E9: Strategy 2 | K9: Staffing needs would change like this: | BA9: =IFERROR(_xlfn.CONCAT($BA$6, "(", $BK$5, " vs. 'What-If' Scenario)"), CONCATENATE($BA$6, "(", $BK$5, " vs. 'What-If' Scenario)")) -> Maximum staff needed on a single day (Strategy 2 vs. 'What-If' Scenario) | BJ9: 0 | BK9: =VLOOKUP(BJ9, 'Calc - Base'!$H$35:$I$400, 2) -> 2020-10-09 | BL9: =IF($BK$5=$BF$6, 'Staff Needed'!V5, IF($BK$5=$BF$7, 'Staff Needed'!X5, 'Staff Needed'!Z5)) -> 0 | BM9: =IF($BK$5=$BF$6, 'Staff Needed'!W5, IF($BK$5=$BF$7, 'Staff Needed'!Y5, 'Staff Needed'!AA5)) -> 0 | BN9: ='Calc - SA_Resources'!AT35 -> 0 | BO9: ='Calc - SA_Resources'!AU35 -> 0 | BT9: =IF($BK$5=$BF$6, 'Staff Needed'!AB5, IF($BK$5=$BF$7, 'Staff Needed'!AD5, 'Staff Needed'!AF5)) -> 0 | BU9: =IF($BK$5=$BF$6, 'Staff Needed'!AC5, IF($BK$5=$BF$7, 'Staff Needed'!AE5, 'Staff Needed'!AG5)) -> 0 | BV9: ='Calc - SA_Resources'!BA35 -> 0 | BW9: ='Calc - SA_Resources'!BB35 -> 0 | BX9: =IF($BK$5=$BF$6, 'Staff Needed'!AH5, IF($BK$5=$BF$7, 'Staff Needed'!AJ5, 'Staff Needed'!AL5)) -> 0 | BY9: =IF($BK$5=$BF$6, 'Staff Needed'!AI5, IF($BK$5=$BF$7, 'Staff Needed'!AK5, 'Staff Needed'!AM5)) -> 0 | BZ9: ='Calc - SA_Resources'!BG35 -> 0 | CA9: ='Calc - SA_Resources'!BH35 -> 0
BJ10: 1 | BK10: =VLOOKUP(BJ10, 'Calc - Base'!$H$35:$I$400, 2) -> 2020-10-10 | BL10: =IF($BK$5=$BF$6, 'Staff Needed'!V6, IF($BK$5=$BF$7, 'Staff Needed'!X6, 'Staff Needed'!Z6)) -> 0 | BM10: =IF($BK$5=$BF$6, 'Staff Needed'!W6, IF($BK$5=$BF$7, 'Staff Needed'!Y6, 'Staff Needed'!AA6)) -> 0 | BN10: ='Calc - SA_Resources'!AT36 -> 0 | BO10: ='Calc - SA_Resources'!AU36 -> 0 | BT10: =IF($BK$5=$BF$6, 'Staff Needed'!AB6, IF($BK$5=$BF$7, 'Staff Needed'!AD6, 'Staff Needed'!AF6)) -> 0 | BU10: =IF($BK$5=$BF$6, 'Staff Needed'!AC6, IF($BK$5=$BF$7, 'Staff Needed'!AE6, 'Staff Needed'!AG6)) -> 0 | BV10: ='Calc - SA_Resources'!BA36 -> 0 | BW10: ='Calc - SA_Resources'!BB36 -> 0 | BX10: =IF($BK$5=$BF$6, 'Staff Needed'!AH6, IF($BK$5=$BF$7, 'Staff Needed'!AJ6, 'Staff Needed'!AL6)) -> 0 | BY10: =IF($BK$5=$BF$6, 'Staff Needed'!AI6, IF($BK$5=$BF$7, 'Staff Needed'!AK6, 'Staff Needed'!AM6)) -> 0 | BZ10: ='Calc - SA_Resources'!BG36 -> 0 | CA10: ='Calc - SA_Resources'!BH36 -> 0
B11: Step 2: | C11: Set your "What-If" Scenario | E11: Original Scenario | G11: "What-If" Scenario | BJ11: 2 | BK11: =VLOOKUP(BJ11, 'Calc - Base'!$H$35:$I$400, 2) -> 2020-10-11 | BL11: =IF($BK$5=$BF$6, 'Staff Needed'!V7, IF($BK$5=$BF$7, 'Staff Needed'!X7, 'Staff Needed'!Z7)) -> 0 | BM11: =IF($BK$5=$BF$6, 'Staff Needed'!W7, IF($BK$5=$BF$7, 'Staff Needed'!Y7, 'Staff Needed'!AA7)) -> 0 | BN11: ='Calc - SA_Resources'!AT37 -> 0 | BO11: ='Calc - SA_Resources'!AU37 -> 0 | BT11: =IF($BK$5=$BF$6, 'Staff Needed'!AB7, IF($BK$5=$BF$7, 'Staff Needed'!AD7, 'Staff Needed'!AF7)) -> 0 | BU11: =IF($BK$5=$BF$6, 'Staff Needed'!AC7, IF($BK$5=$BF$7, 'Staff Needed'!AE7, 'Staff Needed'!AG7)) -> 0 | BV11: ='Calc - SA_Resources'!BA37 -> 0 | BW11: ='Calc - SA_Resources'!BB37 -> 0 | BX11: =IF($BK$5=$BF$6, 'Staff Needed'!AH7, IF($BK$5=$BF$7, 'Staff Needed'!AJ7, 'Staff Needed'!AL7)) -> 0 | BY11: =IF($BK$5=$BF$6, 'Staff Needed'!AI7, IF($BK$5=$BF$7, 'Staff Needed'!AK7, 'Staff Needed'!AM7)) -> 0 | BZ11: ='Calc - SA_Resources'!BG37 -> 0 | CA11: ='Calc - SA_Resources'!BH37 -> 0
E12: Lower | F12: Upper | G12: Lower | H12: Upper | BJ12: 3 | BK12: =VLOOKUP(BJ12, 'Calc - Base'!$H$35:$I$400, 2) -> 2020-10-12 | BL12: =IF($BK$5=$BF$6, 'Staff Needed'!V8, IF($BK$5=$BF$7, 'Staff Needed'!X8, 'Staff Needed'!Z8)) -> 0 | BM12: =IF($BK$5=$BF$6, 'Staff Needed'!W8, IF($BK$5=$BF$7, 'Staff Needed'!Y8, 'Staff Needed'!AA8)) -> 0 | BN12: ='Calc - SA_Resources'!AT38 -> 0 | BO12: ='Calc - SA_Resources'!AU38 -> 0 | BT12: =IF($BK$5=$BF$6, 'Staff Needed'!AB8, IF($BK$5=$BF$7, 'Staff Needed'!AD8, 'Staff Needed'!AF8)) -> 0 | BU12: =IF($BK$5=$BF$6, 'Staff Needed'!AC8, IF($BK$5=$BF$7, 'Staff Needed'!AE8, 'Staff Needed'!AG8)) -> 0 | BV12: ='Calc - SA_Resources'!BA38 -> 0 | BW12: ='Calc - SA_Resources'!BB38 -> 0 | BX12: =IF($BK$5=$BF$6, 'Staff Needed'!AH8, IF($BK$5=$BF$7, 'Staff Needed'!AJ8, 'Staff Needed'!AL8)) -> 0 | BY12: =IF($BK$5=$BF$6, 'Staff Needed'!AI8, IF($BK$5=$BF$7, 'Staff Needed'!AK8, 'Staff Needed'!AM8)) -> 0 | BZ12: ='Calc - SA_Resources'!BG38 -> 0 | CA12: ='Calc - SA_Resources'!BH38 -> 0
C13: Contacts per Case | E13: ='C. Tracing Resources'!D9 -> 5 | F13: ='C. Tracing Resources'!E9 -> 20 | G13: 3 | H13: 10 | BJ13: 4 | BK13: =VLOOKUP(BJ13, 'Calc - Base'!$H$35:$I$400, 2) -> 2020-10-13 | BL13: =IF($BK$5=$BF$6, 'Staff Needed'!V9, IF($BK$5=$BF$7, 'Staff Needed'!X9, 'Staff Needed'!Z9)) -> 0 | BM13: =IF($BK$5=$BF$6, 'Staff Needed'!W9, IF($BK$5=$BF$7, 'Staff Needed'!Y9, 'Staff Needed'!AA9)) -> 0 | BN13: ='Calc - SA_Resources'!AT39 -> 0 | BO13: ='Calc - SA_Resources'!AU39 -> 0 | BT13: =IF($BK$5=$BF$6, 'Staff Needed'!AB9, IF($BK$5=$BF$7, 'Staff Needed'!AD9, 'Staff Needed'!AF9)) -> 0 | BU13: =IF($BK$5=$BF$6, 'Staff Needed'!AC9, IF($BK$5=$BF$7, 'Staff Needed'!AE9, 'Staff Needed'!AG9)) -> 0 | BV13: ='Calc - SA_Resources'!BA39 -> 0 | BW13: ='Calc - SA_Resources'!BB39 -> 0 | BX13: =IF($BK$5=$BF$6, 'Staff Needed'!AH9, IF($BK$5=$BF$7, 'Staff Needed'!AJ9, 'Staff Needed'!AL9)) -> 0 | BY13: =IF($BK$5=$BF$6, 'Staff Needed'!AI9, IF($BK$5=$BF$7, 'Staff Needed'!AK9, 'Staff Needed'!AM9)) -> 0 | BZ13: ='Calc - SA_Resources'!BG39 -> 0 | CA13: ='Calc - SA_Resources'!BH39 -> 0
C14: Daily shift length (hours) | E14: ='C. Tracing Resources'!D14 -> 8 | F14: ='C. Tracing Resources'!E14 -> 12 | G14: 8 | H14: 12 | BJ14: 5 | BK14: =VLOOKUP(BJ14, 'Calc - Base'!$H$35:$I$400, 2) -> 2020-10-14 | BL14: =IF($BK$5=$BF$6, 'Staff Needed'!V10, IF($BK$5=$BF$7, 'Staff Needed'!X10, 'Staff Needed'!Z10)) -> 0 | BM14: =IF($BK$5=$BF$6, 'Staff Needed'!W10, IF($BK$5=$BF$7, 'Staff Needed'!Y10, 'Staff Needed'!AA10)) -> 0 | BN14: ='Calc - SA_Resources'!AT40 -> 0 | BO14: ='Calc - SA_Resources'!AU40 -> 0 | BQ14: Lower | BR14: Upper | BT14: =IF($BK$5=$BF$6, 'Staff Needed'!AB10, IF($BK$5=$BF$7, 'Staff Needed'!AD10, 'Staff Needed'!AF10)) -> 0 | BU14: =IF($BK$5=$BF$6, 'Staff Needed'!AC10, IF($BK$5=$BF$7, 'Staff Needed'!AE10, 'Staff Needed'!AG10)) -> 0 | BV14: ='Calc - SA_Resources'!BA40 -> 0 | BW14: ='Calc - SA_Resources'!BB40 -> 0 | BX14: =IF($BK$5=$BF$6, 'Staff Needed'!AH10, IF($BK$5=$BF$7, 'Staff Needed'!AJ10, 'Staff Needed'!AL10)) -> 0 | BY14: =IF($BK$5=$BF$6, 'Staff Needed'!AI10, IF($BK$5=$BF$7, 'Staff Needed'!AK10, 'Staff Needed'!AM10)) -> 0 | BZ14: ='Calc - SA_Resources'!BG40 -> 0 | CA14: ='Calc - SA_Resources'!BH40 -> 0
C15: Overhead hours (e.g., prep time, supervisory time, support staff) | E15: ='C. Tracing Resources'!D15 -> 0.05 | F15: ='C. Tracing Resources'!E15 -> 0.05 | G15: 0.05 | H15: 0.05 | BB15: =E11 -> Original Scenario | BD15: =G11 -> "What-If" Scenario | BJ15: 6 | BK15: =VLOOKUP(BJ15, 'Calc - Base'!$H$35:$I$400, 2) -> 2020-10-15 | BL15: =IF($BK$5=$BF$6, 'Staff Needed'!V11, IF($BK$5=$BF$7, 'Staff Needed'!X11, 'Staff Needed'!Z11)) -> 0 | BM15: =IF($BK$5=$BF$6, 'Staff Needed'!W11, IF($BK$5=$BF$7, 'Staff Needed'!Y11, 'Staff Needed'!AA11)) -> 0 | BN15: ='Calc - SA_Resources'!AT41 -> 0 | BO15: ='Calc - SA_Resources'!AU41 -> 0 | BP15: =BL6 -> Original Scenario | BQ15: =MAX(BL9:BL374) -> 25.45711206 | BR15: =MAX(BM9:BM374) -> 240.0241994 | BT15: =IF($BK$5=$BF$6, 'Staff Needed'!AB11, IF($BK$5=$BF$7, 'Staff Needed'!AD11, 'Staff Needed'!AF11)) -> 0 | BU15: =IF($BK$5=$BF$6, 'Staff Needed'!AC11, IF($BK$5=$BF$7, 'Staff Needed'!AE11, 'Staff Needed'!AG11)) -> 0 | BV15: ='Calc - SA_Resources'!BA41 -> 0 | BW15: ='Calc - SA_Resources'!BB41 -> 0 | BX15: =IF($BK$5=$BF$6, 'Staff Needed'!AH11, IF($BK$5=$BF$7, 'Staff Needed'!AJ11, 'Staff Needed'!AL11)) -> 0 | BY15: =IF($BK$5=$BF$6, 'Staff Needed'!AI11, IF($BK$5=$BF$7, 'Staff Needed'!AK11, 'Staff Needed'!AM11)) -> 0 | BZ15: ='Calc - SA_Resources'!BG41 -> 0 | CA15: ='Calc - SA_Resources'!BH41 -> 0
C16: Alerts per case | E16: ='C. Tracing Resources'!D10 -> 0 | F16: ='C. Tracing Resources'!E10 -> 0 | G16: 0 | H16: 0 | BB16: Lower | BC16: Upper | BD16: Lower | BE16: Upper | BJ16: 7 | BK16: =VLOOKUP(BJ16, 'Calc - Base'!$H$35:$I$400, 2) -> 2020-10-16 | BL16: =IF($BK$5=$BF$6, 'Staff Needed'!V12, IF($BK$5=$BF$7, 'Staff Needed'!X12, 'Staff Needed'!Z12)) -> 0 | BM16: =IF($BK$5=$BF$6, 'Staff Needed'!W12, IF($BK$5=$BF$7, 'Staff Needed'!Y12, 'Staff Needed'!AA12)) -> 0 | BN16: ='Calc - SA_Resources'!AT42 -> 0 | BO16: ='Calc - SA_Resources'!AU42 -> 0 | BP16: =BN6 -> "What-If" Scenario | BQ16: =MAX(BN9:BN374) -> 18.18365147 | BR16: =MAX(BO9:BO374) -> 130.9222906 | BT16: =IF($BK$5=$BF$6, 'Staff Needed'!AB12, IF($BK$5=$BF$7, 'Staff Needed'!AD12, 'Staff Needed'!AF12)) -> 0 | BU16: =IF($BK$5=$BF$6, 'Staff Needed'!AC12, IF($BK$5=$BF$7, 'Staff Needed'!AE12, 'Staff Needed'!AG12)) -> 0 | BV16: ='Calc - SA_Resources'!BA42 -> 0 | BW16: ='Calc - SA_Resources'!BB42 -> 0 | BX16: =IF($BK$5=$BF$6, 'Staff Needed'!AH12, IF($BK$5=$BF$7, 'Staff Needed'!AJ12, 'Staff Needed'!AL12)) -> 0 | BY16: =IF($BK$5=$BF$6, 'Staff Needed'!AI12, IF($BK$5=$BF$7, 'Staff Needed'!AK12, 'Staff Needed'!AM12)) -> 0 | BZ16: ='Calc - SA_Resources'!BG42 -> 0 | CA16: ='Calc - SA_Resources'!BH42 -> 0
C17: Time needed for alert screening interview (hours) | E17: ='C. Tracing Resources'!E20 -> 2 | F17: ='C. Tracing Resources'!F20 -> 4 | G17: 5 | H17: 10 | BA17: Group 1 | BB17: =SUM(BT9:BT374)/SUM(BL9:BL374) -> 1 | BC17: =SUM(BU9:BU374)/SUM(BM9:BM374) -> 1 | BD17: =SUM(BV9:BV374)/SUM(BN9:BN374) -> 1 | BE17: =SUM(BW9:BW374)/SUM(BO9:BO374) -> 1 | BJ17: 8 | BK17: =VLOOKUP(BJ17, 'Calc - Base'!$H$35:$I$400, 2) -> 2020-10-17 | BL17: =IF($BK$5=$BF$6, 'Staff Needed'!V13, IF($BK$5=$BF$7, 'Staff Needed'!X13, 'Staff Needed'!Z13)) -> 0 | BM17: =IF($BK$5=$BF$6, 'Staff Needed'!W13, IF($BK$5=$BF$7, 'Staff Needed'!Y13, 'Staff Needed'!AA13)) -> 0 | BN17: ='Calc - SA_Resources'!AT43 -> 0 | BO17: ='Calc - SA_Resources'!AU43 -> 0 | BT17: =IF($BK$5=$BF$6, 'Staff Needed'!AB13, IF($BK$5=$BF$7, 'Staff Needed'!AD13, 'Staff Needed'!AF13)) -> 0 | BU17: =IF($BK$5=$BF$6, 'Staff Needed'!AC13, IF($BK$5=$BF$7, 'Staff Needed'!AE13, 'Staff Needed'!AG13)) -> 0 | BV17: ='Calc - SA_Resources'!BA43 -> 0 | BW17: ='Calc - SA_Resources'!BB43 -> 0 | BX17: =IF($BK$5=$BF$6, 'Staff Needed'!AH13, IF($BK$5=$BF$7, 'Staff Needed'!AJ13, 'Staff Needed'!AL13)) -> 0 | BY17: =IF($BK$5=$BF$6, 'Staff Needed'!AI13, IF($BK$5=$BF$7, 'Staff Needed'!AK13, 'Staff Needed'!AM13)) -> 0 | BZ17: ='Calc - SA_Resources'!BG43 -> 0 | CA17: ='Calc - SA_Resources'!BH43 -> 0
C18: Initial case interview (hours) | E18: ='C. Tracing Resources'!E19 -> 1 | F18: ='C. Tracing Resources'!F19 -> 2 | G18: 1 | H18: 2 | BA18: Group 2 | BB18: =SUM(BX9:BX374)/SUM(BL9:BL374) -> 0 | BC18: =SUM(BY9:BY374)/SUM(BM9:BM374) -> 0 | BD18: =SUM(BZ9:BZ374)/SUM(BN9:BN374) -> 0 | BE18: 0 | BJ18: 9 | BK18: =VLOOKUP(BJ18, 'Calc - Base'!$H$35:$I$400, 2) -> 2020-10-18 | BL18: =IF($BK$5=$BF$6, 'Staff Needed'!V14, IF($BK$5=$BF$7, 'Staff Needed'!X14, 'Staff Needed'!Z14)) -> 0 | BM18: =IF($BK$5=$BF$6, 'Staff Needed'!W14, IF($BK$5=$BF$7, 'Staff Needed'!Y14, 'Staff Needed'!AA14)) -> 0 | BN18: ='Calc - SA_Resources'!AT44 -> 0 | BO18: ='Calc - SA_Resources'!AU44 -> 0 | BT18: =IF($BK$5=$BF$6, 'Staff Needed'!AB14, IF($BK$5=$BF$7, 'Staff Needed'!AD14, 'Staff Needed'!AF14)) -> 0 | BU18: =IF($BK$5=$BF$6, 'Staff Needed'!AC14, IF($BK$5=$BF$7, 'Staff Needed'!AE14, 'Staff Needed'!AG14)) -> 0 | BV18: ='Calc - SA_Resources'!BA44 -> 0 | BW18: ='Calc - SA_Resources'!BB44 -> 0 | BX18: =IF($BK$5=$BF$6, 'Staff Needed'!AH14, IF($BK$5=$BF$7, 'Staff Needed'!AJ14, 'Staff Needed'!AL14)) -> 0 | BY18: =IF($BK$5=$BF$6, 'Staff Needed'!AI14, IF($BK$5=$BF$7, 'Staff Needed'!AK14, 'Staff Needed'!AM14)) -> 0 | BZ18: ='Calc - SA_Resources'!BG44 -> 0 | CA18: ='Calc - SA_Resources'!BH44 -> 0
C19: Initial contact interview (hours) | E19: ='C. Tracing Resources'!E21 -> 0.5 | F19: ='C. Tracing Resources'!F21 -> 1 | G19: 0.5 | H19: 1 | BJ19: 10 | BK19: =VLOOKUP(BJ19, 'Calc - Base'!$H$35:$I$400, 2) -> 2020-10-19 | BL19: =IF($BK$5=$BF$6, 'Staff Needed'!V15, IF($BK$5=$BF$7, 'Staff Needed'!X15, 'Staff Needed'!Z15)) -> 0 | BM19: =IF($BK$5=$BF$6, 'Staff Needed'!W15, IF($BK$5=$BF$7, 'Staff Needed'!Y15, 'Staff Needed'!AA15)) -> 0 | BN19: ='Calc - SA_Resources'!AT45 -> 0 | BO19: ='Calc - SA_Resources'!AU45 -> 0 | BT19: =IF($BK$5=$BF$6, 'Staff Needed'!AB15, IF($BK$5=$BF$7, 'Staff Needed'!AD15, 'Staff Needed'!AF15)) -> 0 | BU19: =IF($BK$5=$BF$6, 'Staff Needed'!AC15, IF($BK$5=$BF$7, 'Staff Needed'!AE15, 'Staff Needed'!AG15)) -> 0 | BV19: ='Calc - SA_Resources'!BA45 -> 0 | BW19: ='Calc - SA_Resources'!BB45 -> 0 | BX19: =IF($BK$5=$BF$6, 'Staff Needed'!AH15, IF($BK$5=$BF$7, 'Staff Needed'!AJ15, 'Staff Needed'!AL15)) -> 0 | BY19: =IF($BK$5=$BF$6, 'Staff Needed'!AI15, IF($BK$5=$BF$7, 'Staff Needed'!AK15, 'Staff Needed'!AM15)) -> 0 | BZ19: ='Calc - SA_Resources'!BG45 -> 0 | CA19: ='Calc - SA_Resources'!BH45 -> 0
C20: Monitoring Hours for Cases + Contacts† | E20: ='C. Tracing Resources'!E22 -> 0.25 | F20: ='C. Tracing Resources'!F22 -> 1 | G20: 0.25 | H20: 1 | BJ20: 11 | BK20: =VLOOKUP(BJ20, 'Calc - Base'!$H$35:$I$400, 2) -> 2020-10-20 | BL20: =IF($BK$5=$BF$6, 'Staff Needed'!V16, IF($BK$5=$BF$7, 'Staff Needed'!X16, 'Staff Needed'!Z16)) -> 0 | BM20: =IF($BK$5=$BF$6, 'Staff Needed'!W16, IF($BK$5=$BF$7, 'Staff Needed'!Y16, 'Staff Needed'!AA16)) -> 0 | BN20: ='Calc - SA_Resources'!AT46 -> 0 | BO20: ='Calc - SA_Resources'!AU46 -> 0 | BT20: =IF($BK$5=$BF$6, 'Staff Needed'!AB16, IF($BK$5=$BF$7, 'Staff Needed'!AD16, 'Staff Needed'!AF16)) -> 0 | BU20: =IF($BK$5=$BF$6, 'Staff Needed'!AC16, IF($BK$5=$BF$7, 'Staff Needed'!AE16, 'Staff Needed'!AG16)) -> 0 | BV20: ='Calc - SA_Resources'!BA46 -> 0 | BW20: ='Calc - SA_Resources'!BB46 -> 0 | BX20: =IF($BK$5=$BF$6, 'Staff Needed'!AH16, IF($BK$5=$BF$7, 'Staff Needed'!AJ16, 'Staff Needed'!AL16)) -> 0 | BY20: =IF($BK$5=$BF$6, 'Staff Needed'!AI16, IF($BK$5=$BF$7, 'Staff Needed'!AK16, 'Staff Needed'!AM16)) -> 0 | BZ20: ='Calc - SA_Resources'!BG46 -> 0 | CA20: ='Calc - SA_Resources'!BH46 -> 0
C21: Number of days monitored | E21: ='C. Tracing Resources'!D11 -> 14 | F21: ='C. Tracing Resources'!E11 -> 14 | G21: 14 | H21: 21 | BJ21: 12 | BK21: =VLOOKUP(BJ21, 'Calc - Base'!$H$35:$I$400, 2) -> 2020-10-21 | BL21: =IF($BK$5=$BF$6, 'Staff Needed'!V17, IF($BK$5=$BF$7, 'Staff Needed'!X17, 'Staff Needed'!Z17)) -> 0 | BM21: =IF($BK$5=$BF$6, 'Staff Needed'!W17, IF($BK$5=$BF$7, 'Staff Needed'!Y17, 'Staff Needed'!AA17)) -> 0 | BN21: ='Calc - SA_Resources'!AT47 -> 0 | BO21: ='Calc - SA_Resources'!AU47 -> 0 | BT21: =IF($BK$5=$BF$6, 'Staff Needed'!AB17, IF($BK$5=$BF$7, 'Staff Needed'!AD17, 'Staff Needed'!AF17)) -> 0 | BU21: =IF($BK$5=$BF$6, 'Staff Needed'!AC17, IF($BK$5=$BF$7, 'Staff Needed'!AE17, 'Staff Needed'!AG17)) -> 0 | BV21: ='Calc - SA_Resources'!BA47 -> 0 | BW21: ='Calc - SA_Resources'!BB47 -> 0 | BX21: =IF($BK$5=$BF$6, 'Staff Needed'!AH17, IF($BK$5=$BF$7, 'Staff Needed'!AJ17, 'Staff Needed'!AL17)) -> 0 | BY21: =IF($BK$5=$BF$6, 'Staff Needed'!AI17, IF($BK$5=$BF$7, 'Staff Needed'!AK17, 'Staff Needed'!AM17)) -> 0 | BZ21: ='Calc - SA_Resources'!BG47 -> 0 | CA21: ='Calc - SA_Resources'!BH47 -> 0
BJ22: 13 | BK22: =VLOOKUP(BJ22, 'Calc - Base'!$H$35:$I$400, 2) -> 2020-10-22 | BL22: =IF($BK$5=$BF$6, 'Staff Needed'!V18, IF($BK$5=$BF$7, 'Staff Needed'!X18, 'Staff Needed'!Z18)) -> 0 | BM22: =IF($BK$5=$BF$6, 'Staff Needed'!W18, IF($BK$5=$BF$7, 'Staff Needed'!Y18, 'Staff Needed'!AA18)) -> 0 | BN22: ='Calc - SA_Resources'!AT48 -> 0 | BO22: ='Calc - SA_Resources'!AU48 -> 0 | BT22: =IF($BK$5=$BF$6, 'Staff Needed'!AB18, IF($BK$5=$BF$7, 'Staff Needed'!AD18, 'Staff Needed'!AF18)) -> 0 | BU22: =IF($BK$5=$BF$6, 'Staff Needed'!AC18, IF($BK$5=$BF$7, 'Staff Needed'!AE18, 'Staff Needed'!AG18)) -> 0 | BV22: ='Calc - SA_Resources'!BA48 -> 0 | BW22: ='Calc - SA_Resources'!BB48 -> 0 | BX22: =IF($BK$5=$BF$6, 'Staff Needed'!AH18, IF($BK$5=$BF$7, 'Staff Needed'!AJ18, 'Staff Needed'!AL18)) -> 0 | BY22: =IF($BK$5=$BF$6, 'Staff Needed'!AI18, IF($BK$5=$BF$7, 'Staff Needed'!AK18, 'Staff Needed'!AM18)) -> 0 | BZ22: ='Calc - SA_Resources'!BG48 -> 0 | CA22: ='Calc - SA_Resources'!BH48 -> 0
BJ23: 14 | BK23: =VLOOKUP(BJ23, 'Calc - Base'!$H$35:$I$400, 2) -> 2020-10-23 | BL23: =IF($BK$5=$BF$6, 'Staff Needed'!V19, IF($BK$5=$BF$7, 'Staff Needed'!X19, 'Staff Needed'!Z19)) -> 0 | BM23: =IF($BK$5=$BF$6, 'Staff Needed'!W19, IF($BK$5=$BF$7, 'Staff Needed'!Y19, 'Staff Needed'!AA19)) -> 0 | BN23: ='Calc - SA_Resources'!AT49 -> 0 | BO23: ='Calc - SA_Resources'!AU49 -> 0 | BT23: =IF($BK$5=$BF$6, 'Staff Needed'!AB19, IF($BK$5=$BF$7, 'Staff Needed'!AD19, 'Staff Needed'!AF19)) -> 0 | BU23: =IF($BK$5=$BF$6, 'Staff Needed'!AC19, IF($BK$5=$BF$7, 'Staff Needed'!AE19, 'Staff Needed'!AG19)) -> 0 | BV23: ='Calc - SA_Resources'!BA49 -> 0 | BW23: ='Calc - SA_Resources'!BB49 -> 0 | BX23: =IF($BK$5=$BF$6, 'Staff Needed'!AH19, IF($BK$5=$BF$7, 'Staff Needed'!AJ19, 'Staff Needed'!AL19)) -> 0 | BY23: =IF($BK$5=$BF$6, 'Staff Needed'!AI19, IF($BK$5=$BF$7, 'Staff Needed'!AK19, 'Staff Needed'!AM19)) -> 0 | BZ23: ='Calc - SA_Resources'!BG49 -> 0 | CA23: ='Calc - SA_Resources'!BH49 -> 0
BJ24: 15 | BK24: =VLOOKUP(BJ24, 'Calc - Base'!$H$35:$I$400, 2) -> 2020-10-24 | BL24: =IF($BK$5=$BF$6, 'Staff Needed'!V20, IF($BK$5=$BF$7, 'Staff Needed'!X20, 'Staff Needed'!Z20)) -> 23.85540257 | BM24: =IF($BK$5=$BF$6, 'Staff Needed'!W20, IF($BK$5=$BF$7, 'Staff Needed'!Y20, 'Staff Needed'!AA20)) -> 224.9223671 | BN24: ='Calc - SA_Resources'!AT50 -> 17.03957326 | BO24: ='Calc - SA_Resources'!AU50 -> 122.6849275 | BT24: =IF($BK$5=$BF$6, 'Staff Needed'!AB20, IF($BK$5=$BF$7, 'Staff Needed'!AD20, 'Staff Needed'!AF20)) -> 23.85540257 | BU24: =IF($BK$5=$BF$6, 'Staff Needed'!AC20, IF($BK$5=$BF$7, 'Staff Needed'!AE20, 'Staff Needed'!AG20)) -> 224.9223671 | BV24: ='Calc - SA_Resources'!BA50 -> 17.03957326 | BW24: ='Calc - SA_Resources'!BB50 -> 122.6849275 | BX24: =IF($BK$5=$BF$6, 'Staff Needed'!AH20, IF($BK$5=$BF$7, 'Staff Needed'!AJ20, 'Staff Needed'!AL20)) -> 0 | BY24: =IF($BK$5=$BF$6, 'Staff Needed'!AI20, IF($BK$5=$BF$7, 'Staff Needed'!AK20, 'Staff Needed'!AM20)) -> 0 | BZ24: ='Calc - SA_Resources'!BG50 -> 0 | CA24: ='Calc - SA_Resources'!BH50 -> 0
BJ25: 16 | BK25: =VLOOKUP(BJ25, 'Calc - Base'!$H$35:$I$400, 2) -> 2020-10-25 | BL25: =IF($BK$5=$BF$6, 'Staff Needed'!V21, IF($BK$5=$BF$7, 'Staff Needed'!X21, 'Staff Needed'!Z21)) -> 24.40133137 | BM25: =IF($BK$5=$BF$6, 'Staff Needed'!W21, IF($BK$5=$BF$7, 'Staff Needed'!Y21, 'Staff Needed'!AA21)) -> 230.0696958 | BN25: ='Calc - SA_Resources'!AT51 -> 17.42952241 | BO25: ='Calc - SA_Resources'!AU51 -> 125.4925613 | BT25: =IF($BK$5=$BF$6, 'Staff Needed'!AB21, IF($BK$5=$BF$7, 'Staff Needed'!AD21, 'Staff Needed'!AF21)) -> 24.40133137 | BU25: =IF($BK$5=$BF$6, 'Staff Needed'!AC21, IF($BK$5=$BF$7, 'Staff Needed'!AE21, 'Staff Needed'!AG21)) -> 230.0696958 | BV25: ='Calc - SA_Resources'!BA51 -> 17.42952241 | BW25: ='Calc - SA_Resources'!BB51 -> 125.4925613 | BX25: =IF($BK$5=$BF$6, 'Staff Needed'!AH21, IF($BK$5=$BF$7, 'Staff Needed'!AJ21, 'Staff Needed'!AL21)) -> 0 | BY25: =IF($BK$5=$BF$6, 'Staff Needed'!AI21, IF($BK$5=$BF$7, 'Staff Needed'!AK21, 'Staff Needed'!AM21)) -> 0 | BZ25: ='Calc - SA_Resources'!BG51 -> 0 | CA25: ='Calc - SA_Resources'!BH51 -> 0
BJ26: 17 | BK26: =VLOOKUP(BJ26, 'Calc - Base'!$H$35:$I$400, 2) -> 2020-10-26 | BL26: =IF($BK$5=$BF$6, 'Staff Needed'!V22, IF($BK$5=$BF$7, 'Staff Needed'!X22, 'Staff Needed'!Z22)) -> 24.94074572 | BM26: =IF($BK$5=$BF$6, 'Staff Needed'!W22, IF($BK$5=$BF$7, 'Staff Needed'!Y22, 'Staff Needed'!AA22)) -> 235.1556025 | BN26: ='Calc - SA_Resources'!AT52 -> 17.81481837 | BO26: ='Calc - SA_Resources'!AU52 -> 128.2666923 | BT26: =IF($BK$5=$BF$6, 'Staff Needed'!AB22, IF($BK$5=$BF$7, 'Staff Needed'!AD22, 'Staff Needed'!AF22)) -> 24.94074572 | BU26: =IF($BK$5=$BF$6, 'Staff Needed'!AC22, IF($BK$5=$BF$7, 'Staff Needed'!AE22, 'Staff Needed'!AG22)) -> 235.1556025 | BV26: ='Calc - SA_Resources'!BA52 -> 17.81481837 | BW26: ='Calc - SA_Resources'!BB52 -> 128.2666923 | BX26: =IF($BK$5=$BF$6, 'Staff Needed'!AH22, IF($BK$5=$BF$7, 'Staff Needed'!AJ22, 'Staff Needed'!AL22)) -> 0 | BY26: =IF($BK$5=$BF$6, 'Staff Needed'!AI22, IF($BK$5=$BF$7, 'Staff Needed'!AK22, 'Staff Needed'!AM22)) -> 0 | BZ26: ='Calc - SA_Resources'!BG52 -> 0 | CA26: ='Calc - SA_Resources'!BH52 -> 0
BJ27: 18 | BK27: =VLOOKUP(BJ27, 'Calc - Base'!$H$35:$I$400, 2) -> 2020-10-27 | BL27: =IF($BK$5=$BF$6, 'Staff Needed'!V23, IF($BK$5=$BF$7, 'Staff Needed'!X23, 'Staff Needed'!Z23)) -> 25.45711206 | BM27: =IF($BK$5=$BF$6, 'Staff Needed'!W23, IF($BK$5=$BF$7, 'Staff Needed'!Y23, 'Staff Needed'!AA23)) -> 240.0241994 | BN27: ='Calc - SA_Resources'!AT53 -> 18.18365147 | BO27: ='Calc - SA_Resources'!AU53 -> 130.9222906 | BT27: =IF($BK$5=$BF$6, 'Staff Needed'!AB23, IF($BK$5=$BF$7, 'Staff Needed'!AD23, 'Staff Needed'!AF23)) -> 25.45711206 | BU27: =IF($BK$5=$BF$6, 'Staff Needed'!AC23, IF($BK$5=$BF$7, 'Staff Needed'!AE23, 'Staff Needed'!AG23)) -> 240.0241994 | BV27: ='Calc - SA_Resources'!BA53 -> 18.18365147 | BW27: ='Calc - SA_Resources'!BB53 -> 130.9222906 | BX27: =IF($BK$5=$BF$6, 'Staff Needed'!AH23, IF($BK$5=$BF$7, 'Staff Needed'!AJ23, 'Staff Needed'!AL23)) -> 0 | BY27: =IF($BK$5=$BF$6, 'Staff Needed'!AI23, IF($BK$5=$BF$7, 'Staff Needed'!AK23, 'Staff Needed'!AM23)) -> 0 | BZ27: ='Calc - SA_Resources'!BG53 -> 0 | CA27: ='Calc - SA_Resources'!BH53 -> 0
BJ28: 19 | BK28: =VLOOKUP(BJ28, 'Calc - Base'!$H$35:$I$400, 2) -> 2020-10-28 | BL28: =IF($BK$5=$BF$6, 'Staff Needed'!V24, IF($BK$5=$BF$7, 'Staff Needed'!X24, 'Staff Needed'!Z24)) -> 25.07039471 | BM28: =IF($BK$5=$BF$6, 'Staff Needed'!W24, IF($BK$5=$BF$7, 'Staff Needed'!Y24, 'Staff Needed'!AA24)) -> 236.3780073 | BN28: ='Calc - SA_Resources'!AT54 -> 17.90742479 | BO28: ='Calc - SA_Resources'!AU54 -> 128.9334585 | BT28: =IF($BK$5=$BF$6, 'Staff Needed'!AB24, IF($BK$5=$BF$7, 'Staff Needed'!AD24, 'Staff Needed'!AF24)) -> 25.07039471 | BU28: =IF($BK$5=$BF$6, 'Staff Needed'!AC24, IF($BK$5=$BF$7, 'Staff Needed'!AE24, 'Staff Needed'!AG24)) -> 236.3780073 | BV28: ='Calc - SA_Resources'!BA54 -> 17.90742479 | BW28: ='Calc - SA_Resources'!BB54 -> 128.9334585 | BX28: =IF($BK$5=$BF$6, 'Staff Needed'!AH24, IF($BK$5=$BF$7, 'Staff Needed'!AJ24, 'Staff Needed'!AL24)) -> 0 | BY28: =IF($BK$5=$BF$6, 'Staff Needed'!AI24, IF($BK$5=$BF$7, 'Staff Needed'!AK24, 'Staff Needed'!AM24)) -> 0 | BZ28: ='Calc - SA_Resources'!BG54 -> 0 | CA28: ='Calc - SA_Resources'!BH54 -> 0
BJ29: 20 | BK29: =VLOOKUP(BJ29, 'Calc - Base'!$H$35:$I$400, 2) -> 2020-10-29 | BL29: =IF($BK$5=$BF$6, 'Staff Needed'!V25, IF($BK$5=$BF$7, 'Staff Needed'!X25, 'Staff Needed'!Z25)) -> 24.61915876 | BM29: =IF($BK$5=$BF$6, 'Staff Needed'!W25, IF($BK$5=$BF$7, 'Staff Needed'!Y25, 'Staff Needed'!AA25)) -> 232.1234969 | BN29: ='Calc - SA_Resources'!AT55 -> 17.5851134 | BO29: ='Calc - SA_Resources'!AU55 -> 126.6128165 | BT29: =IF($BK$5=$BF$6, 'Staff Needed'!AB25, IF($BK$5=$BF$7, 'Staff Needed'!AD25, 'Staff Needed'!AF25)) -> 24.61915876 | BU29: =IF($BK$5=$BF$6, 'Staff Needed'!AC25, IF($BK$5=$BF$7, 'Staff Needed'!AE25, 'Staff Needed'!AG25)) -> 232.1234969 | BV29: ='Calc - SA_Resources'!BA55 -> 17.5851134 | BW29: ='Calc - SA_Resources'!BB55 -> 126.6128165 | BX29: =IF($BK$5=$BF$6, 'Staff Needed'!AH25, IF($BK$5=$BF$7, 'Staff Needed'!AJ25, 'Staff Needed'!AL25)) -> 0 | BY29: =IF($BK$5=$BF$6, 'Staff Needed'!AI25, IF($BK$5=$BF$7, 'Staff Needed'!AK25, 'Staff Needed'!AM25)) -> 0 | BZ29: ='Calc - SA_Resources'!BG55 -> 0 | CA29: ='Calc - SA_Resources'!BH55 -> 0
BJ30: 21 | BK30: =VLOOKUP(BJ30, 'Calc - Base'!$H$35:$I$400, 2) -> 2020-10-30 | BL30: =IF($BK$5=$BF$6, 'Staff Needed'!V26, IF($BK$5=$BF$7, 'Staff Needed'!X26, 'Staff Needed'!Z26)) -> 24.50364548 | BM30: =IF($BK$5=$BF$6, 'Staff Needed'!W26, IF($BK$5=$BF$7, 'Staff Needed'!Y26, 'Staff Needed'!AA26)) -> 231.0343717 | BN30: ='Calc - SA_Resources'!AT56 -> 17.50260392 | BO30: ='Calc - SA_Resources'!AU56 -> 126.0187482 | BT30: =IF($BK$5=$BF$6, 'Staff Needed'!AB26, IF($BK$5=$BF$7, 'Staff Needed'!AD26, 'Staff Needed'!AF26)) -> 24.50364548 | BU30: =IF($BK$5=$BF$6, 'Staff Needed'!AC26, IF($BK$5=$BF$7, 'Staff Needed'!AE26, 'Staff Needed'!AG26)) -> 231.0343717 | BV30: ='Calc - SA_Resources'!BA56 -> 17.50260392 | BW30: ='Calc - SA_Resources'!BB56 -> 126.0187482 | BX30: =IF($BK$5=$BF$6, 'Staff Needed'!AH26, IF($BK$5=$BF$7, 'Staff Needed'!AJ26, 'Staff Needed'!AL26)) -> 0 | BY30: =IF($BK$5=$BF$6, 'Staff Needed'!AI26, IF($BK$5=$BF$7, 'Staff Needed'!AK26, 'Staff Needed'!AM26)) -> 0 | BZ30: ='Calc - SA_Resources'!BG56 -> 0 | CA30: ='Calc - SA_Resources'!BH56 -> 0
BJ31: 22 | BK31: =VLOOKUP(BJ31, 'Calc - Base'!$H$35:$I$400, 2) -> 2020-10-31 | BL31: =IF($BK$5=$BF$6, 'Staff Needed'!V27, IF($BK$5=$BF$7, 'Staff Needed'!X27, 'Staff Needed'!Z27)) -> 24.47340223 | BM31: =IF($BK$5=$BF$6, 'Staff Needed'!W27, IF($BK$5=$BF$7, 'Staff Needed'!Y27, 'Staff Needed'!AA27)) -> 230.749221 | BN31: ='Calc - SA_Resources'!AT57 -> 17.48100159 | BO31: ='Calc - SA_Resources'!AU57 -> 125.8632114 | BT31: =IF($BK$5=$BF$6, 'Staff Needed'!AB27, IF($BK$5=$BF$7, 'Staff Needed'!AD27, 'Staff Needed'!AF27)) -> 24.47340223 | BU31: =IF($BK$5=$BF$6, 'Staff Needed'!AC27, IF($BK$5=$BF$7, 'Staff Needed'!AE27, 'Staff Needed'!AG27)) -> 230.749221 | BV31: ='Calc - SA_Resources'!BA57 -> 17.48100159 | BW31: ='Calc - SA_Resources'!BB57 -> 125.8632114 | BX31: =IF($BK$5=$BF$6, 'Staff Needed'!AH27, IF($BK$5=$BF$7, 'Staff Needed'!AJ27, 'Staff Needed'!AL27)) -> 0 | BY31: =IF($BK$5=$BF$6, 'Staff Needed'!AI27, IF($BK$5=$BF$7, 'Staff Needed'!AK27, 'Staff Needed'!AM27)) -> 0 | BZ31: ='Calc - SA_Resources'!BG57 -> 0 | CA31: ='Calc - SA_Resources'!BH57 -> 0
BJ32: 23 | BK32: =VLOOKUP(BJ32, 'Calc - Base'!$H$35:$I$400, 2) -> 2020-11-01 | BL32: =IF($BK$5=$BF$6, 'Staff Needed'!V28, IF($BK$5=$BF$7, 'Staff Needed'!X28, 'Staff Needed'!Z28)) -> 24.3711871 | BM32: =IF($BK$5=$BF$6, 'Staff Needed'!W28, IF($BK$5=$BF$7, 'Staff Needed'!Y28, 'Staff Needed'!AA28)) -> 229.7854784 | BN32: ='Calc - SA_Resources'!AT58 -> 17.40799078 | BO32: ='Calc - SA_Resources'!AU58 -> 125.3375336 | BT32: =IF($BK$5=$BF$6, 'Staff Needed'!AB28, IF($BK$5=$BF$7, 'Staff Needed'!AD28, 'Staff Needed'!AF28)) -> 24.3711871 | BU32: =IF($BK$5=$BF$6, 'Staff Needed'!AC28, IF($BK$5=$BF$7, 'Staff Needed'!AE28, 'Staff Needed'!AG28)) -> 229.7854784 | BV32: ='Calc - SA_Resources'!BA58 -> 17.40799078 | BW32: ='Calc - SA_Resources'!BB58 -> 125.3375336 | BX32: =IF($BK$5=$BF$6, 'Staff Needed'!AH28, IF($BK$5=$BF$7, 'Staff Needed'!AJ28, 'Staff Needed'!AL28)) -> 0 | BY32: =IF($BK$5=$BF$6, 'Staff Needed'!AI28, IF($BK$5=$BF$7, 'Staff Needed'!AK28, 'Staff Needed'!AM28)) -> 0 | BZ32: ='Calc - SA_Resources'!BG58 -> 0 | CA32: ='Calc - SA_Resources'!BH58 -> 0
BJ33: 24 | BK33: =VLOOKUP(BJ33, 'Calc - Base'!$H$35:$I$400, 2) -> 2020-11-02 | BL33: =IF($BK$5=$BF$6, 'Staff Needed'!V29, IF($BK$5=$BF$7, 'Staff Needed'!X29, 'Staff Needed'!Z29)) -> 24.17016429 | BM33: =IF($BK$5=$BF$6, 'Staff Needed'!W29, IF($BK$5=$BF$7, 'Staff Needed'!Y29, 'Staff Needed'!AA29)) -> 227.8901204 | BN33: ='Calc - SA_Resources'!AT59 -> 17.26440306 | BO33: ='Calc - SA_Resources'!AU59 -> 124.303702 | BT33: =IF($BK$5=$BF$6, 'Staff Needed'!AB29, IF($BK$5=$BF$7, 'Staff Needed'!AD29, 'Staff Needed'!AF29)) -> 24.17016429 | BU33: =IF($BK$5=$BF$6, 'Staff Needed'!AC29, IF($BK$5=$BF$7, 'Staff Needed'!AE29, 'Staff Needed'!AG29)) -> 227.8901204 | BV33: ='Calc - SA_Resources'!BA59 -> 17.26440306 | BW33: ='Calc - SA_Resources'!BB59 -> 124.303702 | BX33: =IF($BK$5=$BF$6, 'Staff Needed'!AH29, IF($BK$5=$BF$7, 'Staff Needed'!AJ29, 'Staff Needed'!AL29)) -> 0 | BY33: =IF($BK$5=$BF$6, 'Staff Needed'!AI29, IF($BK$5=$BF$7, 'Staff Needed'!AK29, 'Staff Needed'!AM29)) -> 0 | BZ33: ='Calc - SA_Resources'!BG59 -> 0 | CA33: ='Calc - SA_Resources'!BH59 -> 0
BJ34: 25 | BK34: =VLOOKUP(BJ34, 'Calc - Base'!$H$35:$I$400, 2) -> 2020-11-03 | BL34: =IF($BK$5=$BF$6, 'Staff Needed'!V30, IF($BK$5=$BF$7, 'Staff Needed'!X30, 'Staff Needed'!Z30)) -> 23.98764843 | BM34: =IF($BK$5=$BF$6, 'Staff Needed'!W30, IF($BK$5=$BF$7, 'Staff Needed'!Y30, 'Staff Needed'!AA30)) -> 226.1692566 | BN34: ='Calc - SA_Resources'!AT60 -> 17.13403459 | BO34: ='Calc - SA_Resources'!AU60 -> 123.365049 | BT34: =IF($BK$5=$BF$6, 'Staff Needed'!AB30, IF($BK$5=$BF$7, 'Staff Needed'!AD30, 'Staff Needed'!AF30)) -> 23.98764843 | BU34: =IF($BK$5=$BF$6, 'Staff Needed'!AC30, IF($BK$5=$BF$7, 'Staff Needed'!AE30, 'Staff Needed'!AG30)) -> 226.1692566 | BV34: ='Calc - SA_Resources'!BA60 -> 17.13403459 | BW34: ='Calc - SA_Resources'!BB60 -> 123.365049 | BX34: =IF($BK$5=$BF$6, 'Staff Needed'!AH30, IF($BK$5=$BF$7, 'Staff Needed'!AJ30, 'Staff Needed'!AL30)) -> 0 | BY34: =IF($BK$5=$BF$6, 'Staff Needed'!AI30, IF($BK$5=$BF$7, 'Staff Needed'!AK30, 'Staff Needed'!AM30)) -> 0 | BZ34: ='Calc - SA_Resources'!BG60 -> 0 | CA34: ='Calc - SA_Resources'!BH60 -> 0
BJ35: 26 | BK35: =VLOOKUP(BJ35, 'Calc - Base'!$H$35:$I$400, 2) -> 2020-11-04 | BL35: =IF($BK$5=$BF$6, 'Staff Needed'!V31, IF($BK$5=$BF$7, 'Staff Needed'!X31, 'Staff Needed'!Z31)) -> 23.84556404 | BM35: =IF($BK$5=$BF$6, 'Staff Needed'!W31, IF($BK$5=$BF$7, 'Staff Needed'!Y31, 'Staff Needed'!AA31)) -> 224.8296038 | BN35: ='Calc - SA_Resources'!AT61 -> 17.03254574 | BO35: ='Calc - SA_Resources'!AU61 -> 122.6343293 | BT35: =IF($BK$5=$BF$6, 'Staff Needed'!AB31, IF($BK$5=$BF$7, 'Staff Needed'!AD31, 'Staff Needed'!AF31)) -> 23.84556404 | BU35: =IF($BK$5=$BF$6, 'Staff Needed'!AC31, IF($BK$5=$BF$7, 'Staff Needed'!AE31, 'Staff Needed'!AG31)) -> 224.8296038 | BV35: ='Calc - SA_Resources'!BA61 -> 17.03254574 | BW35: ='Calc - SA_Resources'!BB61 -> 122.6343293 | BX35: =IF($BK$5=$BF$6, 'Staff Needed'!AH31, IF($BK$5=$BF$7, 'Staff Needed'!AJ31, 'Staff Needed'!AL31)) -> 0 | BY35: =IF($BK$5=$BF$6, 'Staff Needed'!AI31, IF($BK$5=$BF$7, 'Staff Needed'!AK31, 'Staff Needed'!AM31)) -> 0 | BZ35: ='Calc - SA_Resources'!BG61 -> 0 | CA35: ='Calc - SA_Resources'!BH61 -> 0
BJ36: 27 | BK36: =VLOOKUP(BJ36, 'Calc - Base'!$H$35:$I$400, 2) -> 2020-11-05 | BL36: =IF($BK$5=$BF$6, 'Staff Needed'!V32, IF($BK$5=$BF$7, 'Staff Needed'!X32, 'Staff Needed'!Z32)) -> 23.70835073 | BM36: =IF($BK$5=$BF$6, 'Staff Needed'!W32, IF($BK$5=$BF$7, 'Staff Needed'!Y32, 'Staff Needed'!AA32)) -> 223.5358783 | BN36: ='Calc - SA_Resources'!AT62 -> 16.93453624 | BO36: ='Calc - SA_Resources'!AU62 -> 121.9286609 | BT36: =IF($BK$5=$BF$6, 'Staff Needed'!AB32, IF($BK$5=$BF$7, 'Staff Needed'!AD32, 'Staff Needed'!AF32)) -> 23.70835073 | BU36: =IF($BK$5=$BF$6, 'Staff Needed'!AC32, IF($BK$5=$BF$7, 'Staff Needed'!AE32, 'Staff Needed'!AG32)) -> 223.5358783 | BV36: ='Calc - SA_Resources'!BA62 -> 16.93453624 | BW36: ='Calc - SA_Resources'!BB62 -> 121.9286609 | BX36: =IF($BK$5=$BF$6, 'Staff Needed'!AH32, IF($BK$5=$BF$7, 'Staff Needed'!AJ32, 'Staff Needed'!AL32)) -> 0 | BY36: =IF($BK$5=$BF$6, 'Staff Needed'!AI32, IF($BK$5=$BF$7, 'Staff Needed'!AK32, 'Staff Needed'!AM32)) -> 0 | BZ36: ='Calc - SA_Resources'!BG62 -> 0 | CA36: ='Calc - SA_Resources'!BH62 -> 0
BJ37: 28 | BK37: =VLOOKUP(BJ37, 'Calc - Base'!$H$35:$I$400, 2) -> 2020-11-06 | BL37: =IF($BK$5=$BF$6, 'Staff Needed'!V33, IF($BK$5=$BF$7, 'Staff Needed'!X33, 'Staff Needed'!Z33)) -> 23.54927157 | BM37: =IF($BK$5=$BF$6, 'Staff Needed'!W33, IF($BK$5=$BF$7, 'Staff Needed'!Y33, 'Staff Needed'!AA33)) -> 222.0359891 | BN37: ='Calc - SA_Resources'!AT63 -> 16.82090826 | BO37: ='Calc - SA_Resources'!AU63 -> 121.1105395 | BT37: =IF($BK$5=$BF$6, 'Staff Needed'!AB33, IF($BK$5=$BF$7, 'Staff Needed'!AD33, 'Staff Needed'!AF33)) -> 23.54927157 | BU37: =IF($BK$5=$BF$6, 'Staff Needed'!AC33, IF($BK$5=$BF$7, 'Staff Needed'!AE33, 'Staff Needed'!AG33)) -> 222.0359891 | BV37: ='Calc - SA_Resources'!BA63 -> 16.82090826 | BW37: ='Calc - SA_Resources'!BB63 -> 121.1105395 | BX37: =IF($BK$5=$BF$6, 'Staff Needed'!AH33, IF($BK$5=$BF$7, 'Staff Needed'!AJ33, 'Staff Needed'!AL33)) -> 0 | BY37: =IF($BK$5=$BF$6, 'Staff Needed'!AI33, IF($BK$5=$BF$7, 'Staff Needed'!AK33, 'Staff Needed'!AM33)) -> 0 | BZ37: ='Calc - SA_Resources'!BG63 -> 0 | CA37: ='Calc - SA_Resources'!BH63 -> 0
BJ38: 29 | BK38: =VLOOKUP(BJ38, 'Calc - Base'!$H$35:$I$400, 2) -> 2020-11-07 | BL38: =IF($BK$5=$BF$6, 'Staff Needed'!V34, IF($BK$5=$BF$7, 'Staff Needed'!X34, 'Staff Needed'!Z34)) -> 23.35768803 | BM38: =IF($BK$5=$BF$6, 'Staff Needed'!W34, IF($BK$5=$BF$7, 'Staff Needed'!Y34, 'Staff Needed'!AA34)) -> 220.22963 | BN38: ='Calc - SA_Resources'!AT64 -> 16.68406288 | BO38: ='Calc - SA_Resources'!AU64 -> 120.1252527 | BT38: =IF($BK$5=$BF$6, 'Staff Needed'!AB34, IF($BK$5=$BF$7, 'Staff Needed'!AD34, 'Staff Needed'!AF34)) -> 23.35768803 | BU38: =IF($BK$5=$BF$6, 'Staff Needed'!AC34, IF($BK$5=$BF$7, 'Staff Needed'!AE34, 'Staff Needed'!AG34)) -> 220.22963 | BV38: ='Calc - SA_Resources'!BA64 -> 16.68406288 | BW38: ='Calc - SA_Resources'!BB64 -> 120.1252527 | BX38: =IF($BK$5=$BF$6, 'Staff Needed'!AH34, IF($BK$5=$BF$7, 'Staff Needed'!AJ34, 'Staff Needed'!AL34)) -> 0 | BY38: =IF($BK$5=$BF$6, 'Staff Needed'!AI34, IF($BK$5=$BF$7, 'Staff Needed'!AK34, 'Staff Needed'!AM34)) -> 0 | BZ38: ='Calc - SA_Resources'!BG64 -> 0 | CA38: ='Calc - SA_Resources'!BH64 -> 0
BJ39: 30 | BK39: =VLOOKUP(BJ39, 'Calc - Base'!$H$35:$I$400, 2) -> 2020-11-08 | BL39: =IF($BK$5=$BF$6, 'Staff Needed'!V35, IF($BK$5=$BF$7, 'Staff Needed'!X35, 'Staff Needed'!Z35)) -> 23.21065524 | BM39: =IF($BK$5=$BF$6, 'Staff Needed'!W35, IF($BK$5=$BF$7, 'Staff Needed'!Y35, 'Staff Needed'!AA35)) -> 218.8433208 | BN39: ='Calc - SA_Resources'!AT65 -> 16.57903946 | BO39: ='Calc - SA_Resources'!AU65 -> 119.3690841 | BT39: =IF($BK$5=$BF$6, 'Staff Needed'!AB35, IF($BK$5=$BF$7, 'Staff Needed'!AD35, 'Staff Needed'!AF35)) -> 23.21065524 | BU39: =IF($BK$5=$BF$6, 'Staff Needed'!AC35, IF($BK$5=$BF$7, 'Staff Needed'!AE35, 'Staff Needed'!AG35)) -> 218.8433208 | BV39: ='Calc - SA_Resources'!BA65 -> 16.57903946 | BW39: ='Calc - SA_Resources'!BB65 -> 119.3690841 | BX39: =IF($BK$5=$BF$6, 'Staff Needed'!AH35, IF($BK$5=$BF$7, 'Staff Needed'!AJ35, 'Staff Needed'!AL35)) -> 0 | BY39: =IF($BK$5=$BF$6, 'Staff Needed'!AI35, IF($BK$5=$BF$7, 'Staff Needed'!AK35, 'Staff Needed'!AM35)) -> 0 | BZ39: ='Calc - SA_Resources'!BG65 -> 0 | CA39: ='Calc - SA_Resources'!BH65 -> 0
BJ40: 31 | BK40: =VLOOKUP(BJ40, 'Calc - Base'!$H$35:$I$400, 2) -> 2020-11-09 | BL40: =IF($BK$5=$BF$6, 'Staff Needed'!V36, IF($BK$5=$BF$7, 'Staff Needed'!X36, 'Staff Needed'!Z36)) -> 23.05950241 | BM40: =IF($BK$5=$BF$6, 'Staff Needed'!W36, IF($BK$5=$BF$7, 'Staff Needed'!Y36, 'Staff Needed'!AA36)) -> 217.4181655 | BN40: ='Calc - SA_Resources'!AT66 -> 16.47107315 | BO40: ='Calc - SA_Resources'!AU66 -> 118.5917267 | BT40: =IF($BK$5=$BF$6, 'Staff Needed'!AB36, IF($BK$5=$BF$7, 'Staff Needed'!AD36, 'Staff Needed'!AF36)) -> 23.05950241 | BU40: =IF($BK$5=$BF$6, 'Staff Needed'!AC36, IF($BK$5=$BF$7, 'Staff Needed'!AE36, 'Staff Needed'!AG36)) -> 217.4181655 | BV40: ='Calc - SA_Resources'!BA66 -> 16.47107315 | BW40: ='Calc - SA_Resources'!BB66 -> 118.5917267 | BX40: =IF($BK$5=$BF$6, 'Staff Needed'!AH36, IF($BK$5=$BF$7, 'Staff Needed'!AJ36, 'Staff Needed'!AL36)) -> 0 | BY40: =IF($BK$5=$BF$6, 'Staff Needed'!AI36, IF($BK$5=$BF$7, 'Staff Needed'!AK36, 'Staff Needed'!AM36)) -> 0 | BZ40: ='Calc - SA_Resources'!BG66 -> 0 | CA40: ='Calc - SA_Resources'!BH66 -> 0
BJ41: 32 | BK41: =VLOOKUP(BJ41, 'Calc - Base'!$H$35:$I$400, 2) -> 2020-11-10 | BL41: =IF($BK$5=$BF$6, 'Staff Needed'!V37, IF($BK$5=$BF$7, 'Staff Needed'!X37, 'Staff Needed'!Z37)) -> 22.90055325 | BM41: =IF($BK$5=$BF$6, 'Staff Needed'!W37, IF($BK$5=$BF$7, 'Staff Needed'!Y37, 'Staff Needed'!AA37)) -> 215.9195021 | BN41: ='Calc - SA_Resources'!AT67 -> 16.35753804 | BO41: ='Calc - SA_Resources'!AU67 -> 117.7742739 | BT41: =IF($BK$5=$BF$6, 'Staff Needed'!AB37, IF($BK$5=$BF$7, 'Staff Needed'!AD37, 'Staff Needed'!AF37)) -> 22.90055325 | BU41: =IF($BK$5=$BF$6, 'Staff Needed'!AC37, IF($BK$5=$BF$7, 'Staff Needed'!AE37, 'Staff Needed'!AG37)) -> 215.9195021 | BV41: ='Calc - SA_Resources'!BA67 -> 16.35753804 | BW41: ='Calc - SA_Resources'!BB67 -> 117.7742739 | BX41: =IF($BK$5=$BF$6, 'Staff Needed'!AH37, IF($BK$5=$BF$7, 'Staff Needed'!AJ37, 'Staff Needed'!AL37)) -> 0 | BY41: =IF($BK$5=$BF$6, 'Staff Needed'!AI37, IF($BK$5=$BF$7, 'Staff Needed'!AK37, 'Staff Needed'!AM37)) -> 0 | BZ41: ='Calc - SA_Resources'!BG67 -> 0 | CA41: ='Calc - SA_Resources'!BH67 -> 0
BJ42: 33 | BK42: =VLOOKUP(BJ42, 'Calc - Base'!$H$35:$I$400, 2) -> 2020-11-11 | BL42: =IF($BK$5=$BF$6, 'Staff Needed'!V38, IF($BK$5=$BF$7, 'Staff Needed'!X38, 'Staff Needed'!Z38)) -> 22.72503785 | BM42: =IF($BK$5=$BF$6, 'Staff Needed'!W38, IF($BK$5=$BF$7, 'Staff Needed'!Y38, 'Staff Needed'!AA38)) -> 214.2646426 | BN42: ='Calc - SA_Resources'!AT68 -> 16.23216989 | BO42: ='Calc - SA_Resources'!AU68 -> 116.8716232 | BT42: =IF($BK$5=$BF$6, 'Staff Needed'!AB38, IF($BK$5=$BF$7, 'Staff Needed'!AD38, 'Staff Needed'!AF38)) -> 22.72503785 | BU42: =IF($BK$5=$BF$6, 'Staff Needed'!AC38, IF($BK$5=$BF$7, 'Staff Needed'!AE38, 'Staff Needed'!AG38)) -> 214.2646426 | BV42: ='Calc - SA_Resources'!BA68 -> 16.23216989 | BW42: ='Calc - SA_Resources'!BB68 -> 116.8716232 | BX42: =IF($BK$5=$BF$6, 'Staff Needed'!AH38, IF($BK$5=$BF$7, 'Staff Needed'!AJ38, 'Staff Needed'!AL38)) -> 0 | BY42: =IF($BK$5=$BF$6, 'Staff Needed'!AI38, IF($BK$5=$BF$7, 'Staff Needed'!AK38, 'Staff Needed'!AM38)) -> 0 | BZ42: ='Calc - SA_Resources'!BG68 -> 0 | CA42: ='Calc - SA_Resources'!BH68 -> 0
BJ43: 34 | BK43: =VLOOKUP(BJ43, 'Calc - Base'!$H$35:$I$400, 2) -> 2020-11-12 | BL43: =IF($BK$5=$BF$6, 'Staff Needed'!V39, IF($BK$5=$BF$7, 'Staff Needed'!X39, 'Staff Needed'!Z39)) -> 22.55261706 | BM43: =IF($BK$5=$BF$6, 'Staff Needed'!W39, IF($BK$5=$BF$7, 'Staff Needed'!Y39, 'Staff Needed'!AA39)) -> 212.6389608 | BN43: ='Calc - SA_Resources'!AT69 -> 16.10901218 | BO43: ='Calc - SA_Resources'!AU69 -> 115.9848877 | BT43: =IF($BK$5=$BF$6, 'Staff Needed'!AB39, IF($BK$5=$BF$7, 'Staff Needed'!AD39, 'Staff Needed'!AF39)) -> 22.55261706 | BU43: =IF($BK$5=$BF$6, 'Staff Needed'!AC39, IF($BK$5=$BF$7, 'Staff Needed'!AE39, 'Staff Needed'!AG39)) -> 212.6389608 | BV43: ='Calc - SA_Resources'!BA69 -> 16.10901218 | BW43: ='Calc - SA_Resources'!BB69 -> 115.9848877 | BX43: =IF($BK$5=$BF$6, 'Staff Needed'!AH39, IF($BK$5=$BF$7, 'Staff Needed'!AJ39, 'Staff Needed'!AL39)) -> 0 | BY43: =IF($BK$5=$BF$6, 'Staff Needed'!AI39, IF($BK$5=$BF$7, 'Staff Needed'!AK39, 'Staff Needed'!AM39)) -> 0 | BZ43: ='Calc - SA_Resources'!BG69 -> 0 | CA43: ='Calc - SA_Resources'!BH69 -> 0
BJ44: 35 | BK44: =VLOOKUP(BJ44, 'Calc - Base'!$H$35:$I$400, 2) -> 2020-11-13 | BL44: =IF($BK$5=$BF$6, 'Staff Needed'!V40, IF($BK$5=$BF$7, 'Staff Needed'!X40, 'Staff Needed'!Z40)) -> 22.38704023 | BM44: =IF($BK$5=$BF$6, 'Staff Needed'!W40, IF($BK$5=$BF$7, 'Staff Needed'!Y40, 'Staff Needed'!AA40)) -> 211.0778079 | BN44: ='Calc - SA_Resources'!AT70 -> 15.99074302 | BO44: ='Calc - SA_Resources'!AU70 -> 115.1333498 | BT44: =IF($BK$5=$BF$6, 'Staff Needed'!AB40, IF($BK$5=$BF$7, 'Staff Needed'!AD40, 'Staff Needed'!AF40)) -> 22.38704023 | BU44: =IF($BK$5=$BF$6, 'Staff Needed'!AC40, IF($BK$5=$BF$7, 'Staff Needed'!AE40, 'Staff Needed'!AG40)) -> 211.0778079 | BV44: ='Calc - SA_Resources'!BA70 -> 15.99074302 | BW44: ='Calc - SA_Resources'!BB70 -> 115.1333498 | BX44: =IF($BK$5=$BF$6, 'Staff Needed'!AH40, IF($BK$5=$BF$7, 'Staff Needed'!AJ40, 'Staff Needed'!AL40)) -> 0 | BY44: =IF($BK$5=$BF$6, 'Staff Needed'!AI40, IF($BK$5=$BF$7, 'Staff Needed'!AK40, 'Staff Needed'!AM40)) -> 0 | BZ44: ='Calc - SA_Resources'!BG70 -> 0 | CA44: ='Calc - SA_Resources'!BH70 -> 0
BJ45: 36 | BK45: =VLOOKUP(BJ45, 'Calc - Base'!$H$35:$I$400, 2) -> 2020-11-14 | BL45: =IF($BK$5=$BF$6, 'Staff Needed'!V41, IF($BK$5=$BF$7, 'Staff Needed'!X41, 'Staff Needed'!Z41)) -> 22.22073433 | BM45: =IF($BK$5=$BF$6, 'Staff Needed'!W41, IF($BK$5=$BF$7, 'Staff Needed'!Y41, 'Staff Needed'!AA41)) -> 209.5097808 | BN45: ='Calc - SA_Resources'!AT71 -> 15.87195309 | BO45: ='Calc - SA_Resources'!AU71 -> 114.2780623 | BT45: =IF($BK$5=$BF$6, 'Staff Needed'!AB41, IF($BK$5=$BF$7, 'Staff Needed'!AD41, 'Staff Needed'!AF41)) -> 22.22073433 | BU45: =IF($BK$5=$BF$6, 'Staff Needed'!AC41, IF($BK$5=$BF$7, 'Staff Needed'!AE41, 'Staff Needed'!AG41)) -> 209.5097808 | BV45: ='Calc - SA_Resources'!BA71 -> 15.87195309 | BW45: ='Calc - SA_Resources'!BB71 -> 114.2780623 | BX45: =IF($BK$5=$BF$6, 'Staff Needed'!AH41, IF($BK$5=$BF$7, 'Staff Needed'!AJ41, 'Staff Needed'!AL41)) -> 0 | BY45: =IF($BK$5=$BF$6, 'Staff Needed'!AI41, IF($BK$5=$BF$7, 'Staff Needed'!AK41, 'Staff Needed'!AM41)) -> 0 | BZ45: ='Calc - SA_Resources'!BG71 -> 0 | CA45: ='Calc - SA_Resources'!BH71 -> 0
BJ46: 37 | BK46: =VLOOKUP(BJ46, 'Calc - Base'!$H$35:$I$400, 2) -> 2020-11-15 | BL46: =IF($BK$5=$BF$6, 'Staff Needed'!V42, IF($BK$5=$BF$7, 'Staff Needed'!X42, 'Staff Needed'!Z42)) -> 22.04973214 | BM46: =IF($BK$5=$BF$6, 'Staff Needed'!W42, IF($BK$5=$BF$7, 'Staff Needed'!Y42, 'Staff Needed'!AA42)) -> 207.8974744 | BN46: ='Calc - SA_Resources'!AT72 -> 15.74980867 | BO46: ='Calc - SA_Resources'!AU72 -> 113.3986224 | BT46: =IF($BK$5=$BF$6, 'Staff Needed'!AB42, IF($BK$5=$BF$7, 'Staff Needed'!AD42, 'Staff Needed'!AF42)) -> 22.04973214 | BU46: =IF($BK$5=$BF$6, 'Staff Needed'!AC42, IF($BK$5=$BF$7, 'Staff Needed'!AE42, 'Staff Needed'!AG42)) -> 207.8974744 | BV46: ='Calc - SA_Resources'!BA72 -> 15.74980867 | BW46: ='Calc - SA_Resources'!BB72 -> 113.3986224 | BX46: =IF($BK$5=$BF$6, 'Staff Needed'!AH42, IF($BK$5=$BF$7, 'Staff Needed'!AJ42, 'Staff Needed'!AL42)) -> 0 | BY46: =IF($BK$5=$BF$6, 'Staff Needed'!AI42, IF($BK$5=$BF$7, 'Staff Needed'!AK42, 'Staff Needed'!AM42)) -> 0 | BZ46: ='Calc - SA_Resources'!BG72 -> 0 | CA46: ='Calc - SA_Resources'!BH72 -> 0
BJ47: 38 | BK47: =VLOOKUP(BJ47, 'Calc - Base'!$H$35:$I$400, 2) -> 2020-11-16 | BL47: =IF($BK$5=$BF$6, 'Staff Needed'!V43, IF($BK$5=$BF$7, 'Staff Needed'!X43, 'Staff Needed'!Z43)) -> 21.87545113 | BM47: =IF($BK$5=$BF$6, 'Staff Needed'!W43, IF($BK$5=$BF$7, 'Staff Needed'!Y43, 'Staff Needed'!AA43)) -> 206.2542535 | BN47: ='Calc - SA_Resources'!AT73 -> 15.62532223 | BO47: ='Calc - SA_Resources'!AU73 -> 112.5023201 | BT47: =IF($BK$5=$BF$6, 'Staff Needed'!AB43, IF($BK$5=$BF$7, 'Staff Needed'!AD43, 'Staff Needed'!AF43)) -> 21.87545113 | BU47: =IF($BK$5=$BF$6, 'Staff Needed'!AC43, IF($BK$5=$BF$7, 'Staff Needed'!AE43, 'Staff Needed'!AG43)) -> 206.2542535 | BV47: ='Calc - SA_Resources'!BA73 -> 15.62532223 | BW47: ='Calc - SA_Resources'!BB73 -> 112.5023201 | BX47: =IF($BK$5=$BF$6, 'Staff Needed'!AH43, IF($BK$5=$BF$7, 'Staff Needed'!AJ43, 'Staff Needed'!AL43)) -> 0 | BY47: =IF($BK$5=$BF$6, 'Staff Needed'!AI43, IF($BK$5=$BF$7, 'Staff Needed'!AK43, 'Staff Needed'!AM43)) -> 0 | BZ47: ='Calc - SA_Resources'!BG73 -> 0 | CA47: ='Calc - SA_Resources'!BH73 -> 0
BJ48: 39 | BK48: =VLOOKUP(BJ48, 'Calc - Base'!$H$35:$I$400, 2) -> 2020-11-17 | BL48: =IF($BK$5=$BF$6, 'Staff Needed'!V44, IF($BK$5=$BF$7, 'Staff Needed'!X44, 'Staff Needed'!Z44)) -> 21.70160449 | BM48: =IF($BK$5=$BF$6, 'Staff Needed'!W44, IF($BK$5=$BF$7, 'Staff Needed'!Y44, 'Staff Needed'!AA44)) -> 204.6151281 | BN48: ='Calc - SA_Resources'!AT74 -> 15.50114607 | BO48: ='Calc - SA_Resources'!AU74 -> 111.6082517 | BT48: =IF($BK$5=$BF$6, 'Staff Needed'!AB44, IF($BK$5=$BF$7, 'Staff Needed'!AD44, 'Staff Needed'!AF44)) -> 21.70160449 | BU48: =IF($BK$5=$BF$6, 'Staff Needed'!AC44, IF($BK$5=$BF$7, 'Staff Needed'!AE44, 'Staff Needed'!AG44)) -> 204.6151281 | BV48: ='Calc - SA_Resources'!BA74 -> 15.50114607 | BW48: ='Calc - SA_Resources'!BB74 -> 111.6082517 | BX48: =IF($BK$5=$BF$6, 'Staff Needed'!AH44, IF($BK$5=$BF$7, 'Staff Needed'!AJ44, 'Staff Needed'!AL44)) -> 0 | BY48: =IF($BK$5=$BF$6, 'Staff Needed'!AI44, IF($BK$5=$BF$7, 'Staff Needed'!AK44, 'Staff Needed'!AM44)) -> 0 | BZ48: ='Calc - SA_Resources'!BG74 -> 0 | CA48: ='Calc - SA_Resources'!BH74 -> 0
BJ49: 40 | BK49: =VLOOKUP(BJ49, 'Calc - Base'!$H$35:$I$400, 2) -> 2020-11-18 | BL49: =IF($BK$5=$BF$6, 'Staff Needed'!V45, IF($BK$5=$BF$7, 'Staff Needed'!X45, 'Staff Needed'!Z45)) -> 21.52811198 | BM49: =IF($BK$5=$BF$6, 'Staff Needed'!W45, IF($BK$5=$BF$7, 'Staff Needed'!Y45, 'Staff Needed'!AA45)) -> 202.9793415 | BN49: ='Calc - SA_Resources'!AT75 -> 15.37722284 | BO49: ='Calc - SA_Resources'!AU75 -> 110.7160044 | BT49: =IF($BK$5=$BF$6, 'Staff Needed'!AB45, IF($BK$5=$BF$7, 'Staff Needed'!AD45, 'Staff Needed'!AF45)) -> 21.52811198 | BU49: =IF($BK$5=$BF$6, 'Staff Needed'!AC45, IF($BK$5=$BF$7, 'Staff Needed'!AE45, 'Staff Needed'!AG45)) -> 202.9793415 | BV49: ='Calc - SA_Resources'!BA75 -> 15.37722284 | BW49: ='Calc - SA_Resources'!BB75 -> 110.7160044 | BX49: =IF($BK$5=$BF$6, 'Staff Needed'!AH45, IF($BK$5=$BF$7, 'Staff Needed'!AJ45, 'Staff Needed'!AL45)) -> 0 | BY49: =IF($BK$5=$BF$6, 'Staff Needed'!AI45, IF($BK$5=$BF$7, 'Staff Needed'!AK45, 'Staff Needed'!AM45)) -> 0 | BZ49: ='Calc - SA_Resources'!BG75 -> 0 | CA49: ='Calc - SA_Resources'!BH75 -> 0
BJ50: 41 | BK50: =VLOOKUP(BJ50, 'Calc - Base'!$H$35:$I$400, 2) -> 2020-11-19 | BL50: =IF($BK$5=$BF$6, 'Staff Needed'!V46, IF($BK$5=$BF$7, 'Staff Needed'!X46, 'Staff Needed'!Z46)) -> 21.35346961 | BM50: =IF($BK$5=$BF$6, 'Staff Needed'!W46, IF($BK$5=$BF$7, 'Staff Needed'!Y46, 'Staff Needed'!AA46)) -> 201.3327135 | BN50: ='Calc - SA_Resources'!AT76 -> 15.2524783 | BO50: ='Calc - SA_Resources'!AU76 -> 109.8178437 | BT50: =IF($BK$5=$BF$6, 'Staff Needed'!AB46, IF($BK$5=$BF$7, 'Staff Needed'!AD46, 'Staff Needed'!AF46)) -> 21.35346961 | BU50: =IF($BK$5=$BF$6, 'Staff Needed'!AC46, IF($BK$5=$BF$7, 'Staff Needed'!AE46, 'Staff Needed'!AG46)) -> 201.3327135 | BV50: ='Calc - SA_Resources'!BA76 -> 15.2524783 | BW50: ='Calc - SA_Resources'!BB76 -> 109.8178437 | BX50: =IF($BK$5=$BF$6, 'Staff Needed'!AH46, IF($BK$5=$BF$7, 'Staff Needed'!AJ46, 'Staff Needed'!AL46)) -> 0 | BY50: =IF($BK$5=$BF$6, 'Staff Needed'!AI46, IF($BK$5=$BF$7, 'Staff Needed'!AK46, 'Staff Needed'!AM46)) -> 0 | BZ50: ='Calc - SA_Resources'!BG76 -> 0 | CA50: ='Calc - SA_Resources'!BH76 -> 0
BJ51: 42 | BK51: =VLOOKUP(BJ51, 'Calc - Base'!$H$35:$I$400, 2) -> 2020-11-20 | BL51: =IF($BK$5=$BF$6, 'Staff Needed'!V47, IF($BK$5=$BF$7, 'Staff Needed'!X47, 'Staff Needed'!Z47)) -> 21.17712467 | BM51: =IF($BK$5=$BF$6, 'Staff Needed'!W47, IF($BK$5=$BF$7, 'Staff Needed'!Y47, 'Staff Needed'!AA47)) -> 199.6700326 | BN51: ='Calc - SA_Resources'!AT77 -> 15.12651762 | BO51: ='Calc - SA_Resources'!AU77 -> 108.9109269 | BT51: =IF($BK$5=$BF$6, 'Staff Needed'!AB47, IF($BK$5=$BF$7, 'Staff Needed'!AD47, 'Staff Needed'!AF47)) -> 21.17712467 | BU51: =IF($BK$5=$BF$6, 'Staff Needed'!AC47, IF($BK$5=$BF$7, 'Staff Needed'!AE47, 'Staff Needed'!AG47)) -> 199.6700326 | BV51: ='Calc - SA_Resources'!BA77 -> 15.12651762 | BW51: ='Calc - SA_Resources'!BB77 -> 108.9109269 | BX51: =IF($BK$5=$BF$6, 'Staff Needed'!AH47, IF($BK$5=$BF$7, 'Staff Needed'!AJ47, 'Staff Needed'!AL47)) -> 0 | BY51: =IF($BK$5=$BF$6, 'Staff Needed'!AI47, IF($BK$5=$BF$7, 'Staff Needed'!AK47, 'Staff Needed'!AM47)) -> 0 | BZ51: ='Calc - SA_Resources'!BG77 -> 0 | CA51: ='Calc - SA_Resources'!BH77 -> 0
BJ52: 43 | BK52: =VLOOKUP(BJ52, 'Calc - Base'!$H$35:$I$400, 2) -> 2020-11-21 | BL52: =IF($BK$5=$BF$6, 'Staff Needed'!V48, IF($BK$5=$BF$7, 'Staff Needed'!X48, 'Staff Needed'!Z48)) -> 20.99971264 | BM52: =IF($BK$5=$BF$6, 'Staff Needed'!W48, IF($BK$5=$BF$7, 'Staff Needed'!Y48, 'Staff Needed'!AA48)) -> 197.9972906 | BN52: ='Calc - SA_Resources'!AT78 -> 14.99979474 | BO52: ='Calc - SA_Resources'!AU78 -> 107.9985222 | BT52: =IF($BK$5=$BF$6, 'Staff Needed'!AB48, IF($BK$5=$BF$7, 'Staff Needed'!AD48, 'Staff Needed'!AF48)) -> 20.99971264 | BU52: =IF($BK$5=$BF$6, 'Staff Needed'!AC48, IF($BK$5=$BF$7, 'Staff Needed'!AE48, 'Staff Needed'!AG48)) -> 197.9972906 | BV52: ='Calc - SA_Resources'!BA78 -> 14.99979474 | BW52: ='Calc - SA_Resources'!BB78 -> 107.9985222 | BX52: =IF($BK$5=$BF$6, 'Staff Needed'!AH48, IF($BK$5=$BF$7, 'Staff Needed'!AJ48, 'Staff Needed'!AL48)) -> 0 | BY52: =IF($BK$5=$BF$6, 'Staff Needed'!AI48, IF($BK$5=$BF$7, 'Staff Needed'!AK48, 'Staff Needed'!AM48)) -> 0 | BZ52: ='Calc - SA_Resources'!BG78 -> 0 | CA52: ='Calc - SA_Resources'!BH78 -> 0
BJ53: 44 | BK53: =VLOOKUP(BJ53, 'Calc - Base'!$H$35:$I$400, 2) -> 2020-11-22 | BL53: =IF($BK$5=$BF$6, 'Staff Needed'!V49, IF($BK$5=$BF$7, 'Staff Needed'!X49, 'Staff Needed'!Z49)) -> 20.82220049 | BM53: =IF($BK$5=$BF$6, 'Staff Needed'!W49, IF($BK$5=$BF$7, 'Staff Needed'!Y49, 'Staff Needed'!AA49)) -> 196.3236046 | BN53: ='Calc - SA_Resources'!AT79 -> 14.87300035 | BO53: ='Calc - SA_Resources'!AU79 -> 107.0856025 | BT53: =IF($BK$5=$BF$6, 'Staff Needed'!AB49, IF($BK$5=$BF$7, 'Staff Needed'!AD49, 'Staff Needed'!AF49)) -> 20.82220049 | BU53: =IF($BK$5=$BF$6, 'Staff Needed'!AC49, IF($BK$5=$BF$7, 'Staff Needed'!AE49, 'Staff Needed'!AG49)) -> 196.3236046 | BV53: ='Calc - SA_Resources'!BA79 -> 14.87300035 | BW53: ='Calc - SA_Resources'!BB79 -> 107.0856025 | BX53: =IF($BK$5=$BF$6, 'Staff Needed'!AH49, IF($BK$5=$BF$7, 'Staff Needed'!AJ49, 'Staff Needed'!AL49)) -> 0 | BY53: =IF($BK$5=$BF$6, 'Staff Needed'!AI49, IF($BK$5=$BF$7, 'Staff Needed'!AK49, 'Staff Needed'!AM49)) -> 0 | BZ53: ='Calc - SA_Resources'!BG79 -> 0 | CA53: ='Calc - SA_Resources'!BH79 -> 0
BJ54: 45 | BK54: =VLOOKUP(BJ54, 'Calc - Base'!$H$35:$I$400, 2) -> 2020-11-23 | BL54: =IF($BK$5=$BF$6, 'Staff Needed'!V50, IF($BK$5=$BF$7, 'Staff Needed'!X50, 'Staff Needed'!Z50)) -> 20.64403306 | BM54: =IF($BK$5=$BF$6, 'Staff Needed'!W50, IF($BK$5=$BF$7, 'Staff Needed'!Y50, 'Staff Needed'!AA50)) -> 194.6437403 | BN54: ='Calc - SA_Resources'!AT80 -> 14.7457379 | BO54: ='Calc - SA_Resources'!AU80 -> 106.1693129 | BT54: =IF($BK$5=$BF$6, 'Staff Needed'!AB50, IF($BK$5=$BF$7, 'Staff Needed'!AD50, 'Staff Needed'!AF50)) -> 20.64403306 | BU54: =IF($BK$5=$BF$6, 'Staff Needed'!AC50, IF($BK$5=$BF$7, 'Staff Needed'!AE50, 'Staff Needed'!AG50)) -> 194.6437403 | BV54: ='Calc - SA_Resources'!BA80 -> 14.7457379 | BW54: ='Calc - SA_Resources'!BB80 -> 106.1693129 | BX54: =IF($BK$5=$BF$6, 'Staff Needed'!AH50, IF($BK$5=$BF$7, 'Staff Needed'!AJ50, 'Staff Needed'!AL50)) -> 0 | BY54: =IF($BK$5=$BF$6, 'Staff Needed'!AI50, IF($BK$5=$BF$7, 'Staff Needed'!AK50, 'Staff Needed'!AM50)) -> 0 | BZ54: ='Calc - SA_Resources'!BG80 -> 0 | CA54: ='Calc - SA_Resources'!BH80 -> 0
BJ55: 46 | BK55: =VLOOKUP(BJ55, 'Calc - Base'!$H$35:$I$400, 2) -> 2020-11-24 | BL55: =IF($BK$5=$BF$6, 'Staff Needed'!V51, IF($BK$5=$BF$7, 'Staff Needed'!X51, 'Staff Needed'!Z51)) -> 20.46505914 | BM55: =IF($BK$5=$BF$6, 'Staff Needed'!W51, IF($BK$5=$BF$7, 'Staff Needed'!Y51, 'Staff Needed'!AA51)) -> 192.9562719 | BN55: ='Calc - SA_Resources'!AT81 -> 14.61789938 | BO55: ='Calc - SA_Resources'!AU81 -> 105.2488756 | BT55: =IF($BK$5=$BF$6, 'Staff Needed'!AB51, IF($BK$5=$BF$7, 'Staff Needed'!AD51, 'Staff Needed'!AF51)) -> 20.46505914 | BU55: =IF($BK$5=$BF$6, 'Staff Needed'!AC51, IF($BK$5=$BF$7, 'Staff Needed'!AE51, 'Staff Needed'!AG51)) -> 192.9562719 | BV55: ='Calc - SA_Resources'!BA81 -> 14.61789938 | BW55: ='Calc - SA_Resources'!BB81 -> 105.2488756 | BX55: =IF($BK$5=$BF$6, 'Staff Needed'!AH51, IF($BK$5=$BF$7, 'Staff Needed'!AJ51, 'Staff Needed'!AL51)) -> 0 | BY55: =IF($BK$5=$BF$6, 'Staff Needed'!AI51, IF($BK$5=$BF$7, 'Staff Needed'!AK51, 'Staff Needed'!AM51)) -> 0 | BZ55: ='Calc - SA_Resources'!BG81 -> 0 | CA55: ='Calc - SA_Resources'!BH81 -> 0
BJ56: 47 | BK56: =VLOOKUP(BJ56, 'Calc - Base'!$H$35:$I$400, 2) -> 2020-11-25 | BL56: =IF($BK$5=$BF$6, 'Staff Needed'!V52, IF($BK$5=$BF$7, 'Staff Needed'!X52, 'Staff Needed'!Z52)) -> 20.28530416 | BM56: =IF($BK$5=$BF$6, 'Staff Needed'!W52, IF($BK$5=$BF$7, 'Staff Needed'!Y52, 'Staff Needed'!AA52)) -> 191.2614392 | BN56: ='Calc - SA_Resources'!AT82 -> 14.48950297 | BO56: ='Calc - SA_Resources'!AU82 -> 104.3244214 | BT56: =IF($BK$5=$BF$6, 'Staff Needed'!AB52, IF($BK$5=$BF$7, 'Staff Needed'!AD52, 'Staff Needed'!AF52)) -> 20.28530416 | BU56: =IF($BK$5=$BF$6, 'Staff Needed'!AC52, IF($BK$5=$BF$7, 'Staff Needed'!AE52, 'Staff Needed'!AG52)) -> 191.2614392 | BV56: ='Calc - SA_Resources'!BA82 -> 14.48950297 | BW56: ='Calc - SA_Resources'!BB82 -> 104.3244214 | BX56: =IF($BK$5=$BF$6, 'Staff Needed'!AH52, IF($BK$5=$BF$7, 'Staff Needed'!AJ52, 'Staff Needed'!AL52)) -> 0 | BY56: =IF($BK$5=$BF$6, 'Staff Needed'!AI52, IF($BK$5=$BF$7, 'Staff Needed'!AK52, 'Staff Needed'!AM52)) -> 0 | BZ56: ='Calc - SA_Resources'!BG82 -> 0 | CA56: ='Calc - SA_Resources'!BH82 -> 0
BJ57: 48 | BK57: =VLOOKUP(BJ57, 'Calc - Base'!$H$35:$I$400, 2) -> 2020-11-26 | BL57: =IF($BK$5=$BF$6, 'Staff Needed'!V53, IF($BK$5=$BF$7, 'Staff Needed'!X53, 'Staff Needed'!Z53)) -> 20.10516984 | BM57: =IF($BK$5=$BF$6, 'Staff Needed'!W53, IF($BK$5=$BF$7, 'Staff Needed'!Y53, 'Staff Needed'!AA53)) -> 189.56303 | BN57: ='Calc - SA_Resources'!AT83 -> 14.3608356 | BO57: ='Calc - SA_Resources'!AU83 -> 103.3980163 | BT57: =IF($BK$5=$BF$6, 'Staff Needed'!AB53, IF($BK$5=$BF$7, 'Staff Needed'!AD53, 'Staff Needed'!AF53)) -> 20.10516984 | BU57: =IF($BK$5=$BF$6, 'Staff Needed'!AC53, IF($BK$5=$BF$7, 'Staff Needed'!AE53, 'Staff Needed'!AG53)) -> 189.56303 | BV57: ='Calc - SA_Resources'!BA83 -> 14.3608356 | BW57: ='Calc - SA_Resources'!BB83 -> 103.3980163 | BX57: =IF($BK$5=$BF$6, 'Staff Needed'!AH53, IF($BK$5=$BF$7, 'Staff Needed'!AJ53, 'Staff Needed'!AL53)) -> 0 | BY57: =IF($BK$5=$BF$6, 'Staff Needed'!AI53, IF($BK$5=$BF$7, 'Staff Needed'!AK53, 'Staff Needed'!AM53)) -> 0 | BZ57: ='Calc - SA_Resources'!BG83 -> 0 | CA57: ='Calc - SA_Resources'!BH83 -> 0
BJ58: 49 | BK58: =VLOOKUP(BJ58, 'Calc - Base'!$H$35:$I$400, 2) -> 2020-11-27 | BL58: =IF($BK$5=$BF$6, 'Staff Needed'!V54, IF($BK$5=$BF$7, 'Staff Needed'!X54, 'Staff Needed'!Z54)) -> 19.9247194 | BM58: =IF($BK$5=$BF$6, 'Staff Needed'!W54, IF($BK$5=$BF$7, 'Staff Needed'!Y54, 'Staff Needed'!AA54)) -> 187.8616401 | BN58: ='Calc - SA_Resources'!AT84 -> 14.23194243 | BO58: ='Calc - SA_Resources'!AU84 -> 102.4699855 | BT58: =IF($BK$5=$BF$6, 'Staff Needed'!AB54, IF($BK$5=$BF$7, 'Staff Needed'!AD54, 'Staff Needed'!AF54)) -> 19.9247194 | BU58: =IF($BK$5=$BF$6, 'Staff Needed'!AC54, IF($BK$5=$BF$7, 'Staff Needed'!AE54, 'Staff Needed'!AG54)) -> 187.8616401 | BV58: ='Calc - SA_Resources'!BA84 -> 14.23194243 | BW58: ='Calc - SA_Resources'!BB84 -> 102.4699855 | BX58: =IF($BK$5=$BF$6, 'Staff Needed'!AH54, IF($BK$5=$BF$7, 'Staff Needed'!AJ54, 'Staff Needed'!AL54)) -> 0 | BY58: =IF($BK$5=$BF$6, 'Staff Needed'!AI54, IF($BK$5=$BF$7, 'Staff Needed'!AK54, 'Staff Needed'!AM54)) -> 0 | BZ58: ='Calc - SA_Resources'!BG84 -> 0 | CA58: ='Calc - SA_Resources'!BH84 -> 0
BJ59: 50 | BK59: =VLOOKUP(BJ59, 'Calc - Base'!$H$35:$I$400, 2) -> 2020-11-28 | BL59: =IF($BK$5=$BF$6, 'Staff Needed'!V55, IF($BK$5=$BF$7, 'Staff Needed'!X55, 'Staff Needed'!Z55)) -> 19.74385398 | BM59: =IF($BK$5=$BF$6, 'Staff Needed'!W55, IF($BK$5=$BF$7, 'Staff Needed'!Y55, 'Staff Needed'!AA55)) -> 186.1563376 | BN59: ='Calc - SA_Resources'!AT85 -> 14.10275285 | BO59: ='Calc - SA_Resources'!AU85 -> 101.5398205 | BT59: =IF($BK$5=$BF$6, 'Staff Needed'!AB55, IF($BK$5=$BF$7, 'Staff Needed'!AD55, 'Staff Needed'!AF55)) -> 19.74385398 | BU59: =IF($BK$5=$BF$6, 'Staff Needed'!AC55, IF($BK$5=$BF$7, 'Staff Needed'!AE55, 'Staff Needed'!AG55)) -> 186.1563376 | BV59: ='Calc - SA_Resources'!BA85 -> 14.10275285 | BW59: ='Calc - SA_Resources'!BB85 -> 101.5398205 | BX59: =IF($BK$5=$BF$6, 'Staff Needed'!AH55, IF($BK$5=$BF$7, 'Staff Needed'!AJ55, 'Staff Needed'!AL55)) -> 0 | BY59: =IF($BK$5=$BF$6, 'Staff Needed'!AI55, IF($BK$5=$BF$7, 'Staff Needed'!AK55, 'Staff Needed'!AM55)) -> 0 | BZ59: ='Calc - SA_Resources'!BG85 -> 0 | CA59: ='Calc - SA_Resources'!BH85 -> 0
BJ60: 51 | BK60: =VLOOKUP(BJ60, 'Calc - Base'!$H$35:$I$400, 2) -> 2020-11-29 | BL60: =IF($BK$5=$BF$6, 'Staff Needed'!V56, IF($BK$5=$BF$7, 'Staff Needed'!X56, 'Staff Needed'!Z56)) -> 19.56257219 | BM60: =IF($BK$5=$BF$6, 'Staff Needed'!W56, IF($BK$5=$BF$7, 'Staff Needed'!Y56, 'Staff Needed'!AA56)) -> 184.4471093 | BN60: ='Calc - SA_Resources'!AT86 -> 13.97326585 | BO60: ='Calc - SA_Resources'!AU86 -> 100.6075141 | BT60: =IF($BK$5=$BF$6, 'Staff Needed'!AB56, IF($BK$5=$BF$7, 'Staff Needed'!AD56, 'Staff Needed'!AF56)) -> 19.56257219 | BU60: =IF($BK$5=$BF$6, 'Staff Needed'!AC56, IF($BK$5=$BF$7, 'Staff Needed'!AE56, 'Staff Needed'!AG56)) -> 184.4471093 | BV60: ='Calc - SA_Resources'!BA86 -> 13.97326585 | BW60: ='Calc - SA_Resources'!BB86 -> 100.6075141 | BX60: =IF($BK$5=$BF$6, 'Staff Needed'!AH56, IF($BK$5=$BF$7, 'Staff Needed'!AJ56, 'Staff Needed'!AL56)) -> 0 | BY60: =IF($BK$5=$BF$6, 'Staff Needed'!AI56, IF($BK$5=$BF$7, 'Staff Needed'!AK56, 'Staff Needed'!AM56)) -> 0 | BZ60: ='Calc - SA_Resources'!BG86 -> 0 | CA60: ='Calc - SA_Resources'!BH86 -> 0
BJ61: 52 | BK61: =VLOOKUP(BJ61, 'Calc - Base'!$H$35:$I$400, 2) -> 2020-11-30 | BL61: =IF($BK$5=$BF$6, 'Staff Needed'!V57, IF($BK$5=$BF$7, 'Staff Needed'!X57, 'Staff Needed'!Z57)) -> 19.38099352 | BM61: =IF($BK$5=$BF$6, 'Staff Needed'!W57, IF($BK$5=$BF$7, 'Staff Needed'!Y57, 'Staff Needed'!AA57)) -> 182.7350818 | BN61: ='Calc - SA_Resources'!AT87 -> 13.8435668 | BO61: ='Calc - SA_Resources'!AU87 -> 99.67368096 | BT61: =IF($BK$5=$BF$6, 'Staff Needed'!AB57, IF($BK$5=$BF$7, 'Staff Needed'!AD57, 'Staff Needed'!AF57)) -> 19.38099352 | BU61: =IF($BK$5=$BF$6, 'Staff Needed'!AC57, IF($BK$5=$BF$7, 'Staff Needed'!AE57, 'Staff Needed'!AG57)) -> 182.7350818 | BV61: ='Calc - SA_Resources'!BA87 -> 13.8435668 | BW61: ='Calc - SA_Resources'!BB87 -> 99.67368096 | BX61: =IF($BK$5=$BF$6, 'Staff Needed'!AH57, IF($BK$5=$BF$7, 'Staff Needed'!AJ57, 'Staff Needed'!AL57)) -> 0 | BY61: =IF($BK$5=$BF$6, 'Staff Needed'!AI57, IF($BK$5=$BF$7, 'Staff Needed'!AK57, 'Staff Needed'!AM57)) -> 0 | BZ61: ='Calc - SA_Resources'!BG87 -> 0 | CA61: ='Calc - SA_Resources'!BH87 -> 0
BJ62: 53 | BK62: =VLOOKUP(BJ62, 'Calc - Base'!$H$35:$I$400, 2) -> 2020-12-01 | BL62: =IF($BK$5=$BF$6, 'Staff Needed'!V58, IF($BK$5=$BF$7, 'Staff Needed'!X58, 'Staff Needed'!Z58)) -> 19.19924136 | BM62: =IF($BK$5=$BF$6, 'Staff Needed'!W58, IF($BK$5=$BF$7, 'Staff Needed'!Y58, 'Staff Needed'!AA58)) -> 181.0214186 | BN62: ='Calc - SA_Resources'!AT88 -> 13.71374383 | BO62: ='Calc - SA_Resources'!AU88 -> 98.73895559 | BT62: =IF($BK$5=$BF$6, 'Staff Needed'!AB58, IF($BK$5=$BF$7, 'Staff Needed'!AD58, 'Staff Needed'!AF58)) -> 19.19924136 | BU62: =IF($BK$5=$BF$6, 'Staff Needed'!AC58, IF($BK$5=$BF$7, 'Staff Needed'!AE58, 'Staff Needed'!AG58)) -> 181.0214186 | BV62: ='Calc - SA_Resources'!BA88 -> 13.71374383 | BW62: ='Calc - SA_Resources'!BB88 -> 98.73895559 | BX62: =IF($BK$5=$BF$6, 'Staff Needed'!AH58, IF($BK$5=$BF$7, 'Staff Needed'!AJ58, 'Staff Needed'!AL58)) -> 0 | BY62: =IF($BK$5=$BF$6, 'Staff Needed'!AI58, IF($BK$5=$BF$7, 'Staff Needed'!AK58, 'Staff Needed'!AM58)) -> 0 | BZ62: ='Calc - SA_Resources'!BG88 -> 0 | CA62: ='Calc - SA_Resources'!BH88 -> 0
BJ63: 54 | BK63: =VLOOKUP(BJ63, 'Calc - Base'!$H$35:$I$400, 2) -> 2020-12-02 | BL63: =IF($BK$5=$BF$6, 'Staff Needed'!V59, IF($BK$5=$BF$7, 'Staff Needed'!X59, 'Staff Needed'!Z59)) -> 19.01734837 | BM63: =IF($BK$5=$BF$6, 'Staff Needed'!W59, IF($BK$5=$BF$7, 'Staff Needed'!Y59, 'Staff Needed'!AA59)) -> 179.3064274 | BN63: ='Calc - SA_Resources'!AT89 -> 13.58382026 | BO63: ='Calc - SA_Resources'!AU89 -> 97.80350588 | BT63: =IF($BK$5=$BF$6, 'Staff Needed'!AB59, IF($BK$5=$BF$7, 'Staff Needed'!AD59, 'Staff Needed'!AF59)) -> 19.01734837 | BU63: =IF($BK$5=$BF$6, 'Staff Needed'!AC59, IF($BK$5=$BF$7, 'Staff Needed'!AE59, 'Staff Needed'!AG59)) -> 179.3064274 | BV63: ='Calc - SA_Resources'!BA89 -> 13.58382026 | BW63: ='Calc - SA_Resources'!BB89 -> 97.80350588 | BX63: =IF($BK$5=$BF$6, 'Staff Needed'!AH59, IF($BK$5=$BF$7, 'Staff Needed'!AJ59, 'Staff Needed'!AL59)) -> 0 | BY63: =IF($BK$5=$BF$6, 'Staff Needed'!AI59, IF($BK$5=$BF$7, 'Staff Needed'!AK59, 'Staff Needed'!AM59)) -> 0 | BZ63: ='Calc - SA_Resources'!BG89 -> 0 | CA63: ='Calc - SA_Resources'!BH89 -> 0
BJ64: 55 | BK64: =VLOOKUP(BJ64, 'Calc - Base'!$H$35:$I$400, 2) -> 2020-12-03 | BL64: =IF($BK$5=$BF$6, 'Staff Needed'!V60, IF($BK$5=$BF$7, 'Staff Needed'!X60, 'Staff Needed'!Z60)) -> 18.83532986 | BM64: =IF($BK$5=$BF$6, 'Staff Needed'!W60, IF($BK$5=$BF$7, 'Staff Needed'!Y60, 'Staff Needed'!AA60)) -> 177.590253 | BN64: ='Calc - SA_Resources'!AT90 -> 13.45380704 | BO64: ='Calc - SA_Resources'!AU90 -> 96.86741071 | BT64: =IF($BK$5=$BF$6, 'Staff Needed'!AB60, IF($BK$5=$BF$7, 'Staff Needed'!AD60, 'Staff Needed'!AF60)) -> 18.83532986 | BU64: =IF($BK$5=$BF$6, 'Staff Needed'!AC60, IF($BK$5=$BF$7, 'Staff Needed'!AE60, 'Staff Needed'!AG60)) -> 177.590253 | BV64: ='Calc - SA_Resources'!BA90 -> 13.45380704 | BW64: ='Calc - SA_Resources'!BB90 -> 96.86741071 | BX64: =IF($BK$5=$BF$6, 'Staff Needed'!AH60, IF($BK$5=$BF$7, 'Staff Needed'!AJ60, 'Staff Needed'!AL60)) -> 0 | BY64: =IF($BK$5=$BF$6, 'Staff Needed'!AI60, IF($BK$5=$BF$7, 'Staff Needed'!AK60, 'Staff Needed'!AM60)) -> 0 | BZ64: ='Calc - SA_Resources'!BG90 -> 0 | CA64: ='Calc - SA_Resources'!BH90 -> 0
BJ65: 56 | BK65: =VLOOKUP(BJ65, 'Calc - Base'!$H$35:$I$400, 2) -> 2020-12-04 | BL65: =IF($BK$5=$BF$6, 'Staff Needed'!V61, IF($BK$5=$BF$7, 'Staff Needed'!X61, 'Staff Needed'!Z61)) -> 18.65323512 | BM65: =IF($BK$5=$BF$6, 'Staff Needed'!W61, IF($BK$5=$BF$7, 'Staff Needed'!Y61, 'Staff Needed'!AA61)) -> 175.8733597 | BN65: ='Calc - SA_Resources'!AT91 -> 13.32373937 | BO65: ='Calc - SA_Resources'!AU91 -> 95.93092346 | BT65: =IF($BK$5=$BF$6, 'Staff Needed'!AB61, IF($BK$5=$BF$7, 'Staff Needed'!AD61, 'Staff Needed'!AF61)) -> 18.65323512 | BU65: =IF($BK$5=$BF$6, 'Staff Needed'!AC61, IF($BK$5=$BF$7, 'Staff Needed'!AE61, 'Staff Needed'!AG61)) -> 175.8733597 | BV65: ='Calc - SA_Resources'!BA91 -> 13.32373937 | BW65: ='Calc - SA_Resources'!BB91 -> 95.93092346 | BX65: =IF($BK$5=$BF$6, 'Staff Needed'!AH61, IF($BK$5=$BF$7, 'Staff Needed'!AJ61, 'Staff Needed'!AL61)) -> 0 | BY65: =IF($BK$5=$BF$6, 'Staff Needed'!AI61, IF($BK$5=$BF$7, 'Staff Needed'!AK61, 'Staff Needed'!AM61)) -> 0 | BZ65: ='Calc - SA_Resources'!BG91 -> 0 | CA65: ='Calc - SA_Resources'!BH91 -> 0
BJ66: 57 | BK66: =VLOOKUP(BJ66, 'Calc - Base'!$H$35:$I$400, 2) -> 2020-12-05 | BL66: =IF($BK$5=$BF$6, 'Staff Needed'!V62, IF($BK$5=$BF$7, 'Staff Needed'!X62, 'Staff Needed'!Z62)) -> 18.47113764 | BM66: =IF($BK$5=$BF$6, 'Staff Needed'!W62, IF($BK$5=$BF$7, 'Staff Needed'!Y62, 'Staff Needed'!AA62)) -> 174.1564406 | BN66: ='Calc - SA_Resources'!AT92 -> 13.19366974 | BO66: ='Calc - SA_Resources'!AU92 -> 94.99442213 | BT66: =IF($BK$5=$BF$6, 'Staff Needed'!AB62, IF($BK$5=$BF$7, 'Staff Needed'!AD62, 'Staff Needed'!AF62)) -> 18.47113764 | BU66: =IF($BK$5=$BF$6, 'Staff Needed'!AC62, IF($BK$5=$BF$7, 'Staff Needed'!AE62, 'Staff Needed'!AG62)) -> 174.1564406 | BV66: ='Calc - SA_Resources'!BA92 -> 13.19366974 | BW66: ='Calc - SA_Resources'!BB92 -> 94.99442213 | BX66: =IF($BK$5=$BF$6, 'Staff Needed'!AH62, IF($BK$5=$BF$7, 'Staff Needed'!AJ62, 'Staff Needed'!AL62)) -> 0 | BY66: =IF($BK$5=$BF$6, 'Staff Needed'!AI62, IF($BK$5=$BF$7, 'Staff Needed'!AK62, 'Staff Needed'!AM62)) -> 0 | BZ66: ='Calc - SA_Resources'!BG92 -> 0 | CA66: ='Calc - SA_Resources'!BH92 -> 0
BJ67: 58 | BK67: =VLOOKUP(BJ67, 'Calc - Base'!$H$35:$I$400, 2) -> 2020-12-06 | BL67: =IF($BK$5=$BF$6, 'Staff Needed'!V63, IF($BK$5=$BF$7, 'Staff Needed'!X63, 'Staff Needed'!Z63)) -> 18.28909985 | BM67: =IF($BK$5=$BF$6, 'Staff Needed'!W63, IF($BK$5=$BF$7, 'Staff Needed'!Y63, 'Staff Needed'!AA63)) -> 172.4400843 | BN67: ='Calc - SA_Resources'!AT93 -> 13.06364275 | BO67: ='Calc - SA_Resources'!AU93 -> 94.05822782 | BT67: =IF($BK$5=$BF$6, 'Staff Needed'!AB63, IF($BK$5=$BF$7, 'Staff Needed'!AD63, 'Staff Needed'!AF63)) -> 18.28909985 | BU67: =IF($BK$5=$BF$6, 'Staff Needed'!AC63, IF($BK$5=$BF$7, 'Staff Needed'!AE63, 'Staff Needed'!AG63)) -> 172.4400843 | BV67: ='Calc - SA_Resources'!BA93 -> 13.06364275 | BW67: ='Calc - SA_Resources'!BB93 -> 94.05822782 | BX67: =IF($BK$5=$BF$6, 'Staff Needed'!AH63, IF($BK$5=$BF$7, 'Staff Needed'!AJ63, 'Staff Needed'!AL63)) -> 0 | BY67: =IF($BK$5=$BF$6, 'Staff Needed'!AI63, IF($BK$5=$BF$7, 'Staff Needed'!AK63, 'Staff Needed'!AM63)) -> 0 | BZ67: ='Calc - SA_Resources'!BG93 -> 0 | CA67: ='Calc - SA_Resources'!BH93 -> 0
BJ68: 59 | BK68: =VLOOKUP(BJ68, 'Calc - Base'!$H$35:$I$400, 2) -> 2020-12-07 | BL68: =IF($BK$5=$BF$6, 'Staff Needed'!V64, IF($BK$5=$BF$7, 'Staff Needed'!X64, 'Staff Needed'!Z64)) -> 18.10715991 | BM68: =IF($BK$5=$BF$6, 'Staff Needed'!W64, IF($BK$5=$BF$7, 'Staff Needed'!Y64, 'Staff Needed'!AA64)) -> 170.7246506 | BN68: ='Calc - SA_Resources'!AT94 -> 12.93368565 | BO68: ='Calc - SA_Resources'!AU94 -> 93.12253669 | BT68: =IF($BK$5=$BF$6, 'Staff Needed'!AB64, IF($BK$5=$BF$7, 'Staff Needed'!AD64, 'Staff Needed'!AF64)) -> 18.10715991 | BU68: =IF($BK$5=$BF$6, 'Staff Needed'!AC64, IF($BK$5=$BF$7, 'Staff Needed'!AE64, 'Staff Needed'!AG64)) -> 170.7246506 | BV68: ='Calc - SA_Resources'!BA94 -> 12.93368565 | BW68: ='Calc - SA_Resources'!BB94 -> 93.12253669 | BX68: =IF($BK$5=$BF$6, 'Staff Needed'!AH64, IF($BK$5=$BF$7, 'Staff Needed'!AJ64, 'Staff Needed'!AL64)) -> 0 | BY68: =IF($BK$5=$BF$6, 'Staff Needed'!AI64, IF($BK$5=$BF$7, 'Staff Needed'!AK64, 'Staff Needed'!AM64)) -> 0 | BZ68: ='Calc - SA_Resources'!BG94 -> 0 | CA68: ='Calc - SA_Resources'!BH94 -> 0
BJ69: 60 | BK69: =VLOOKUP(BJ69, 'Calc - Base'!$H$35:$I$400, 2) -> 2020-12-08 | BL69: =IF($BK$5=$BF$6, 'Staff Needed'!V65, IF($BK$5=$BF$7, 'Staff Needed'!X65, 'Staff Needed'!Z65)) -> 17.92536107 | BM69: =IF($BK$5=$BF$6, 'Staff Needed'!W65, IF($BK$5=$BF$7, 'Staff Needed'!Y65, 'Staff Needed'!AA65)) -> 169.0105473 | BN69: ='Calc - SA_Resources'!AT95 -> 12.80382934 | BO69: ='Calc - SA_Resources'!AU95 -> 92.18757124 | BT69: =IF($BK$5=$BF$6, 'Staff Needed'!AB65, IF($BK$5=$BF$7, 'Staff Needed'!AD65, 'Staff Needed'!AF65)) -> 17.92536107 | BU69: =IF($BK$5=$BF$6, 'Staff Needed'!AC65, IF($BK$5=$BF$7, 'Staff Needed'!AE65, 'Staff Needed'!AG65)) -> 169.0105473 | BV69: ='Calc - SA_Resources'!BA95 -> 12.80382934 | BW69: ='Calc - SA_Resources'!BB95 -> 92.18757124 | BX69: =IF($BK$5=$BF$6, 'Staff Needed'!AH65, IF($BK$5=$BF$7, 'Staff Needed'!AJ65, 'Staff Needed'!AL65)) -> 0 | BY69: =IF($BK$5=$BF$6, 'Staff Needed'!AI65, IF($BK$5=$BF$7, 'Staff Needed'!AK65, 'Staff Needed'!AM65)) -> 0 | BZ69: ='Calc - SA_Resources'!BG95 -> 0 | CA69: ='Calc - SA_Resources'!BH95 -> 0
BJ70: 61 | BK70: =VLOOKUP(BJ70, 'Calc - Base'!$H$35:$I$400, 2) -> 2020-12-09 | BL70: =IF($BK$5=$BF$6, 'Staff Needed'!V66, IF($BK$5=$BF$7, 'Staff Needed'!X66, 'Staff Needed'!Z66)) -> 17.74375369 | BM70: =IF($BK$5=$BF$6, 'Staff Needed'!W66, IF($BK$5=$BF$7, 'Staff Needed'!Y66, 'Staff Needed'!AA66)) -> 167.298249 | BN70: ='Calc - SA_Resources'!AT96 -> 12.67410978 | BO70: ='Calc - SA_Resources'!AU96 -> 91.25359038 | BT70: =IF($BK$5=$BF$6, 'Staff Needed'!AB66, IF($BK$5=$BF$7, 'Staff Needed'!AD66, 'Staff Needed'!AF66)) -> 17.74375369 | BU70: =IF($BK$5=$BF$6, 'Staff Needed'!AC66, IF($BK$5=$BF$7, 'Staff Needed'!AE66, 'Staff Needed'!AG66)) -> 167.298249 | BV70: ='Calc - SA_Resources'!BA96 -> 12.67410978 | BW70: ='Calc - SA_Resources'!BB96 -> 91.25359038 | BX70: =IF($BK$5=$BF$6, 'Staff Needed'!AH66, IF($BK$5=$BF$7, 'Staff Needed'!AJ66, 'Staff Needed'!AL66)) -> 0 | BY70: =IF($BK$5=$BF$6, 'Staff Needed'!AI66, IF($BK$5=$BF$7, 'Staff Needed'!AK66, 'Staff Needed'!AM66)) -> 0 | BZ70: ='Calc - SA_Resources'!BG96 -> 0 | CA70: ='Calc - SA_Resources'!BH96 -> 0
BJ71: 62 | BK71: =VLOOKUP(BJ71, 'Calc - Base'!$H$35:$I$400, 2) -> 2020-12-10 | BL71: =IF($BK$5=$BF$6, 'Staff Needed'!V67, IF($BK$5=$BF$7, 'Staff Needed'!X67, 'Staff Needed'!Z67)) -> 17.56239121 | BM71: =IF($BK$5=$BF$6, 'Staff Needed'!W67, IF($BK$5=$BF$7, 'Staff Needed'!Y67, 'Staff Needed'!AA67)) -> 165.58826 | BN71: ='Calc - SA_Resources'!AT97 -> 12.54456515 | BO71: ='Calc - SA_Resources'!AU97 -> 90.32086907 | BT71: =IF($BK$5=$BF$6, 'Staff Needed'!AB67, IF($BK$5=$BF$7, 'Staff Needed'!AD67, 'Staff Needed'!AF67)) -> 17.56239121 | BU71: =IF($BK$5=$BF$6, 'Staff Needed'!AC67, IF($BK$5=$BF$7, 'Staff Needed'!AE67, 'Staff Needed'!AG67)) -> 165.58826 | BV71: ='Calc - SA_Resources'!BA97 -> 12.54456515 | BW71: ='Calc - SA_Resources'!BB97 -> 90.32086907 | BX71: =IF($BK$5=$BF$6, 'Staff Needed'!AH67, IF($BK$5=$BF$7, 'Staff Needed'!AJ67, 'Staff Needed'!AL67)) -> 0 | BY71: =IF($BK$5=$BF$6, 'Staff Needed'!AI67, IF($BK$5=$BF$7, 'Staff Needed'!AK67, 'Staff Needed'!AM67)) -> 0 | BZ71: ='Calc - SA_Resources'!BG97 -> 0 | CA71: ='Calc - SA_Resources'!BH97 -> 0
BJ72: 63 | BK72: =VLOOKUP(BJ72, 'Calc - Base'!$H$35:$I$400, 2) -> 2020-12-11 | BL72: =IF($BK$5=$BF$6, 'Staff Needed'!V68, IF($BK$5=$BF$7, 'Staff Needed'!X68, 'Staff Needed'!Z68)) -> 17.38131907 | BM72: =IF($BK$5=$BF$6, 'Staff Needed'!W68, IF($BK$5=$BF$7, 'Staff Needed'!Y68, 'Staff Needed'!AA68)) -> 163.8810084 | BN72: ='Calc - SA_Resources'!AT98 -> 12.41522791 | BO72: ='Calc - SA_Resources'!AU98 -> 89.38964095 | BT72: =IF($BK$5=$BF$6, 'Staff Needed'!AB68, IF($BK$5=$BF$7, 'Staff Needed'!AD68, 'Staff Needed'!AF68)) -> 17.38131907 | BU72: =IF($BK$5=$BF$6, 'Staff Needed'!AC68, IF($BK$5=$BF$7, 'Staff Needed'!AE68, 'Staff Needed'!AG68)) -> 163.8810084 | BV72: ='Calc - SA_Resources'!BA98 -> 12.41522791 | BW72: ='Calc - SA_Resources'!BB98 -> 89.38964095 | BX72: =IF($BK$5=$BF$6, 'Staff Needed'!AH68, IF($BK$5=$BF$7, 'Staff Needed'!AJ68, 'Staff Needed'!AL68)) -> 0 | BY72: =IF($BK$5=$BF$6, 'Staff Needed'!AI68, IF($BK$5=$BF$7, 'Staff Needed'!AK68, 'Staff Needed'!AM68)) -> 0 | BZ72: ='Calc - SA_Resources'!BG98 -> 0 | CA72: ='Calc - SA_Resources'!BH98 -> 0
BJ73: 64 | BK73: =VLOOKUP(BJ73, 'Calc - Base'!$H$35:$I$400, 2) -> 2020-12-12 | BL73: =IF($BK$5=$BF$6, 'Staff Needed'!V69, IF($BK$5=$BF$7, 'Staff Needed'!X69, 'Staff Needed'!Z69)) -> 17.20057923 | BM73: =IF($BK$5=$BF$6, 'Staff Needed'!W69, IF($BK$5=$BF$7, 'Staff Needed'!Y69, 'Staff Needed'!AA69)) -> 162.1768899 | BN73: ='Calc - SA_Resources'!AT99 -> 12.28612802 | BO73: ='Calc - SA_Resources'!AU99 -> 88.46012175 | BT73: =IF($BK$5=$BF$6, 'Staff Needed'!AB69, IF($BK$5=$BF$7, 'Staff Needed'!AD69, 'Staff Needed'!AF69)) -> 17.20057923 | BU73: =IF($BK$5=$BF$6, 'Staff Needed'!AC69, IF($BK$5=$BF$7, 'Staff Needed'!AE69, 'Staff Needed'!AG69)) -> 162.1768899 | BV73: ='Calc - SA_Resources'!BA99 -> 12.28612802 | BW73: ='Calc - SA_Resources'!BB99 -> 88.46012175 | BX73: =IF($BK$5=$BF$6, 'Staff Needed'!AH69, IF($BK$5=$BF$7, 'Staff Needed'!AJ69, 'Staff Needed'!AL69)) -> 0 | BY73: =IF($BK$5=$BF$6, 'Staff Needed'!AI69, IF($BK$5=$BF$7, 'Staff Needed'!AK69, 'Staff Needed'!AM69)) -> 0 | BZ73: ='Calc - SA_Resources'!BG99 -> 0 | CA73: ='Calc - SA_Resources'!BH99 -> 0
BJ74: 65 | BK74: =VLOOKUP(BJ74, 'Calc - Base'!$H$35:$I$400, 2) -> 2020-12-13 | BL74: =IF($BK$5=$BF$6, 'Staff Needed'!V70, IF($BK$5=$BF$7, 'Staff Needed'!X70, 'Staff Needed'!Z70)) -> 17.02021504 | BM74: =IF($BK$5=$BF$6, 'Staff Needed'!W70, IF($BK$5=$BF$7, 'Staff Needed'!Y70, 'Staff Needed'!AA70)) -> 160.4763132 | BN74: ='Calc - SA_Resources'!AT100 -> 12.15729646 | BO74: ='Calc - SA_Resources'!AU100 -> 87.53253449 | BT74: =IF($BK$5=$BF$6, 'Staff Needed'!AB70, IF($BK$5=$BF$7, 'Staff Needed'!AD70, 'Staff Needed'!AF70)) -> 17.02021504 | BU74: =IF($BK$5=$BF$6, 'Staff Needed'!AC70, IF($BK$5=$BF$7, 'Staff Needed'!AE70, 'Staff Needed'!AG70)) -> 160.4763132 | BV74: ='Calc - SA_Resources'!BA100 -> 12.15729646 | BW74: ='Calc - SA_Resources'!BB100 -> 87.53253449 | BX74: =IF($BK$5=$BF$6, 'Staff Needed'!AH70, IF($BK$5=$BF$7, 'Staff Needed'!AJ70, 'Staff Needed'!AL70)) -> 0 | BY74: =IF($BK$5=$BF$6, 'Staff Needed'!AI70, IF($BK$5=$BF$7, 'Staff Needed'!AK70, 'Staff Needed'!AM70)) -> 0 | BZ74: ='Calc - SA_Resources'!BG100 -> 0 | CA74: ='Calc - SA_Resources'!BH100 -> 0
BJ75: 66 | BK75: =VLOOKUP(BJ75, 'Calc - Base'!$H$35:$I$400, 2) -> 2020-12-14 | BL75: =IF($BK$5=$BF$6, 'Staff Needed'!V71, IF($BK$5=$BF$7, 'Staff Needed'!X71, 'Staff Needed'!Z71)) -> 16.84027113 | BM75: =IF($BK$5=$BF$6, 'Staff Needed'!W71, IF($BK$5=$BF$7, 'Staff Needed'!Y71, 'Staff Needed'!AA71)) -> 158.7796992 | BN75: ='Calc - SA_Resources'!AT101 -> 12.02876509 | BO75: ='Calc - SA_Resources'!AU101 -> 86.60710866 | BT75: =IF($BK$5=$BF$6, 'Staff Needed'!AB71, IF($BK$5=$BF$7, 'Staff Needed'!AD71, 'Staff Needed'!AF71)) -> 16.84027113 | BU75: =IF($BK$5=$BF$6, 'Staff Needed'!AC71, IF($BK$5=$BF$7, 'Staff Needed'!AE71, 'Staff Needed'!AG71)) -> 158.7796992 | BV75: ='Calc - SA_Resources'!BA101 -> 12.02876509 | BW75: ='Calc - SA_Resources'!BB101 -> 86.60710866 | BX75: =IF($BK$5=$BF$6, 'Staff Needed'!AH71, IF($BK$5=$BF$7, 'Staff Needed'!AJ71, 'Staff Needed'!AL71)) -> 0 | BY75: =IF($BK$5=$BF$6, 'Staff Needed'!AI71, IF($BK$5=$BF$7, 'Staff Needed'!AK71, 'Staff Needed'!AM71)) -> 0 | BZ75: ='Calc - SA_Resources'!BG101 -> 0 | CA75: ='Calc - SA_Resources'!BH101 -> 0
BJ76: 67 | BK76: =VLOOKUP(BJ76, 'Calc - Base'!$H$35:$I$400, 2) -> 2020-12-15 | BL76: =IF($BK$5=$BF$6, 'Staff Needed'!V72, IF($BK$5=$BF$7, 'Staff Needed'!X72, 'Staff Needed'!Z72)) -> 16.66079042 | BM76: =IF($BK$5=$BF$6, 'Staff Needed'!W72, IF($BK$5=$BF$7, 'Staff Needed'!Y72, 'Staff Needed'!AA72)) -> 157.0874525 | BN76: ='Calc - SA_Resources'!AT102 -> 11.90056458 | BO76: ='Calc - SA_Resources'!AU102 -> 85.68406501 | BT76: =IF($BK$5=$BF$6, 'Staff Needed'!AB72, IF($BK$5=$BF$7, 'Staff Needed'!AD72, 'Staff Needed'!AF72)) -> 16.66079042 | BU76: =IF($BK$5=$BF$6, 'Staff Needed'!AC72, IF($BK$5=$BF$7, 'Staff Needed'!AE72, 'Staff Needed'!AG72)) -> 157.0874525 | BV76: ='Calc - SA_Resources'!BA102 -> 11.90056458 | BW76: ='Calc - SA_Resources'!BB102 -> 85.68406501 | BX76: =IF($BK$5=$BF$6, 'Staff Needed'!AH72, IF($BK$5=$BF$7, 'Staff Needed'!AJ72, 'Staff Needed'!AL72)) -> 0 | BY76: =IF($BK$5=$BF$6, 'Staff Needed'!AI72, IF($BK$5=$BF$7, 'Staff Needed'!AK72, 'Staff Needed'!AM72)) -> 0 | BZ76: ='Calc - SA_Resources'!BG102 -> 0 | CA76: ='Calc - SA_Resources'!BH102 -> 0
BJ77: 68 | BK77: =VLOOKUP(BJ77, 'Calc - Base'!$H$35:$I$400, 2) -> 2020-12-16 | BL77: =IF($BK$5=$BF$6, 'Staff Needed'!V73, IF($BK$5=$BF$7, 'Staff Needed'!X73, 'Staff Needed'!Z73)) -> 16.481813 | BM77: =IF($BK$5=$BF$6, 'Staff Needed'!W73, IF($BK$5=$BF$7, 'Staff Needed'!Y73, 'Staff Needed'!AA73)) -> 155.3999512 | BN77: ='Calc - SA_Resources'!AT103 -> 11.77272357 | BO77: ='Calc - SA_Resources'!AU103 -> 84.76360973 | BT77: =IF($BK$5=$BF$6, 'Staff Needed'!AB73, IF($BK$5=$BF$7, 'Staff Needed'!AD73, 'Staff Needed'!AF73)) -> 16.481813 | BU77: =IF($BK$5=$BF$6, 'Staff Needed'!AC73, IF($BK$5=$BF$7, 'Staff Needed'!AE73, 'Staff Needed'!AG73)) -> 155.3999512 | BV77: ='Calc - SA_Resources'!BA103 -> 11.77272357 | BW77: ='Calc - SA_Resources'!BB103 -> 84.76360973 | BX77: =IF($BK$5=$BF$6, 'Staff Needed'!AH73, IF($BK$5=$BF$7, 'Staff Needed'!AJ73, 'Staff Needed'!AL73)) -> 0 | BY77: =IF($BK$5=$BF$6, 'Staff Needed'!AI73, IF($BK$5=$BF$7, 'Staff Needed'!AK73, 'Staff Needed'!AM73)) -> 0 | BZ77: ='Calc - SA_Resources'!BG103 -> 0 | CA77: ='Calc - SA_Resources'!BH103 -> 0
BJ78: 69 | BK78: =VLOOKUP(BJ78, 'Calc - Base'!$H$35:$I$400, 2) -> 2020-12-17 | BL78: =IF($BK$5=$BF$6, 'Staff Needed'!V74, IF($BK$5=$BF$7, 'Staff Needed'!X74, 'Staff Needed'!Z74)) -> 16.3033779 | BM78: =IF($BK$5=$BF$6, 'Staff Needed'!W74, IF($BK$5=$BF$7, 'Staff Needed'!Y74, 'Staff Needed'!AA74)) -> 153.717563 | BN78: ='Calc - SA_Resources'!AT104 -> 11.64526993 | BO78: ='Calc - SA_Resources'!AU104 -> 83.84594348 | BT78: =IF($BK$5=$BF$6, 'Staff Needed'!AB74, IF($BK$5=$BF$7, 'Staff Needed'!AD74, 'Staff Needed'!AF74)) -> 16.3033779 | BU78: =IF($BK$5=$BF$6, 'Staff Needed'!AC74, IF($BK$5=$BF$7, 'Staff Needed'!AE74, 'Staff Needed'!AG74)) -> 153.717563 | BV78: ='Calc - SA_Resources'!BA104 -> 11.64526993 | BW78: ='Calc - SA_Resources'!BB104 -> 83.84594348 | BX78: =IF($BK$5=$BF$6, 'Staff Needed'!AH74, IF($BK$5=$BF$7, 'Staff Needed'!AJ74, 'Staff Needed'!AL74)) -> 0 | BY78: =IF($BK$5=$BF$6, 'Staff Needed'!AI74, IF($BK$5=$BF$7, 'Staff Needed'!AK74, 'Staff Needed'!AM74)) -> 0 | BZ78: ='Calc - SA_Resources'!BG104 -> 0 | CA78: ='Calc - SA_Resources'!BH104 -> 0
BJ79: 70 | BK79: =VLOOKUP(BJ79, 'Calc - Base'!$H$35:$I$400, 2) -> 2020-12-18 | BL79: =IF($BK$5=$BF$6, 'Staff Needed'!V75, IF($BK$5=$BF$7, 'Staff Needed'!X75, 'Staff Needed'!Z75)) -> 16.12552391 | BM79: =IF($BK$5=$BF$6, 'Staff Needed'!W75, IF($BK$5=$BF$7, 'Staff Needed'!Y75, 'Staff Needed'!AA75)) -> 152.040654 | BN79: ='Calc - SA_Resources'!AT105 -> 11.51823137 | BO79: ='Calc - SA_Resources'!AU105 -> 82.93126584 | BT79: =IF($BK$5=$BF$6, 'Staff Needed'!AB75, IF($BK$5=$BF$7, 'Staff Needed'!AD75, 'Staff Needed'!AF75)) -> 16.12552391 | BU79: =IF($BK$5=$BF$6, 'Staff Needed'!AC75, IF($BK$5=$BF$7, 'Staff Needed'!AE75, 'Staff Needed'!AG75)) -> 152.040654 | BV79: ='Calc - SA_Resources'!BA105 -> 11.51823137 | BW79: ='Calc - SA_Resources'!BB105 -> 82.93126584 | BX79: =IF($BK$5=$BF$6, 'Staff Needed'!AH75, IF($BK$5=$BF$7, 'Staff Needed'!AJ75, 'Staff Needed'!AL75)) -> 0 | BY79: =IF($BK$5=$BF$6, 'Staff Needed'!AI75, IF($BK$5=$BF$7, 'Staff Needed'!AK75, 'Staff Needed'!AM75)) -> 0 | BZ79: ='Calc - SA_Resources'!BG105 -> 0 | CA79: ='Calc - SA_Resources'!BH105 -> 0
BJ80: 71 | BK80: =VLOOKUP(BJ80, 'Calc - Base'!$H$35:$I$400, 2) -> 2020-12-19 | BL80: =IF($BK$5=$BF$6, 'Staff Needed'!V76, IF($BK$5=$BF$7, 'Staff Needed'!X76, 'Staff Needed'!Z76)) -> 15.94828912 | BM80: =IF($BK$5=$BF$6, 'Staff Needed'!W76, IF($BK$5=$BF$7, 'Staff Needed'!Y76, 'Staff Needed'!AA76)) -> 150.3695832 | BN80: ='Calc - SA_Resources'!AT106 -> 11.39163509 | BO80: ='Calc - SA_Resources'!AU106 -> 82.01977264 | BT80: =IF($BK$5=$BF$6, 'Staff Needed'!AB76, IF($BK$5=$BF$7, 'Staff Needed'!AD76, 'Staff Needed'!AF76)) -> 15.94828912 | BU80: =IF($BK$5=$BF$6, 'Staff Needed'!AC76, IF($BK$5=$BF$7, 'Staff Needed'!AE76, 'Staff Needed'!AG76)) -> 150.3695832 | BV80: ='Calc - SA_Resources'!BA106 -> 11.39163509 | BW80: ='Calc - SA_Resources'!BB106 -> 82.01977264 | BX80: =IF($BK$5=$BF$6, 'Staff Needed'!AH76, IF($BK$5=$BF$7, 'Staff Needed'!AJ76, 'Staff Needed'!AL76)) -> 0 | BY80: =IF($BK$5=$BF$6, 'Staff Needed'!AI76, IF($BK$5=$BF$7, 'Staff Needed'!AK76, 'Staff Needed'!AM76)) -> 0 | BZ80: ='Calc - SA_Resources'!BG106 -> 0 | CA80: ='Calc - SA_Resources'!BH106 -> 0
BJ81: 72 | BK81: =VLOOKUP(BJ81, 'Calc - Base'!$H$35:$I$400, 2) -> 2020-12-20 | BL81: =IF($BK$5=$BF$6, 'Staff Needed'!V77, IF($BK$5=$BF$7, 'Staff Needed'!X77, 'Staff Needed'!Z77)) -> 15.77171012 | BM81: =IF($BK$5=$BF$6, 'Staff Needed'!W77, IF($BK$5=$BF$7, 'Staff Needed'!Y77, 'Staff Needed'!AA77)) -> 148.7046954 | BN81: ='Calc - SA_Resources'!AT107 -> 11.26550723 | BO81: ='Calc - SA_Resources'!AU107 -> 81.11165206 | BT81: =IF($BK$5=$BF$6, 'Staff Needed'!AB77, IF($BK$5=$BF$7, 'Staff Needed'!AD77, 'Staff Needed'!AF77)) -> 15.77171012 | BU81: =IF($BK$5=$BF$6, 'Staff Needed'!AC77, IF($BK$5=$BF$7, 'Staff Needed'!AE77, 'Staff Needed'!AG77)) -> 148.7046954 | BV81: ='Calc - SA_Resources'!BA107 -> 11.26550723 | BW81: ='Calc - SA_Resources'!BB107 -> 81.11165206 | BX81: =IF($BK$5=$BF$6, 'Staff Needed'!AH77, IF($BK$5=$BF$7, 'Staff Needed'!AJ77, 'Staff Needed'!AL77)) -> 0 | BY81: =IF($BK$5=$BF$6, 'Staff Needed'!AI77, IF($BK$5=$BF$7, 'Staff Needed'!AK77, 'Staff Needed'!AM77)) -> 0 | BZ81: ='Calc - SA_Resources'!BG107 -> 0 | CA81: ='Calc - SA_Resources'!BH107 -> 0
BJ82: 73 | BK82: =VLOOKUP(BJ82, 'Calc - Base'!$H$35:$I$400, 2) -> 2020-12-21 | BL82: =IF($BK$5=$BF$6, 'Staff Needed'!V78, IF($BK$5=$BF$7, 'Staff Needed'!X78, 'Staff Needed'!Z78)) -> 15.59582206 | BM82: =IF($BK$5=$BF$6, 'Staff Needed'!W78, IF($BK$5=$BF$7, 'Staff Needed'!Y78, 'Staff Needed'!AA78)) -> 147.0463223 | BN82: ='Calc - SA_Resources'!AT108 -> 11.1398729 | BO82: ='Calc - SA_Resources'!AU108 -> 80.20708487 | BT82: =IF($BK$5=$BF$6, 'Staff Needed'!AB78, IF($BK$5=$BF$7, 'Staff Needed'!AD78, 'Staff Needed'!AF78)) -> 15.59582206 | BU82: =IF($BK$5=$BF$6, 'Staff Needed'!AC78, IF($BK$5=$BF$7, 'Staff Needed'!AE78, 'Staff Needed'!AG78)) -> 147.0463223 | BV82: ='Calc - SA_Resources'!BA108 -> 11.1398729 | BW82: ='Calc - SA_Resources'!BB108 -> 80.20708487 | BX82: =IF($BK$5=$BF$6, 'Staff Needed'!AH78, IF($BK$5=$BF$7, 'Staff Needed'!AJ78, 'Staff Needed'!AL78)) -> 0 | BY82: =IF($BK$5=$BF$6, 'Staff Needed'!AI78, IF($BK$5=$BF$7, 'Staff Needed'!AK78, 'Staff Needed'!AM78)) -> 0 | BZ82: ='Calc - SA_Resources'!BG108 -> 0 | CA82: ='Calc - SA_Resources'!BH108 -> 0
BJ83: 74 | BK83: =VLOOKUP(BJ83, 'Calc - Base'!$H$35:$I$400, 2) -> 2020-12-22 | BL83: =IF($BK$5=$BF$6, 'Staff Needed'!V79, IF($BK$5=$BF$7, 'Staff Needed'!X79, 'Staff Needed'!Z79)) -> 15.42065917 | BM83: =IF($BK$5=$BF$6, 'Staff Needed'!W79, IF($BK$5=$BF$7, 'Staff Needed'!Y79, 'Staff Needed'!AA79)) -> 145.3947865 | BN83: ='Calc - SA_Resources'!AT109 -> 11.01475655 | BO83: ='Calc - SA_Resources'!AU109 -> 79.30624718 | BT83: =IF($BK$5=$BF$6, 'Staff Needed'!AB79, IF($BK$5=$BF$7, 'Staff Needed'!AD79, 'Staff Needed'!AF79)) -> 15.42065917 | BU83: =IF($BK$5=$BF$6, 'Staff Needed'!AC79, IF($BK$5=$BF$7, 'Staff Needed'!AE79, 'Staff Needed'!AG79)) -> 145.3947865 | BV83: ='Calc - SA_Resources'!BA109 -> 11.01475655 | BW83: ='Calc - SA_Resources'!BB109 -> 79.30624718 | BX83: =IF($BK$5=$BF$6, 'Staff Needed'!AH79, IF($BK$5=$BF$7, 'Staff Needed'!AJ79, 'Staff Needed'!AL79)) -> 0 | BY83: =IF($BK$5=$BF$6, 'Staff Needed'!AI79, IF($BK$5=$BF$7, 'Staff Needed'!AK79, 'Staff Needed'!AM79)) -> 0 | BZ83: ='Calc - SA_Resources'!BG109 -> 0 | CA83: ='Calc - SA_Resources'!BH109 -> 0
BJ84: 75 | BK84: =VLOOKUP(BJ84, 'Calc - Base'!$H$35:$I$400, 2) -> 2020-12-23 | BL84: =IF($BK$5=$BF$6, 'Staff Needed'!V80, IF($BK$5=$BF$7, 'Staff Needed'!X80, 'Staff Needed'!Z80)) -> 15.24625485 | BM84: =IF($BK$5=$BF$6, 'Staff Needed'!W80, IF($BK$5=$BF$7, 'Staff Needed'!Y80, 'Staff Needed'!AA80)) -> 143.7504029 | BN84: ='Calc - SA_Resources'!AT110 -> 10.89018204 | BO84: ='Calc - SA_Resources'!AU110 -> 78.40931066 | BT84: =IF($BK$5=$BF$6, 'Staff Needed'!AB80, IF($BK$5=$BF$7, 'Staff Needed'!AD80, 'Staff Needed'!AF80)) -> 15.24625485 | BU84: =IF($BK$5=$BF$6, 'Staff Needed'!AC80, IF($BK$5=$BF$7, 'Staff Needed'!AE80, 'Staff Needed'!AG80)) -> 143.7504029 | BV84: ='Calc - SA_Resources'!BA110 -> 10.89018204 | BW84: ='Calc - SA_Resources'!BB110 -> 78.40931066 | BX84: =IF($BK$5=$BF$6, 'Staff Needed'!AH80, IF($BK$5=$BF$7, 'Staff Needed'!AJ80, 'Staff Needed'!AL80)) -> 0 | BY84: =IF($BK$5=$BF$6, 'Staff Needed'!AI80, IF($BK$5=$BF$7, 'Staff Needed'!AK80, 'Staff Needed'!AM80)) -> 0 | BZ84: ='Calc - SA_Resources'!BG110 -> 0 | CA84: ='Calc - SA_Resources'!BH110 -> 0
BJ85: 76 | BK85: =VLOOKUP(BJ85, 'Calc - Base'!$H$35:$I$400, 2) -> 2020-12-24 | BL85: =IF($BK$5=$BF$6, 'Staff Needed'!V81, IF($BK$5=$BF$7, 'Staff Needed'!X81, 'Staff Needed'!Z81)) -> 15.07264141 | BM85: =IF($BK$5=$BF$6, 'Staff Needed'!W81, IF($BK$5=$BF$7, 'Staff Needed'!Y81, 'Staff Needed'!AA81)) -> 142.1134761 | BN85: ='Calc - SA_Resources'!AT111 -> 10.76617243 | BO85: ='Calc - SA_Resources'!AU111 -> 77.51644151 | BT85: =IF($BK$5=$BF$6, 'Staff Needed'!AB81, IF($BK$5=$BF$7, 'Staff Needed'!AD81, 'Staff Needed'!AF81)) -> 15.07264141 | BU85: =IF($BK$5=$BF$6, 'Staff Needed'!AC81, IF($BK$5=$BF$7, 'Staff Needed'!AE81, 'Staff Needed'!AG81)) -> 142.1134761 | BV85: ='Calc - SA_Resources'!BA111 -> 10.76617243 | BW85: ='Calc - SA_Resources'!BB111 -> 77.51644151 | BX85: =IF($BK$5=$BF$6, 'Staff Needed'!AH81, IF($BK$5=$BF$7, 'Staff Needed'!AJ81, 'Staff Needed'!AL81)) -> 0 | BY85: =IF($BK$5=$BF$6, 'Staff Needed'!AI81, IF($BK$5=$BF$7, 'Staff Needed'!AK81, 'Staff Needed'!AM81)) -> 0 | BZ85: ='Calc - SA_Resources'!BG111 -> 0 | CA85: ='Calc - SA_Resources'!BH111 -> 0
BJ86: 77 | BK86: =VLOOKUP(BJ86, 'Calc - Base'!$H$35:$I$400, 2) -> 2020-12-25 | BL86: =IF($BK$5=$BF$6, 'Staff Needed'!V82, IF($BK$5=$BF$7, 'Staff Needed'!X82, 'Staff Needed'!Z82)) -> 14.89984995 | BM86: =IF($BK$5=$BF$6, 'Staff Needed'!W82, IF($BK$5=$BF$7, 'Staff Needed'!Y82, 'Staff Needed'!AA82)) -> 140.4842996 | BN86: ='Calc - SA_Resources'!AT112 -> 10.64274997 | BO86: ='Calc - SA_Resources'!AU112 -> 76.62779976 | BT86: =IF($BK$5=$BF$6, 'Staff Needed'!AB82, IF($BK$5=$BF$7, 'Staff Needed'!AD82, 'Staff Needed'!AF82)) -> 14.89984995 | BU86: =IF($BK$5=$BF$6, 'Staff Needed'!AC82, IF($BK$5=$BF$7, 'Staff Needed'!AE82, 'Staff Needed'!AG82)) -> 140.4842996 | BV86: ='Calc - SA_Resources'!BA112 -> 10.64274997 | BW86: ='Calc - SA_Resources'!BB112 -> 76.62779976 | BX86: =IF($BK$5=$BF$6, 'Staff Needed'!AH82, IF($BK$5=$BF$7, 'Staff Needed'!AJ82, 'Staff Needed'!AL82)) -> 0 | BY86: =IF($BK$5=$BF$6, 'Staff Needed'!AI82, IF($BK$5=$BF$7, 'Staff Needed'!AK82, 'Staff Needed'!AM82)) -> 0 | BZ86: ='Calc - SA_Resources'!BG112 -> 0 | CA86: ='Calc - SA_Resources'!BH112 -> 0
BJ87: 78 | BK87: =VLOOKUP(BJ87, 'Calc - Base'!$H$35:$I$400, 2) -> 2020-12-26 | BL87: =IF($BK$5=$BF$6, 'Staff Needed'!V83, IF($BK$5=$BF$7, 'Staff Needed'!X83, 'Staff Needed'!Z83)) -> 14.72791052 | BM87: =IF($BK$5=$BF$6, 'Staff Needed'!W83, IF($BK$5=$BF$7, 'Staff Needed'!Y83, 'Staff Needed'!AA83)) -> 138.8631564 | BN87: ='Calc - SA_Resources'!AT113 -> 10.51993609 | BO87: ='Calc - SA_Resources'!AU113 -> 75.74353984 | BT87: =IF($BK$5=$BF$6, 'Staff Needed'!AB83, IF($BK$5=$BF$7, 'Staff Needed'!AD83, 'Staff Needed'!AF83)) -> 14.72791052 | BU87: =IF($BK$5=$BF$6, 'Staff Needed'!AC83, IF($BK$5=$BF$7, 'Staff Needed'!AE83, 'Staff Needed'!AG83)) -> 138.8631564 | BV87: ='Calc - SA_Resources'!BA113 -> 10.51993609 | BW87: ='Calc - SA_Resources'!BB113 -> 75.74353984 | BX87: =IF($BK$5=$BF$6, 'Staff Needed'!AH83, IF($BK$5=$BF$7, 'Staff Needed'!AJ83, 'Staff Needed'!AL83)) -> 0 | BY87: =IF($BK$5=$BF$6, 'Staff Needed'!AI83, IF($BK$5=$BF$7, 'Staff Needed'!AK83, 'Staff Needed'!AM83)) -> 0 | BZ87: ='Calc - SA_Resources'!BG113 -> 0 | CA87: ='Calc - SA_Resources'!BH113 -> 0
BJ88: 79 | BK88: =VLOOKUP(BJ88, 'Calc - Base'!$H$35:$I$400, 2) -> 2020-12-27 | BL88: =IF($BK$5=$BF$6, 'Staff Needed'!V84, IF($BK$5=$BF$7, 'Staff Needed'!X84, 'Staff Needed'!Z84)) -> 14.55685216 | BM88: =IF($BK$5=$BF$6, 'Staff Needed'!W84, IF($BK$5=$BF$7, 'Staff Needed'!Y84, 'Staff Needed'!AA84)) -> 137.2503204 | BN88: ='Calc - SA_Resources'!AT114 -> 10.39775154 | BO88: ='Calc - SA_Resources'!AU114 -> 74.86381111 | BT88: =IF($BK$5=$BF$6, 'Staff Needed'!AB84, IF($BK$5=$BF$7, 'Staff Needed'!AD84, 'Staff Needed'!AF84)) -> 14.55685216 | BU88: =IF($BK$5=$BF$6, 'Staff Needed'!AC84, IF($BK$5=$BF$7, 'Staff Needed'!AE84, 'Staff Needed'!AG84)) -> 137.2503204 | BV88: ='Calc - SA_Resources'!BA114 -> 10.39775154 | BW88: ='Calc - SA_Resources'!BB114 -> 74.86381111 | BX88: =IF($BK$5=$BF$6, 'Staff Needed'!AH84, IF($BK$5=$BF$7, 'Staff Needed'!AJ84, 'Staff Needed'!AL84)) -> 0 | BY88: =IF($BK$5=$BF$6, 'Staff Needed'!AI84, IF($BK$5=$BF$7, 'Staff Needed'!AK84, 'Staff Needed'!AM84)) -> 0 | BZ88: ='Calc - SA_Resources'!BG114 -> 0 | CA88: ='Calc - SA_Resources'!BH114 -> 0
BJ89: 80 | BK89: =VLOOKUP(BJ89, 'Calc - Base'!$H$35:$I$400, 2) -> 2020-12-28 | BL89: =IF($BK$5=$BF$6, 'Staff Needed'!V85, IF($BK$5=$BF$7, 'Staff Needed'!X85, 'Staff Needed'!Z85)) -> 14.38670291 | BM89: =IF($BK$5=$BF$6, 'Staff Needed'!W85, IF($BK$5=$BF$7, 'Staff Needed'!Y85, 'Staff Needed'!AA85)) -> 135.646056 | BN89: ='Calc - SA_Resources'!AT115 -> 10.27621636 | BO89: ='Calc - SA_Resources'!AU115 -> 73.98875783 | BT89: =IF($BK$5=$BF$6, 'Staff Needed'!AB85, IF($BK$5=$BF$7, 'Staff Needed'!AD85, 'Staff Needed'!AF85)) -> 14.38670291 | BU89: =IF($BK$5=$BF$6, 'Staff Needed'!AC85, IF($BK$5=$BF$7, 'Staff Needed'!AE85, 'Staff Needed'!AG85)) -> 135.646056 | BV89: ='Calc - SA_Resources'!BA115 -> 10.27621636 | BW89: ='Calc - SA_Resources'!BB115 -> 73.98875783 | BX89: =IF($BK$5=$BF$6, 'Staff Needed'!AH85, IF($BK$5=$BF$7, 'Staff Needed'!AJ85, 'Staff Needed'!AL85)) -> 0 | BY89: =IF($BK$5=$BF$6, 'Staff Needed'!AI85, IF($BK$5=$BF$7, 'Staff Needed'!AK85, 'Staff Needed'!AM85)) -> 0 | BZ89: ='Calc - SA_Resources'!BG115 -> 0 | CA89: ='Calc - SA_Resources'!BH115 -> 0
BJ90: 81 | BK90: =VLOOKUP(BJ90, 'Calc - Base'!$H$35:$I$400, 2) -> 2020-12-29 | BL90: =IF($BK$5=$BF$6, 'Staff Needed'!V86, IF($BK$5=$BF$7, 'Staff Needed'!X86, 'Staff Needed'!Z86)) -> 14.21748976 | BM90: =IF($BK$5=$BF$6, 'Staff Needed'!W86, IF($BK$5=$BF$7, 'Staff Needed'!Y86, 'Staff Needed'!AA86)) -> 134.0506178 | BN90: ='Calc - SA_Resources'!AT116 -> 10.15534983 | BO90: ='Calc - SA_Resources'!AU116 -> 73.11851879 | BT90: =IF($BK$5=$BF$6, 'Staff Needed'!AB86, IF($BK$5=$BF$7, 'Staff Needed'!AD86, 'Staff Needed'!AF86)) -> 14.21748976 | BU90: =IF($BK$5=$BF$6, 'Staff Needed'!AC86, IF($BK$5=$BF$7, 'Staff Needed'!AE86, 'Staff Needed'!AG86)) -> 134.0506178 | BV90: ='Calc - SA_Resources'!BA116 -> 10.15534983 | BW90: ='Calc - SA_Resources'!BB116 -> 73.11851879 | BX90: =IF($BK$5=$BF$6, 'Staff Needed'!AH86, IF($BK$5=$BF$7, 'Staff Needed'!AJ86, 'Staff Needed'!AL86)) -> 0 | BY90: =IF($BK$5=$BF$6, 'Staff Needed'!AI86, IF($BK$5=$BF$7, 'Staff Needed'!AK86, 'Staff Needed'!AM86)) -> 0 | BZ90: ='Calc - SA_Resources'!BG116 -> 0 | CA90: ='Calc - SA_Resources'!BH116 -> 0
BJ91: 82 | BK91: =VLOOKUP(BJ91, 'Calc - Base'!$H$35:$I$400, 2) -> 2020-12-30 | BL91: =IF($BK$5=$BF$6, 'Staff Needed'!V87, IF($BK$5=$BF$7, 'Staff Needed'!X87, 'Staff Needed'!Z87)) -> 14.04923866 | BM91: =IF($BK$5=$BF$6, 'Staff Needed'!W87, IF($BK$5=$BF$7, 'Staff Needed'!Y87, 'Staff Needed'!AA87)) -> 132.4642502 | BN91: ='Calc - SA_Resources'!AT117 -> 10.03517047 | BO91: ='Calc - SA_Resources'!AU117 -> 72.25322739 | BT91: =IF($BK$5=$BF$6, 'Staff Needed'!AB87, IF($BK$5=$BF$7, 'Staff Needed'!AD87, 'Staff Needed'!AF87)) -> 14.04923866 | BU91: =IF($BK$5=$BF$6, 'Staff Needed'!AC87, IF($BK$5=$BF$7, 'Staff Needed'!AE87, 'Staff Needed'!AG87)) -> 132.4642502 | BV91: ='Calc - SA_Resources'!BA117 -> 10.03517047 | BW91: ='Calc - SA_Resources'!BB117 -> 72.25322739 | BX91: =IF($BK$5=$BF$6, 'Staff Needed'!AH87, IF($BK$5=$BF$7, 'Staff Needed'!AJ87, 'Staff Needed'!AL87)) -> 0 | BY91: =IF($BK$5=$BF$6, 'Staff Needed'!AI87, IF($BK$5=$BF$7, 'Staff Needed'!AK87, 'Staff Needed'!AM87)) -> 0 | BZ91: ='Calc - SA_Resources'!BG117 -> 0 | CA91: ='Calc - SA_Resources'!BH117 -> 0
BJ92: 83 | BK92: =VLOOKUP(BJ92, 'Calc - Base'!$H$35:$I$400, 2) -> 2020-12-31 | BL92: =IF($BK$5=$BF$6, 'Staff Needed'!V88, IF($BK$5=$BF$7, 'Staff Needed'!X88, 'Staff Needed'!Z88)) -> 13.88197453 | BM92: =IF($BK$5=$BF$6, 'Staff Needed'!W88, IF($BK$5=$BF$7, 'Staff Needed'!Y88, 'Staff Needed'!AA88)) -> 130.8871884 | BN92: ='Calc - SA_Resources'!AT118 -> 9.915696093 | BO92: ='Calc - SA_Resources'!AU118 -> 71.39301187 | BT92: =IF($BK$5=$BF$6, 'Staff Needed'!AB88, IF($BK$5=$BF$7, 'Staff Needed'!AD88, 'Staff Needed'!AF88)) -> 13.88197453 | BU92: =IF($BK$5=$BF$6, 'Staff Needed'!AC88, IF($BK$5=$BF$7, 'Staff Needed'!AE88, 'Staff Needed'!AG88)) -> 130.8871884 | BV92: ='Calc - SA_Resources'!BA118 -> 9.915696093 | BW92: ='Calc - SA_Resources'!BB118 -> 71.39301187 | BX92: =IF($BK$5=$BF$6, 'Staff Needed'!AH88, IF($BK$5=$BF$7, 'Staff Needed'!AJ88, 'Staff Needed'!AL88)) -> 0 | BY92: =IF($BK$5=$BF$6, 'Staff Needed'!AI88, IF($BK$5=$BF$7, 'Staff Needed'!AK88, 'Staff Needed'!AM88)) -> 0 | BZ92: ='Calc - SA_Resources'!BG118 -> 0 | CA92: ='Calc - SA_Resources'!BH118 -> 0
BJ93: 84 | BK93: =VLOOKUP(BJ93, 'Calc - Base'!$H$35:$I$400, 2) -> 2021-01-01 | BL93: =IF($BK$5=$BF$6, 'Staff Needed'!V89, IF($BK$5=$BF$7, 'Staff Needed'!X89, 'Staff Needed'!Z89)) -> 13.71572133 | BM93: =IF($BK$5=$BF$6, 'Staff Needed'!W89, IF($BK$5=$BF$7, 'Staff Needed'!Y89, 'Staff Needed'!AA89)) -> 129.3196583 | BN93: ='Calc - SA_Resources'!AT119 -> 9.796943808 | BO93: ='Calc - SA_Resources'!AU119 -> 70.53799542 | BT93: =IF($BK$5=$BF$6, 'Staff Needed'!AB89, IF($BK$5=$BF$7, 'Staff Needed'!AD89, 'Staff Needed'!AF89)) -> 13.71572133 | BU93: =IF($BK$5=$BF$6, 'Staff Needed'!AC89, IF($BK$5=$BF$7, 'Staff Needed'!AE89, 'Staff Needed'!AG89)) -> 129.3196583 | BV93: ='Calc - SA_Resources'!BA119 -> 9.796943808 | BW93: ='Calc - SA_Resources'!BB119 -> 70.53799542 | BX93: =IF($BK$5=$BF$6, 'Staff Needed'!AH89, IF($BK$5=$BF$7, 'Staff Needed'!AJ89, 'Staff Needed'!AL89)) -> 0 | BY93: =IF($BK$5=$BF$6, 'Staff Needed'!AI89, IF($BK$5=$BF$7, 'Staff Needed'!AK89, 'Staff Needed'!AM89)) -> 0 | BZ93: ='Calc - SA_Resources'!BG119 -> 0 | CA93: ='Calc - SA_Resources'!BH119 -> 0
BJ94: 85 | BK94: =VLOOKUP(BJ94, 'Calc - Base'!$H$35:$I$400, 2) -> 2021-01-02 | BL94: =IF($BK$5=$BF$6, 'Staff Needed'!V90, IF($BK$5=$BF$7, 'Staff Needed'!X90, 'Staff Needed'!Z90)) -> 13.55050203 | BM94: =IF($BK$5=$BF$6, 'Staff Needed'!W90, IF($BK$5=$BF$7, 'Staff Needed'!Y90, 'Staff Needed'!AA90)) -> 127.7618763 | BN94: ='Calc - SA_Resources'!AT120 -> 9.67893002 | BO94: ='Calc - SA_Resources'!AU120 -> 69.68829614 | BT94: =IF($BK$5=$BF$6, 'Staff Needed'!AB90, IF($BK$5=$BF$7, 'Staff Needed'!AD90, 'Staff Needed'!AF90)) -> 13.55050203 | BU94: =IF($BK$5=$BF$6, 'Staff Needed'!AC90, IF($BK$5=$BF$7, 'Staff Needed'!AE90, 'Staff Needed'!AG90)) -> 127.7618763 | BV94: ='Calc - SA_Resources'!BA120 -> 9.67893002 | BW94: ='Calc - SA_Resources'!BB120 -> 69.68829614 | BX94: =IF($BK$5=$BF$6, 'Staff Needed'!AH90, IF($BK$5=$BF$7, 'Staff Needed'!AJ90, 'Staff Needed'!AL90)) -> 0 | BY94: =IF($BK$5=$BF$6, 'Staff Needed'!AI90, IF($BK$5=$BF$7, 'Staff Needed'!AK90, 'Staff Needed'!AM90)) -> 0 | BZ94: ='Calc - SA_Resources'!BG120 -> 0 | CA94: ='Calc - SA_Resources'!BH120 -> 0
BJ95: 86 | BK95: =VLOOKUP(BJ95, 'Calc - Base'!$H$35:$I$400, 2) -> 2021-01-03 | BL95: =IF($BK$5=$BF$6, 'Staff Needed'!V91, IF($BK$5=$BF$7, 'Staff Needed'!X91, 'Staff Needed'!Z91)) -> 13.3863386 | BM95: =IF($BK$5=$BF$6, 'Staff Needed'!W91, IF($BK$5=$BF$7, 'Staff Needed'!Y91, 'Staff Needed'!AA91)) -> 126.2140497 | BN95: ='Calc - SA_Resources'!AT121 -> 9.56167043 | BO95: ='Calc - SA_Resources'!AU121 -> 68.8440271 | BT95: =IF($BK$5=$BF$6, 'Staff Needed'!AB91, IF($BK$5=$BF$7, 'Staff Needed'!AD91, 'Staff Needed'!AF91)) -> 13.3863386 | BU95: =IF($BK$5=$BF$6, 'Staff Needed'!AC91, IF($BK$5=$BF$7, 'Staff Needed'!AE91, 'Staff Needed'!AG91)) -> 126.2140497 | BV95: ='Calc - SA_Resources'!BA121 -> 9.56167043 | BW95: ='Calc - SA_Resources'!BB121 -> 68.8440271 | BX95: =IF($BK$5=$BF$6, 'Staff Needed'!AH91, IF($BK$5=$BF$7, 'Staff Needed'!AJ91, 'Staff Needed'!AL91)) -> 0 | BY95: =IF($BK$5=$BF$6, 'Staff Needed'!AI91, IF($BK$5=$BF$7, 'Staff Needed'!AK91, 'Staff Needed'!AM91)) -> 0 | BZ95: ='Calc - SA_Resources'!BG121 -> 0 | CA95: ='Calc - SA_Resources'!BH121 -> 0
BJ96: 87 | BK96: =VLOOKUP(BJ96, 'Calc - Base'!$H$35:$I$400, 2) -> 2021-01-04 | BL96: =IF($BK$5=$BF$6, 'Staff Needed'!V92, IF($BK$5=$BF$7, 'Staff Needed'!X92, 'Staff Needed'!Z92)) -> 13.22325207 | BM96: =IF($BK$5=$BF$6, 'Staff Needed'!W92, IF($BK$5=$BF$7, 'Staff Needed'!Y92, 'Staff Needed'!AA92)) -> 124.6763766 | BN96: ='Calc - SA_Resources'!AT122 -> 9.445180049 | BO96: ='Calc - SA_Resources'!AU122 -> 68.00529635 | BT96: =IF($BK$5=$BF$6, 'Staff Needed'!AB92, IF($BK$5=$BF$7, 'Staff Needed'!AD92, 'Staff Needed'!AF92)) -> 13.22325207 | BU96: =IF($BK$5=$BF$6, 'Staff Needed'!AC92, IF($BK$5=$BF$7, 'Staff Needed'!AE92, 'Staff Needed'!AG92)) -> 124.6763766 | BV96: ='Calc - SA_Resources'!BA122 -> 9.445180049 | BW96: ='Calc - SA_Resources'!BB122 -> 68.00529635 | BX96: =IF($BK$5=$BF$6, 'Staff Needed'!AH92, IF($BK$5=$BF$7, 'Staff Needed'!AJ92, 'Staff Needed'!AL92)) -> 0 | BY96: =IF($BK$5=$BF$6, 'Staff Needed'!AI92, IF($BK$5=$BF$7, 'Staff Needed'!AK92, 'Staff Needed'!AM92)) -> 0 | BZ96: ='Calc - SA_Resources'!BG122 -> 0 | CA96: ='Calc - SA_Resources'!BH122 -> 0
BJ97: 88 | BK97: =VLOOKUP(BJ97, 'Calc - Base'!$H$35:$I$400, 2) -> 2021-01-05 | BL97: =IF($BK$5=$BF$6, 'Staff Needed'!V93, IF($BK$5=$BF$7, 'Staff Needed'!X93, 'Staff Needed'!Z93)) -> 13.06126249 | BM97: =IF($BK$5=$BF$6, 'Staff Needed'!W93, IF($BK$5=$BF$7, 'Staff Needed'!Y93, 'Staff Needed'!AA93)) -> 123.1490463 | BN97: ='Calc - SA_Resources'!AT123 -> 9.329473207 | BO97: ='Calc - SA_Resources'!AU123 -> 67.17220709 | BT97: =IF($BK$5=$BF$6, 'Staff Needed'!AB93, IF($BK$5=$BF$7, 'Staff Needed'!AD93, 'Staff Needed'!AF93)) -> 13.06126249 | BU97: =IF($BK$5=$BF$6, 'Staff Needed'!AC93, IF($BK$5=$BF$7, 'Staff Needed'!AE93, 'Staff Needed'!AG93)) -> 123.1490463 | BV97: ='Calc - SA_Resources'!BA123 -> 9.329473207 | BW97: ='Calc - SA_Resources'!BB123 -> 67.17220709 | BX97: =IF($BK$5=$BF$6, 'Staff Needed'!AH93, IF($BK$5=$BF$7, 'Staff Needed'!AJ93, 'Staff Needed'!AL93)) -> 0 | BY97: =IF($BK$5=$BF$6, 'Staff Needed'!AI93, IF($BK$5=$BF$7, 'Staff Needed'!AK93, 'Staff Needed'!AM93)) -> 0 | BZ97: ='Calc - SA_Resources'!BG123 -> 0 | CA97: ='Calc - SA_Resources'!BH123 -> 0
BJ98: 89 | BK98: =VLOOKUP(BJ98, 'Calc - Base'!$H$35:$I$400, 2) -> 2021-01-06 | BL98: =IF($BK$5=$BF$6, 'Staff Needed'!V94, IF($BK$5=$BF$7, 'Staff Needed'!X94, 'Staff Needed'!Z94)) -> 12.900389 | BM98: =IF($BK$5=$BF$6, 'Staff Needed'!W94, IF($BK$5=$BF$7, 'Staff Needed'!Y94, 'Staff Needed'!AA94)) -> 121.6322391 | BN98: ='Calc - SA_Resources'!AT124 -> 9.214563571 | BO98: ='Calc - SA_Resources'!AU124 -> 66.34485771 | BT98: =IF($BK$5=$BF$6, 'Staff Needed'!AB94, IF($BK$5=$BF$7, 'Staff Needed'!AD94, 'Staff Needed'!AF94)) -> 12.900389 | BU98: =IF($BK$5=$BF$6, 'Staff Needed'!AC94, IF($BK$5=$BF$7, 'Staff Needed'!AE94, 'Staff Needed'!AG94)) -> 121.6322391 | BV98: ='Calc - SA_Resources'!BA124 -> 9.214563571 | BW98: ='Calc - SA_Resources'!BB124 -> 66.34485771 | BX98: =IF($BK$5=$BF$6, 'Staff Needed'!AH94, IF($BK$5=$BF$7, 'Staff Needed'!AJ94, 'Staff Needed'!AL94)) -> 0 | BY98: =IF($BK$5=$BF$6, 'Staff Needed'!AI94, IF($BK$5=$BF$7, 'Staff Needed'!AK94, 'Staff Needed'!AM94)) -> 0 | BZ98: ='Calc - SA_Resources'!BG124 -> 0 | CA98: ='Calc - SA_Resources'!BH124 -> 0
BJ99: 90 | BK99: =VLOOKUP(BJ99, 'Calc - Base'!$H$35:$I$400, 2) -> 2021-01-07 | BL99: =IF($BK$5=$BF$6, 'Staff Needed'!V95, IF($BK$5=$BF$7, 'Staff Needed'!X95, 'Staff Needed'!Z95)) -> 12.74064981 | BM99: =IF($BK$5=$BF$6, 'Staff Needed'!W95, IF($BK$5=$BF$7, 'Staff Needed'!Y95, 'Staff Needed'!AA95)) -> 120.1261267 | BN99: ='Calc - SA_Resources'!AT125 -> 9.100464148 | BO99: ='Calc - SA_Resources'!AU125 -> 65.52334186 | BT99: =IF($BK$5=$BF$6, 'Staff Needed'!AB95, IF($BK$5=$BF$7, 'Staff Needed'!AD95, 'Staff Needed'!AF95)) -> 12.74064981 | BU99: =IF($BK$5=$BF$6, 'Staff Needed'!AC95, IF($BK$5=$BF$7, 'Staff Needed'!AE95, 'Staff Needed'!AG95)) -> 120.1261267 | BV99: ='Calc - SA_Resources'!BA125 -> 9.100464148 | BW99: ='Calc - SA_Resources'!BB125 -> 65.52334186 | BX99: =IF($BK$5=$BF$6, 'Staff Needed'!AH95, IF($BK$5=$BF$7, 'Staff Needed'!AJ95, 'Staff Needed'!AL95)) -> 0 | BY99: =IF($BK$5=$BF$6, 'Staff Needed'!AI95, IF($BK$5=$BF$7, 'Staff Needed'!AK95, 'Staff Needed'!AM95)) -> 0 | BZ99: ='Calc - SA_Resources'!BG125 -> 0 | CA99: ='Calc - SA_Resources'!BH125 -> 0
BJ100: 91 | BK100: =VLOOKUP(BJ100, 'Calc - Base'!$H$35:$I$400, 2) -> 2021-01-08 | BL100: =IF($BK$5=$BF$6, 'Staff Needed'!V96, IF($BK$5=$BF$7, 'Staff Needed'!X96, 'Staff Needed'!Z96)) -> 12.5820622 | BM100: =IF($BK$5=$BF$6, 'Staff Needed'!W96, IF($BK$5=$BF$7, 'Staff Needed'!Y96, 'Staff Needed'!AA96)) -> 118.6308722 | BN100: ='Calc - SA_Resources'!AT126 -> 8.987187289 | BO100: ='Calc - SA_Resources'!AU126 -> 64.70774848 | BT100: =IF($BK$5=$BF$6, 'Staff Needed'!AB96, IF($BK$5=$BF$7, 'Staff Needed'!AD96, 'Staff Needed'!AF96)) -> 12.5820622 | BU100: =IF($BK$5=$BF$6, 'Staff Needed'!AC96, IF($BK$5=$BF$7, 'Staff Needed'!AE96, 'Staff Needed'!AG96)) -> 118.6308722 | BV100: ='Calc - SA_Resources'!BA126 -> 8.987187289 | BW100: ='Calc - SA_Resources'!BB126 -> 64.70774848 | BX100: =IF($BK$5=$BF$6, 'Staff Needed'!AH96, IF($BK$5=$BF$7, 'Staff Needed'!AJ96, 'Staff Needed'!AL96)) -> 0 | BY100: =IF($BK$5=$BF$6, 'Staff Needed'!AI96, IF($BK$5=$BF$7, 'Staff Needed'!AK96, 'Staff Needed'!AM96)) -> 0 | BZ100: ='Calc - SA_Resources'!BG126 -> 0 | CA100: ='Calc - SA_Resources'!BH126 -> 0
BJ101: 92 | BK101: =VLOOKUP(BJ101, 'Calc - Base'!$H$35:$I$400, 2) -> 2021-01-09 | BL101: =IF($BK$5=$BF$6, 'Staff Needed'!V97, IF($BK$5=$BF$7, 'Staff Needed'!X97, 'Staff Needed'!Z97)) -> 12.42464259 | BM101: =IF($BK$5=$BF$6, 'Staff Needed'!W97, IF($BK$5=$BF$7, 'Staff Needed'!Y97, 'Staff Needed'!AA97)) -> 117.1466302 | BN101: ='Calc - SA_Resources'!AT127 -> 8.87474471 | BO101: ='Calc - SA_Resources'!AU127 -> 63.89816191 | BT101: =IF($BK$5=$BF$6, 'Staff Needed'!AB97, IF($BK$5=$BF$7, 'Staff Needed'!AD97, 'Staff Needed'!AF97)) -> 12.42464259 | BU101: =IF($BK$5=$BF$6, 'Staff Needed'!AC97, IF($BK$5=$BF$7, 'Staff Needed'!AE97, 'Staff Needed'!AG97)) -> 117.1466302 | BV101: ='Calc - SA_Resources'!BA127 -> 8.87474471 | BW101: ='Calc - SA_Resources'!BB127 -> 63.89816191 | BX101: =IF($BK$5=$BF$6, 'Staff Needed'!AH97, IF($BK$5=$BF$7, 'Staff Needed'!AJ97, 'Staff Needed'!AL97)) -> 0 | BY101: =IF($BK$5=$BF$6, 'Staff Needed'!AI97, IF($BK$5=$BF$7, 'Staff Needed'!AK97, 'Staff Needed'!AM97)) -> 0 | BZ101: ='Calc - SA_Resources'!BG127 -> 0 | CA101: ='Calc - SA_Resources'!BH127 -> 0
BJ102: 93 | BK102: =VLOOKUP(BJ102, 'Calc - Base'!$H$35:$I$400, 2) -> 2021-01-10 | BL102: =IF($BK$5=$BF$6, 'Staff Needed'!V98, IF($BK$5=$BF$7, 'Staff Needed'!X98, 'Staff Needed'!Z98)) -> 12.26840649 | BM102: =IF($BK$5=$BF$6, 'Staff Needed'!W98, IF($BK$5=$BF$7, 'Staff Needed'!Y98, 'Staff Needed'!AA98)) -> 115.673547 | BN102: ='Calc - SA_Resources'!AT128 -> 8.763147496 | BO102: ='Calc - SA_Resources'!AU128 -> 63.09466197 | BT102: =IF($BK$5=$BF$6, 'Staff Needed'!AB98, IF($BK$5=$BF$7, 'Staff Needed'!AD98, 'Staff Needed'!AF98)) -> 12.26840649 | BU102: =IF($BK$5=$BF$6, 'Staff Needed'!AC98, IF($BK$5=$BF$7, 'Staff Needed'!AE98, 'Staff Needed'!AG98)) -> 115.673547 | BV102: ='Calc - SA_Resources'!BA128 -> 8.763147496 | BW102: ='Calc - SA_Resources'!BB128 -> 63.09466197 | BX102: =IF($BK$5=$BF$6, 'Staff Needed'!AH98, IF($BK$5=$BF$7, 'Staff Needed'!AJ98, 'Staff Needed'!AL98)) -> 0 | BY102: =IF($BK$5=$BF$6, 'Staff Needed'!AI98, IF($BK$5=$BF$7, 'Staff Needed'!AK98, 'Staff Needed'!AM98)) -> 0 | BZ102: ='Calc - SA_Resources'!BG128 -> 0 | CA102: ='Calc - SA_Resources'!BH128 -> 0
BJ103: 94 | BK103: =VLOOKUP(BJ103, 'Calc - Base'!$H$35:$I$400, 2) -> 2021-01-11 | BL103: =IF($BK$5=$BF$6, 'Staff Needed'!V99, IF($BK$5=$BF$7, 'Staff Needed'!X99, 'Staff Needed'!Z99)) -> 12.11336856 | BM103: =IF($BK$5=$BF$6, 'Staff Needed'!W99, IF($BK$5=$BF$7, 'Staff Needed'!Y99, 'Staff Needed'!AA99)) -> 114.2117608 | BN103: ='Calc - SA_Resources'!AT129 -> 8.652406118 | BO103: ='Calc - SA_Resources'!AU129 -> 62.29732405 | BT103: =IF($BK$5=$BF$6, 'Staff Needed'!AB99, IF($BK$5=$BF$7, 'Staff Needed'!AD99, 'Staff Needed'!AF99)) -> 12.11336856 | BU103: =IF($BK$5=$BF$6, 'Staff Needed'!AC99, IF($BK$5=$BF$7, 'Staff Needed'!AE99, 'Staff Needed'!AG99)) -> 114.2117608 | BV103: ='Calc - SA_Resources'!BA129 -> 8.652406118 | BW103: ='Calc - SA_Resources'!BB129 -> 62.29732405 | BX103: =IF($BK$5=$BF$6, 'Staff Needed'!AH99, IF($BK$5=$BF$7, 'Staff Needed'!AJ99, 'Staff Needed'!AL99)) -> 0 | BY103: =IF($BK$5=$BF$6, 'Staff Needed'!AI99, IF($BK$5=$BF$7, 'Staff Needed'!AK99, 'Staff Needed'!AM99)) -> 0 | BZ103: ='Calc - SA_Resources'!BG129 -> 0 | CA103: ='Calc - SA_Resources'!BH129 -> 0
BJ104: 95 | BK104: =VLOOKUP(BJ104, 'Calc - Base'!$H$35:$I$400, 2) -> 2021-01-12 | BL104: =IF($BK$5=$BF$6, 'Staff Needed'!V100, IF($BK$5=$BF$7, 'Staff Needed'!X100, 'Staff Needed'!Z100)) -> 11.95954261 | BM104: =IF($BK$5=$BF$6, 'Staff Needed'!W100, IF($BK$5=$BF$7, 'Staff Needed'!Y100, 'Staff Needed'!AA100)) -> 112.7614017 | BN104: ='Calc - SA_Resources'!AT130 -> 8.542530435 | BO104: ='Calc - SA_Resources'!AU130 -> 61.50621913 | BT104: =IF($BK$5=$BF$6, 'Staff Needed'!AB100, IF($BK$5=$BF$7, 'Staff Needed'!AD100, 'Staff Needed'!AF100)) -> 11.95954261 | BU104: =IF($BK$5=$BF$6, 'Staff Needed'!AC100, IF($BK$5=$BF$7, 'Staff Needed'!AE100, 'Staff Needed'!AG100)) -> 112.7614017 | BV104: ='Calc - SA_Resources'!BA130 -> 8.542530435 | BW104: ='Calc - SA_Resources'!BB130 -> 61.50621913 | BX104: =IF($BK$5=$BF$6, 'Staff Needed'!AH100, IF($BK$5=$BF$7, 'Staff Needed'!AJ100, 'Staff Needed'!AL100)) -> 0 | BY104: =IF($BK$5=$BF$6, 'Staff Needed'!AI100, IF($BK$5=$BF$7, 'Staff Needed'!AK100, 'Staff Needed'!AM100)) -> 0 | BZ104: ='Calc - SA_Resources'!BG130 -> 0 | CA104: ='Calc - SA_Resources'!BH130 -> 0
BJ105: 96 | BK105: =VLOOKUP(BJ105, 'Calc - Base'!$H$35:$I$400, 2) -> 2021-01-13 | BL105: =IF($BK$5=$BF$6, 'Staff Needed'!V101, IF($BK$5=$BF$7, 'Staff Needed'!X101, 'Staff Needed'!Z101)) -> 11.8069416 | BM105: =IF($BK$5=$BF$6, 'Staff Needed'!W101, IF($BK$5=$BF$7, 'Staff Needed'!Y101, 'Staff Needed'!AA101)) -> 111.3225922 | BN105: ='Calc - SA_Resources'!AT131 -> 8.433529714 | BO105: ='Calc - SA_Resources'!AU131 -> 60.72141394 | BT105: =IF($BK$5=$BF$6, 'Staff Needed'!AB101, IF($BK$5=$BF$7, 'Staff Needed'!AD101, 'Staff Needed'!AF101)) -> 11.8069416 | BU105: =IF($BK$5=$BF$6, 'Staff Needed'!AC101, IF($BK$5=$BF$7, 'Staff Needed'!AE101, 'Staff Needed'!AG101)) -> 111.3225922 | BV105: ='Calc - SA_Resources'!BA131 -> 8.433529714 | BW105: ='Calc - SA_Resources'!BB131 -> 60.72141394 | BX105: =IF($BK$5=$BF$6, 'Staff Needed'!AH101, IF($BK$5=$BF$7, 'Staff Needed'!AJ101, 'Staff Needed'!AL101)) -> 0 | BY105: =IF($BK$5=$BF$6, 'Staff Needed'!AI101, IF($BK$5=$BF$7, 'Staff Needed'!AK101, 'Staff Needed'!AM101)) -> 0 | BZ105: ='Calc - SA_Resources'!BG131 -> 0 | CA105: ='Calc - SA_Resources'!BH131 -> 0
BJ106: 97 | BK106: =VLOOKUP(BJ106, 'Calc - Base'!$H$35:$I$400, 2) -> 2021-01-14 | BL106: =IF($BK$5=$BF$6, 'Staff Needed'!V102, IF($BK$5=$BF$7, 'Staff Needed'!X102, 'Staff Needed'!Z102)) -> 11.65557769 | BM106: =IF($BK$5=$BF$6, 'Staff Needed'!W102, IF($BK$5=$BF$7, 'Staff Needed'!Y102, 'Staff Needed'!AA102)) -> 109.8954468 | BN106: ='Calc - SA_Resources'!AT132 -> 8.325412635 | BO106: ='Calc - SA_Resources'!AU132 -> 59.94297097 | BT106: =IF($BK$5=$BF$6, 'Staff Needed'!AB102, IF($BK$5=$BF$7, 'Staff Needed'!AD102, 'Staff Needed'!AF102)) -> 11.65557769 | BU106: =IF($BK$5=$BF$6, 'Staff Needed'!AC102, IF($BK$5=$BF$7, 'Staff Needed'!AE102, 'Staff Needed'!AG102)) -> 109.8954468 | BV106: ='Calc - SA_Resources'!BA132 -> 8.325412635 | BW106: ='Calc - SA_Resources'!BB132 -> 59.94297097 | BX106: =IF($BK$5=$BF$6, 'Staff Needed'!AH102, IF($BK$5=$BF$7, 'Staff Needed'!AJ102, 'Staff Needed'!AL102)) -> 0 | BY106: =IF($BK$5=$BF$6, 'Staff Needed'!AI102, IF($BK$5=$BF$7, 'Staff Needed'!AK102, 'Staff Needed'!AM102)) -> 0 | BZ106: ='Calc - SA_Resources'!BG132 -> 0 | CA106: ='Calc - SA_Resources'!BH132 -> 0
BJ107: 98 | BK107: =VLOOKUP(BJ107, 'Calc - Base'!$H$35:$I$400, 2) -> 2021-01-15 | BL107: =IF($BK$5=$BF$6, 'Staff Needed'!V103, IF($BK$5=$BF$7, 'Staff Needed'!X103, 'Staff Needed'!Z103)) -> 11.50546223 | BM107: =IF($BK$5=$BF$6, 'Staff Needed'!W103, IF($BK$5=$BF$7, 'Staff Needed'!Y103, 'Staff Needed'!AA103)) -> 108.4800724 | BN107: ='Calc - SA_Resources'!AT133 -> 8.218187307 | BO107: ='Calc - SA_Resources'!AU133 -> 59.17094861 | BT107: =IF($BK$5=$BF$6, 'Staff Needed'!AB103, IF($BK$5=$BF$7, 'Staff Needed'!AD103, 'Staff Needed'!AF103)) -> 11.50546223 | BU107: =IF($BK$5=$BF$6, 'Staff Needed'!AC103, IF($BK$5=$BF$7, 'Staff Needed'!AE103, 'Staff Needed'!AG103)) -> 108.4800724 | BV107: ='Calc - SA_Resources'!BA133 -> 8.218187307 | BW107: ='Calc - SA_Resources'!BB133 -> 59.17094861 | BX107: =IF($BK$5=$BF$6, 'Staff Needed'!AH103, IF($BK$5=$BF$7, 'Staff Needed'!AJ103, 'Staff Needed'!AL103)) -> 0 | BY107: =IF($BK$5=$BF$6, 'Staff Needed'!AI103, IF($BK$5=$BF$7, 'Staff Needed'!AK103, 'Staff Needed'!AM103)) -> 0 | BZ107: ='Calc - SA_Resources'!BG133 -> 0 | CA107: ='Calc - SA_Resources'!BH133 -> 0
BJ108: 99 | BK108: =VLOOKUP(BJ108, 'Calc - Base'!$H$35:$I$400, 2) -> 2021-01-16 | BL108: =IF($BK$5=$BF$6, 'Staff Needed'!V104, IF($BK$5=$BF$7, 'Staff Needed'!X104, 'Staff Needed'!Z104)) -> 11.35660579 | BM108: =IF($BK$5=$BF$6, 'Staff Needed'!W104, IF($BK$5=$BF$7, 'Staff Needed'!Y104, 'Staff Needed'!AA104)) -> 107.0765688 | BN108: ='Calc - SA_Resources'!AT134 -> 8.111861275 | BO108: ='Calc - SA_Resources'!AU134 -> 58.40540118 | BT108: =IF($BK$5=$BF$6, 'Staff Needed'!AB104, IF($BK$5=$BF$7, 'Staff Needed'!AD104, 'Staff Needed'!AF104)) -> 11.35660579 | BU108: =IF($BK$5=$BF$6, 'Staff Needed'!AC104, IF($BK$5=$BF$7, 'Staff Needed'!AE104, 'Staff Needed'!AG104)) -> 107.0765688 | BV108: ='Calc - SA_Resources'!BA134 -> 8.111861275 | BW108: ='Calc - SA_Resources'!BB134 -> 58.40540118 | BX108: =IF($BK$5=$BF$6, 'Staff Needed'!AH104, IF($BK$5=$BF$7, 'Staff Needed'!AJ104, 'Staff Needed'!AL104)) -> 0 | BY108: =IF($BK$5=$BF$6, 'Staff Needed'!AI104, IF($BK$5=$BF$7, 'Staff Needed'!AK104, 'Staff Needed'!AM104)) -> 0 | BZ108: ='Calc - SA_Resources'!BG134 -> 0 | CA108: ='Calc - SA_Resources'!BH134 -> 0
BJ109: 100 | BK109: =VLOOKUP(BJ109, 'Calc - Base'!$H$35:$I$400, 2) -> 2021-01-17 | BL109: =IF($BK$5=$BF$6, 'Staff Needed'!V105, IF($BK$5=$BF$7, 'Staff Needed'!X105, 'Staff Needed'!Z105)) -> 11.20901815 | BM109: =IF($BK$5=$BF$6, 'Staff Needed'!W105, IF($BK$5=$BF$7, 'Staff Needed'!Y105, 'Staff Needed'!AA105)) -> 105.6850283 | BN109: ='Calc - SA_Resources'!AT135 -> 8.006441537 | BO109: ='Calc - SA_Resources'!AU135 -> 57.64637906 | BT109: =IF($BK$5=$BF$6, 'Staff Needed'!AB105, IF($BK$5=$BF$7, 'Staff Needed'!AD105, 'Staff Needed'!AF105)) -> 11.20901815 | BU109: =IF($BK$5=$BF$6, 'Staff Needed'!AC105, IF($BK$5=$BF$7, 'Staff Needed'!AE105, 'Staff Needed'!AG105)) -> 105.6850283 | BV109: ='Calc - SA_Resources'!BA135 -> 8.006441537 | BW109: ='Calc - SA_Resources'!BB135 -> 57.64637906 | BX109: =IF($BK$5=$BF$6, 'Staff Needed'!AH105, IF($BK$5=$BF$7, 'Staff Needed'!AJ105, 'Staff Needed'!AL105)) -> 0 | BY109: =IF($BK$5=$BF$6, 'Staff Needed'!AI105, IF($BK$5=$BF$7, 'Staff Needed'!AK105, 'Staff Needed'!AM105)) -> 0 | BZ109: ='Calc - SA_Resources'!BG135 -> 0 | CA109: ='Calc - SA_Resources'!BH135 -> 0
BJ110: 101 | BK110: =VLOOKUP(BJ110, 'Calc - Base'!$H$35:$I$400, 2) -> 2021-01-18 | BL110: =IF($BK$5=$BF$6, 'Staff Needed'!V106, IF($BK$5=$BF$7, 'Staff Needed'!X106, 'Staff Needed'!Z106)) -> 11.06270837 | BM110: =IF($BK$5=$BF$6, 'Staff Needed'!W106, IF($BK$5=$BF$7, 'Staff Needed'!Y106, 'Staff Needed'!AA106)) -> 104.3055361 | BN110: ='Calc - SA_Resources'!AT136 -> 7.90193455 | BO110: ='Calc - SA_Resources'!AU136 -> 56.89392876 | BT110: =IF($BK$5=$BF$6, 'Staff Needed'!AB106, IF($BK$5=$BF$7, 'Staff Needed'!AD106, 'Staff Needed'!AF106)) -> 11.06270837 | BU110: =IF($BK$5=$BF$6, 'Staff Needed'!AC106, IF($BK$5=$BF$7, 'Staff Needed'!AE106, 'Staff Needed'!AG106)) -> 104.3055361 | BV110: ='Calc - SA_Resources'!BA136 -> 7.90193455 | BW110: ='Calc - SA_Resources'!BB136 -> 56.89392876 | BX110: =IF($BK$5=$BF$6, 'Staff Needed'!AH106, IF($BK$5=$BF$7, 'Staff Needed'!AJ106, 'Staff Needed'!AL106)) -> 0 | BY110: =IF($BK$5=$BF$6, 'Staff Needed'!AI106, IF($BK$5=$BF$7, 'Staff Needed'!AK106, 'Staff Needed'!AM106)) -> 0 | BZ110: ='Calc - SA_Resources'!BG136 -> 0 | CA110: ='Calc - SA_Resources'!BH136 -> 0
BJ111: 102 | BK111: =VLOOKUP(BJ111, 'Calc - Base'!$H$35:$I$400, 2) -> 2021-01-19 | BL111: =IF($BK$5=$BF$6, 'Staff Needed'!V107, IF($BK$5=$BF$7, 'Staff Needed'!X107, 'Staff Needed'!Z107)) -> 10.91768474 | BM111: =IF($BK$5=$BF$6, 'Staff Needed'!W107, IF($BK$5=$BF$7, 'Staff Needed'!Y107, 'Staff Needed'!AA107)) -> 102.9381704 | BN111: ='Calc - SA_Resources'!AT137 -> 7.798346246 | BO111: ='Calc - SA_Resources'!AU137 -> 56.14809297 | BT111: =IF($BK$5=$BF$6, 'Staff Needed'!AB107, IF($BK$5=$BF$7, 'Staff Needed'!AD107, 'Staff Needed'!AF107)) -> 10.91768474 | BU111: =IF($BK$5=$BF$6, 'Staff Needed'!AC107, IF($BK$5=$BF$7, 'Staff Needed'!AE107, 'Staff Needed'!AG107)) -> 102.9381704 | BV111: ='Calc - SA_Resources'!BA137 -> 7.798346246 | BW111: ='Calc - SA_Resources'!BB137 -> 56.14809297 | BX111: =IF($BK$5=$BF$6, 'Staff Needed'!AH107, IF($BK$5=$BF$7, 'Staff Needed'!AJ107, 'Staff Needed'!AL107)) -> 0 | BY111: =IF($BK$5=$BF$6, 'Staff Needed'!AI107, IF($BK$5=$BF$7, 'Staff Needed'!AK107, 'Staff Needed'!AM107)) -> 0 | BZ111: ='Calc - SA_Resources'!BG137 -> 0 | CA111: ='Calc - SA_Resources'!BH137 -> 0
BJ112: 103 | BK112: =VLOOKUP(BJ112, 'Calc - Base'!$H$35:$I$400, 2) -> 2021-01-20 | BL112: =IF($BK$5=$BF$6, 'Staff Needed'!V108, IF($BK$5=$BF$7, 'Staff Needed'!X108, 'Staff Needed'!Z108)) -> 10.77395486 | BM112: =IF($BK$5=$BF$6, 'Staff Needed'!W108, IF($BK$5=$BF$7, 'Staff Needed'!Y108, 'Staff Needed'!AA108)) -> 101.583003 | BN112: ='Calc - SA_Resources'!AT138 -> 7.695682043 | BO112: ='Calc - SA_Resources'!AU138 -> 55.40891071 | BT112: =IF($BK$5=$BF$6, 'Staff Needed'!AB108, IF($BK$5=$BF$7, 'Staff Needed'!AD108, 'Staff Needed'!AF108)) -> 10.77395486 | BU112: =IF($BK$5=$BF$6, 'Staff Needed'!AC108, IF($BK$5=$BF$7, 'Staff Needed'!AE108, 'Staff Needed'!AG108)) -> 101.583003 | BV112: ='Calc - SA_Resources'!BA138 -> 7.695682043 | BW112: ='Calc - SA_Resources'!BB138 -> 55.40891071 | BX112: =IF($BK$5=$BF$6, 'Staff Needed'!AH108, IF($BK$5=$BF$7, 'Staff Needed'!AJ108, 'Staff Needed'!AL108)) -> 0 | BY112: =IF($BK$5=$BF$6, 'Staff Needed'!AI108, IF($BK$5=$BF$7, 'Staff Needed'!AK108, 'Staff Needed'!AM108)) -> 0 | BZ112: ='Calc - SA_Resources'!BG138 -> 0 | CA112: ='Calc - SA_Resources'!BH138 -> 0
BJ113: 104 | BK113: =VLOOKUP(BJ113, 'Calc - Base'!$H$35:$I$400, 2) -> 2021-01-21 | BL113: =IF($BK$5=$BF$6, 'Staff Needed'!V109, IF($BK$5=$BF$7, 'Staff Needed'!X109, 'Staff Needed'!Z109)) -> 10.6315256 | BM113: =IF($BK$5=$BF$6, 'Staff Needed'!W109, IF($BK$5=$BF$7, 'Staff Needed'!Y109, 'Staff Needed'!AA109)) -> 100.2400985 | BN113: ='Calc - SA_Resources'!AT139 -> 7.593946855 | BO113: ='Calc - SA_Resources'!AU139 -> 54.67641736 | BT113: =IF($BK$5=$BF$6, 'Staff Needed'!AB109, IF($BK$5=$BF$7, 'Staff Needed'!AD109, 'Staff Needed'!AF109)) -> 10.6315256 | BU113: =IF($BK$5=$BF$6, 'Staff Needed'!AC109, IF($BK$5=$BF$7, 'Staff Needed'!AE109, 'Staff Needed'!AG109)) -> 100.2400985 | BV113: ='Calc - SA_Resources'!BA139 -> 7.593946855 | BW113: ='Calc - SA_Resources'!BB139 -> 54.67641736 | BX113: =IF($BK$5=$BF$6, 'Staff Needed'!AH109, IF($BK$5=$BF$7, 'Staff Needed'!AJ109, 'Staff Needed'!AL109)) -> 0 | BY113: =IF($BK$5=$BF$6, 'Staff Needed'!AI109, IF($BK$5=$BF$7, 'Staff Needed'!AK109, 'Staff Needed'!AM109)) -> 0 | BZ113: ='Calc - SA_Resources'!BG139 -> 0 | CA113: ='Calc - SA_Resources'!BH139 -> 0
BJ114: 105 | BK114: =VLOOKUP(BJ114, 'Calc - Base'!$H$35:$I$400, 2) -> 2021-01-22 | BL114: =IF($BK$5=$BF$6, 'Staff Needed'!V110, IF($BK$5=$BF$7, 'Staff Needed'!X110, 'Staff Needed'!Z110)) -> 10.49040315 | BM114: =IF($BK$5=$BF$6, 'Staff Needed'!W110, IF($BK$5=$BF$7, 'Staff Needed'!Y110, 'Staff Needed'!AA110)) -> 98.90951539 | BN114: ='Calc - SA_Resources'!AT140 -> 7.493145106 | BO114: ='Calc - SA_Resources'!AU140 -> 53.95064476 | BT114: =IF($BK$5=$BF$6, 'Staff Needed'!AB110, IF($BK$5=$BF$7, 'Staff Needed'!AD110, 'Staff Needed'!AF110)) -> 10.49040315 | BU114: =IF($BK$5=$BF$6, 'Staff Needed'!AC110, IF($BK$5=$BF$7, 'Staff Needed'!AE110, 'Staff Needed'!AG110)) -> 98.90951539 | BV114: ='Calc - SA_Resources'!BA140 -> 7.493145106 | BW114: ='Calc - SA_Resources'!BB140 -> 53.95064476 | BX114: =IF($BK$5=$BF$6, 'Staff Needed'!AH110, IF($BK$5=$BF$7, 'Staff Needed'!AJ110, 'Staff Needed'!AL110)) -> 0 | BY114: =IF($BK$5=$BF$6, 'Staff Needed'!AI110, IF($BK$5=$BF$7, 'Staff Needed'!AK110, 'Staff Needed'!AM110)) -> 0 | BZ114: ='Calc - SA_Resources'!BG140 -> 0 | CA114: ='Calc - SA_Resources'!BH140 -> 0
BJ115: 106 | BK115: =VLOOKUP(BJ115, 'Calc - Base'!$H$35:$I$400, 2) -> 2021-01-23 | BL115: =IF($BK$5=$BF$6, 'Staff Needed'!V111, IF($BK$5=$BF$7, 'Staff Needed'!X111, 'Staff Needed'!Z111)) -> 10.35059304 | BM115: =IF($BK$5=$BF$6, 'Staff Needed'!W111, IF($BK$5=$BF$7, 'Staff Needed'!Y111, 'Staff Needed'!AA111)) -> 97.59130576 | BN115: ='Calc - SA_Resources'!AT141 -> 7.393280739 | BO115: ='Calc - SA_Resources'!AU141 -> 53.23162132 | BT115: =IF($BK$5=$BF$6, 'Staff Needed'!AB111, IF($BK$5=$BF$7, 'Staff Needed'!AD111, 'Staff Needed'!AF111)) -> 10.35059304 | BU115: =IF($BK$5=$BF$6, 'Staff Needed'!AC111, IF($BK$5=$BF$7, 'Staff Needed'!AE111, 'Staff Needed'!AG111)) -> 97.59130576 | BV115: ='Calc - SA_Resources'!BA141 -> 7.393280739 | BW115: ='Calc - SA_Resources'!BB141 -> 53.23162132 | BX115: =IF($BK$5=$BF$6, 'Staff Needed'!AH111, IF($BK$5=$BF$7, 'Staff Needed'!AJ111, 'Staff Needed'!AL111)) -> 0 | BY115: =IF($BK$5=$BF$6, 'Staff Needed'!AI111, IF($BK$5=$BF$7, 'Staff Needed'!AK111, 'Staff Needed'!AM111)) -> 0 | BZ115: ='Calc - SA_Resources'!BG141 -> 0 | CA115: ='Calc - SA_Resources'!BH141 -> 0
BJ116: 107 | BK116: =VLOOKUP(BJ116, 'Calc - Base'!$H$35:$I$400, 2) -> 2021-01-24 | BL116: =IF($BK$5=$BF$6, 'Staff Needed'!V112, IF($BK$5=$BF$7, 'Staff Needed'!X112, 'Staff Needed'!Z112)) -> 10.21210013 | BM116: =IF($BK$5=$BF$6, 'Staff Needed'!W112, IF($BK$5=$BF$7, 'Staff Needed'!Y112, 'Staff Needed'!AA112)) -> 96.28551549 | BN116: ='Calc - SA_Resources'!AT142 -> 7.294357234 | BO116: ='Calc - SA_Resources'!AU142 -> 52.51937208 | BT116: =IF($BK$5=$BF$6, 'Staff Needed'!AB112, IF($BK$5=$BF$7, 'Staff Needed'!AD112, 'Staff Needed'!AF112)) -> 10.21210013 | BU116: =IF($BK$5=$BF$6, 'Staff Needed'!AC112, IF($BK$5=$BF$7, 'Staff Needed'!AE112, 'Staff Needed'!AG112)) -> 96.28551549 | BV116: ='Calc - SA_Resources'!BA142 -> 7.294357234 | BW116: ='Calc - SA_Resources'!BB142 -> 52.51937208 | BX116: =IF($BK$5=$BF$6, 'Staff Needed'!AH112, IF($BK$5=$BF$7, 'Staff Needed'!AJ112, 'Staff Needed'!AL112)) -> 0 | BY116: =IF($BK$5=$BF$6, 'Staff Needed'!AI112, IF($BK$5=$BF$7, 'Staff Needed'!AK112, 'Staff Needed'!AM112)) -> 0 | BZ116: ='Calc - SA_Resources'!BG142 -> 0 | CA116: ='Calc - SA_Resources'!BH142 -> 0
BJ117: 108 | BK117: =VLOOKUP(BJ117, 'Calc - Base'!$H$35:$I$400, 2) -> 2021-01-25 | BL117: =IF($BK$5=$BF$6, 'Staff Needed'!V113, IF($BK$5=$BF$7, 'Staff Needed'!X113, 'Staff Needed'!Z113)) -> 10.07492866 | BM117: =IF($BK$5=$BF$6, 'Staff Needed'!W113, IF($BK$5=$BF$7, 'Staff Needed'!Y113, 'Staff Needed'!AA113)) -> 94.99218447 | BN117: ='Calc - SA_Resources'!AT143 -> 7.196377611 | BO117: ='Calc - SA_Resources'!AU143 -> 51.8139188 | BT117: =IF($BK$5=$BF$6, 'Staff Needed'!AB113, IF($BK$5=$BF$7, 'Staff Needed'!AD113, 'Staff Needed'!AF113)) -> 10.07492866 | BU117: =IF($BK$5=$BF$6, 'Staff Needed'!AC113, IF($BK$5=$BF$7, 'Staff Needed'!AE113, 'Staff Needed'!AG113)) -> 94.99218447 | BV117: ='Calc - SA_Resources'!BA143 -> 7.196377611 | BW117: ='Calc - SA_Resources'!BB143 -> 51.8139188 | BX117: =IF($BK$5=$BF$6, 'Staff Needed'!AH113, IF($BK$5=$BF$7, 'Staff Needed'!AJ113, 'Staff Needed'!AL113)) -> 0 | BY117: =IF($BK$5=$BF$6, 'Staff Needed'!AI113, IF($BK$5=$BF$7, 'Staff Needed'!AK113, 'Staff Needed'!AM113)) -> 0 | BZ117: ='Calc - SA_Resources'!BG143 -> 0 | CA117: ='Calc - SA_Resources'!BH143 -> 0
BJ118: 109 | BK118: =VLOOKUP(BJ118, 'Calc - Base'!$H$35:$I$400, 2) -> 2021-01-26 | BL118: =IF($BK$5=$BF$6, 'Staff Needed'!V114, IF($BK$5=$BF$7, 'Staff Needed'!X114, 'Staff Needed'!Z114)) -> 9.93908223 | BM118: =IF($BK$5=$BF$6, 'Staff Needed'!W114, IF($BK$5=$BF$7, 'Staff Needed'!Y114, 'Staff Needed'!AA114)) -> 93.71134674 | BN118: ='Calc - SA_Resources'!AT144 -> 7.09934445 | BO118: ='Calc - SA_Resources'!AU144 -> 51.11528004 | BT118: =IF($BK$5=$BF$6, 'Staff Needed'!AB114, IF($BK$5=$BF$7, 'Staff Needed'!AD114, 'Staff Needed'!AF114)) -> 9.93908223 | BU118: =IF($BK$5=$BF$6, 'Staff Needed'!AC114, IF($BK$5=$BF$7, 'Staff Needed'!AE114, 'Staff Needed'!AG114)) -> 93.71134674 | BV118: ='Calc - SA_Resources'!BA144 -> 7.09934445 | BW118: ='Calc - SA_Resources'!BB144 -> 51.11528004 | BX118: =IF($BK$5=$BF$6, 'Staff Needed'!AH114, IF($BK$5=$BF$7, 'Staff Needed'!AJ114, 'Staff Needed'!AL114)) -> 0 | BY118: =IF($BK$5=$BF$6, 'Staff Needed'!AI114, IF($BK$5=$BF$7, 'Staff Needed'!AK114, 'Staff Needed'!AM114)) -> 0 | BZ118: ='Calc - SA_Resources'!BG144 -> 0 | CA118: ='Calc - SA_Resources'!BH144 -> 0
BJ119: 110 | BK119: =VLOOKUP(BJ119, 'Calc - Base'!$H$35:$I$400, 2) -> 2021-01-27 | BL119: =IF($BK$5=$BF$6, 'Staff Needed'!V115, IF($BK$5=$BF$7, 'Staff Needed'!X115, 'Staff Needed'!Z115)) -> 9.804563856 | BM119: =IF($BK$5=$BF$6, 'Staff Needed'!W115, IF($BK$5=$BF$7, 'Staff Needed'!Y115, 'Staff Needed'!AA115)) -> 92.44303064 | BN119: ='Calc - SA_Resources'!AT145 -> 7.003259897 | BO119: ='Calc - SA_Resources'!AU145 -> 50.42347126 | BT119: =IF($BK$5=$BF$6, 'Staff Needed'!AB115, IF($BK$5=$BF$7, 'Staff Needed'!AD115, 'Staff Needed'!AF115)) -> 9.804563856 | BU119: =IF($BK$5=$BF$6, 'Staff Needed'!AC115, IF($BK$5=$BF$7, 'Staff Needed'!AE115, 'Staff Needed'!AG115)) -> 92.44303064 | BV119: ='Calc - SA_Resources'!BA145 -> 7.003259897 | BW119: ='Calc - SA_Resources'!BB145 -> 50.42347126 | BX119: =IF($BK$5=$BF$6, 'Staff Needed'!AH115, IF($BK$5=$BF$7, 'Staff Needed'!AJ115, 'Staff Needed'!AL115)) -> 0 | BY119: =IF($BK$5=$BF$6, 'Staff Needed'!AI115, IF($BK$5=$BF$7, 'Staff Needed'!AK115, 'Staff Needed'!AM115)) -> 0 | BZ119: ='Calc - SA_Resources'!BG145 -> 0 | CA119: ='Calc - SA_Resources'!BH145 -> 0
BJ120: 111 | BK120: =VLOOKUP(BJ120, 'Calc - Base'!$H$35:$I$400, 2) -> 2021-01-28 | BL120: =IF($BK$5=$BF$6, 'Staff Needed'!V116, IF($BK$5=$BF$7, 'Staff Needed'!X116, 'Staff Needed'!Z116)) -> 9.671375951 | BM120: =IF($BK$5=$BF$6, 'Staff Needed'!W116, IF($BK$5=$BF$7, 'Staff Needed'!Y116, 'Staff Needed'!AA116)) -> 91.18725896 | BN120: ='Calc - SA_Resources'!AT146 -> 6.908125679 | BO120: ='Calc - SA_Resources'!AU146 -> 49.73850489 | BT120: =IF($BK$5=$BF$6, 'Staff Needed'!AB116, IF($BK$5=$BF$7, 'Staff Needed'!AD116, 'Staff Needed'!AF116)) -> 9.671375951 | BU120: =IF($BK$5=$BF$6, 'Staff Needed'!AC116, IF($BK$5=$BF$7, 'Staff Needed'!AE116, 'Staff Needed'!AG116)) -> 91.18725896 | BV120: ='Calc - SA_Resources'!BA146 -> 6.908125679 | BW120: ='Calc - SA_Resources'!BB146 -> 49.73850489 | BX120: =IF($BK$5=$BF$6, 'Staff Needed'!AH116, IF($BK$5=$BF$7, 'Staff Needed'!AJ116, 'Staff Needed'!AL116)) -> 0 | BY120: =IF($BK$5=$BF$6, 'Staff Needed'!AI116, IF($BK$5=$BF$7, 'Staff Needed'!AK116, 'Staff Needed'!AM116)) -> 0 | BZ120: ='Calc - SA_Resources'!BG146 -> 0 | CA120: ='Calc - SA_Resources'!BH146 -> 0
BJ121: 112 | BK121: =VLOOKUP(BJ121, 'Calc - Base'!$H$35:$I$400, 2) -> 2021-01-29 | BL121: =IF($BK$5=$BF$6, 'Staff Needed'!V117, IF($BK$5=$BF$7, 'Staff Needed'!X117, 'Staff Needed'!Z117)) -> 9.53952036 | BM121: =IF($BK$5=$BF$6, 'Staff Needed'!W117, IF($BK$5=$BF$7, 'Staff Needed'!Y117, 'Staff Needed'!AA117)) -> 89.94404911 | BN121: ='Calc - SA_Resources'!AT147 -> 6.813943114 | BO121: ='Calc - SA_Resources'!AU147 -> 49.06039042 | BT121: =IF($BK$5=$BF$6, 'Staff Needed'!AB117, IF($BK$5=$BF$7, 'Staff Needed'!AD117, 'Staff Needed'!AF117)) -> 9.53952036 | BU121: =IF($BK$5=$BF$6, 'Staff Needed'!AC117, IF($BK$5=$BF$7, 'Staff Needed'!AE117, 'Staff Needed'!AG117)) -> 89.94404911 | BV121: ='Calc - SA_Resources'!BA147 -> 6.813943114 | BW121: ='Calc - SA_Resources'!BB147 -> 49.06039042 | BX121: =IF($BK$5=$BF$6, 'Staff Needed'!AH117, IF($BK$5=$BF$7, 'Staff Needed'!AJ117, 'Staff Needed'!AL117)) -> 0 | BY121: =IF($BK$5=$BF$6, 'Staff Needed'!AI117, IF($BK$5=$BF$7, 'Staff Needed'!AK117, 'Staff Needed'!AM117)) -> 0 | BZ121: ='Calc - SA_Resources'!BG147 -> 0 | CA121: ='Calc - SA_Resources'!BH147 -> 0
BJ122: 113 | BK122: =VLOOKUP(BJ122, 'Calc - Base'!$H$35:$I$400, 2) -> 2021-01-30 | BL122: =IF($BK$5=$BF$6, 'Staff Needed'!V118, IF($BK$5=$BF$7, 'Staff Needed'!X118, 'Staff Needed'!Z118)) -> 9.408998374 | BM122: =IF($BK$5=$BF$6, 'Staff Needed'!W118, IF($BK$5=$BF$7, 'Staff Needed'!Y118, 'Staff Needed'!AA118)) -> 88.71341324 | BN122: ='Calc - SA_Resources'!AT148 -> 6.720713124 | BO122: ='Calc - SA_Resources'!AU148 -> 48.38913449 | BT122: =IF($BK$5=$BF$6, 'Staff Needed'!AB118, IF($BK$5=$BF$7, 'Staff Needed'!AD118, 'Staff Needed'!AF118)) -> 9.408998374 | BU122: =IF($BK$5=$BF$6, 'Staff Needed'!AC118, IF($BK$5=$BF$7, 'Staff Needed'!AE118, 'Staff Needed'!AG118)) -> 88.71341324 | BV122: ='Calc - SA_Resources'!BA148 -> 6.720713124 | BW122: ='Calc - SA_Resources'!BB148 -> 48.38913449 | BX122: =IF($BK$5=$BF$6, 'Staff Needed'!AH118, IF($BK$5=$BF$7, 'Staff Needed'!AJ118, 'Staff Needed'!AL118)) -> 0 | BY122: =IF($BK$5=$BF$6, 'Staff Needed'!AI118, IF($BK$5=$BF$7, 'Staff Needed'!AK118, 'Staff Needed'!AM118)) -> 0 | BZ122: ='Calc - SA_Resources'!BG148 -> 0 | CA122: ='Calc - SA_Resources'!BH148 -> 0
BJ123: 114 | BK123: =VLOOKUP(BJ123, 'Calc - Base'!$H$35:$I$400, 2) -> 2021-01-31 | BL123: =IF($BK$5=$BF$6, 'Staff Needed'!V119, IF($BK$5=$BF$7, 'Staff Needed'!X119, 'Staff Needed'!Z119)) -> 9.279810743 | BM123: =IF($BK$5=$BF$6, 'Staff Needed'!W119, IF($BK$5=$BF$7, 'Staff Needed'!Y119, 'Staff Needed'!AA119)) -> 87.49535843 | BN123: ='Calc - SA_Resources'!AT149 -> 6.628436245 | BO123: ='Calc - SA_Resources'!AU149 -> 47.72474096 | BT123: =IF($BK$5=$BF$6, 'Staff Needed'!AB119, IF($BK$5=$BF$7, 'Staff Needed'!AD119, 'Staff Needed'!AF119)) -> 9.279810743 | BU123: =IF($BK$5=$BF$6, 'Staff Needed'!AC119, IF($BK$5=$BF$7, 'Staff Needed'!AE119, 'Staff Needed'!AG119)) -> 87.49535843 | BV123: ='Calc - SA_Resources'!BA149 -> 6.628436245 | BW123: ='Calc - SA_Resources'!BB149 -> 47.72474096 | BX123: =IF($BK$5=$BF$6, 'Staff Needed'!AH119, IF($BK$5=$BF$7, 'Staff Needed'!AJ119, 'Staff Needed'!AL119)) -> 0 | BY123: =IF($BK$5=$BF$6, 'Staff Needed'!AI119, IF($BK$5=$BF$7, 'Staff Needed'!AK119, 'Staff Needed'!AM119)) -> 0 | BZ123: ='Calc - SA_Resources'!BG149 -> 0 | CA123: ='Calc - SA_Resources'!BH149 -> 0
BJ124: 115 | BK124: =VLOOKUP(BJ124, 'Calc - Base'!$H$35:$I$400, 2) -> 2021-02-01 | BL124: =IF($BK$5=$BF$6, 'Staff Needed'!V120, IF($BK$5=$BF$7, 'Staff Needed'!X120, 'Staff Needed'!Z120)) -> 9.151957693 | BM124: =IF($BK$5=$BF$6, 'Staff Needed'!W120, IF($BK$5=$BF$7, 'Staff Needed'!Y120, 'Staff Needed'!AA120)) -> 86.28988682 | BN124: ='Calc - SA_Resources'!AT150 -> 6.537112638 | BO124: ='Calc - SA_Resources'!AU150 -> 47.06721099 | BT124: =IF($BK$5=$BF$6, 'Staff Needed'!AB120, IF($BK$5=$BF$7, 'Staff Needed'!AD120, 'Staff Needed'!AF120)) -> 9.151957693 | BU124: =IF($BK$5=$BF$6, 'Staff Needed'!AC120, IF($BK$5=$BF$7, 'Staff Needed'!AE120, 'Staff Needed'!AG120)) -> 86.28988682 | BV124: ='Calc - SA_Resources'!BA150 -> 6.537112638 | BW124: ='Calc - SA_Resources'!BB150 -> 47.06721099 | BX124: =IF($BK$5=$BF$6, 'Staff Needed'!AH120, IF($BK$5=$BF$7, 'Staff Needed'!AJ120, 'Staff Needed'!AL120)) -> 0 | BY124: =IF($BK$5=$BF$6, 'Staff Needed'!AI120, IF($BK$5=$BF$7, 'Staff Needed'!AK120, 'Staff Needed'!AM120)) -> 0 | BZ124: ='Calc - SA_Resources'!BG150 -> 0 | CA124: ='Calc - SA_Resources'!BH150 -> 0
BJ125: 116 | BK125: =VLOOKUP(BJ125, 'Calc - Base'!$H$35:$I$400, 2) -> 2021-02-02 | BL125: =IF($BK$5=$BF$6, 'Staff Needed'!V121, IF($BK$5=$BF$7, 'Staff Needed'!X121, 'Staff Needed'!Z121)) -> 9.025438944 | BM125: =IF($BK$5=$BF$6, 'Staff Needed'!W121, IF($BK$5=$BF$7, 'Staff Needed'!Y121, 'Staff Needed'!AA121)) -> 85.09699576 | BN125: ='Calc - SA_Resources'!AT151 -> 6.446742103 | BO125: ='Calc - SA_Resources'!AU151 -> 46.41654314 | BT125: =IF($BK$5=$BF$6, 'Staff Needed'!AB121, IF($BK$5=$BF$7, 'Staff Needed'!AD121, 'Staff Needed'!AF121)) -> 9.025438944 | BU125: =IF($BK$5=$BF$6, 'Staff Needed'!AC121, IF($BK$5=$BF$7, 'Staff Needed'!AE121, 'Staff Needed'!AG121)) -> 85.09699576 | BV125: ='Calc - SA_Resources'!BA151 -> 6.446742103 | BW125: ='Calc - SA_Resources'!BB151 -> 46.41654314 | BX125: =IF($BK$5=$BF$6, 'Staff Needed'!AH121, IF($BK$5=$BF$7, 'Staff Needed'!AJ121, 'Staff Needed'!AL121)) -> 0 | BY125: =IF($BK$5=$BF$6, 'Staff Needed'!AI121, IF($BK$5=$BF$7, 'Staff Needed'!AK121, 'Staff Needed'!AM121)) -> 0 | BZ125: ='Calc - SA_Resources'!BG151 -> 0 | CA125: ='Calc - SA_Resources'!BH151 -> 0
BJ126: 117 | BK126: =VLOOKUP(BJ126, 'Calc - Base'!$H$35:$I$400, 2) -> 2021-02-03 | BL126: =IF($BK$5=$BF$6, 'Staff Needed'!V122, IF($BK$5=$BF$7, 'Staff Needed'!X122, 'Staff Needed'!Z122)) -> 8.900253722 | BM126: =IF($BK$5=$BF$6, 'Staff Needed'!W122, IF($BK$5=$BF$7, 'Staff Needed'!Y122, 'Staff Needed'!AA122)) -> 83.91667795 | BN126: ='Calc - SA_Resources'!AT152 -> 6.357324087 | BO126: ='Calc - SA_Resources'!AU152 -> 45.77273343 | BT126: =IF($BK$5=$BF$6, 'Staff Needed'!AB122, IF($BK$5=$BF$7, 'Staff Needed'!AD122, 'Staff Needed'!AF122)) -> 8.900253722 | BU126: =IF($BK$5=$BF$6, 'Staff Needed'!AC122, IF($BK$5=$BF$7, 'Staff Needed'!AE122, 'Staff Needed'!AG122)) -> 83.91667795 | BV126: ='Calc - SA_Resources'!BA152 -> 6.357324087 | BW126: ='Calc - SA_Resources'!BB152 -> 45.77273343 | BX126: =IF($BK$5=$BF$6, 'Staff Needed'!AH122, IF($BK$5=$BF$7, 'Staff Needed'!AJ122, 'Staff Needed'!AL122)) -> 0 | BY126: =IF($BK$5=$BF$6, 'Staff Needed'!AI122, IF($BK$5=$BF$7, 'Staff Needed'!AK122, 'Staff Needed'!AM122)) -> 0 | BZ126: ='Calc - SA_Resources'!BG152 -> 0 | CA126: ='Calc - SA_Resources'!BH152 -> 0
BJ127: 118 | BK127: =VLOOKUP(BJ127, 'Calc - Base'!$H$35:$I$400, 2) -> 2021-02-04 | BL127: =IF($BK$5=$BF$6, 'Staff Needed'!V123, IF($BK$5=$BF$7, 'Staff Needed'!X123, 'Staff Needed'!Z123)) -> 8.776400777 | BM127: =IF($BK$5=$BF$6, 'Staff Needed'!W123, IF($BK$5=$BF$7, 'Staff Needed'!Y123, 'Staff Needed'!AA123)) -> 82.74892161 | BN127: ='Calc - SA_Resources'!AT153 -> 6.268857698 | BO127: ='Calc - SA_Resources'!AU153 -> 45.13577542 | BT127: =IF($BK$5=$BF$6, 'Staff Needed'!AB123, IF($BK$5=$BF$7, 'Staff Needed'!AD123, 'Staff Needed'!AF123)) -> 8.776400777 | BU127: =IF($BK$5=$BF$6, 'Staff Needed'!AC123, IF($BK$5=$BF$7, 'Staff Needed'!AE123, 'Staff Needed'!AG123)) -> 82.74892161 | BV127: ='Calc - SA_Resources'!BA153 -> 6.268857698 | BW127: ='Calc - SA_Resources'!BB153 -> 45.13577542 | BX127: =IF($BK$5=$BF$6, 'Staff Needed'!AH123, IF($BK$5=$BF$7, 'Staff Needed'!AJ123, 'Staff Needed'!AL123)) -> 0 | BY127: =IF($BK$5=$BF$6, 'Staff Needed'!AI123, IF($BK$5=$BF$7, 'Staff Needed'!AK123, 'Staff Needed'!AM123)) -> 0 | BZ127: ='Calc - SA_Resources'!BG153 -> 0 | CA127: ='Calc - SA_Resources'!BH153 -> 0
BJ128: 119 | BK128: =VLOOKUP(BJ128, 'Calc - Base'!$H$35:$I$400, 2) -> 2021-02-05 | BL128: =IF($BK$5=$BF$6, 'Staff Needed'!V124, IF($BK$5=$BF$7, 'Staff Needed'!X124, 'Staff Needed'!Z124)) -> 8.653878396 | BM128: =IF($BK$5=$BF$6, 'Staff Needed'!W124, IF($BK$5=$BF$7, 'Staff Needed'!Y124, 'Staff Needed'!AA124)) -> 81.59371059 | BN128: ='Calc - SA_Resources'!AT154 -> 6.181341711 | BO128: ='Calc - SA_Resources'!AU154 -> 44.50566032 | BT128: =IF($BK$5=$BF$6, 'Staff Needed'!AB124, IF($BK$5=$BF$7, 'Staff Needed'!AD124, 'Staff Needed'!AF124)) -> 8.653878396 | BU128: =IF($BK$5=$BF$6, 'Staff Needed'!AC124, IF($BK$5=$BF$7, 'Staff Needed'!AE124, 'Staff Needed'!AG124)) -> 81.59371059 | BV128: ='Calc - SA_Resources'!BA154 -> 6.181341711 | BW128: ='Calc - SA_Resources'!BB154 -> 44.50566032 | BX128: =IF($BK$5=$BF$6, 'Staff Needed'!AH124, IF($BK$5=$BF$7, 'Staff Needed'!AJ124, 'Staff Needed'!AL124)) -> 0 | BY128: =IF($BK$5=$BF$6, 'Staff Needed'!AI124, IF($BK$5=$BF$7, 'Staff Needed'!AK124, 'Staff Needed'!AM124)) -> 0 | BZ128: ='Calc - SA_Resources'!BG154 -> 0 | CA128: ='Calc - SA_Resources'!BH154 -> 0
BJ129: 120 | BK129: =VLOOKUP(BJ129, 'Calc - Base'!$H$35:$I$400, 2) -> 2021-02-06 | BL129: =IF($BK$5=$BF$6, 'Staff Needed'!V125, IF($BK$5=$BF$7, 'Staff Needed'!X125, 'Staff Needed'!Z125)) -> 8.532684421 | BM129: =IF($BK$5=$BF$6, 'Staff Needed'!W125, IF($BK$5=$BF$7, 'Staff Needed'!Y125, 'Staff Needed'!AA125)) -> 80.45102455 | BN129: ='Calc - SA_Resources'!AT155 -> 6.094774587 | BO129: ='Calc - SA_Resources'!AU155 -> 43.88237702 | BT129: =IF($BK$5=$BF$6, 'Staff Needed'!AB125, IF($BK$5=$BF$7, 'Staff Needed'!AD125, 'Staff Needed'!AF125)) -> 8.532684421 | BU129: =IF($BK$5=$BF$6, 'Staff Needed'!AC125, IF($BK$5=$BF$7, 'Staff Needed'!AE125, 'Staff Needed'!AG125)) -> 80.45102455 | BV129: ='Calc - SA_Resources'!BA155 -> 6.094774587 | BW129: ='Calc - SA_Resources'!BB155 -> 43.88237702 | BX129: =IF($BK$5=$BF$6, 'Staff Needed'!AH125, IF($BK$5=$BF$7, 'Staff Needed'!AJ125, 'Staff Needed'!AL125)) -> 0 | BY129: =IF($BK$5=$BF$6, 'Staff Needed'!AI125, IF($BK$5=$BF$7, 'Staff Needed'!AK125, 'Staff Needed'!AM125)) -> 0 | BZ129: ='Calc - SA_Resources'!BG155 -> 0 | CA129: ='Calc - SA_Resources'!BH155 -> 0
BJ130: 121 | BK130: =VLOOKUP(BJ130, 'Calc - Base'!$H$35:$I$400, 2) -> 2021-02-07 | BL130: =IF($BK$5=$BF$6, 'Staff Needed'!V126, IF($BK$5=$BF$7, 'Staff Needed'!X126, 'Staff Needed'!Z126)) -> 8.412816263 | BM130: =IF($BK$5=$BF$6, 'Staff Needed'!W126, IF($BK$5=$BF$7, 'Staff Needed'!Y126, 'Staff Needed'!AA126)) -> 79.32083906 | BN130: ='Calc - SA_Resources'!AT156 -> 6.009154474 | BO130: ='Calc - SA_Resources'!AU156 -> 43.26591221 | BT130: =IF($BK$5=$BF$6, 'Staff Needed'!AB126, IF($BK$5=$BF$7, 'Staff Needed'!AD126, 'Staff Needed'!AF126)) -> 8.412816263 | BU130: =IF($BK$5=$BF$6, 'Staff Needed'!AC126, IF($BK$5=$BF$7, 'Staff Needed'!AE126, 'Staff Needed'!AG126)) -> 79.32083906 | BV130: ='Calc - SA_Resources'!BA156 -> 6.009154474 | BW130: ='Calc - SA_Resources'!BB156 -> 43.26591221 | BX130: =IF($BK$5=$BF$6, 'Staff Needed'!AH126, IF($BK$5=$BF$7, 'Staff Needed'!AJ126, 'Staff Needed'!AL126)) -> 0 | BY130: =IF($BK$5=$BF$6, 'Staff Needed'!AI126, IF($BK$5=$BF$7, 'Staff Needed'!AK126, 'Staff Needed'!AM126)) -> 0 | BZ130: ='Calc - SA_Resources'!BG156 -> 0 | CA130: ='Calc - SA_Resources'!BH156 -> 0
BJ131: 122 | BK131: =VLOOKUP(BJ131, 'Calc - Base'!$H$35:$I$400, 2) -> 2021-02-08 | BL131: =IF($BK$5=$BF$6, 'Staff Needed'!V127, IF($BK$5=$BF$7, 'Staff Needed'!X127, 'Staff Needed'!Z127)) -> 8.294270915 | BM131: =IF($BK$5=$BF$6, 'Staff Needed'!W127, IF($BK$5=$BF$7, 'Staff Needed'!Y127, 'Staff Needed'!AA127)) -> 78.20312577 | BN131: ='Calc - SA_Resources'!AT157 -> 5.924479225 | BO131: ='Calc - SA_Resources'!AU157 -> 42.65625042 | BT131: =IF($BK$5=$BF$6, 'Staff Needed'!AB127, IF($BK$5=$BF$7, 'Staff Needed'!AD127, 'Staff Needed'!AF127)) -> 8.294270915 | BU131: =IF($BK$5=$BF$6, 'Staff Needed'!AC127, IF($BK$5=$BF$7, 'Staff Needed'!AE127, 'Staff Needed'!AG127)) -> 78.20312577 | BV131: ='Calc - SA_Resources'!BA157 -> 5.924479225 | BW131: ='Calc - SA_Resources'!BB157 -> 42.65625042 | BX131: =IF($BK$5=$BF$6, 'Staff Needed'!AH127, IF($BK$5=$BF$7, 'Staff Needed'!AJ127, 'Staff Needed'!AL127)) -> 0 | BY131: =IF($BK$5=$BF$6, 'Staff Needed'!AI127, IF($BK$5=$BF$7, 'Staff Needed'!AK127, 'Staff Needed'!AM127)) -> 0 | BZ131: ='Calc - SA_Resources'!BG157 -> 0 | CA131: ='Calc - SA_Resources'!BH157 -> 0
BJ132: 123 | BK132: =VLOOKUP(BJ132, 'Calc - Base'!$H$35:$I$400, 2) -> 2021-02-09 | BL132: =IF($BK$5=$BF$6, 'Staff Needed'!V128, IF($BK$5=$BF$7, 'Staff Needed'!X128, 'Staff Needed'!Z128)) -> 8.177044967 | BM132: =IF($BK$5=$BF$6, 'Staff Needed'!W128, IF($BK$5=$BF$7, 'Staff Needed'!Y128, 'Staff Needed'!AA128)) -> 77.09785255 | BN132: ='Calc - SA_Resources'!AT158 -> 5.840746405 | BO132: ='Calc - SA_Resources'!AU158 -> 42.05337412 | BT132: =IF($BK$5=$BF$6, 'Staff Needed'!AB128, IF($BK$5=$BF$7, 'Staff Needed'!AD128, 'Staff Needed'!AF128)) -> 8.177044967 | BU132: =IF($BK$5=$BF$6, 'Staff Needed'!AC128, IF($BK$5=$BF$7, 'Staff Needed'!AE128, 'Staff Needed'!AG128)) -> 77.09785255 | BV132: ='Calc - SA_Resources'!BA158 -> 5.840746405 | BW132: ='Calc - SA_Resources'!BB158 -> 42.05337412 | BX132: =IF($BK$5=$BF$6, 'Staff Needed'!AH128, IF($BK$5=$BF$7, 'Staff Needed'!AJ128, 'Staff Needed'!AL128)) -> 0 | BY132: =IF($BK$5=$BF$6, 'Staff Needed'!AI128, IF($BK$5=$BF$7, 'Staff Needed'!AK128, 'Staff Needed'!AM128)) -> 0 | BZ132: ='Calc - SA_Resources'!BG158 -> 0 | CA132: ='Calc - SA_Resources'!BH158 -> 0
BJ133: 124 | BK133: =VLOOKUP(BJ133, 'Calc - Base'!$H$35:$I$400, 2) -> 2021-02-10 | BL133: =IF($BK$5=$BF$6, 'Staff Needed'!V129, IF($BK$5=$BF$7, 'Staff Needed'!X129, 'Staff Needed'!Z129)) -> 8.061134622 | BM133: =IF($BK$5=$BF$6, 'Staff Needed'!W129, IF($BK$5=$BF$7, 'Staff Needed'!Y129, 'Staff Needed'!AA129)) -> 76.00498358 | BN133: ='Calc - SA_Resources'!AT159 -> 5.757953301 | BO133: ='Calc - SA_Resources'!AU159 -> 41.45726377 | BT133: =IF($BK$5=$BF$6, 'Staff Needed'!AB129, IF($BK$5=$BF$7, 'Staff Needed'!AD129, 'Staff Needed'!AF129)) -> 8.061134622 | BU133: =IF($BK$5=$BF$6, 'Staff Needed'!AC129, IF($BK$5=$BF$7, 'Staff Needed'!AE129, 'Staff Needed'!AG129)) -> 76.00498358 | BV133: ='Calc - SA_Resources'!BA159 -> 5.757953301 | BW133: ='Calc - SA_Resources'!BB159 -> 41.45726377 | BX133: =IF($BK$5=$BF$6, 'Staff Needed'!AH129, IF($BK$5=$BF$7, 'Staff Needed'!AJ129, 'Staff Needed'!AL129)) -> 0 | BY133: =IF($BK$5=$BF$6, 'Staff Needed'!AI129, IF($BK$5=$BF$7, 'Staff Needed'!AK129, 'Staff Needed'!AM129)) -> 0 | BZ133: ='Calc - SA_Resources'!BG159 -> 0 | CA133: ='Calc - SA_Resources'!BH159 -> 0
BJ134: 125 | BK134: =VLOOKUP(BJ134, 'Calc - Base'!$H$35:$I$400, 2) -> 2021-02-11 | BL134: =IF($BK$5=$BF$6, 'Staff Needed'!V130, IF($BK$5=$BF$7, 'Staff Needed'!X130, 'Staff Needed'!Z130)) -> 7.946535709 | BM134: =IF($BK$5=$BF$6, 'Staff Needed'!W130, IF($BK$5=$BF$7, 'Staff Needed'!Y130, 'Staff Needed'!AA130)) -> 74.92447954 | BN134: ='Calc - SA_Resources'!AT160 -> 5.676096935 | BO134: ='Calc - SA_Resources'!AU160 -> 40.86789793 | BT134: =IF($BK$5=$BF$6, 'Staff Needed'!AB130, IF($BK$5=$BF$7, 'Staff Needed'!AD130, 'Staff Needed'!AF130)) -> 7.946535709 | BU134: =IF($BK$5=$BF$6, 'Staff Needed'!AC130, IF($BK$5=$BF$7, 'Staff Needed'!AE130, 'Staff Needed'!AG130)) -> 74.92447954 | BV134: ='Calc - SA_Resources'!BA160 -> 5.676096935 | BW134: ='Calc - SA_Resources'!BB160 -> 40.86789793 | BX134: =IF($BK$5=$BF$6, 'Staff Needed'!AH130, IF($BK$5=$BF$7, 'Staff Needed'!AJ130, 'Staff Needed'!AL130)) -> 0 | BY134: =IF($BK$5=$BF$6, 'Staff Needed'!AI130, IF($BK$5=$BF$7, 'Staff Needed'!AK130, 'Staff Needed'!AM130)) -> 0 | BZ134: ='Calc - SA_Resources'!BG160 -> 0 | CA134: ='Calc - SA_Resources'!BH160 -> 0
BJ135: 126 | BK135: =VLOOKUP(BJ135, 'Calc - Base'!$H$35:$I$400, 2) -> 2021-02-12 | BL135: =IF($BK$5=$BF$6, 'Staff Needed'!V131, IF($BK$5=$BF$7, 'Staff Needed'!X131, 'Staff Needed'!Z131)) -> 7.833243696 | BM135: =IF($BK$5=$BF$6, 'Staff Needed'!W131, IF($BK$5=$BF$7, 'Staff Needed'!Y131, 'Staff Needed'!AA131)) -> 73.8562977 | BN135: ='Calc - SA_Resources'!AT161 -> 5.595174068 | BO135: ='Calc - SA_Resources'!AU161 -> 40.28525329 | BT135: =IF($BK$5=$BF$6, 'Staff Needed'!AB131, IF($BK$5=$BF$7, 'Staff Needed'!AD131, 'Staff Needed'!AF131)) -> 7.833243696 | BU135: =IF($BK$5=$BF$6, 'Staff Needed'!AC131, IF($BK$5=$BF$7, 'Staff Needed'!AE131, 'Staff Needed'!AG131)) -> 73.8562977 | BV135: ='Calc - SA_Resources'!BA161 -> 5.595174068 | BW135: ='Calc - SA_Resources'!BB161 -> 40.28525329 | BX135: =IF($BK$5=$BF$6, 'Staff Needed'!AH131, IF($BK$5=$BF$7, 'Staff Needed'!AJ131, 'Staff Needed'!AL131)) -> 0 | BY135: =IF($BK$5=$BF$6, 'Staff Needed'!AI131, IF($BK$5=$BF$7, 'Staff Needed'!AK131, 'Staff Needed'!AM131)) -> 0 | BZ135: ='Calc - SA_Resources'!BG161 -> 0 | CA135: ='Calc - SA_Resources'!BH161 -> 0
BJ136: 127 | BK136: =VLOOKUP(BJ136, 'Calc - Base'!$H$35:$I$400, 2) -> 2021-02-13 | BL136: =IF($BK$5=$BF$6, 'Staff Needed'!V132, IF($BK$5=$BF$7, 'Staff Needed'!X132, 'Staff Needed'!Z132)) -> 7.721253705 | BM136: =IF($BK$5=$BF$6, 'Staff Needed'!W132, IF($BK$5=$BF$7, 'Staff Needed'!Y132, 'Staff Needed'!AA132)) -> 72.80039207 | BN136: ='Calc - SA_Resources'!AT162 -> 5.515181218 | BO136: ='Calc - SA_Resources'!AU162 -> 39.70930477 | BT136: =IF($BK$5=$BF$6, 'Staff Needed'!AB132, IF($BK$5=$BF$7, 'Staff Needed'!AD132, 'Staff Needed'!AF132)) -> 7.721253705 | BU136: =IF($BK$5=$BF$6, 'Staff Needed'!AC132, IF($BK$5=$BF$7, 'Staff Needed'!AE132, 'Staff Needed'!AG132)) -> 72.80039207 | BV136: ='Calc - SA_Resources'!BA162 -> 5.515181218 | BW136: ='Calc - SA_Resources'!BB162 -> 39.70930477 | BX136: =IF($BK$5=$BF$6, 'Staff Needed'!AH132, IF($BK$5=$BF$7, 'Staff Needed'!AJ132, 'Staff Needed'!AL132)) -> 0 | BY136: =IF($BK$5=$BF$6, 'Staff Needed'!AI132, IF($BK$5=$BF$7, 'Staff Needed'!AK132, 'Staff Needed'!AM132)) -> 0 | BZ136: ='Calc - SA_Resources'!BG162 -> 0 | CA136: ='Calc - SA_Resources'!BH162 -> 0
BJ137: 128 | BK137: =VLOOKUP(BJ137, 'Calc - Base'!$H$35:$I$400, 2) -> 2021-02-14 | BL137: =IF($BK$5=$BF$6, 'Staff Needed'!V133, IF($BK$5=$BF$7, 'Staff Needed'!X133, 'Staff Needed'!Z133)) -> 7.610560525 | BM137: =IF($BK$5=$BF$6, 'Staff Needed'!W133, IF($BK$5=$BF$7, 'Staff Needed'!Y133, 'Staff Needed'!AA133)) -> 71.75671352 | BN137: ='Calc - SA_Resources'!AT163 -> 5.436114661 | BO137: ='Calc - SA_Resources'!AU163 -> 39.14002556 | BT137: =IF($BK$5=$BF$6, 'Staff Needed'!AB133, IF($BK$5=$BF$7, 'Staff Needed'!AD133, 'Staff Needed'!AF133)) -> 7.610560525 | BU137: =IF($BK$5=$BF$6, 'Staff Needed'!AC133, IF($BK$5=$BF$7, 'Staff Needed'!AE133, 'Staff Needed'!AG133)) -> 71.75671352 | BV137: ='Calc - SA_Resources'!BA163 -> 5.436114661 | BW137: ='Calc - SA_Resources'!BB163 -> 39.14002556 | BX137: =IF($BK$5=$BF$6, 'Staff Needed'!AH133, IF($BK$5=$BF$7, 'Staff Needed'!AJ133, 'Staff Needed'!AL133)) -> 0 | BY137: =IF($BK$5=$BF$6, 'Staff Needed'!AI133, IF($BK$5=$BF$7, 'Staff Needed'!AK133, 'Staff Needed'!AM133)) -> 0 | BZ137: ='Calc - SA_Resources'!BG163 -> 0 | CA137: ='Calc - SA_Resources'!BH163 -> 0
BJ138: 129 | BK138: =VLOOKUP(BJ138, 'Calc - Base'!$H$35:$I$400, 2) -> 2021-02-15 | BL138: =IF($BK$5=$BF$6, 'Staff Needed'!V134, IF($BK$5=$BF$7, 'Staff Needed'!X134, 'Staff Needed'!Z134)) -> 7.501158624 | BM138: =IF($BK$5=$BF$6, 'Staff Needed'!W134, IF($BK$5=$BF$7, 'Staff Needed'!Y134, 'Staff Needed'!AA134)) -> 70.72520989 | BN138: ='Calc - SA_Resources'!AT164 -> 5.357970446 | BO138: ='Calc - SA_Resources'!AU164 -> 38.57738721 | BT138: =IF($BK$5=$BF$6, 'Staff Needed'!AB134, IF($BK$5=$BF$7, 'Staff Needed'!AD134, 'Staff Needed'!AF134)) -> 7.501158624 | BU138: =IF($BK$5=$BF$6, 'Staff Needed'!AC134, IF($BK$5=$BF$7, 'Staff Needed'!AE134, 'Staff Needed'!AG134)) -> 70.72520989 | BV138: ='Calc - SA_Resources'!BA164 -> 5.357970446 | BW138: ='Calc - SA_Resources'!BB164 -> 38.57738721 | BX138: =IF($BK$5=$BF$6, 'Staff Needed'!AH134, IF($BK$5=$BF$7, 'Staff Needed'!AJ134, 'Staff Needed'!AL134)) -> 0 | BY138: =IF($BK$5=$BF$6, 'Staff Needed'!AI134, IF($BK$5=$BF$7, 'Staff Needed'!AK134, 'Staff Needed'!AM134)) -> 0 | BZ138: ='Calc - SA_Resources'!BG164 -> 0 | CA138: ='Calc - SA_Resources'!BH164 -> 0
BJ139: 130 | BK139: =VLOOKUP(BJ139, 'Calc - Base'!$H$35:$I$400, 2) -> 2021-02-16 | BL139: =IF($BK$5=$BF$6, 'Staff Needed'!V135, IF($BK$5=$BF$7, 'Staff Needed'!X135, 'Staff Needed'!Z135)) -> 7.393042165 | BM139: =IF($BK$5=$BF$6, 'Staff Needed'!W135, IF($BK$5=$BF$7, 'Staff Needed'!Y135, 'Staff Needed'!AA135)) -> 69.70582613 | BN139: ='Calc - SA_Resources'!AT165 -> 5.280744404 | BO139: ='Calc - SA_Resources'!AU165 -> 38.02135971 | BT139: =IF($BK$5=$BF$6, 'Staff Needed'!AB135, IF($BK$5=$BF$7, 'Staff Needed'!AD135, 'Staff Needed'!AF135)) -> 7.393042165 | BU139: =IF($BK$5=$BF$6, 'Staff Needed'!AC135, IF($BK$5=$BF$7, 'Staff Needed'!AE135, 'Staff Needed'!AG135)) -> 69.70582613 | BV139: ='Calc - SA_Resources'!BA165 -> 5.280744404 | BW139: ='Calc - SA_Resources'!BB165 -> 38.02135971 | BX139: =IF($BK$5=$BF$6, 'Staff Needed'!AH135, IF($BK$5=$BF$7, 'Staff Needed'!AJ135, 'Staff Needed'!AL135)) -> 0 | BY139: =IF($BK$5=$BF$6, 'Staff Needed'!AI135, IF($BK$5=$BF$7, 'Staff Needed'!AK135, 'Staff Needed'!AM135)) -> 0 | BZ139: ='Calc - SA_Resources'!BG165 -> 0 | CA139: ='Calc - SA_Resources'!BH165 -> 0
BJ140: 131 | BK140: =VLOOKUP(BJ140, 'Calc - Base'!$H$35:$I$400, 2) -> 2021-02-17 | BL140: =IF($BK$5=$BF$6, 'Staff Needed'!V136, IF($BK$5=$BF$7, 'Staff Needed'!X136, 'Staff Needed'!Z136)) -> 7.286205014 | BM140: =IF($BK$5=$BF$6, 'Staff Needed'!W136, IF($BK$5=$BF$7, 'Staff Needed'!Y136, 'Staff Needed'!AA136)) -> 68.69850442 | BN140: ='Calc - SA_Resources'!AT166 -> 5.204432153 | BO140: ='Calc - SA_Resources'!AU166 -> 37.4719115 | BT140: =IF($BK$5=$BF$6, 'Staff Needed'!AB136, IF($BK$5=$BF$7, 'Staff Needed'!AD136, 'Staff Needed'!AF136)) -> 7.286205014 | BU140: =IF($BK$5=$BF$6, 'Staff Needed'!AC136, IF($BK$5=$BF$7, 'Staff Needed'!AE136, 'Staff Needed'!AG136)) -> 68.69850442 | BV140: ='Calc - SA_Resources'!BA166 -> 5.204432153 | BW140: ='Calc - SA_Resources'!BB166 -> 37.4719115 | BX140: =IF($BK$5=$BF$6, 'Staff Needed'!AH136, IF($BK$5=$BF$7, 'Staff Needed'!AJ136, 'Staff Needed'!AL136)) -> 0 | BY140: =IF($BK$5=$BF$6, 'Staff Needed'!AI136, IF($BK$5=$BF$7, 'Staff Needed'!AK136, 'Staff Needed'!AM136)) -> 0 | BZ140: ='Calc - SA_Resources'!BG166 -> 0 | CA140: ='Calc - SA_Resources'!BH166 -> 0
BJ141: 132 | BK141: =VLOOKUP(BJ141, 'Calc - Base'!$H$35:$I$400, 2) -> 2021-02-18 | BL141: =IF($BK$5=$BF$6, 'Staff Needed'!V137, IF($BK$5=$BF$7, 'Staff Needed'!X137, 'Staff Needed'!Z137)) -> 7.180640757 | BM141: =IF($BK$5=$BF$6, 'Staff Needed'!W137, IF($BK$5=$BF$7, 'Staff Needed'!Y137, 'Staff Needed'!AA137)) -> 67.70318428 | BN141: ='Calc - SA_Resources'!AT167 -> 5.129029112 | BO141: ='Calc - SA_Resources'!AU167 -> 36.92900961 | BT141: =IF($BK$5=$BF$6, 'Staff Needed'!AB137, IF($BK$5=$BF$7, 'Staff Needed'!AD137, 'Staff Needed'!AF137)) -> 7.180640757 | BU141: =IF($BK$5=$BF$6, 'Staff Needed'!AC137, IF($BK$5=$BF$7, 'Staff Needed'!AE137, 'Staff Needed'!AG137)) -> 67.70318428 | BV141: ='Calc - SA_Resources'!BA167 -> 5.129029112 | BW141: ='Calc - SA_Resources'!BB167 -> 36.92900961 | BX141: =IF($BK$5=$BF$6, 'Staff Needed'!AH137, IF($BK$5=$BF$7, 'Staff Needed'!AJ137, 'Staff Needed'!AL137)) -> 0 | BY141: =IF($BK$5=$BF$6, 'Staff Needed'!AI137, IF($BK$5=$BF$7, 'Staff Needed'!AK137, 'Staff Needed'!AM137)) -> 0 | BZ141: ='Calc - SA_Resources'!BG167 -> 0 | CA141: ='Calc - SA_Resources'!BH167 -> 0
BJ142: 133 | BK142: =VLOOKUP(BJ142, 'Calc - Base'!$H$35:$I$400, 2) -> 2021-02-19 | BL142: =IF($BK$5=$BF$6, 'Staff Needed'!V138, IF($BK$5=$BF$7, 'Staff Needed'!X138, 'Staff Needed'!Z138)) -> 7.076342708 | BM142: =IF($BK$5=$BF$6, 'Staff Needed'!W138, IF($BK$5=$BF$7, 'Staff Needed'!Y138, 'Staff Needed'!AA138)) -> 66.71980267 | BN142: ='Calc - SA_Resources'!AT168 -> 5.054530505 | BO142: ='Calc - SA_Resources'!AU168 -> 36.39261964 | BT142: =IF($BK$5=$BF$6, 'Staff Needed'!AB138, IF($BK$5=$BF$7, 'Staff Needed'!AD138, 'Staff Needed'!AF138)) -> 7.076342708 | BU142: =IF($BK$5=$BF$6, 'Staff Needed'!AC138, IF($BK$5=$BF$7, 'Staff Needed'!AE138, 'Staff Needed'!AG138)) -> 66.71980267 | BV142: ='Calc - SA_Resources'!BA168 -> 5.054530505 | BW142: ='Calc - SA_Resources'!BB168 -> 36.39261964 | BX142: =IF($BK$5=$BF$6, 'Staff Needed'!AH138, IF($BK$5=$BF$7, 'Staff Needed'!AJ138, 'Staff Needed'!AL138)) -> 0 | BY142: =IF($BK$5=$BF$6, 'Staff Needed'!AI138, IF($BK$5=$BF$7, 'Staff Needed'!AK138, 'Staff Needed'!AM138)) -> 0 | BZ142: ='Calc - SA_Resources'!BG168 -> 0 | CA142: ='Calc - SA_Resources'!BH168 -> 0
BJ143: 134 | BK143: =VLOOKUP(BJ143, 'Calc - Base'!$H$35:$I$400, 2) -> 2021-02-20 | BL143: =IF($BK$5=$BF$6, 'Staff Needed'!V139, IF($BK$5=$BF$7, 'Staff Needed'!X139, 'Staff Needed'!Z139)) -> 6.973303924 | BM143: =IF($BK$5=$BF$6, 'Staff Needed'!W139, IF($BK$5=$BF$7, 'Staff Needed'!Y139, 'Staff Needed'!AA139)) -> 65.74829414 | BN143: ='Calc - SA_Resources'!AT169 -> 4.980931374 | BO143: ='Calc - SA_Resources'!AU169 -> 35.8627059 | BT143: =IF($BK$5=$BF$6, 'Staff Needed'!AB139, IF($BK$5=$BF$7, 'Staff Needed'!AD139, 'Staff Needed'!AF139)) -> 6.973303924 | BU143: =IF($BK$5=$BF$6, 'Staff Needed'!AC139, IF($BK$5=$BF$7, 'Staff Needed'!AE139, 'Staff Needed'!AG139)) -> 65.74829414 | BV143: ='Calc - SA_Resources'!BA169 -> 4.980931374 | BW143: ='Calc - SA_Resources'!BB169 -> 35.8627059 | BX143: =IF($BK$5=$BF$6, 'Staff Needed'!AH139, IF($BK$5=$BF$7, 'Staff Needed'!AJ139, 'Staff Needed'!AL139)) -> 0 | BY143: =IF($BK$5=$BF$6, 'Staff Needed'!AI139, IF($BK$5=$BF$7, 'Staff Needed'!AK139, 'Staff Needed'!AM139)) -> 0 | BZ143: ='Calc - SA_Resources'!BG169 -> 0 | CA143: ='Calc - SA_Resources'!BH169 -> 0
